Workbook

Sheet Cover
A1: =RIGHT(CELL("filename", $A$1), LEN(CELL("filename", $A$1)) - SEARCH("]", CELL("filename", $A$1))) -> 
B3: Leakage
B5: Model code: | C5: PR24CA34
B6: Version number: | C6: 3
B7: File name: | C7: =MID(CELL("filename"), FIND("[", CELL("filename"), 1) + 1, FIND("]", CELL("filename"), 1) - FIND("[", CELL("filename"), 1) - 1) -> 
B8: Date: | C8: 2024-12-19
B10: For enquiries please contact: | C10: PR24@ofwat.gov.uk
B29: Contents:
B31: Tab name | C31: Description
B32: Changes log
B33: Cover | C33: Cover page
B34: Flow chart | C34: Graphical model overview
B35: Inputs >> | C35: Start of sheets where data is imported to model
B36: F_Input_APR1 | C36: APR data used in calculation of other leakage unit rates
B37: F_Inputs BP | C37: Data taken from companies business plan data tables
B38: F_Input_Connected_Props | C38: Connected properties from companies business plan data tables
B39: F_Input_CPIH | C39: CPIH Rates for rebasing costs
B40: F_Inputs_AP_TE | C40: Mains length and water balance information from companies business plan data tables
B41: F_Input_MeterPenetration | C41: Metering penetration from companies business plan data tables
B42: F_Input_Leakage&PMACoverage | C42: Leakage and pressure management information
B43: Reallocations | C43: Reallocations in and out of leakage enhancement CW3.49
B44: MainsR Costs | C44: Unit rates for mains renewal
B45: Base_Other_MainsR | C45: Mains renewal activity within base as percentage of total network length
B46: Query data >>
B47: Addition Leakage Enh and Cap | C47: Breakdown of leakage from different activities
B48: Leakage Activity Query_FD | C48: Breakdown of leakage activities and quantities
B49: Override | C49: Overrides of business plan data tables
B50: Consolidated inputs >>
B51: APR_Combined_Inputs | C51: APR data used in calculation of other leakage unit rates
B52: APR_Combined_Inputs_Real | C52: APR data used in calculation of other leakage unit rates
B53: Analysis >>
B54: Reallocation Other Adj | C54: Adjustments of totex due to reallocations
B55: Lkg_Expenditure_Benefits | C55: Outturn analysis of leakage expenditure and benefits
B56: FD_Unit cost | C56: Calculation of unit costs
B57: Mains Replacement | C57: Analysis of mains renewal information
B58: Total Leakage | C58: Calculation of PCL gap to be funded
B59: OutlierAnalysis | C59: Analysis of outlier costs
B60: Leakage Ranking | C60: Ranking of company leakage performance
B61: Deep dives >>
B62: SES | C62: Deep dive analysis
B63: SEW | C63: Deep dive analysis
B64: Outputs >> | C64: Calculation of allowance
B65: Allowance | C65: Profiling of allowances
B66: Outputs to aggregator | C66: Outputs for upload to Ofwat data management system
B67: F_Outputs | C67: Allowances adjusted for real price effects and frontier shift
B68: DROPDOWN LISTS | C68: Values for drop down lists
B71: Change log:
B72: Company | C72: Description of change made | D72: Sheet(s) in current model | E72: Date change made | F72: Version number
B73: Anglian Water | C73: We have recalculated the leakage enhancement allowance based on the updated view of leakage PCL reduction. | D73: Total leakage, allowance | E73: 26/02/2025 | F73: 3

Sheet Flow chart
A1: =RIGHT(CELL("filename", A1), LEN(CELL("filename", A1)) - SEARCH("]", CELL("filename", A1))) -> 
A3: Conceptual model
L31: .
A95: End of sheet

Sheet Inputs >>

Sheet F_Input_APR1
A1: =RIGHT(CELL("filename", $A$1), LEN(CELL("filename", $A$1)) - SEARCH("]", CELL("filename", $A$1))) -> 
A2: Purpose | B2: APR data download for calculation of "other" leakage units rate
C3: Leakage data 2024 | E3: Run on 18 Sep 2024 14:25
A5: Company | B5: Item Code | C5: Item Description | D5: Item Unit | E5: Item Table Suite | F5: 2016-17 | G5: 2017-18 | H5: 2018-19 | I5: 2019-20 | J5: 2020-21 | K5: 2021-22 | L5: 2022-23 | M5: 2023-24
A9: ANH | B9: BN4002 | C9: Population Density WAD - LAD - water / Population per square kilometre | D9: nr/km2 | E9: Cost Requests April 2022 | F9: 687.623 | G9: 689.873 | H9: 689.657 | I9: 687.436 | J9: 688.732 | K9: 688.732 | L9: 688.732 | M9: 688.732
A10: ANH | B10: BP3410 | C10: Households properties connected during the year | D10: 000 | E10: Cost Assessment | F10: 24.546 | G10: 26.712 | H10: 27.514 | I10: 27.92087539 | J10: 38.25839394 | K10: 42.17966397 | L10: 43.28450498 | M10: 42.95505478
A11: ANH | B11: BP3415 | C11: Non-households properties connected during the year | D11: 000 | E11: Cost Assessment | F11: 0.973 | G11: 0.831 | H11: 1.831 | I11: 0.9476111111 | J11: 0.9363796296 | K11: 0.9461095679 | L11: 0.9309611626 | M11: 0.9239546896
A12: ANH | B12: C_DENSITY_PR19CA001 | C12: population density for water serving area | D12: nr | E12: Price Review 2019
A13: ANH | B13: B0004WNPLI | C13: Other - Leakage improvements delivering benefits in 2020-25 | D13: Ml/d | E13: Cost Base CMA 2021
A14: ANH | B14: BN1100 | C14: Total length of mains on 31 March of report year. | D14: km | E14: Price Review 2019 | F14: 38325.28 | G14: 38420 | H14: 38584.37 | I14: 38853 | J14: 39072 | K14: 39272 | L14: 39449 | M14: 39619
A15: ANH | B15: BN1178 | C15: Number of properties | D15: 000s | E15: Cost Assessment | F15: 2195.719 | G15: 2195.719 | H15: 2218.665 | I15: 2244.409 | J15: 2235.006 | K15: 2273.641 | L15: 2296.607 | M15: 2313.356
A16: ANH | B16: BN15410_TOT | C16: Leakage expenditure-Total leakage expenditure-Prevent (rehab)- direct costs | D16: £m | E16: Cost Requests April 2022 | G16: 5.096 | H16: 2.771 | I16: 2.464 | J16: 2.305 | K16: 4.624 | L16: 1.702 | M16: 1.339669
A17: ANH | B17: BN15420_TOT | C17: Leakage expenditure-Total leakage expenditure-Prevent (pressure management) - direct costs | D17: £m | E17: Cost Requests April 2022 | G17: 3.664 | H17: 3.496 | I17: 3.298 | J17: 1.898 | K17: 12.612 | L17: 8.365 | M17: 6.50741003
A18: ANH | B18: BN15430_TOT | C18: Leakage expenditure-Total leakage expenditure-Prevent (calm networks)- direct costs | D18: £m | E18: Cost Requests April 2022 | G18: 0.476 | H18: 0.789 | I18: 1.655 | J18: 2.545 | K18: 3.171 | L18: 2.414 | M18: 7.08789608
A19: ANH | B19: BN15440_TOT | C19: Leakage expenditure-Total leakage expenditure-Aware- direct costs | D19: £m | E19: Cost Requests April 2022 | G19: 6.478 | H19: 9.419 | I19: 7.903 | J19: 13.06 | K19: 10.587 | L19: 7.966 | M19: 13.2188802
A20: ANH | B20: BN15450_TOT | C20: Leakage expenditure-Total leakage expenditure-Locate- direct costs | D20: £m | E20: Cost Requests April 2022 | G20: 6.832 | H20: 11.827 | I20: 14.544 | J20: 6.352 | K20: 8.329 | L20: 10.322 | M20: 10.90175436
A21: ANH | B21: BN15460_TOT | C21: Leakage expenditure-Total leakage expenditure-Mend - direct costs | D21: £m | E21: Cost Requests April 2022 | G21: 36.497 | H21: 45.426 | I21: 49.584 | J21: 46.581 | K21: 51.069 | L21: 69.354 | M21: 59.345093
A22: ANH | B22: BN15470_TOT | C22: Leakage expenditure-Total leakage expenditure-Indirect costs | D22: £m | E22: Cost Requests April 2022 | G22: 0.877 | H22: 1.544 | I22: 2.172 | J22: 6.071 | K22: 5.044 | L22: 9.971 | M22: 7.687371787
A23: ANH | B23: BN15500_ML | C23: Leakage expenditure-Maintain expenditure-Total | D23: £m | E23: Cost Requests April 2022 | G23: 49.384 | H23: 64.647 | I23: 73.543 | J23: 66.186 | K23: 63.6 | L23: 85.991 | M23: 80.0287346
A24: ANH | B24: BN15500_RL | C24: Leakage expenditure-Reduce expenditure-Total | D24: £m | E24: Cost Requests April 2022 | G24: 10.536 | H24: 10.625 | I24: 8.077 | J24: 12.626 | K24: 31.836 | L24: 24.103 | M24: 26.05933986
A25: ANH | B25: BN15500_TOT | C25: Leakage expenditure-Total leakage expenditure-Total | D25: £m | E25: Cost Requests April 2022 | G25: 59.92 | H25: 75.272 | I25: 81.62 | J25: 78.812 | K25: 95.436 | L25: 110.094 | M25: 106.0880745
A26: ANH | B26: BN16000 | C26: Prevent activities and attributes-Number of properties covered by PMAs with fixed outlet pressure control | D26: 000s | E26: Cost Requests April 2022 | G26: 240.715 | H26: 265.346 | I26: 283.218 | J26: 328.417 | K26: 385.203 | L26: 468.993 | M26: 470.78
A27: ANH | B27: BN16000_A | C27: Prevent activities and attributes (region 1)-Number of properties covered by PMAs with fixed outlet pressure control | D27: 000s | E27: Cost Requests April 2022
A28: ANH | B28: BN16000_B | C28: Prevent activities and attributes (region 2)-Number of properties covered by PMAs with fixed outlet pressure control | D28: 000s | E28: Cost Requests April 2022
A29: ANH | B29: BN16010 | C29: Prevent activities and attributes-Number of properties covered by PMAs with active pressure control | D29: 000s | E29: Cost Requests April 2022 | G29: 310.379 | H29: 338.753 | I29: 359.639 | J29: 371.834 | K29: 386.922 | L29: 410.02 | M29: 472.935
A30: ANH | B30: BN16010_A | C30: Prevent activities and attributes (region 1)-Number of properties covered by PMAs with active pressure control | D30: 000s | E30: Cost Requests April 2022
A31: ANH | B31: BN16010_B | C31: Prevent activities and attributes (region 2)-Number of properties covered by PMAs with active pressure control | D31: 000s | E31: Cost Requests April 2022
A32: ANH | B32: BN16020 | C32: Prevent activities and attributes-Number of new PMAs | D32: 000s | E32: Cost Requests April 2022 | G32: 28 | H32: 31 | I32: 17 | J32: 28 | K32: 67 | L32: 0.057 | M32: 0.021
A33: ANH | B33: BN17080 | C33: Leakage Aware activities and attributes-Smart networks-Smart networks coverage - permanent acoustic/noise loggers | D33: % | E33: Cost Requests April 2022 | G33: 0 | H33: 0.0095 | I33: 0.0664 | J33: 0.1732 | K33: 0.2344 | L33: 0.2733 | M33: 0.2602560403
A34: ANH | B34: BN19000 | C34: Leakage Mend activities and attributes-Mains repairs-Number of mains repairs – customer reported | D34: 000s | E34: Cost Requests April 2022 | G34: 3.495 | H34: 4.424 | I34: 3.35 | J34: 4.068 | K34: 3.485 | L34: 5.25 | M34: 3.207
A35: ANH | B35: BN19010 | C35: Leakage Mend activities and attributes-Mains repairs-Number of mains repairs – company detected | D35: 000s | E35: Cost Requests April 2022 | G35: 1.289 | H35: 1.432 | I35: 1.146 | J35: 1.35 | K35: 1.402 | L35: 1.655 | M35: 1.19
A36: ANH | B36: BN19100 | C36: Leakage Mend activities and attributes-Mains fittings repairs-Number of mains fittings repairs – customer reported | D36: 000s | E36: Cost Requests April 2022 | G36: 1.221 | H36: 1.272 | I36: 1.308 | J36: 1.376 | K36: 0.993 | L36: 0.982 | M36: 1.108
A37: ANH | B37: BN19110 | C37: Leakage Mend activities and attributes-Mains fittings repairs-Number of mains fittings repairs – company detected. | D37: 000s | E37: Cost Requests April 2022 | G37: 0.676 | H37: 0.616 | I37: 0.673 | J37: 0.603 | K37: 0.676 | L37: 0.618 | M37: 0.668
A38: ANH | B38: BN19200 | C38: Leakage Mend activities and attributes-Communication pipe repairs-Number of communication pipe repairs – customer reported | D38: 000s | E38: Cost Requests April 2022 | G38: 18.101 | H38: 20.514 | I38: 19.329 | J38: 13.608 | K38: 14.489 | L38: 16.439 | M38: 15.347
A39: ANH | B39: BN19210 | C39: Leakage Mend activities and attributes-Communication pipe repairs-Number of communication pipe repairs – company detected | D39: 000s | E39: Cost Requests April 2022 | G39: 4.613 | H39: 5.567 | I39: 7.873 | J39: 7.434 | K39: 9.123 | L39: 7.463 | M39: 5.559
A40: ANH | B40: BN19400 | C40: Leakage Mend activities and attributes-Supply pipes repairs-Number of supply pipe repairs – customer reported | D40: 000s | E40: Cost Requests April 2022 | G40: 2.983 | H40: 3.754 | I40: 4.16 | J40: 3.286 | K40: 3.845 | L40: 3.468 | M40: 2.183
A41: ANH | B41: BN19410 | C41: Leakage Mend activities and attributes-Supply pipes repairs-Number of supply pipe repairs – company detected | D41: 000s | E41: Cost Requests April 2022 | G41: 0.217 | H41: 0.308 | I41: 0.819 | J41: 1.504 | K41: 2.381 | L41: 15.664 | M41: 12.8546266
A42: ANH | B42: BN20000 | C42: Leakage levels-Leakage levels-Historical minimum achieved level of leakage | D42: Ml/day | E42: Cost Requests April 2022 | G42: 105.33 | H42: 105.33 | I42: 105.33 | J42: 105.33 | K42: 105.33 | L42: 97.19 | M42: 96.06821497
A43: ANH | B43: BN20010 | C43: Leakage levels-Leakage levels-Volume of leakage that needs to be saved to maintain current level | D43: Ml/day | E43: Cost Requests April 2022 | G43: 439.27 | H43: 526.99 | I43: 430.99 | J43: 483.3 | K43: 463.88 | L43: 699.97 | M43: 564.26
A44: ANH | B44: BN2161 | C44: Total household connected properties at year end | D44: 000s | E44: Price Review 2019 | F44: 2044.885 | G44: 2072.837 | H44: 2089.281 | I44: 2115.883 | J44: 2148.492 | K44: 2184.933 | L44: 2223.115 | M44: 2261.13
A45: ANH | B45: BN2221 | C45: Total non-household connected properties at year end | D45: 000s | E45: Cost Assessment | F45: 115.392 | G45: 122.882 | H45: 129.384 | I45: 122.146 | J45: 121.779 | K45: 121.414 | L45: 121.05 | M45: 120.687
A46: ANH | B46: BN2345 | C46: Water delivered: total leakage | D46: Ml/d | E46: Cost Assessment | F46: 184.7161233 | G46: 182.66 | H46: 191.2400728 | I46: 182.39 | J46: 182.38 | K46: 173.41 | L46: 156.29 | M46: 149.15
A47: HDD | B47: BN4002 | C47: Population Density WAD - LAD - water / Population per square kilometre | D47: nr/km2 | E47: Cost Requests April 2022 | F47: 0 | G47: 0 | H47: 212.358 | I47: 212.243 | J47: 212.311 | K47: 212.311 | L47: 212.311 | M47: 212.311
A48: HDD | B48: BP3410 | C48: Households properties connected during the year | D48: 000 | E48: Cost Assessment | G48: 0.233 | H48: 0.071 | I48: 0.233 | J48: 0.2370479228 | K48: 0.2527450559 | L48: 0.26747566 | M48: 0.2717916331
A49: HDD | B49: BP3415 | C49: Non-households properties connected during the year | D49: 000 | E49: Cost Assessment | G49: 0.014 | H49: 0.003 | I49: 0.014 | J49: 0.01424322283 | K49: 0.01518639821 | L49: 0.01607149888 | M49: 0.01633082774
A50: HDD | B50: C_DENSITY_PR19CA001 | C50: population density for water serving area | D50: nr | E50: Price Review 2019
A51: HDD | B51: B0004WNPLI | C51: Other - Leakage improvements delivering benefits in 2020-25 | D51: Ml/d | E51: Cost Base CMA 2021
A52: HDD | B52: BN1100 | C52: Total length of mains on 31 March of report year. | D52: km | E52: Price Review 2019 | G52: 2626.61378 | H52: 2606.084589 | I52: 2648.01378 | J52: 2658.71378 | K52: 2669.41378 | L52: 2680.11378 | M52: 2690.81378
A53: HDD | B53: BN1178 | C53: Number of properties | D53: 000s | E53: Cost Assessment | F53: 104.974 | G53: 104.974 | H53: 104.974 | I53: 105.329 | J53: 105.794 | K53: 106.096 | L53: 105.95 | M53: 106.462
A54: HDD | B54: BN15410_TOT | C54: Leakage expenditure-Total leakage expenditure-Prevent (rehab)- direct costs | D54: £m | E54: Cost Requests April 2022 | G54: 0 | H54: 0 | I54: 0 | J54: 0 | K54: 0 | L54: 0.754 | M54: 0.49
A55: HDD | B55: BN15420_TOT | C55: Leakage expenditure-Total leakage expenditure-Prevent (pressure management) - direct costs | D55: £m | E55: Cost Requests April 2022 | G55: 0.352 | H55: 0.351 | I55: 0.316 | J55: 0.454 | K55: 0.285 | L55: 0.2 | M55: 0.3
A56: HDD | B56: BN15430_TOT | C56: Leakage expenditure-Total leakage expenditure-Prevent (calm networks)- direct costs | D56: £m | E56: Cost Requests April 2022 | G56: 0 | H56: 0 | I56: 0 | J56: 0 | K56: 0 | L56: 0 | M56: 0
A57: HDD | B57: BN15440_TOT | C57: Leakage expenditure-Total leakage expenditure-Aware- direct costs | D57: £m | E57: Cost Requests April 2022 | G57: 0.007 | H57: 0.006 | I57: 0 | J57: 0.02 | K57: 0 | L57: 0 | M57: 0
A58: HDD | B58: BN15450_TOT | C58: Leakage expenditure-Total leakage expenditure-Locate- direct costs | D58: £m | E58: Cost Requests April 2022 | G58: 0.687 | H58: 0.688 | I58: 0.43 | J58: 0.709 | K58: 0.923 | L58: 0.9 | M58: 0.9
A59: HDD | B59: BN15460_TOT | C59: Leakage expenditure-Total leakage expenditure-Mend - direct costs | D59: £m | E59: Cost Requests April 2022 | G59: 1.744 | H59: 1.891 | I59: 2.266 | J59: 1.436 | K59: 1.384 | L59: 1.3 | M59: 1.3
A60: HDD | B60: BN15470_TOT | C60: Leakage expenditure-Total leakage expenditure-Indirect costs | D60: £m | E60: Cost Requests April 2022 | G60: 0.153 | H60: 0.161 | I60: 0.165 | J60: 0.143 | K60: 0.142 | L60: 0.1 | M60: 0.15
A61: HDD | B61: BN15500_ML | C61: Leakage expenditure-Maintain expenditure-Total | D61: £m | E61: Cost Requests April 2022 | G61: 2.943 | H61: 2.883 | I61: 3.177 | J61: 2.524 | K61: 2.651 | L61: 2.999 | M61: 2.979
A62: HDD | B62: BN15500_RL | C62: Leakage expenditure-Reduce expenditure-Total | D62: £m | E62: Cost Requests April 2022 | G62: 0 | H62: 0.214 | I62: 0 | J62: 0.238 | K62: 0.083 | L62: 0.255 | M62: 0.161
A63: HDD | B63: BN15500_TOT | C63: Leakage expenditure-Total leakage expenditure-Total | D63: £m | E63: Cost Requests April 2022 | G63: 2.943 | H63: 3.097 | I63: 3.177 | J63: 2.762 | K63: 2.734 | L63: 3.254 | M63: 3.14
A64: HDD | B64: BN16000 | C64: Prevent activities and attributes-Number of properties covered by PMAs with fixed outlet pressure control | D64: 000s | E64: Cost Requests April 2022 | G64: 13.235 | H64: 13.306 | I64: 50.44 | J64: 51.053 | K64: 52 | L64: 27.601 | M64: 28.466
A65: HDD | B65: BN16000_A | C65: Prevent activities and attributes (region 1)-Number of properties covered by PMAs with fixed outlet pressure control | D65: 000s | E65: Cost Requests April 2022
A66: HDD | B66: BN16000_B | C66: Prevent activities and attributes (region 2)-Number of properties covered by PMAs with fixed outlet pressure control | D66: 000s | E66: Cost Requests April 2022
A67: HDD | B67: BN16010 | C67: Prevent activities and attributes-Number of properties covered by PMAs with active pressure control | D67: 000s | E67: Cost Requests April 2022 | G67: 0.69 | H67: 0.69 | I67: 0.798 | J67: 0.847 | K67: 0.847 | L67: 0.865 | M67: 0.881
A68: HDD | B68: BN16010_A | C68: Prevent activities and attributes (region 1)-Number of properties covered by PMAs with active pressure control | D68: 000s | E68: Cost Requests April 2022
A69: HDD | B69: BN16010_B | C69: Prevent activities and attributes (region 2)-Number of properties covered by PMAs with active pressure control | D69: 000s | E69: Cost Requests April 2022
A70: HDD | B70: BN16020 | C70: Prevent activities and attributes-Number of new PMAs | D70: 000s | E70: Cost Requests April 2022 | G70: 0.031 | H70: 0.007 | I70: 0.134 | J70: 0.005 | K70: 0.003 | L70: 0.005 | M70: 0.004
A71: HDD | B71: BN17080 | C71: Leakage Aware activities and attributes-Smart networks-Smart networks coverage - permanent acoustic/noise loggers | D71: % | E71: Cost Requests April 2022 | G71: 0 | H71: 0 | I71: 0 | J71: 0 | K71: 0.0345 | L71: 5.67 | M71: 6.37
A72: HDD | B72: BN19000 | C72: Leakage Mend activities and attributes-Mains repairs-Number of mains repairs – customer reported | D72: 000s | E72: Cost Requests April 2022 | G72: 0.19875 | H72: 0.206 | I72: 0.199 | J72: 0.207 | K72: 0.183 | L72: 0.208 | M72: 0.217
A73: HDD | B73: BN19010 | C73: Leakage Mend activities and attributes-Mains repairs-Number of mains repairs – company detected | D73: 000s | E73: Cost Requests April 2022 | G73: 0.086 | H73: 0.083 | I73: 0.095 | J73: 0.077 | K73: 0.089 | L73: 0.107 | M73: 0.081
A74: HDD | B74: BN19100 | C74: Leakage Mend activities and attributes-Mains fittings repairs-Number of mains fittings repairs – customer reported | D74: 000s | E74: Cost Requests April 2022 | G74: 0.27975 | H74: 0.194 | I74: 0.377 | J74: 0.277 | K74: 0.271 | L74: 0.32 | M74: 0.346
A75: HDD | B75: BN19110 | C75: Leakage Mend activities and attributes-Mains fittings repairs-Number of mains fittings repairs – company detected. | D75: 000s | E75: Cost Requests April 2022 | G75: 0.17075 | H75: 0.108 | I75: 0.211 | J75: 0.146 | K75: 0.218 | L75: 0.225 | M75: 0.178
A76: HDD | B76: BN19200 | C76: Leakage Mend activities and attributes-Communication pipe repairs-Number of communication pipe repairs – customer reported | D76: 000s | E76: Cost Requests April 2022 | G76: 0.167 | H76: 0.177 | I76: 0.206 | J76: 0.154 | K76: 0.131 | L76: 0.158 | M76: 0.175
A77: HDD | B77: BN19210 | C77: Leakage Mend activities and attributes-Communication pipe repairs-Number of communication pipe repairs – company detected | D77: 000s | E77: Cost Requests April 2022 | G77: 0.21525 | H77: 0.151 | I77: 0.265 | J77: 0.215 | K77: 0.23 | L77: 0.184 | M77: 0.206
A78: HDD | B78: BN19400 | C78: Leakage Mend activities and attributes-Supply pipes repairs-Number of supply pipe repairs – customer reported | D78: 000s | E78: Cost Requests April 2022 | G78: 0.09975 | H78: 0.075 | I78: 0.129 | J78: 0.089 | K78: 0.106 | L78: 0.123 | M78: 0.135
A79: HDD | B79: BN19410 | C79: Leakage Mend activities and attributes-Supply pipes repairs-Number of supply pipe repairs – company detected | D79: 000s | E79: Cost Requests April 2022 | G79: 0.18525 | H79: 0.073 | I79: 0.131 | J79: 0.262 | K79: 0.275 | L79: 0.162 | M79: 0.262
A80: HDD | B80: BN20000 | C80: Leakage levels-Leakage levels-Historical minimum achieved level of leakage | D80: Ml/day | E80: Cost Requests April 2022 | G80: 5.69 | H80: 6.13 | I80: 6.77 | J80: 7.14 | K80: 7.43 | L80: 6.66 | M80: 6.3
A81: HDD | B81: BN20010 | C81: Leakage levels-Leakage levels-Volume of leakage that needs to be saved to maintain current level | D81: Ml/day | E81: Cost Requests April 2022 | G81: 18.01 | H81: 18.3 | I81: 17.73 | J81: 18.88 | K81: 18.88 | L81: 19.1 | M81: 19.1
A82: HDD | B82: BN2161 | C82: Total household connected properties at year end | D82: 000s | E82: Price Review 2019 | G82: 96.471 | H82: 96.618 | I82: 97.16064872 | J82: 97.51250052 | K82: 97.89035231 | L82: 98.29320411 | M82: 98.70408334
A83: HDD | B83: BN2221 | C83: Total non-household connected properties at year end | D83: 000s | E83: Cost Assessment | G83: 8.397 | H83: 8.356 | I83: 8.395361414 | J83: 8.395542122 | K83: 8.397722829 | L83: 8.401903536 | M83: 8.406084243
A84: HDD | B84: BN2345 | C84: Water delivered: total leakage | D84: Ml/d | E84: Cost Assessment | G84: 14.61986166 | H84: 15.27154778 | I84: 12.75841411 | J84: 14.69 | K84: 13.90576 | L84: 13.20542046 | M84: 12.77007693
A85: NES | B85: BN4002 | C85: Population Density WAD - LAD - water / Population per square kilometre | D85: nr/km2 | E85: Cost Requests April 2022 | F85: 1625.619 | G85: 1636.054 | H85: 1646.201 | I85: 1654.524 | J85: 1660.138 | K85: 1660.138 | L85: 1660.138 | M85: 1660.138
A86: NES | B86: BP3410 | C86: Households properties connected during the year | D86: 000 | E86: Cost Assessment | F86: 8.31 | G86: 8.75 | H86: 10.39 | I86: 8.926 | J86: 9.439 | K86: 10.008 | L86: 9.925 | M86: 9.53
A87: NES | B87: BP3415 | C87: Non-households properties connected during the year | D87: 000 | E87: Cost Assessment | F87: 0.599 | G87: 0.377 | H87: 0.36 | I87: 0.26 | J87: 0.26 | K87: 0.26 | L87: 0.26 | M87: 0.26
A88: NES | B88: C_DENSITY_PR19CA001 | C88: population density for water serving area | D88: nr | E88: Price Review 2019
A89: NES | B89: B0004WNPLI | C89: Other - Leakage improvements delivering benefits in 2020-25 | D89: Ml/d | E89: Cost Base CMA 2021
A90: NES | B90: BN1100 | C90: Total length of mains on 31 March of report year. | D90: km | E90: Price Review 2019 | F90: 25812.8 | G90: 25912 | H90: 26032.3 | I90: 26132 | J90: 26217 | K90: 26367 | L90: 26509 | M90: 26662
A91: NES | B91: BN1178 | C91: Number of properties | D91: 000s | E91: Cost Assessment | F91: 2018.673 | G91: 2018.673 | H91: 2029.592 | I91: 2047.713 | J91: 2058.075 | K91: 2069.970418 | L91: 2084.826418 | M91: 2094.202
A92: NES | B92: BN15410_TOT | C92: Leakage expenditure-Total leakage expenditure-Prevent (rehab)- direct costs | D92: £m | E92: Cost Requests April 2022 | G92: 9.371 | H92: 14.475 | I92: 12.233 | J92: 3.028 | K92: 4.054 | L92: 2.75543935 | M92: 8.178544325
A93: NES | B93: BN15420_TOT | C93: Leakage expenditure-Total leakage expenditure-Prevent (pressure management) - direct costs | D93: £m | E93: Cost Requests April 2022 | G93: 0.554 | H93: 0.317 | I93: 0.288 | J93: 1.082 | K93: 0.252 | L93: 0 | M93: 0.4723966313
A94: NES | B94: BN15430_TOT | C94: Leakage expenditure-Total leakage expenditure-Prevent (calm networks)- direct costs | D94: £m | E94: Cost Requests April 2022 | G94: 0 | H94: 0 | I94: 0 | J94: 0 | K94: 0 | L94: 0 | M94: 0
A95: NES | B95: BN15440_TOT | C95: Leakage expenditure-Total leakage expenditure-Aware- direct costs | D95: £m | E95: Cost Requests April 2022 | G95: 2.623 | H95: 3.597 | I95: 1.877 | J95: 1.876 | K95: 2.773 | L95: 1.829352699 | M95: 2.888952684
A96: NES | B96: BN15450_TOT | C96: Leakage expenditure-Total leakage expenditure-Locate- direct costs | D96: £m | E96: Cost Requests April 2022 | G96: 0.416 | H96: 1.207 | I96: 2.996 | J96: 2.751 | K96: 3.295 | L96: 3.527352095 | M96: 2.920977127
A97: NES | B97: BN15460_TOT | C97: Leakage expenditure-Total leakage expenditure-Mend - direct costs | D97: £m | E97: Cost Requests April 2022 | G97: 21.61 | H97: 28.744 | I97: 25.329 | J97: 25.394 | K97: 31.566 | L97: 37.89814799 | M97: 26.0344932
A98: NES | B98: BN15470_TOT | C98: Leakage expenditure-Total leakage expenditure-Indirect costs | D98: £m | E98: Cost Requests April 2022 | G98: 3.771 | H98: 4.858 | I98: 4.089 | J98: 3.977 | K98: 4.343 | L98: 3.984908602 | M98: 3.986474259
A99: NES | B99: BN15500_ML | C99: Leakage expenditure-Maintain expenditure-Total | D99: £m | E99: Cost Requests April 2022 | G99: 38.345 | H99: 53.198 | I99: 46.812 | J99: 38.108 | K99: 41.856 | L99: 47.12260072 | M99: 42.20796632
A100: NES | B100: BN15500_RL | C100: Leakage expenditure-Reduce expenditure-Total | D100: £m | E100: Cost Requests April 2022 | G100: 0 | H100: 0 | I100: 0 | J100: 0 | K100: 4.427 | L100: 2.872600022 | M100: 2.273871909
A101: NES | B101: BN15500_TOT | C101: Leakage expenditure-Total leakage expenditure-Total | D101: £m | E101: Cost Requests April 2022 | G101: 38.345 | H101: 53.198 | I101: 46.812 | J101: 38.108 | K101: 46.283 | L101: 49.99520074 | M101: 44.48183823
A102: NES | B102: BN16000 | C102: Prevent activities and attributes-Number of properties covered by PMAs with fixed outlet pressure control | D102: 000s | E102: Cost Requests April 2022 | G102: 501.44 | H102: 501.326 | I102: 499.142 | J102: 508.337 | K102: 458.076 | L102: 433.345 | M102: 433.345
A103: NES | B103: BN16000_A | C103: Prevent activities and attributes (region 1)-Number of properties covered by PMAs with fixed outlet pressure control | D103: 000s | E103: Cost Requests April 2022 | G103: 320.432 | H103: 320.585 | I103: 318.455 | J103: 324.06 | K103: 325.205 | L103: 301.241 | M103: 301.241
A104: NES | B104: BN16000_B | C104: Prevent activities and attributes (region 2)-Number of properties covered by PMAs with fixed outlet pressure control | D104: 000s | E104: Cost Requests April 2022 | G104: 181.008 | H104: 180.741 | I104: 180.687 | J104: 184.277 | K104: 132.871 | L104: 132.104 | M104: 132.104
A105: NES | B105: BN16010 | C105: Prevent activities and attributes-Number of properties covered by PMAs with active pressure control | D105: 000s | E105: Cost Requests April 2022 | G105: 15.745 | H105: 21.864 | I105: 23.598 | J105: 42.716 | K105: 126.812 | L105: 127.295 | M105: 127.295
A106: NES | B106: BN16010_A | C106: Prevent activities and attributes (region 1)-Number of properties covered by PMAs with active pressure control | D106: 000s | E106: Cost Requests April 2022 | G106: 0 | H106: 5.752 | I106: 7.483 | J106: 28.494 | K106: 60.182 | L106: 60.304 | M106: 60.304
A107: NES | B107: BN16010_B | C107: Prevent activities and attributes (region 2)-Number of properties covered by PMAs with active pressure control | D107: 000s | E107: Cost Requests April 2022 | G107: 15.745 | H107: 16.112 | I107: 16.115 | J107: 14.222 | K107: 66.63 | L107: 66.991 | M107: 66.991
A108: NES | B108: BN16020 | C108: Prevent activities and attributes-Number of new PMAs | D108: 000s | E108: Cost Requests April 2022 | G108: 0 | H108: 0 | I108: 0 | J108: 0 | K108: 0 | L108: 0 | M108: 0
A109: NES | B109: BN17080 | C109: Leakage Aware activities and attributes-Smart networks-Smart networks coverage - permanent acoustic/noise loggers | D109: % | E109: Cost Requests April 2022 | L109: 0.0198 | M109: 0.01
A110: NES | B110: BN19000 | C110: Leakage Mend activities and attributes-Mains repairs-Number of mains repairs – customer reported | D110: 000s | E110: Cost Requests April 2022 | G110: 3.009 | H110: 2.721 | I110: 2.069 | J110: 2.74 | K110: 2.629 | L110: 2.669 | M110: 2.669
A111: NES | B111: BN19010 | C111: Leakage Mend activities and attributes-Mains repairs-Number of mains repairs – company detected | D111: 000s | E111: Cost Requests April 2022 | G111: 1.205 | H111: 1.132 | I111: 0.748 | J111: 0.087 | K111: 0.294 | L111: 2.254 | M111: 2.254
A112: NES | B112: BN19100 | C112: Leakage Mend activities and attributes-Mains fittings repairs-Number of mains fittings repairs – customer reported | D112: 000s | E112: Cost Requests April 2022 | G112: 1.317 | H112: 1.738 | I112: 1.819 | J112: 0.684 | K112: 0.844 | L112: 4.017 | M112: 4.017
A113: NES | B113: BN19110 | C113: Leakage Mend activities and attributes-Mains fittings repairs-Number of mains fittings repairs – company detected. | D113: 000s | E113: Cost Requests April 2022 | G113: 1.225 | H113: 2.319 | I113: 1.505 | J113: 0.439 | K113: 0.44 | L113: 3.916 | M113: 3.916
A114: NES | B114: BN19200 | C114: Leakage Mend activities and attributes-Communication pipe repairs-Number of communication pipe repairs – customer reported | D114: 000s | E114: Cost Requests April 2022 | G114: 3.588 | H114: 3.601 | I114: 2.961 | J114: 5.094 | K114: 3.379 | L114: 1.645 | M114: 1.645
A115: NES | B115: BN19210 | C115: Leakage Mend activities and attributes-Communication pipe repairs-Number of communication pipe repairs – company detected | D115: 000s | E115: Cost Requests April 2022 | G115: 2.624 | H115: 2.87 | I115: 1.884 | J115: 3 | K115: 2.714 | L115: 1.731 | M115: 1.731
A116: NES | B116: BN19400 | C116: Leakage Mend activities and attributes-Supply pipes repairs-Number of supply pipe repairs – customer reported | D116: 000s | E116: Cost Requests April 2022 | G116: 3.332 | H116: 5.748 | I116: 2.485 | J116: 2.259 | K116: 2.069 | L116: 0.031 | M116: 0.031
A117: NES | B117: BN19410 | C117: Leakage Mend activities and attributes-Supply pipes repairs-Number of supply pipe repairs – company detected | D117: 000s | E117: Cost Requests April 2022 | G117: 0 | H117: 0 | I117: 0.192 | J117: 0.279 | K117: 0.567 | L117: 0.05 | M117: 0.05
A118: NES | B118: BN20000 | C118: Leakage levels-Leakage levels-Historical minimum achieved level of leakage | D118: Ml/day | E118: Cost Requests April 2022 | G118: 96.24 | H118: 96.24 | I118: 96.24 | J118: 96.24 | K118: 96.24 | L118: 96.2428543 | M118: 96.2428543
A119: NES | B119: BN20010 | C119: Leakage levels-Leakage levels-Volume of leakage that needs to be saved to maintain current level | D119: Ml/day | E119: Cost Requests April 2022 | G119: 200.29 | H119: 200.29 | I119: 200.29 | J119: 200.29 | K119: 200.29 | L119: 200.2834898 | M119: 200.2834898
A120: NES | B120: BN2161 | C120: Total household connected properties at year end | D120: 000s | E120: Price Review 2019 | F120: 1910.204 | G120: 1909.97 | H120: 1920.908 | I120: 1952.33 | J120: 1969.874 | K120: 1987.206 | L120: 2003.994 | M120: 2020.144
A121: NES | B121: BN2221 | C121: Total non-household connected properties at year end | D121: 000s | E121: Cost Assessment | F121: 111.282 | G121: 108.703 | H121: 108.684 | I121: 108.737 | J121: 108.773 | K121: 108.809 | L121: 108.845 | M121: 108.881
A122: NES | B122: BN2345 | C122: Water delivered: total leakage | D122: Ml/d | E122: Cost Assessment | F122: 201.9 | G122: 203.21 | H122: 200.44 | I122: 198.05 | J122: 206.02 | K122: 189.76 | L122: 182.07 | M122: 175.72
A123: NWT | B123: BN4002 | C123: Population Density WAD - LAD - water / Population per square kilometre | D123: nr/km2 | E123: Cost Requests April 2022 | F123: 1803.018 | G123: 1814.624 | H123: 1822.252 | I123: 1832.849 | J123: 1839.773 | K123: 1839.773 | L123: 1839.773 | M123: 1839.773
A124: NWT | B124: BP3410 | C124: Households properties connected during the year | D124: 000 | E124: Cost Assessment | F124: 19.767 | G124: 22.142 | H124: 30.893 | I124: 22.768 | J124: 23.841 | K124: 24.916 | L124: 25.989 | M124: 27.062
A125: NWT | B125: BP3415 | C125: Non-households properties connected during the year | D125: 000 | E125: Cost Assessment | F125: 0.786 | G125: 0.811 | H125: 0.873 | I125: 1.139 | J125: 1.192 | K125: 1.246 | L125: 1.299 | M125: 1.353
A126: NWT | B126: C_DENSITY_PR19CA001 | C126: population density for water serving area | D126: nr | E126: Price Review 2019
A127: NWT | B127: B0004WNPLI | C127: Other - Leakage improvements delivering benefits in 2020-25 | D127: Ml/d | E127: Cost Base CMA 2021
A128: NWT | B128: BN1100 | C128: Total length of mains on 31 March of report year. | D128: km | E128: Price Review 2019 | F128: 42010.7 | G128: 42102.87792 | H128: 42198.05 | I128: 42376.0196 | J128: 42481.14385 | K128: 42549.29206 | L128: 42646.89206 | M128: 42744.59206
A129: NWT | B129: BN1178 | C129: Number of properties | D129: 000s | E129: Cost Assessment | F129: 3313.187 | G129: 3313.187 | H129: 3344.229 | I129: 3379.001 | J129: 3405.592 | K129: 3430.343 | L129: 3439.49 | M129: 3464.433
A130: NWT | B130: BN15410_TOT | C130: Leakage expenditure-Total leakage expenditure-Prevent (rehab)- direct costs | D130: £m | E130: Cost Requests April 2022 | G130: 3.918979001 | H130: 3.098360429 | I130: 10.12563312 | J130: 4.171843152 | K130: 5.466187103 | L130: 9.122781997 | M130: 3.341576275
A131: NWT | B131: BN15420_TOT | C131: Leakage expenditure-Total leakage expenditure-Prevent (pressure management) - direct costs | D131: £m | E131: Cost Requests April 2022 | G131: 3.5654394 | H131: 2.494756787 | I131: 4.485848787 | J131: 2.313435977 | K131: 0.978710695 | L131: 0.6695332407 | M131: 1.046976098
A132: NWT | B132: BN15430_TOT | C132: Leakage expenditure-Total leakage expenditure-Prevent (calm networks)- direct costs | D132: £m | E132: Cost Requests April 2022 | G132: 0 | H132: 0 | I132: 0.6663292457 | J132: 0.08414384976 | K132: 0.09526970906 | L132: 0.07572934453 | M132: 0.9412408926
A133: NWT | B133: BN15440_TOT | C133: Leakage expenditure-Total leakage expenditure-Aware- direct costs | D133: £m | E133: Cost Requests April 2022 | G133: 2.063406034 | H133: 1.376793442 | I133: 17.90085238 | J133: 10.49422795 | K133: 7.550964726 | L133: 5.71888455 | M133: 3.627330704
A134: NWT | B134: BN15450_TOT | C134: Leakage expenditure-Total leakage expenditure-Locate- direct costs | D134: £m | E134: Cost Requests April 2022 | G134: 12.27094115 | H134: 16.19377467 | I134: 11.78460828 | J134: 13.01349547 | K134: 15.13762706 | L134: 19.11663311 | M134: 16.23588143
A135: NWT | B135: BN15460_TOT | C135: Leakage expenditure-Total leakage expenditure-Mend - direct costs | D135: £m | E135: Cost Requests April 2022 | G135: 45.00764452 | H135: 60.10854122 | I135: 55.95687289 | J135: 59.01991151 | K135: 61.14113107 | L135: 68.54630243 | M135: 66.48925299
A136: NWT | B136: BN15470_TOT | C136: Leakage expenditure-Total leakage expenditure-Indirect costs | D136: £m | E136: Cost Requests April 2022 | G136: 2.743593208 | H136: 3.379548555 | I136: 5.163180148 | J136: 4.628692107 | K136: 4.159503233 | L136: 6.053301924 | M136: 4.342870584
A137: NWT | B137: BN15500_ML | C137: Leakage expenditure-Maintain expenditure-Total | D137: £m | E137: Cost Requests April 2022 | G137: 68.41868276 | H137: 84.53964595 | I137: 83.3781617 | J137: 81.3799345 | K137: 79.67537732 | L137: 99.90520542 | M137: 89.17479632
A138: NWT | B138: BN15500_RL | C138: Leakage expenditure-Reduce expenditure-Total | D138: £m | E138: Cost Requests April 2022 | G138: 1.15132056 | H138: 2.11212916 | I138: 22.70516317 | J138: 12.34581553 | K138: 14.85401627 | L138: 9.39796118 | M138: 6.850332643
A139: NWT | B139: BN15500_TOT | C139: Leakage expenditure-Total leakage expenditure-Total | D139: £m | E139: Cost Requests April 2022 | G139: 69.57000332 | H139: 86.65177511 | I139: 106.0833249 | J139: 93.72575002 | K139: 94.52939359 | L139: 109.3031666 | M139: 96.02512897
A140: NWT | B140: BN16000 | C140: Prevent activities and attributes-Number of properties covered by PMAs with fixed outlet pressure control | D140: 000s | E140: Cost Requests April 2022 | G140: 2389.920824 | H140: 2369.679768 | I140: 2224.035618 | J140: 1742.023621 | K140: 1108.584 | L140: 1103.385 | M140: 1126.086
A141: NWT | B141: BN16000_A | C141: Prevent activities and attributes (region 1)-Number of properties covered by PMAs with fixed outlet pressure control | D141: 000s | E141: Cost Requests April 2022
A142: NWT | B142: BN16000_B | C142: Prevent activities and attributes (region 2)-Number of properties covered by PMAs with fixed outlet pressure control | D142: 000s | E142: Cost Requests April 2022
A143: NWT | B143: BN16010 | C143: Prevent activities and attributes-Number of properties covered by PMAs with active pressure control | D143: 000s | E143: Cost Requests April 2022 | G143: 32.20917553 | H143: 74.51823171 | I143: 249.7793821 | J143: 769.2763789 | K143: 1422.46 | L143: 1431.523 | M143: 1436.063
A144: NWT | B144: BN16010_A | C144: Prevent activities and attributes (region 1)-Number of properties covered by PMAs with active pressure control | D144: 000s | E144: Cost Requests April 2022
A145: NWT | B145: BN16010_B | C145: Prevent activities and attributes (region 2)-Number of properties covered by PMAs with active pressure control | D145: 000s | E145: Cost Requests April 2022
A146: NWT | B146: BN16020 | C146: Prevent activities and attributes-Number of new PMAs | D146: 000s | E146: Cost Requests April 2022 | G146: 0.052 | H146: 0.023 | I146: 0.019 | J146: 0.058 | K146: 0.062 | L146: 0.026 | M146: 0.02
A147: NWT | B147: BN17080 | C147: Leakage Aware activities and attributes-Smart networks-Smart networks coverage - permanent acoustic/noise loggers | D147: % | E147: Cost Requests April 2022 | G147: 0 | H147: 0 | I147: 2.33 | J147: 14.88 | K147: 23.33 | L147: 0.2333 | M147: 0.2333
A148: NWT | B148: BN19000 | C148: Leakage Mend activities and attributes-Mains repairs-Number of mains repairs – customer reported | D148: 000s | E148: Cost Requests April 2022 | G148: 2.732 | H148: 3.175 | I148: 2.914 | J148: 2.731 | K148: 2.618 | L148: 3.012 | M148: 1.821
A149: NWT | B149: BN19010 | C149: Leakage Mend activities and attributes-Mains repairs-Number of mains repairs – company detected | D149: 000s | E149: Cost Requests April 2022 | G149: 1.752 | H149: 2.037 | I149: 2.049 | J149: 1.805 | K149: 1.483 | L149: 1.774 | M149: 2.729
A150: NWT | B150: BN19100 | C150: Leakage Mend activities and attributes-Mains fittings repairs-Number of mains fittings repairs – customer reported | D150: 000s | E150: Cost Requests April 2022 | G150: 0 | H150: 0 | I150: 1.007 | J150: 1.57 | K150: 1.559 | L150: 1.727 | M150: 1.433
A151: NWT | B151: BN19110 | C151: Leakage Mend activities and attributes-Mains fittings repairs-Number of mains fittings repairs – company detected. | D151: 000s | E151: Cost Requests April 2022 | G151: 0 | H151: 0 | I151: 1.438 | J151: 2.396 | K151: 1.85 | L151: 2.101 | M151: 2.34
A152: NWT | B152: BN19200 | C152: Leakage Mend activities and attributes-Communication pipe repairs-Number of communication pipe repairs – customer reported | D152: 000s | E152: Cost Requests April 2022 | G152: 0 | H152: 0 | I152: 4.119 | J152: 5.229 | K152: 5.165 | L152: 9.539 | M152: 8.81
A153: NWT | B153: BN19210 | C153: Leakage Mend activities and attributes-Communication pipe repairs-Number of communication pipe repairs – company detected | D153: 000s | E153: Cost Requests April 2022 | G153: 0 | H153: 0 | I153: 3.588 | J153: 5.476 | K153: 4.569 | L153: 6.476 | M153: 6.795
A154: NWT | B154: BN19400 | C154: Leakage Mend activities and attributes-Supply pipes repairs-Number of supply pipe repairs – customer reported | D154: 000s | E154: Cost Requests April 2022 | G154: 0 | H154: 0 | I154: 3.81 | J154: 4.552 | K154: 4.164 | L154: 3.579 | M154: 3.528
A155: NWT | B155: BN19410 | C155: Leakage Mend activities and attributes-Supply pipes repairs-Number of supply pipe repairs – company detected | D155: 000s | E155: Cost Requests April 2022 | G155: 0 | H155: 0 | I155: 1.603 | J155: 1.943 | K155: 1.794 | L155: 1.777 | M155: 1.704
A156: NWT | B156: BN20000 | C156: Leakage levels-Leakage levels-Historical minimum achieved level of leakage | D156: Ml/day | E156: Cost Requests April 2022 | G156: 279.2280184 | H156: 272.7671611 | I156: 261.6898127 | J156: 265.58913 | K156: 266.2147462 | L156: 261.87 | M156: 261.69
A157: NWT | B157: BN20010 | C157: Leakage levels-Leakage levels-Volume of leakage that needs to be saved to maintain current level | D157: Ml/day | E157: Cost Requests April 2022 | G157: 291.4368374 | H157: 246.0481976 | I157: 210.8400025 | J157: 250.244696 | K157: 218.3639779 | L157: 423.01 | M157: 281.01
A158: NWT | B158: BN2161 | C158: Total household connected properties at year end | D158: 000s | E158: Price Review 2019 | F158: 3101.917 | G158: 3123.003 | H158: 3153.608 | I158: 3163.574906 | J158: 3185.698712 | K158: 3209.382085 | L158: 3233.611009 | M158: 3258.926407
A159: NWT | B159: BN2221 | C159: Total non-household connected properties at year end | D159: 000s | E159: Cost Assessment | F159: 191.163 | G159: 190.184 | H159: 190.621 | I159: 190.184 | J159: 190.184 | K159: 190.184 | L159: 190.184 | M159: 190.184
A160: NWT | B160: BN2345 | C160: Water delivered: total leakage | D160: Ml/d | E160: Cost Assessment | F160: 439.2201975 | G160: 453.52 | H160: 455.9742911 | I160: 446.1043784 | J160: 424.6895008 | K160: 413.8898524 | L160: 430.3 | M160: 416.85
A161: SRN | B161: BN4002 | C161: Population Density WAD - LAD - water / Population per square kilometre | D161: nr/km2 | E161: Cost Requests April 2022 | F161: 1873.637 | G161: 1881.172 | H161: 1886.619 | I161: 1886.04 | J161: 1888.092 | K161: 1888.092 | L161: 1888.092 | M161: 1888.092
A162: SRN | B162: BP3410 | C162: Households properties connected during the year | D162: 000 | E162: Cost Assessment | F162: 6.42 | G162: 9.17 | H162: 12.969 | I162: 13.855 | J162: 22.974 | K162: 22.036 | L162: 21.624 | M162: 21.204
A163: SRN | B163: BP3415 | C163: Non-households properties connected during the year | D163: 000 | E163: Cost Assessment | F163: 0.707 | G163: 0.861 | H163: 0.49 | I163: 0.634 | J163: 1.053 | K163: 1.01 | L163: 0.991 | M163: 0.972
A164: SRN | B164: C_DENSITY_PR19CA001 | C164: population density for water serving area | D164: nr | E164: Price Review 2019
A165: SRN | B165: B0004WNPLI | C165: Other - Leakage improvements delivering benefits in 2020-25 | D165: Ml/d | E165: Cost Base CMA 2021
A166: SRN | B166: BN1100 | C166: Total length of mains on 31 March of report year. | D166: km | E166: Price Review 2019 | F166: 13870.3045 | G166: 13905 | H166: 13929.4851 | I166: 13975 | J166: 14017 | K166: 14059 | L166: 14101 | M166: 14143
A167: SRN | B167: BN1178 | C167: Number of properties | D167: 000s | E167: Cost Assessment | F167: 1114.16 | G167: 1114.16 | H167: 1123.417 | I167: 1130.5 | J167: 1134.821 | K167: 1141 | L167: 1145.664 | M167: 1165.61
A168: SRN | B168: BN15410_TOT | C168: Leakage expenditure-Total leakage expenditure-Prevent (rehab)- direct costs | D168: £m | E168: Cost Requests April 2022 | G168: 0.013 | H168: 0.002 | I168: 0.002 | J168: 0.084 | K168: 0.042 | L168: 0.002 | M168: 0.001
A169: SRN | B169: BN15420_TOT | C169: Leakage expenditure-Total leakage expenditure-Prevent (pressure management) - direct costs | D169: £m | E169: Cost Requests April 2022 | G169: 0.392 | H169: -0.007 | I169: 0.8 | J169: -0.079 | K169: -0.026 | L169: 0.002 | M169: 0.163
A170: SRN | B170: BN15430_TOT | C170: Leakage expenditure-Total leakage expenditure-Prevent (calm networks)- direct costs | D170: £m | E170: Cost Requests April 2022 | G170: 0 | H170: 0 | I170: 0 | J170: 2.454 | K170: 3.627 | L170: 6.683 | M170: 5.159
A171: SRN | B171: BN15440_TOT | C171: Leakage expenditure-Total leakage expenditure-Aware- direct costs | D171: £m | E171: Cost Requests April 2022 | G171: 3.034 | H171: 5.008 | I171: 3.378 | J171: 1.234 | K171: 2.219 | L171: 2.498 | M171: 5.852
A172: SRN | B172: BN15450_TOT | C172: Leakage expenditure-Total leakage expenditure-Locate- direct costs | D172: £m | E172: Cost Requests April 2022 | G172: 4.597 | H172: 6.878 | I172: 10.016 | J172: 7.869 | K172: 7.891 | L172: 5.288 | M172: 5.156
A173: SRN | B173: BN15460_TOT | C173: Leakage expenditure-Total leakage expenditure-Mend - direct costs | D173: £m | E173: Cost Requests April 2022 | G173: 6.926 | H173: 6.253 | I173: 6.554 | J173: 5.256 | K173: 4.232 | L173: 5.509 | M173: 7.177
A174: SRN | B174: BN15470_TOT | C174: Leakage expenditure-Total leakage expenditure-Indirect costs | D174: £m | E174: Cost Requests April 2022 | G174: 1.744 | H174: 2.371 | I174: 3.44 | J174: 1.89 | K174: 2.136 | L174: 1.461 | M174: 1.932
A175: SRN | B175: BN15500_ML | C175: Leakage expenditure-Maintain expenditure-Total | D175: £m | E175: Cost Requests April 2022 | G175: 15.036 | H175: 18.455 | I175: 21.771 | J175: 16.838 | K175: 18.109 | L175: 19.299 | M175: 22.896
A176: SRN | B176: BN15500_RL | C176: Leakage expenditure-Reduce expenditure-Total | D176: £m | E176: Cost Requests April 2022 | G176: 1.67 | H176: 2.05 | I176: 2.419 | J176: 1.87 | K176: 2.012 | L176: 2.144 | M176: 2.544
A177: SRN | B177: BN15500_TOT | C177: Leakage expenditure-Total leakage expenditure-Total | D177: £m | E177: Cost Requests April 2022 | G177: 16.706 | H177: 20.505 | I177: 24.19 | J177: 18.708 | K177: 20.121 | L177: 21.443 | M177: 25.44
A178: SRN | B178: BN16000 | C178: Prevent activities and attributes-Number of properties covered by PMAs with fixed outlet pressure control | D178: 000s | E178: Cost Requests April 2022 | G178: 394.317 | H178: 403.983 | I178: 425.152 | J178: 304.518 | K178: 163.858 | L178: 168.004 | M178: 178.004
A179: SRN | B179: BN16000_A | C179: Prevent activities and attributes (region 1)-Number of properties covered by PMAs with fixed outlet pressure control | D179: 000s | E179: Cost Requests April 2022
A180: SRN | B180: BN16000_B | C180: Prevent activities and attributes (region 2)-Number of properties covered by PMAs with fixed outlet pressure control | D180: 000s | E180: Cost Requests April 2022
A181: SRN | B181: BN16010 | C181: Prevent activities and attributes-Number of properties covered by PMAs with active pressure control | D181: 000s | E181: Cost Requests April 2022 | G181: 0 | H181: 0 | I181: 0 | J181: 160.686 | K181: 332.236 | L181: 392.036 | M181: 402.036
A182: SRN | B182: BN16010_A | C182: Prevent activities and attributes (region 1)-Number of properties covered by PMAs with active pressure control | D182: 000s | E182: Cost Requests April 2022
A183: SRN | B183: BN16010_B | C183: Prevent activities and attributes (region 2)-Number of properties covered by PMAs with active pressure control | D183: 000s | E183: Cost Requests April 2022
A184: SRN | B184: BN16020 | C184: Prevent activities and attributes-Number of new PMAs | D184: 000s | E184: Cost Requests April 2022 | G184: 0.01 | H184: 0.01 | I184: 0.019 | J184: 0.035 | K184: 0.026 | L184: 0.025 | M184: 0.06
A185: SRN | B185: BN17080 | C185: Leakage Aware activities and attributes-Smart networks-Smart networks coverage - permanent acoustic/noise loggers | D185: % | E185: Cost Requests April 2022 | G185: 0 | H185: 0 | I185: 0 | J185: 2.15 | K185: 2.16 | L185: 0.0216 | M185: 0.04
A186: SRN | B186: BN19000 | C186: Leakage Mend activities and attributes-Mains repairs-Number of mains repairs – customer reported | D186: 000s | E186: Cost Requests April 2022 | G186: 1.479 | H186: 1.444 | I186: 1.077 | J186: 1.571 | K186: 1.135 | L186: 1.397 | M186: 1.142
A187: SRN | B187: BN19010 | C187: Leakage Mend activities and attributes-Mains repairs-Number of mains repairs – company detected | D187: 000s | E187: Cost Requests April 2022 | G187: 1.06 | H187: 1.164 | I187: 1.089 | J187: 1.179 | K187: 0.747 | L187: 0.73 | M187: 0.679
A188: SRN | B188: BN19100 | C188: Leakage Mend activities and attributes-Mains fittings repairs-Number of mains fittings repairs – customer reported | D188: 000s | E188: Cost Requests April 2022 | G188: 3.641 | H188: 3.084 | I188: 3.376 | J188: 5.547 | K188: 5.469 | L188: 5.136 | M188: 5.349
A189: SRN | B189: BN19110 | C189: Leakage Mend activities and attributes-Mains fittings repairs-Number of mains fittings repairs – company detected. | D189: 000s | E189: Cost Requests April 2022 | G189: 4.139 | H189: 7.103 | I189: 8.381 | J189: 7.362 | K189: 8.28 | L189: 11.536 | M189: 11.76
A190: SRN | B190: BN19200 | C190: Leakage Mend activities and attributes-Communication pipe repairs-Number of communication pipe repairs – customer reported | D190: 000s | E190: Cost Requests April 2022 | G190: 2.947 | H190: 2.514 | I190: 2.247 | J190: 2.394 | K190: 2.558 | L190: 1.757 | M190: 2.074
A191: SRN | B191: BN19210 | C191: Leakage Mend activities and attributes-Communication pipe repairs-Number of communication pipe repairs – company detected | D191: 000s | E191: Cost Requests April 2022 | G191: 12.455 | H191: 9.109 | I191: 8.692 | J191: 5.654 | K191: 4.356 | L191: 3.066 | M191: 3.796
A192: SRN | B192: BN19400 | C192: Leakage Mend activities and attributes-Supply pipes repairs-Number of supply pipe repairs – customer reported | D192: 000s | E192: Cost Requests April 2022 | G192: 2.63 | H192: 3.134 | I192: 2.435 | J192: 1.629 | K192: 2.235 | L192: 2.103 | M192: 1.982
A193: SRN | B193: BN19410 | C193: Leakage Mend activities and attributes-Supply pipes repairs-Number of supply pipe repairs – company detected | D193: 000s | E193: Cost Requests April 2022 | G193: 0.612 | H193: 0.723 | I193: 0.948 | J193: 0.759 | K193: 0.721 | L193: 0.816 | M193: 1.181
A194: SRN | B194: BN20000 | C194: Leakage levels-Leakage levels-Historical minimum achieved level of leakage | D194: Ml/day | E194: Cost Requests April 2022 | G194: 101.98 | H194: 102.87 | I194: 92.01 | J194: 89.03 | K194: 92.056 | L194: 110.59 | M194: 93.9624
A195: SRN | B195: BN20010 | C195: Leakage levels-Leakage levels-Volume of leakage that needs to be saved to maintain current level | D195: Ml/day | E195: Cost Requests April 2022 | G195: 97.86 | H195: 94.45 | I195: 101.86 | J195: 118.27 | K195: 94.36 | L195: 122.33 | M195: 124.53
A196: SRN | B196: BN2161 | C196: Total household connected properties at year end | D196: 000s | E196: Price Review 2019 | F196: 1044.918 | G196: 1056.326 | H196: 1062.924 | I196: 1070.698 | J196: 1083.873 | K196: 1096.443 | L196: 1108.669 | M196: 1120.788
A197: SRN | B197: BN2221 | C197: Total non-household connected properties at year end | D197: 000s | E197: Cost Assessment | F197: 59.169 | G197: 57.834 | H197: 60.493 | I197: 58.621 | J197: 59.342 | K197: 60.03 | L197: 60.7 | M197: 61.363
A198: SRN | B198: BN2345 | C198: Water delivered: total leakage | D198: Ml/d | E198: Cost Assessment | F198: 88.11015664 | G198: 102.64 | H198: 101.83 | I198: 94.04 | J198: 98.42 | K198: 96.818 | L198: 95.9 | M198: 92.7
A199: SVE | B199: BN4002 | C199: Population Density WAD - LAD - water / Population per square kilometre | D199: nr/km2 | E199: Cost Requests April 2022 | F199: 0 | G199: 0 | H199: 1935.114 | I199: 1935.025 | J199: 1939.152 | K199: 1939.152 | L199: 1939.152 | M199: 1939.152
A200: SVE | B200: BP3410 | C200: Households properties connected during the year | D200: 000 | E200: Cost Assessment | G200: 31.28 | H200: 30.036 | I200: 31.28 | J200: 31.82342929 | K200: 33.93075257 | L200: 35.90832036 | M200: 36.48773512
A201: SVE | B201: BP3415 | C201: Non-households properties connected during the year | D201: 000 | E201: Cost Assessment | G201: 1.722 | H201: 1.202 | I201: 1.722 | J201: 1.751916408 | K201: 1.976794362 | L201: 1.976794362 | M201: 2.008691812
A202: SVE | B202: C_DENSITY_PR19CA001 | C202: population density for water serving area | D202: nr | E202: Price Review 2019
A203: SVE | B203: B0004WNPLI | C203: Other - Leakage improvements delivering benefits in 2020-25 | D203: Ml/d | E203: Cost Base CMA 2021
A204: SVE | B204: BN1100 | C204: Total length of mains on 31 March of report year. | D204: km | E204: Price Review 2019 | G204: 46539.84802 | H204: 46814.91567 | I204: 46778.00802 | J204: 46897.08802 | K204: 47016.16802 | L204: 47135.24802 | M204: 47254.32802
... 450 more rows

Sheet F_Inputs BP
A1: =RIGHT(CELL("filename", $A$1), LEN(CELL("filename", $A$1)) - SEARCH("]", CELL("filename", $A$1))) -> 
A2: Purpose | B2: This is a data download for company network mains length, total length of mains being renewed within business plans, leakage improvement benefits, including transitional and accelerated expenditure, from enhancement investment, and total annual leakage
O3: Total requested £m
C4: RGH Leak Enh | E4: Run on 08 Oct 2024 16:15 | O4: Calculated
A5: Acronym | B5: Item Code | C5: Item Description | D5: Item Unit | E5: Item Table Suite | F5: 2022-23 | G5: 2023-24 | H5: 2024-25 | I5: 2025-26 | J5: 2026-27 | K5: 2027-28 | L5: 2028-29 | M5: 2029-30 | O5: 2025-30
A7: ANH | B7: BN1100_PR24 | C7: Treated water distribution - mains analysis - Total length of potable mains as at 31 March | D7: km | E7: Price Review 2024 | F7: 39248.1 | G7: 39397 | H7: 39873.1 | I7: 39977.2 | J7: 40086.1 | K7: 40202.7 | L7: 40310.6 | M7: 40591.5 | O7: =IF(B7="CW3_049TOT_PR24",SUM(I7:M7),IF(OR(B7="CW12_049TOT_PR24",B7="CW17_049TOT_PR24"),SUM(G7:H7),"")) -> 
A8: ANH | B8: BN1200_PR24 | C8: Treated water distribution - mains analysis - Total length of potable mains renewed | D8: km | E8: Price Review 2024 | F8: 45.2 | G8: 37.5 | H8: 66 | I8: 75.54 | J8: 237.86 | K8: 308.07 | L8: 308.07 | M8: 209.9 | O8: =IF(B8="CW3_049TOT_PR24",SUM(I8:M8),IF(OR(B8="CW12_049TOT_PR24",B8="CW17_049TOT_PR24"),SUM(G8:H8),"")) -> 
A9: ANH | B9: CW3_049TOT_PR24 | C9: Supply-demand balance - Leakage improvements delivering benefits in 2025-2030; SDB totex - Total | D9: £m | E9: Price Review 2024 | F9: 27.065 | G9: 25.92409339 | H9: 19.792 | I9: 5.363 | J9: 6.057 | K9: 7.234 | L9: 8.334 | M9: 7.896 | O9: 34.884
A10: ANH | B10: BN2345A_PR24 | C10: Water balance - Company level - Total annual leakage | D10: Ml/d | E10: Price Review 2024 | F10: 190.46 | G10: 182.0717436 | H10: 180.61 | I10: 177.58 | J10: 175.62 | K10: 173.88 | L10: 171.92 | M10: 168.22
A11: ANH | B11: CW12_049TOT_PR24 | C11: Supply-demand balance - Leakage improvements delivering benefits in 2025-2030; SDB totex - Total | D11: £m | E11: Price Review 2024 | G11: 0 | H11: 0 | O11: 0
A12: ANH | B12: CW17_049TOT_PR24 | C12: Supply-demand balance - Leakage improvements delivering benefits in 2025-2030; SDB totex - Total | D12: £m | E12: Price Review 2024 | G12: 0 | H12: 0 | I12: 0 | J12: 0 | K12: 0 | L12: 0 | M12: 0 | O12: 0
A13: WSH | B13: BN1100_PR24 | C13: Treated water distribution - mains analysis - Total length of potable mains as at 31 March | D13: km | E13: Price Review 2024 | F13: 27875.3 | G13: 27910.2 | H13: 27979.6 | I13: 28037.7 | J13: 28095.6 | K13: 28167.7 | L13: 28230.7 | M13: 28297.1
A14: WSH | B14: BN1200_PR24 | C14: Treated water distribution - mains analysis - Total length of potable mains renewed | D14: km | E14: Price Review 2024 | F14: 28.4 | G14: 15.2 | H14: 25.5 | I14: 80 | J14: 131 | K14: 131 | L14: 131 | M14: 131
A15: WSH | B15: CW3_049TOT_PR24 | C15: Supply-demand balance - Leakage improvements delivering benefits in 2025-2030; SDB totex - Total | D15: £m | E15: Price Review 2024 | F15: 0 | G15: 0 | H15: 0 | I15: 1.005 | J15: 0.989 | K15: 0.992 | L15: 1 | M15: 1.015 | O15: 5.001
A16: WSH | B16: BN2345A_PR24 | C16: Water balance - Company level - Total annual leakage | D16: Ml/d | E16: Price Review 2024 | F16: 253.2101455 | G16: 261.61 | H16: 228.5 | I16: 187.7872687 | J16: 183.8593131 | K16: 180.8048225 | L16: 178.0223418 | M16: 172.7234221
A17: WSH | B17: CW12_049TOT_PR24 | C17: Supply-demand balance - Leakage improvements delivering benefits in 2025-2030; SDB totex - Total | D17: £m | E17: Price Review 2024 | G17: 0 | H17: 0 | O17: 0
A18: WSH | B18: CW17_049TOT_PR24 | C18: Supply-demand balance - Leakage improvements delivering benefits in 2025-2030; SDB totex - Total | D18: £m | E18: Price Review 2024 | G18: 0 | H18: 0 | I18: 0 | J18: 0 | K18: 0 | L18: 0 | M18: 0 | O18: 0
A19: HDD | B19: BN1100_PR24 | C19: Treated water distribution - mains analysis - Total length of potable mains as at 31 March | D19: km | E19: Price Review 2024 | F19: 2640.9 | G19: 2633.1 | H19: 2639.1 | I19: 2642.1 | J19: 2645.1 | K19: 2648.1 | L19: 2651.1 | M19: 2654.1
A20: HDD | B20: BN1200_PR24 | C20: Treated water distribution - mains analysis - Total length of potable mains renewed | D20: km | E20: Price Review 2024 | F20: 7.622 | G20: 0.4 | H20: 3.2 | I20: 10.2 | J20: 12.5 | K20: 16.3 | L20: 14.7 | M20: 14.3
A21: HDD | B21: CW3_049TOT_PR24 | C21: Supply-demand balance - Leakage improvements delivering benefits in 2025-2030; SDB totex - Total | D21: £m | E21: Price Review 2024 | F21: 0.360477786 | G21: 0.04642485883 | H21: 0.09795390899 | I21: 0.206 | J21: 0.206 | K21: 0.206 | L21: 0.206 | M21: 0.206 | O21: 1.03
A22: HDD | B22: BN2345A_PR24 | C22: Water balance - Company level - Total annual leakage | D22: Ml/d | E22: Price Review 2024 | F22: 16.7 | G22: 15.66 | H22: 13.21828 | I22: 13.12828 | J22: 13.03828 | K22: 12.94828 | L22: 12.85828 | M22: 12.76828
A23: HDD | B23: CW12_049TOT_PR24 | C23: Supply-demand balance - Leakage improvements delivering benefits in 2025-2030; SDB totex - Total | D23: £m | E23: Price Review 2024 | G23: 0 | H23: 0 | O23: 0
A24: HDD | B24: CW17_049TOT_PR24 | C24: Supply-demand balance - Leakage improvements delivering benefits in 2025-2030; SDB totex - Total | D24: £m | E24: Price Review 2024 | G24: 0 | H24: 0 | I24: 0 | J24: 0 | K24: 0 | L24: 0 | M24: 0 | O24: 0
A25: NES | B25: BN1100_PR24 | C25: Treated water distribution - mains analysis - Total length of potable mains as at 31 March | D25: km | E25: Price Review 2024 | F25: 26450.6 | G25: 26536.8 | H25: 26672.579 | I25: 26773.75 | J25: 26902.276 | K25: 26987.8 | L25: 27080.6 | M25: 27173.4
A26: NES | B26: BN1200_PR24 | C26: Treated water distribution - mains analysis - Total length of potable mains renewed | D26: km | E26: Price Review 2024 | F26: 26.8 | G26: 26.3 | H26: 145.179 | I26: 114.156 | J26: 119.166 | K26: 136.166 | L26: 109.64 | M26: 110.15
A27: NES | B27: CW3_049TOT_PR24 | C27: Supply-demand balance - Leakage improvements delivering benefits in 2025-2030; SDB totex - Total | D27: £m | E27: Price Review 2024 | F27: 0 | G27: 0 | H27: 0 | I27: 5.014 | J27: 5.014 | K27: 5.014 | L27: 5.014 | M27: 5.014 | O27: 25.07
A28: NES | B28: BN2345A_PR24 | C28: Water balance - Company level - Total annual leakage | D28: Ml/d | E28: Price Review 2024 | F28: 174.43 | G28: 170.79 | H28: 168.37 | I28: 165.96 | J28: 163.54 | K28: 161.13 | L28: 158.72 | M28: 156.3
A29: NES | B29: CW12_049TOT_PR24 | C29: Supply-demand balance - Leakage improvements delivering benefits in 2025-2030; SDB totex - Total | D29: £m | E29: Price Review 2024 | G29: 0 | H29: 0 | O29: 0
A30: NES | B30: CW17_049TOT_PR24 | C30: Supply-demand balance - Leakage improvements delivering benefits in 2025-2030; SDB totex - Total | D30: £m | E30: Price Review 2024 | G30: 0 | H30: 0 | I30: 0 | J30: 0 | K30: 0 | L30: 0 | M30: 0 | O30: 0
A31: SVE | B31: BN1100_PR24 | C31: Treated water distribution - mains analysis - Total length of potable mains as at 31 March | D31: km | E31: Price Review 2024 | F31: 47873.4 | G31: 48042.06 | H31: 48239.1 | I31: 48374.5 | J31: 48532.4 | K31: 48684 | L31: 48839.5 | M31: 48998.7
A32: SVE | B32: BN1200_PR24 | C32: Treated water distribution - mains analysis - Total length of potable mains renewed | D32: km | E32: Price Review 2024 | F32: 93.3 | G32: 91.5 | H32: 129.1 | I32: 279 | J32: 279 | K32: 279 | L32: 279 | M32: 279
A33: SVE | B33: CW3_049TOT_PR24 | C33: Supply-demand balance - Leakage improvements delivering benefits in 2025-2030; SDB totex - Total | D33: £m | E33: Price Review 2024 | F33: 4.839 | G33: 33.469 | H33: 50.1457951 | I33: 12.22737243 | J33: 28.18271057 | K33: 28.35391682 | L33: 28.52699041 | M33: 28.7009304 | O33: 125.9919206
A34: SVE | B34: BN2345A_PR24 | C34: Water balance - Company level - Total annual leakage | D34: Ml/d | E34: Price Review 2024 | F34: 415.61 | G34: 379.48 | H34: 345.7981279 | I34: 331.2478655 | J34: 326.6861616 | K34: 317.4054537 | L34: 308.4218683 | M34: 289.7118912
A35: SVE | B35: CW12_049TOT_PR24 | C35: Supply-demand balance - Leakage improvements delivering benefits in 2025-2030; SDB totex - Total | D35: £m | E35: Price Review 2024 | G35: 0 | H35: 17.6817951 | O35: 17.6817951
A36: SVE | B36: CW17_049TOT_PR24 | C36: Supply-demand balance - Leakage improvements delivering benefits in 2025-2030; SDB totex - Total | D36: £m | E36: Price Review 2024 | G36: 0 | H36: 0 | I36: 0 | J36: 0 | K36: 0 | L36: 0 | M36: 0 | O36: 0
A37: SWB | B37: BN1100_PR24 | C37: Treated water distribution - mains analysis - Total length of potable mains as at 31 March | D37: km | E37: Price Review 2024 | F37: 18545.9 | G37: 18583.4 | H37: 18633.52 | I37: 18673.08 | J37: 18708 | K37: 18759.3 | L37: 18809.4 | M37: 18854.5
A38: SWB | B38: BN1200_PR24 | C38: Treated water distribution - mains analysis - Total length of potable mains renewed | D38: km | E38: Price Review 2024 | F38: 10.1 | G38: 10.4 | H38: 10.07 | I38: 30.7442016 | J38: 51.240336 | K38: 58.05530069 | L38: 58.08092086 | M38: 58.08092086
A39: SWB | B39: CW3_049TOT_PR24 | C39: Supply-demand balance - Leakage improvements delivering benefits in 2025-2030; SDB totex - Total | D39: £m | E39: Price Review 2024 | F39: 0 | G39: 0 | H39: 0 | I39: 10.496981 | J39: 10.787603 | K39: 12.301569 | L39: 10.957117 | M39: 9.253729 | O39: 53.796999
A40: SWB | B40: BN2345A_PR24 | C40: Water balance - Company level - Total annual leakage | D40: Ml/d | E40: Price Review 2024 | F40: 112.1905085 | G40: 118.54 | H40: 86 | I40: 95.8 | J40: 92.6 | K40: 89.4 | L40: 86.2 | M40: 82.3
A41: SWB | B41: CW12_049TOT_PR24 | C41: Supply-demand balance - Leakage improvements delivering benefits in 2025-2030; SDB totex - Total | D41: £m | E41: Price Review 2024 | G41: 0 | H41: 0 | O41: 0
A42: SWB | B42: CW17_049TOT_PR24 | C42: Supply-demand balance - Leakage improvements delivering benefits in 2025-2030; SDB totex - Total | D42: £m | E42: Price Review 2024 | G42: 0 | H42: 0 | I42: 0 | J42: 0 | K42: 0 | L42: 0 | M42: 0 | O42: 0
A43: SRN | B43: BN1100_PR24 | C43: Treated water distribution - mains analysis - Total length of potable mains as at 31 March | D43: km | E43: Price Review 2024 | F43: 13919 | G43: 13972.6 | H43: 14039.5 | I43: 14108.55 | J43: 14177.35 | K43: 14246.15 | L43: 14314.95 | M43: 14383.75
A44: SRN | B44: BN1200_PR24 | C44: Treated water distribution - mains analysis - Total length of potable mains renewed | D44: km | E44: Price Review 2024 | F44: 4.43 | G44: 14.5 | H44: 0 | I44: 40.72 | J44: 60.72 | K44: 68.22 | L44: 88.22 | M44: 108.22
A45: SRN | B45: CW3_049TOT_PR24 | C45: Supply-demand balance - Leakage improvements delivering benefits in 2025-2030; SDB totex - Total | D45: £m | E45: Price Review 2024 | F45: 0 | G45: 0 | H45: 1.613 | I45: 10.519 | J45: 9.195 | K45: 7.793 | L45: 6.753 | M45: 6.751 | O45: 41.011
A46: SRN | B46: BN2345A_PR24 | C46: Water balance - Company level - Total annual leakage | D46: Ml/d | E46: Price Review 2024 | F46: 99.61 | G46: 77.79 | H46: 76.64 | I46: 75.06 | J46: 73.82 | K46: 70.12 | L46: 67.72 | M46: 66.31
A47: SRN | B47: CW12_049TOT_PR24 | C47: Supply-demand balance - Leakage improvements delivering benefits in 2025-2030; SDB totex - Total | D47: £m | E47: Price Review 2024 | G47: 0 | H47: 1.613 | O47: 1.613
A48: SRN | B48: CW17_049TOT_PR24 | C48: Supply-demand balance - Leakage improvements delivering benefits in 2025-2030; SDB totex - Total | D48: £m | E48: Price Review 2024 | G48: 0 | H48: 0 | I48: 0 | J48: 0 | K48: 0 | L48: 0 | M48: 0 | O48: 0
A49: TMS | B49: BN1100_PR24 | C49: Treated water distribution - mains analysis - Total length of potable mains as at 31 March | D49: km | E49: Price Review 2024 | F49: 31926.7 | G49: 32010.1 | H49: 32074.1 | I49: 32138.1 | J49: 32194.1 | K49: 32245.1 | L49: 32292.1 | M49: 32334.1
A50: TMS | B50: BN1200_PR24 | C50: Treated water distribution - mains analysis - Total length of potable mains renewed | D50: km | E50: Price Review 2024 | F50: 59.7 | G50: 78.1 | H50: 30.3 | I50: 55.2 | J50: 54.6 | K50: 59.7 | L50: 73 | M50: 99.5
A51: TMS | B51: CW3_049TOT_PR24 | C51: Supply-demand balance - Leakage improvements delivering benefits in 2025-2030; SDB totex - Total | D51: £m | E51: Price Review 2024 | F51: 0 | G51: 0 | H51: 0 | I51: 28.955 | J51: 28.44 | K51: 27.27 | L51: 27.393 | M51: 27.518 | O51: 139.576
A52: TMS | B52: BN2345A_PR24 | C52: Water balance - Company level - Total annual leakage | D52: Ml/d | E52: Price Review 2024 | F52: 613.46 | G52: 570.35 | H52: 527 | I52: 491.42 | J52: 464.38 | K52: 445.15 | L52: 425.91 | M52: 407.67
A53: TMS | B53: CW12_049TOT_PR24 | C53: Supply-demand balance - Leakage improvements delivering benefits in 2025-2030; SDB totex - Total | D53: £m | E53: Price Review 2024 | G53: 0 | H53: 0 | O53: 0
A54: TMS | B54: CW17_049TOT_PR24 | C54: Supply-demand balance - Leakage improvements delivering benefits in 2025-2030; SDB totex - Total | D54: £m | E54: Price Review 2024 | G54: 0 | H54: 0 | I54: 0 | J54: 0 | K54: 0 | L54: 0 | M54: 0 | O54: 0
A55: NWT | B55: BN1100_PR24 | C55: Treated water distribution - mains analysis - Total length of potable mains as at 31 March | D55: km | E55: Price Review 2024 | F55: 42877.12 | G55: 43032.3 | H55: 43177.73066 | I55: 43329.49166 | J55: 43527.90166 | K55: 43749.93566 | L55: 43952.46566 | M55: 44152.03566
A56: NWT | B56: BN1200_PR24 | C56: Treated water distribution - mains analysis - Total length of potable mains renewed | D56: km | E56: Price Review 2024 | F56: 39.2 | G56: 20.98432 | H56: 56.2675 | I56: 134.3700859 | J56: 203.0341539 | K56: 186.8566614 | L56: 179.1279138 | M56: 224.4427164
A57: NWT | B57: CW3_049TOT_PR24 | C57: Supply-demand balance - Leakage improvements delivering benefits in 2025-2030; SDB totex - Total | D57: £m | E57: Price Review 2024 | F57: 0.33069975 | G57: 0 | H57: 1.07844296 | I57: 16.28057357 | J57: 28.9769337 | K57: 28.2760626 | L57: 31.25366564 | M57: 43.28276283 | O57: 148.0699983
A58: NWT | B58: BN2345A_PR24 | C58: Water balance - Company level - Total annual leakage | D58: Ml/d | E58: Price Review 2024 | F58: 423.0092005 | G58: 408.6393637 | H58: 364.8 | I58: 377.0606363 | J58: 367.5393637 | K58: 333.9 | L58: 348.2606363 | M58: 339.3393637
A59: NWT | B59: CW12_049TOT_PR24 | C59: Supply-demand balance - Leakage improvements delivering benefits in 2025-2030; SDB totex - Total | D59: £m | E59: Price Review 2024 | G59: 0 | H59: 0 | O59: 0
A60: NWT | B60: CW17_049TOT_PR24 | C60: Supply-demand balance - Leakage improvements delivering benefits in 2025-2030; SDB totex - Total | D60: £m | E60: Price Review 2024 | G60: 0 | H60: 0 | I60: 0 | J60: 0 | K60: 0 | L60: 0 | M60: 0 | O60: 0
A61: WSX | B61: BN1100_PR24 | C61: Treated water distribution - mains analysis - Total length of potable mains as at 31 March | D61: km | E61: Price Review 2024 | F61: 12116.3 | G61: 12148.9 | H61: 12178.9 | I61: 12208.9 | J61: 12238.9 | K61: 12268.9 | L61: 12298.9 | M61: 12328.9
A62: WSX | B62: BN1200_PR24 | C62: Treated water distribution - mains analysis - Total length of potable mains renewed | D62: km | E62: Price Review 2024 | F62: 25.9 | G62: 19.6 | H62: 26.93333333 | I62: 49 | J62: 49 | K62: 49 | L62: 49 | M62: 49
A63: WSX | B63: CW3_049TOT_PR24 | C63: Supply-demand balance - Leakage improvements delivering benefits in 2025-2030; SDB totex - Total | D63: £m | E63: Price Review 2024 | F63: 0 | G63: 0 | H63: 0 | I63: 8.90373 | J63: 4.103843 | K63: 3.557697 | L63: 3.266072 | M63: 2.765263 | O63: 22.596605
A64: WSX | B64: BN2345A_PR24 | C64: Water balance - Company level - Total annual leakage | D64: Ml/d | E64: Price Review 2024 | F64: 71.18647862 | G64: 69.7673523 | H64: 64.3 | I64: 61.08 | J64: 60.45 | K64: 59.69 | L64: 58.84 | M64: 57.86
A65: WSX | B65: CW12_049TOT_PR24 | C65: Supply-demand balance - Leakage improvements delivering benefits in 2025-2030; SDB totex - Total | D65: £m | E65: Price Review 2024 | G65: 0 | H65: 0 | O65: 0
A66: WSX | B66: CW17_049TOT_PR24 | C66: Supply-demand balance - Leakage improvements delivering benefits in 2025-2030; SDB totex - Total | D66: £m | E66: Price Review 2024 | G66: 0 | H66: 0 | I66: 0 | J66: 0 | K66: 0 | L66: 0 | M66: 0 | O66: 0
A67: YKY | B67: BN1100_PR24 | C67: Treated water distribution - mains analysis - Total length of potable mains as at 31 March | D67: km | E67: Price Review 2024 | F67: 32267.4 | G67: 32375.6 | H67: 32478.4 | I67: 32583.9 | J67: 32689.4 | K67: 32794.9 | L67: 32900.4 | M67: 33005.9
A68: YKY | B68: BN1200_PR24 | C68: Treated water distribution - mains analysis - Total length of potable mains renewed | D68: km | E68: Price Review 2024 | F68: 18 | G68: 12.2 | H68: 8.3 | I68: 215.1 | J68: 215.8 | K68: 216.4 | L68: 217.1 | M68: 217.8
A69: YKY | B69: CW3_049TOT_PR24 | C69: Supply-demand balance - Leakage improvements delivering benefits in 2025-2030; SDB totex - Total | D69: £m | E69: Price Review 2024 | F69: 33.929 | G69: 35.45048419 | H69: 25.22533104 | I69: 3.7922448 | J69: 2.921 | K69: 2.865 | L69: 3.118 | M69: 2.977 | O69: 15.6732448
A70: YKY | B70: BN2345A_PR24 | C70: Water balance - Company level - Total annual leakage | D70: Ml/d | E70: Price Review 2024 | F70: 282.78 | G70: 260.03 | H70: 260 | I70: 251.84 | J70: 243.39 | K70: 235.78 | L70: 229.09 | M70: 223.83
A71: YKY | B71: CW12_049TOT_PR24 | C71: Supply-demand balance - Leakage improvements delivering benefits in 2025-2030; SDB totex - Total | D71: £m | E71: Price Review 2024 | G71: 0 | H71: 0 | O71: 0
A72: YKY | B72: CW17_049TOT_PR24 | C72: Supply-demand balance - Leakage improvements delivering benefits in 2025-2030; SDB totex - Total | D72: £m | E72: Price Review 2024 | G72: 0 | H72: 0 | I72: 0 | J72: 0 | K72: 0 | L72: 0 | M72: 0 | O72: =IF(B72="CW3_049TOT_PR24",SUM(I72:M72),IF(OR(B72="CW12_049TOT_PR24",B72="CW17_049TOT_PR24"),SUM(G72:H72),"")) -> 0
A73: AFW | B73: BN1100_PR24 | C73: Treated water distribution - mains analysis - Total length of potable mains as at 31 March | D73: km | E73: Price Review 2024 | F73: 16969.2 | G73: 16989.044 | H73: 17049.3 | I73: 17091.3 | J73: 17135.3 | K73: 17184.3 | L73: 17235.7 | M73: 17290.7
A74: AFW | B74: BN1200_PR24 | C74: Treated water distribution - mains analysis - Total length of potable mains renewed | D74: km | E74: Price Review 2024 | F74: 11.2 | G74: 10.8 | H74: 3.6 | I74: 21.7 | J74: 46.7 | K74: 66.7 | L74: 66.7 | M74: 67
A75: AFW | B75: CW3_049TOT_PR24 | C75: Supply-demand balance - Leakage improvements delivering benefits in 2025-2030; SDB totex - Total | D75: £m | E75: Price Review 2024 | F75: 0 | G75: 0 | H75: 0 | I75: 4.571 | J75: 4.571 | K75: 4.571 | L75: 4.571 | M75: 4.571 | O75: 22.855
A76: AFW | B76: BN2345A_PR24 | C76: Water balance - Company level - Total annual leakage | D76: Ml/d | E76: Price Review 2024 | F76: 150.6604661 | G76: 153.5046653 | H76: 144.9 | I76: 143.36 | J76: 135.36 | K76: 132.16 | L76: 129.06 | M76: 126.06
A77: AFW | B77: CW12_049TOT_PR24 | C77: Supply-demand balance - Leakage improvements delivering benefits in 2025-2030; SDB totex - Total | D77: £m | E77: Price Review 2024 | G77: 0 | H77: 0 | O77: 0
A78: AFW | B78: CW17_049TOT_PR24 | C78: Supply-demand balance - Leakage improvements delivering benefits in 2025-2030; SDB totex - Total | D78: £m | E78: Price Review 2024 | G78: 0 | H78: 0 | I78: 0 | J78: 0 | K78: 0 | L78: 0 | M78: 0 | O78: 0
A79: BRL | B79: BN1100_PR24 | C79: Treated water distribution - mains analysis - Total length of potable mains as at 31 March | D79: km | E79: Price Review 2024 | F79: 6955.9 | G79: 6973.2 | H79: 7010.21793 | I79: 7020.5 | J79: 7034.7 | K79: 7051.6 | L79: 7071.5 | M79: 7086.6
A80: BRL | B80: BN1200_PR24 | C80: Treated water distribution - mains analysis - Total length of potable mains renewed | D80: km | E80: Price Review 2024 | F80: 8.3 | G80: 7.8 | H80: 13 | I80: 19.74 | J80: 32.9 | K80: 37.2757 | L80: 37.29215 | M80: 37.29215
A81: BRL | B81: CW3_049TOT_PR24 | C81: Supply-demand balance - Leakage improvements delivering benefits in 2025-2030; SDB totex - Total | D81: £m | E81: Price Review 2024 | F81: 4.008978661 | G81: 7.235 | H81: 4.155806025 | I81: 6.757612 | J81: 6.757612 | K81: 6.757612 | L81: 6.758581 | M81: 6.758581 | O81: 33.789998
A82: BRL | B82: BN2345A_PR24 | C82: Water balance - Company level - Total annual leakage | D82: Ml/d | E82: Price Review 2024 | F82: 40.6 | G82: 38.27 | H82: 35.1 | I82: 31.72896997 | J82: 31.07549119 | K82: 30.4 | L82: 29.92 | M82: 29.47145294
A83: BRL | B83: CW12_049TOT_PR24 | C83: Supply-demand balance - Leakage improvements delivering benefits in 2025-2030; SDB totex - Total | D83: £m | E83: Price Review 2024 | G83: 0 | H83: 0 | O83: 0
A84: BRL | B84: CW17_049TOT_PR24 | C84: Supply-demand balance - Leakage improvements delivering benefits in 2025-2030; SDB totex - Total | D84: £m | E84: Price Review 2024 | G84: 0 | H84: 0 | I84: 0 | J84: 0 | K84: 0 | L84: 0 | M84: 0 | O84: 0
A85: PRT | B85: BN1100_PR24 | C85: Treated water distribution - mains analysis - Total length of potable mains as at 31 March | D85: km | E85: Price Review 2024 | F85: 3386.5 | G85: 3409 | H85: 3402.5 | I85: 3411.5 | J85: 3423.5 | K85: 3434.5 | L85: 3445.5 | M85: 3455.5
A86: PRT | B86: BN1200_PR24 | C86: Treated water distribution - mains analysis - Total length of potable mains renewed | D86: km | E86: Price Review 2024 | F86: 11.3 | G86: 10.7 | H86: 12.5 | I86: 8.2 | J86: 8.2 | K86: 8.2 | L86: 8.2 | M86: 8.2
A87: PRT | B87: CW3_049TOT_PR24 | C87: Supply-demand balance - Leakage improvements delivering benefits in 2025-2030; SDB totex - Total | D87: £m | E87: Price Review 2024 | F87: 0.301 | G87: 0 | H87: 0.667 | I87: 0.421615885 | J87: 0.421615885 | K87: 0.421615885 | L87: 0.421615885 | M87: 0.421615885 | O87: 2.108079425
A88: PRT | B88: BN2345A_PR24 | C88: Water balance - Company level - Total annual leakage | D88: Ml/d | E88: Price Review 2024 | F88: 32.19 | G88: 28.19 | H88: 24 | I88: 22 | J88: 22.4 | K88: 22.04 | L88: 21 | M88: 20.25
A89: PRT | B89: CW12_049TOT_PR24 | C89: Supply-demand balance - Leakage improvements delivering benefits in 2025-2030; SDB totex - Total | D89: £m | E89: Price Review 2024 | G89: 0 | H89: 0 | O89: 0
A90: PRT | B90: CW17_049TOT_PR24 | C90: Supply-demand balance - Leakage improvements delivering benefits in 2025-2030; SDB totex - Total | D90: £m | E90: Price Review 2024 | G90: 0 | H90: 0 | I90: 0 | J90: 0 | K90: 0 | L90: 0 | M90: 0 | O90: 0
A91: SEW | B91: BN1100_PR24 | C91: Treated water distribution - mains analysis - Total length of potable mains as at 31 March | D91: km | E91: Price Review 2024 | F91: 15045.5 | G91: 15098.51888 | H91: 15161.62358 | I91: 15263.92968 | J91: 15368.28208 | K91: 15475.22545 | L91: 15593.37899 | M91: 15782.09652
A92: SEW | B92: BN1200_PR24 | C92: Treated water distribution - mains analysis - Total length of potable mains renewed | D92: km | E92: Price Review 2024 | F92: 14.1 | G92: 9 | H92: 4.38 | I92: 78.39 | J92: 78.5 | K92: 78.584 | L92: 78.669 | M92: 78.756
A93: SEW | B93: CW3_049TOT_PR24 | C93: Supply-demand balance - Leakage improvements delivering benefits in 2025-2030; SDB totex - Total | D93: £m | E93: Price Review 2024 | F93: 9.128 | G93: 12.78193404 | H93: 12.89312693 | I93: 17.022 | J93: 16.607 | K93: 16.806 | L93: 16.817 | M93: 16.848 | O93: 84.1
A94: SEW | B94: BN2345A_PR24 | C94: Water balance - Company level - Total annual leakage | D94: Ml/d | E94: Price Review 2024 | F94: 102.0023922 | G94: 101.4003884 | H94: 80.999971 | I94: 79.261471 | J94: 76.125271 | K94: 74.236271 | L94: 72.360071 | M94: 70.495771
A95: SEW | B95: CW12_049TOT_PR24 | C95: Supply-demand balance - Leakage improvements delivering benefits in 2025-2030; SDB totex - Total | D95: £m | E95: Price Review 2024 | G95: 0 | H95: 0 | O95: 0
A96: SEW | B96: CW17_049TOT_PR24 | C96: Supply-demand balance - Leakage improvements delivering benefits in 2025-2030; SDB totex - Total | D96: £m | E96: Price Review 2024 | G96: 0 | H96: 0 | I96: 0 | J96: 0 | K96: 0 | L96: 0 | M96: 0 | O96: 0
A97: SSC | B97: BN1100_PR24 | C97: Treated water distribution - mains analysis - Total length of potable mains as at 31 March | D97: km | E97: Price Review 2024 | F97: 8702.245 | G97: 8745.345 | H97: 8788.445 | I97: 8831.545 | J97: 8874.645 | K97: 8917.745 | L97: 8960.845 | M97: 9003.945
A98: SSC | B98: BN1200_PR24 | C98: Treated water distribution - mains analysis - Total length of potable mains renewed | D98: km | E98: Price Review 2024 | F98: 21.19 | G98: 9 | H98: 19 | I98: 50 | J98: 50 | K98: 50 | L98: 50 | M98: 50
A99: SSC | B99: CW3_049TOT_PR24 | C99: Supply-demand balance - Leakage improvements delivering benefits in 2025-2030; SDB totex - Total | D99: £m | E99: Price Review 2024 | F99: 0 | G99: 0 | H99: 0 | I99: 1.78786311 | J99: 1.78786311 | K99: 1.78786311 | L99: 1.78786311 | M99: 1.78786311 | O99: 8.93931555
A100: SSC | B100: BN2345A_PR24 | C100: Water balance - Company level - Total annual leakage | D100: Ml/d | E100: Price Review 2024 | F100: 78.73 | G100: 76.36 | H100: 74 | I100: 69.692 | J100: 67.404 | K100: 65.106 | L100: 62.818 | M100: 60.53
A101: SSC | B101: CW12_049TOT_PR24 | C101: Supply-demand balance - Leakage improvements delivering benefits in 2025-2030; SDB totex - Total | D101: £m | E101: Price Review 2024 | G101: 0 | H101: 0 | O101: 0
A102: SSC | B102: CW17_049TOT_PR24 | C102: Supply-demand balance - Leakage improvements delivering benefits in 2025-2030; SDB totex - Total | D102: £m | E102: Price Review 2024 | G102: 0 | H102: 0 | I102: 0 | J102: 0 | K102: 0 | L102: 0 | M102: 0 | O102: 0
A103: SES | B103: BN1100_PR24 | C103: Treated water distribution - mains analysis - Total length of potable mains as at 31 March | D103: km | E103: Price Review 2024 | F103: 3527.87 | G103: 3526.8 | H103: 3538.593281 | I103: 3543.979061 | J103: 3549.380998 | K103: 3554.799141 | L103: 3560.233538 | M103: 3565.684239
A104: SES | B104: BN1200_PR24 | C104: Treated water distribution - mains analysis - Total length of potable mains renewed | D104: km | E104: Price Review 2024 | F104: 16.25 | G104: 6.17 | H104: 10.59967083 | I104: 10.61577984 | J104: 10.63193718 | K104: 10.64814299 | L104: 10.66439742 | M104: 10.68070061
A105: SES | B105: CW3_049TOT_PR24 | C105: Supply-demand balance - Leakage improvements delivering benefits in 2025-2030; SDB totex - Total | D105: £m | E105: Price Review 2024 | F105: 4.344 | G105: 0 | H105: 1.90631924 | I105: 0.8109838 | J105: 0.83413385 | K105: 0.84637015 | L105: 0.86910175 | M105: 0.8252056 | O105: 4.18579515
A106: SES | B106: BN2345A_PR24 | C106: Water balance - Company level - Total annual leakage | D106: Ml/d | E106: Price Review 2024 | F106: 22.82 | G106: 20.67 | H106: 21.3 | I106: 20.6 | J106: 19.9 | K106: 19.2 | L106: 18.5 | M106: 17.8
A107: SES | B107: CW12_049TOT_PR24 | C107: Supply-demand balance - Leakage improvements delivering benefits in 2025-2030; SDB totex - Total | D107: £m | E107: Price Review 2024 | G107: 0 | H107: 0 | O107: 0
A108: SES | B108: CW17_049TOT_PR24 | C108: Supply-demand balance - Leakage improvements delivering benefits in 2025-2030; SDB totex - Total | D108: £m | E108: Price Review 2024 | G108: 0 | H108: 0 | I108: 0 | J108: 0 | K108: 0 | L108: 0 | M108: 0 | O108: 0

Sheet F_Input_Connected_Props
A1: =RIGHT(CELL("filename", $A$1), LEN(CELL("filename", $A$1)) - SEARCH("]", CELL("filename", $A$1))) -> 
A2: Purpose | B2: APR Connected property data
A4: Company Acronym | B4: Item Code | C4: Item Description | D4: Item Unit | E4: Item Table Suite | F4: 2020-21 | G4: 2021-22 | H4: 2022-23 | I4: 2023-24
A5: ANH | B5: BN2700 | C5: Property numbers - average during the year - Total connected properties - Water - Total | D5: 000s | E5: Cyclical Foundation | F5: 2229.024 | G5: 2252.964 | H5: 2277.832 | I5: 2287.562
A6: WSH | B6: BN2700 | C6: Property numbers - average during the year - Total connected properties - Water - Total | D6: 000s | E6: Cyclical Foundation | F6: 1453.343 | G6: 1461.51 | H6: 1469.645 | I6: 1476.006
A7: HDD | B7: BN2700 | C7: Property numbers - average during the year - Total connected properties - Water - Total | D7: 000s | E7: Cyclical Foundation | F7: 105.788 | G7: 105.581 | H7: 106.645 | I7: 107.1792568
A8: NNE | B8: BN2700 | C8: Property numbers - average during the year - Total connected properties - Water - Total | D8: 000s | E8: Cyclical Foundation
A9: NES | B9: BN2700 | C9: Property numbers - average during the year - Total connected properties - Water - Total | D9: 000s | E9: Cyclical Foundation | F9: 2048.673 | G9: 2062.689 | H9: 2077.021 | I9: 2088.594
A10: SVE | B10: BN2700 | C10: Property numbers - average during the year - Total connected properties - Water - Total | D10: 000s | E10: Cyclical Foundation | F10: 3705.326 | G10: 3712.389158 | H10: 3741.608 | I10: 3770.950152
A11: SVT | B11: BN2700 | C11: Property numbers - average during the year - Total connected properties - Water - Total | D11: 000s | E11: Cyclical Foundation
A12: SWB | B12: BN2700 | C12: Property numbers - average during the year - Total connected properties - Water - Total | D12: 000s | E12: Cyclical Foundation | F12: 1070.894 | G12: 1079.6505 | H12: 1088.52 | I12: 1096.878
A13: SBB | B13: BN2700 | C13: Property numbers - average during the year - Total connected properties - Water - Total | D13: 000s | E13: Cyclical Foundation | I13: 0
A14: SRN | B14: BN2700 | C14: Property numbers - average during the year - Total connected properties - Water - Total | D14: 000s | E14: Cyclical Foundation | F14: 1132.662 | G14: 1137.9105 | H14: 1143.332 | I14: 1155.637
A15: TMS | B15: BN2700 | C15: Property numbers - average during the year - Total connected properties - Water - Total | D15: 000s | E15: Cyclical Foundation | F15: 3937.64 | G15: 3976.404 | H15: 4014.2545 | I15: 4043.105
A16: NWT | B16: BN2700 | C16: Property numbers - average during the year - Total connected properties - Water - Total | D16: 000s | E16: Cyclical Foundation | F16: 3390.83 | G16: 3418.639 | H16: 3436.315 | I16: 3451.492
A17: WSX | B17: BN2700 | C17: Property numbers - average during the year - Total connected properties - Water - Total | D17: 000s | E17: Cyclical Foundation | F17: 625.441 | G17: 630.44 | H17: 636.025 | I17: 640.454
A18: YKY | B18: BN2700 | C18: Property numbers - average during the year - Total connected properties - Water - Total | D18: 000s | E18: Cyclical Foundation | F18: 2342.029 | G18: 2355.639083 | H18: 2372.646 | I18: 2387.083
A19: AFW | B19: BN2700 | C19: Property numbers - average during the year - Total connected properties - Water - Total | D19: 000s | E19: Cyclical Foundation | F19: 1532.136 | G19: 1522.445 | H19: 1537.737 | I19: 1548.559417
A20: BRL | B20: BN2700 | C20: Property numbers - average during the year - Total connected properties - Water - Total | D20: 000s | E20: Cyclical Foundation | F20: 545.879 | G20: 551.056 | H20: 555.857 | I20: 559.656
A21: CAM | B21: BN2700 | C21: Property numbers - average during the year - Total connected properties - Water - Total | D21: 000s | E21: Cyclical Foundation
A22: DVW | B22: BN2700 | C22: Property numbers - average during the year - Total connected properties - Water - Total | D22: 000s | E22: Cyclical Foundation
A23: ESK | B23: BN2700 | C23: Property numbers - average during the year - Total connected properties - Water - Total | D23: 000s | E23: Cyclical Foundation
A24: PRT | B24: BN2700 | C24: Property numbers - average during the year - Total connected properties - Water - Total | D24: 000s | E24: Cyclical Foundation | F24: 322.28 | G24: 323.748 | H24: 324.728 | I24: 325.573
A25: SEW | B25: BN2700 | C25: Property numbers - average during the year - Total connected properties - Water - Total | D25: 000s | E25: Cyclical Foundation | F25: 955.933 | G25: 963.595 | H25: 971.1405 | I25: 979.313
A26: SSC | B26: BN2700 | C26: Property numbers - average during the year - Total connected properties - Water - Total | D26: 000s | E26: Cyclical Foundation | F26: 744.76 | G26: 748.1944167 | H26: 752.8804167 | I26: 753.8873333
A27: SST | B27: BN2700 | C27: Property numbers - average during the year - Total connected properties - Water - Total | D27: 000s | E27: Cyclical Foundation
A28: SES | B28: BN2700 | C28: Property numbers - average during the year - Total connected properties - Water - Total | D28: 000s | E28: Cyclical Foundation | F28: 297.655 | G28: 299.18365 | H28: 297.038 | I28: 297.838

Sheet F_Input_CPIH
A1: =RIGHT(CELL("filename", $A$1), LEN(CELL("filename", $A$1)) - SEARCH("]", CELL("filename", $A$1))) -> 
C3: cpih | E3: Run on 24 Sep 2024 15:17
B5: Item Code | C5: Item Description | D5: Item Unit | E5: Item Table Suite | F5: 2016-17 | G5: 2017-18 | H5: 2018-19 | I5: 2019-20 | J5: 2020-21 | K5: 2021-22 | L5: 2022-23 | M5: 2023-24
F6: Cost Base CMA 2021 | G6: Cost Base CMA 2021 | H6: Cost Base CMA 2021 | I6: Cost Base CMA 2021 | J6: Cost Base CMA 2021 | K6: Cost Base CMA 2021 | L6: Cost Base CMA 2021 | M6: Cost Base CMA 2021
F7: Cost Base CMA 2021 base run | G7: Cost Base CMA 2021 base run | H7: Cost Base CMA 2021 base run | I7: Cost Base CMA 2021 base run | J7: Cost Base CMA 2021 base run | K7: Cost Base CMA 2021 base run | L7: Cost Base CMA 2021 base run | M7: Cost Base CMA 2021 base run
F8: Latest | G8: Latest | H8: Latest | I8: Latest | J8: Latest | K8: Latest | L8: Latest | M8: Latest
B9: C_CD0014_PR19WW1 | C9: CPIH adjustment | D9: nr | E9: Cost Base CMA 2021 | F9: 1.211735741 | G9: 1.180633296 | H9: 1.156044472 | I9: 1.13673108 | J9: 1.127701825 | K9: 1.08774127 | L9: 1 | M9: 0.9474460986
F10: =F9/$G$9 -> 1.026343865 | G10: 1 | H10: 0.9791731914 | I10: 0.9628146894 | J10: 0.9551668831 | K10: 0.9213201709 | L10: =L9/$G$9 -> 0.8470030477 | M10: =M9/$G$9 -> 0.8024897331 | N10: Cost base 2017-2018

Sheet F_Inputs_APR_TE
A1: =RIGHT(CELL("filename", $A$1), LEN(CELL("filename", $A$1)) - SEARCH("]", CELL("filename", $A$1))) -> 
C2: RGH Leak Enh | E2: Run on 31 Oct 2024 9:31
A4: Company Acronym | B4: Item Code | C4: Item Description | D4: Item Unit | E4: Item Table Suite | F4: 2022-23 | G4: 2023-24 | H4: 2024-25 | I4: 2025-26 | J4: 2026-27 | K4: 2027-28 | L4: 2028-29 | M4: 2029-30
A5: ANH | B5: BN1100_PR24 | C5: Treated water distribution - mains analysis - Total length of potable mains as at 31 March | D5: km | E5: Price Review 2024 | F5: 39248.1 | G5: 39397 | H5: 39873.1 | I5: 39977.2 | J5: 40086.1 | K5: 40202.7 | L5: 40310.6 | M5: 40591.5
A6: ANH | B6: BN1200_PR24 | C6: Treated water distribution - mains analysis - Total length of potable mains renewed | D6: km | E6: Price Review 2024 | F6: 45.2 | G6: 37.5 | H6: 66 | I6: 75.54 | J6: 237.86 | K6: 308.07 | L6: 308.07 | M6: 209.9
A7: ANH | B7: CW3_049TOT_PR24 | C7: Supply-demand balance - Leakage improvements delivering benefits in 2025-2030; SDB totex - Total | D7: £m | E7: Price Review 2024 | F7: 27.065 | G7: 25.92409339 | H7: 19.792 | I7: 5.363 | J7: 6.057 | K7: 7.234 | L7: 8.334 | M7: 7.896
A8: ANH | B8: BN2345A_PR24 | C8: Water balance - Company level - Total annual leakage | D8: Ml/d | E8: Price Review 2024 | F8: 190.46 | G8: 182.0717436 | H8: 180.61 | I8: 177.58 | J8: 175.62 | K8: 173.88 | L8: 171.92 | M8: 168.22
A9: ANH | B9: CW12_049TOT_PR24 | C9: Supply-demand balance - Leakage improvements delivering benefits in 2025-2030; SDB totex - Total | D9: £m | E9: Price Review 2024 | G9: 0 | H9: 0
A10: ANH | B10: CW17_049TOT_PR24 | C10: Supply-demand balance - Leakage improvements delivering benefits in 2025-2030; SDB totex - Total | D10: £m | E10: Price Review 2024 | G10: 0 | H10: 0 | I10: 0 | J10: 0 | K10: 0 | L10: 0 | M10: 0
A11: WSH | B11: BN1100_PR24 | C11: Treated water distribution - mains analysis - Total length of potable mains as at 31 March | D11: km | E11: Price Review 2024 | F11: 27875.3 | G11: 27910.2 | H11: 27979.6 | I11: 28037.7 | J11: 28095.6 | K11: 28167.7 | L11: 28230.7 | M11: 28297.1
A12: WSH | B12: BN1200_PR24 | C12: Treated water distribution - mains analysis - Total length of potable mains renewed | D12: km | E12: Price Review 2024 | F12: 28.4 | G12: 15.2 | H12: 25.5 | I12: 80 | J12: 131 | K12: 131 | L12: 131 | M12: 131
A13: WSH | B13: CW3_049TOT_PR24 | C13: Supply-demand balance - Leakage improvements delivering benefits in 2025-2030; SDB totex - Total | D13: £m | E13: Price Review 2024 | F13: 0 | G13: 0 | H13: 0 | I13: 1.005 | J13: 0.989 | K13: 0.992 | L13: 1 | M13: 1.015
A14: WSH | B14: BN2345A_PR24 | C14: Water balance - Company level - Total annual leakage | D14: Ml/d | E14: Price Review 2024 | F14: 253.2101455 | G14: 261.61 | H14: 228.5 | I14: 187.7872687 | J14: 183.8593131 | K14: 180.8048225 | L14: 178.0223418 | M14: 172.7234221
A15: WSH | B15: CW12_049TOT_PR24 | C15: Supply-demand balance - Leakage improvements delivering benefits in 2025-2030; SDB totex - Total | D15: £m | E15: Price Review 2024 | G15: 0 | H15: 0
A16: WSH | B16: CW17_049TOT_PR24 | C16: Supply-demand balance - Leakage improvements delivering benefits in 2025-2030; SDB totex - Total | D16: £m | E16: Price Review 2024 | G16: 0 | H16: 0 | I16: 0 | J16: 0 | K16: 0 | L16: 0 | M16: 0
A17: HDD | B17: BN1100_PR24 | C17: Treated water distribution - mains analysis - Total length of potable mains as at 31 March | D17: km | E17: Price Review 2024 | F17: 2640.9 | G17: 2633.1 | H17: 2639.1 | I17: 2642.1 | J17: 2645.1 | K17: 2648.1 | L17: 2651.1 | M17: 2654.1
A18: HDD | B18: BN1200_PR24 | C18: Treated water distribution - mains analysis - Total length of potable mains renewed | D18: km | E18: Price Review 2024 | F18: 7.622 | G18: 0.4 | H18: 3.2 | I18: 10.2 | J18: 12.5 | K18: 16.3 | L18: 14.7 | M18: 14.3
A19: HDD | B19: CW3_049TOT_PR24 | C19: Supply-demand balance - Leakage improvements delivering benefits in 2025-2030; SDB totex - Total | D19: £m | E19: Price Review 2024 | F19: 0.360477786 | G19: 0.04642485883 | H19: 0.09795390899 | I19: 0.206 | J19: 0.206 | K19: 0.206 | L19: 0.206 | M19: 0.206
A20: HDD | B20: BN2345A_PR24 | C20: Water balance - Company level - Total annual leakage | D20: Ml/d | E20: Price Review 2024 | F20: 16.7 | G20: 15.66 | H20: 13.21828 | I20: 13.12828 | J20: 13.03828 | K20: 12.94828 | L20: 12.85828 | M20: 12.76828
A21: HDD | B21: CW12_049TOT_PR24 | C21: Supply-demand balance - Leakage improvements delivering benefits in 2025-2030; SDB totex - Total | D21: £m | E21: Price Review 2024 | G21: 0 | H21: 0
A22: HDD | B22: CW17_049TOT_PR24 | C22: Supply-demand balance - Leakage improvements delivering benefits in 2025-2030; SDB totex - Total | D22: £m | E22: Price Review 2024 | G22: 0 | H22: 0 | I22: 0 | J22: 0 | K22: 0 | L22: 0 | M22: 0
A23: NES | B23: BN1100_PR24 | C23: Treated water distribution - mains analysis - Total length of potable mains as at 31 March | D23: km | E23: Price Review 2024 | F23: 26450.6 | G23: 26536.8 | H23: 26672.579 | I23: 26773.75 | J23: 26902.276 | K23: 26987.8 | L23: 27080.6 | M23: 27173.4
A24: NES | B24: BN1200_PR24 | C24: Treated water distribution - mains analysis - Total length of potable mains renewed | D24: km | E24: Price Review 2024 | F24: 26.8 | G24: 26.3 | H24: 145.179 | I24: 114.156 | J24: 119.166 | K24: 136.166 | L24: 109.64 | M24: 110.15
A25: NES | B25: CW3_049TOT_PR24 | C25: Supply-demand balance - Leakage improvements delivering benefits in 2025-2030; SDB totex - Total | D25: £m | E25: Price Review 2024 | F25: 0 | G25: 0 | H25: 0 | I25: 5.014 | J25: 5.014 | K25: 5.014 | L25: 5.014 | M25: 5.014
A26: NES | B26: BN2345A_PR24 | C26: Water balance - Company level - Total annual leakage | D26: Ml/d | E26: Price Review 2024 | F26: 174.43 | G26: 170.79 | H26: 168.37 | I26: 165.96 | J26: 163.54 | K26: 161.13 | L26: 158.72 | M26: 156.3
A27: NES | B27: CW12_049TOT_PR24 | C27: Supply-demand balance - Leakage improvements delivering benefits in 2025-2030; SDB totex - Total | D27: £m | E27: Price Review 2024 | G27: 0 | H27: 0
A28: NES | B28: CW17_049TOT_PR24 | C28: Supply-demand balance - Leakage improvements delivering benefits in 2025-2030; SDB totex - Total | D28: £m | E28: Price Review 2024 | G28: 0 | H28: 0 | I28: 0 | J28: 0 | K28: 0 | L28: 0 | M28: 0
A29: SVE | B29: BN1100_PR24 | C29: Treated water distribution - mains analysis - Total length of potable mains as at 31 March | D29: km | E29: Price Review 2024 | F29: 47873.4 | G29: 48042.06 | H29: 48239.1 | I29: 48374.5 | J29: 48532.4 | K29: 48684 | L29: 48839.5 | M29: 48998.7
A30: SVE | B30: BN1200_PR24 | C30: Treated water distribution - mains analysis - Total length of potable mains renewed | D30: km | E30: Price Review 2024 | F30: 93.3 | G30: 91.5 | H30: 129.1 | I30: 279 | J30: 279 | K30: 279 | L30: 279 | M30: 279
A31: SVE | B31: CW3_049TOT_PR24 | C31: Supply-demand balance - Leakage improvements delivering benefits in 2025-2030; SDB totex - Total | D31: £m | E31: Price Review 2024 | F31: 4.839 | G31: 33.469 | H31: 50.1457951 | I31: 12.22737243 | J31: 28.18271057 | K31: 28.35391682 | L31: 28.52699041 | M31: 28.7009304
A32: SVE | B32: BN2345A_PR24 | C32: Water balance - Company level - Total annual leakage | D32: Ml/d | E32: Price Review 2024 | F32: 415.61 | G32: 379.48 | H32: 345.7981279 | I32: 331.2478655 | J32: 326.6861616 | K32: 317.4054537 | L32: 308.4218683 | M32: 289.7118912
A33: SVE | B33: CW12_049TOT_PR24 | C33: Supply-demand balance - Leakage improvements delivering benefits in 2025-2030; SDB totex - Total | D33: £m | E33: Price Review 2024 | G33: 0 | H33: 17.6817951
A34: SVE | B34: CW17_049TOT_PR24 | C34: Supply-demand balance - Leakage improvements delivering benefits in 2025-2030; SDB totex - Total | D34: £m | E34: Price Review 2024 | G34: 0 | H34: 0 | I34: 0 | J34: 0 | K34: 0 | L34: 0 | M34: 0
A35: SWB | B35: BN1100_PR24 | C35: Treated water distribution - mains analysis - Total length of potable mains as at 31 March | D35: km | E35: Price Review 2024 | F35: 18545.9 | G35: 18583.4 | H35: 18633.52 | I35: 18673.08 | J35: 18708 | K35: 18759.3 | L35: 18809.4 | M35: 18854.5
A36: SWB | B36: BN1200_PR24 | C36: Treated water distribution - mains analysis - Total length of potable mains renewed | D36: km | E36: Price Review 2024 | F36: 10.1 | G36: 10.4 | H36: 10.07 | I36: 30.7442016 | J36: 51.240336 | K36: 58.05530069 | L36: 58.08092086 | M36: 58.08092086
A37: SWB | B37: CW3_049TOT_PR24 | C37: Supply-demand balance - Leakage improvements delivering benefits in 2025-2030; SDB totex - Total | D37: £m | E37: Price Review 2024 | F37: 0 | G37: 0 | H37: 0 | I37: 10.496981 | J37: 10.787603 | K37: 12.301569 | L37: 10.957117 | M37: 9.253729
A38: SWB | B38: BN2345A_PR24 | C38: Water balance - Company level - Total annual leakage | D38: Ml/d | E38: Price Review 2024 | F38: 112.1905085 | G38: 118.54 | H38: 86 | I38: 95.8 | J38: 92.6 | K38: 89.4 | L38: 86.2 | M38: 82.3
A39: SWB | B39: CW12_049TOT_PR24 | C39: Supply-demand balance - Leakage improvements delivering benefits in 2025-2030; SDB totex - Total | D39: £m | E39: Price Review 2024 | G39: 0 | H39: 0
A40: SWB | B40: CW17_049TOT_PR24 | C40: Supply-demand balance - Leakage improvements delivering benefits in 2025-2030; SDB totex - Total | D40: £m | E40: Price Review 2024 | G40: 0 | H40: 0 | I40: 0 | J40: 0 | K40: 0 | L40: 0 | M40: 0
A41: SRN | B41: BN1100_PR24 | C41: Treated water distribution - mains analysis - Total length of potable mains as at 31 March | D41: km | E41: Price Review 2024 | F41: 13919 | G41: 13972.6 | H41: 14039.5 | I41: 14108.55 | J41: 14177.35 | K41: 14246.15 | L41: 14314.95 | M41: 14383.75
A42: SRN | B42: BN1200_PR24 | C42: Treated water distribution - mains analysis - Total length of potable mains renewed | D42: km | E42: Price Review 2024 | F42: 4.43 | G42: 14.5 | H42: 0 | I42: 40.72 | J42: 60.72 | K42: 68.22 | L42: 88.22 | M42: 108.22
A43: SRN | B43: CW3_049TOT_PR24 | C43: Supply-demand balance - Leakage improvements delivering benefits in 2025-2030; SDB totex - Total | D43: £m | E43: Price Review 2024 | F43: 0 | G43: 0 | H43: 1.613 | I43: 10.519 | J43: 9.195 | K43: 7.793 | L43: 6.753 | M43: 6.751
A44: SRN | B44: BN2345A_PR24 | C44: Water balance - Company level - Total annual leakage | D44: Ml/d | E44: Price Review 2024 | F44: 99.61 | G44: 77.79 | H44: 76.64 | I44: 75.06 | J44: 73.82 | K44: 70.12 | L44: 67.72 | M44: 66.31
A45: SRN | B45: CW12_049TOT_PR24 | C45: Supply-demand balance - Leakage improvements delivering benefits in 2025-2030; SDB totex - Total | D45: £m | E45: Price Review 2024 | G45: 0 | H45: 1.613
A46: SRN | B46: CW17_049TOT_PR24 | C46: Supply-demand balance - Leakage improvements delivering benefits in 2025-2030; SDB totex - Total | D46: £m | E46: Price Review 2024 | G46: 0 | H46: 0 | I46: 0 | J46: 0 | K46: 0 | L46: 0 | M46: 0
A47: TMS | B47: BN1100_PR24 | C47: Treated water distribution - mains analysis - Total length of potable mains as at 31 March | D47: km | E47: Price Review 2024 | F47: 31926.7 | G47: 32010.1 | H47: 32074.1 | I47: 32138.1 | J47: 32194.1 | K47: 32245.1 | L47: 32292.1 | M47: 32334.1
A48: TMS | B48: BN1200_PR24 | C48: Treated water distribution - mains analysis - Total length of potable mains renewed | D48: km | E48: Price Review 2024 | F48: 59.7 | G48: 78.1 | H48: 30.3 | I48: 55.2 | J48: 54.6 | K48: 59.7 | L48: 73 | M48: 99.5
A49: TMS | B49: CW3_049TOT_PR24 | C49: Supply-demand balance - Leakage improvements delivering benefits in 2025-2030; SDB totex - Total | D49: £m | E49: Price Review 2024 | F49: 0 | G49: 0 | H49: 0 | I49: 28.955 | J49: 28.44 | K49: 27.27 | L49: 27.393 | M49: 27.518
A50: TMS | B50: BN2345A_PR24 | C50: Water balance - Company level - Total annual leakage | D50: Ml/d | E50: Price Review 2024 | F50: 613.46 | G50: 570.35 | H50: 527 | I50: 491.42 | J50: 464.38 | K50: 445.15 | L50: 425.91 | M50: 407.67
A51: TMS | B51: CW12_049TOT_PR24 | C51: Supply-demand balance - Leakage improvements delivering benefits in 2025-2030; SDB totex - Total | D51: £m | E51: Price Review 2024 | G51: 0 | H51: 0
A52: TMS | B52: CW17_049TOT_PR24 | C52: Supply-demand balance - Leakage improvements delivering benefits in 2025-2030; SDB totex - Total | D52: £m | E52: Price Review 2024 | G52: 0 | H52: 0 | I52: 0 | J52: 0 | K52: 0 | L52: 0 | M52: 0
A53: NWT | B53: BN1100_PR24 | C53: Treated water distribution - mains analysis - Total length of potable mains as at 31 March | D53: km | E53: Price Review 2024 | F53: 42877.12 | G53: 43032.3 | H53: 43177.73066 | I53: 43329.49166 | J53: 43527.90166 | K53: 43749.93566 | L53: 43952.46566 | M53: 44152.03566
A54: NWT | B54: BN1200_PR24 | C54: Treated water distribution - mains analysis - Total length of potable mains renewed | D54: km | E54: Price Review 2024 | F54: 39.2 | G54: 20.98432 | H54: 56.2675 | I54: 134.3700859 | J54: 203.0341539 | K54: 186.8566614 | L54: 179.1279138 | M54: 224.4427164
A55: NWT | B55: CW3_049TOT_PR24 | C55: Supply-demand balance - Leakage improvements delivering benefits in 2025-2030; SDB totex - Total | D55: £m | E55: Price Review 2024 | F55: 0.33069975 | G55: 0 | H55: 1.07844296 | I55: 16.28057357 | J55: 28.9769337 | K55: 28.2760626 | L55: 31.25366564 | M55: 43.28276283
A56: NWT | B56: BN2345A_PR24 | C56: Water balance - Company level - Total annual leakage | D56: Ml/d | E56: Price Review 2024 | F56: 423.0092005 | G56: 408.6393637 | H56: 364.8 | I56: 377.0606363 | J56: 367.5393637 | K56: 333.9 | L56: 348.2606363 | M56: 339.3393637
A57: NWT | B57: CW12_049TOT_PR24 | C57: Supply-demand balance - Leakage improvements delivering benefits in 2025-2030; SDB totex - Total | D57: £m | E57: Price Review 2024 | G57: 0 | H57: 0
A58: NWT | B58: CW17_049TOT_PR24 | C58: Supply-demand balance - Leakage improvements delivering benefits in 2025-2030; SDB totex - Total | D58: £m | E58: Price Review 2024 | G58: 0 | H58: 0 | I58: 0 | J58: 0 | K58: 0 | L58: 0 | M58: 0
A59: WSX | B59: BN1100_PR24 | C59: Treated water distribution - mains analysis - Total length of potable mains as at 31 March | D59: km | E59: Price Review 2024 | F59: 12116.3 | G59: 12148.9 | H59: 12178.9 | I59: 12208.9 | J59: 12238.9 | K59: 12268.9 | L59: 12298.9 | M59: 12328.9
A60: WSX | B60: BN1200_PR24 | C60: Treated water distribution - mains analysis - Total length of potable mains renewed | D60: km | E60: Price Review 2024 | F60: 25.9 | G60: 19.6 | H60: 26.93333333 | I60: 49 | J60: 49 | K60: 49 | L60: 49 | M60: 49
A61: WSX | B61: CW3_049TOT_PR24 | C61: Supply-demand balance - Leakage improvements delivering benefits in 2025-2030; SDB totex - Total | D61: £m | E61: Price Review 2024 | F61: 0 | G61: 0 | H61: 0 | I61: 8.90373 | J61: 4.103843 | K61: 3.557697 | L61: 3.266072 | M61: 2.765263
A62: WSX | B62: BN2345A_PR24 | C62: Water balance - Company level - Total annual leakage | D62: Ml/d | E62: Price Review 2024 | F62: 71.18647862 | G62: 69.7673523 | H62: 64.3 | I62: 61.08 | J62: 60.45 | K62: 59.69 | L62: 58.84 | M62: 57.86
A63: WSX | B63: CW12_049TOT_PR24 | C63: Supply-demand balance - Leakage improvements delivering benefits in 2025-2030; SDB totex - Total | D63: £m | E63: Price Review 2024 | G63: 0 | H63: 0
A64: WSX | B64: CW17_049TOT_PR24 | C64: Supply-demand balance - Leakage improvements delivering benefits in 2025-2030; SDB totex - Total | D64: £m | E64: Price Review 2024 | G64: 0 | H64: 0 | I64: 0 | J64: 0 | K64: 0 | L64: 0 | M64: 0
A65: YKY | B65: BN1100_PR24 | C65: Treated water distribution - mains analysis - Total length of potable mains as at 31 March | D65: km | E65: Price Review 2024 | F65: 32267.4 | G65: 32375.6 | H65: 32478.4 | I65: 32583.9 | J65: 32689.4 | K65: 32794.9 | L65: 32900.4 | M65: 33005.9
A66: YKY | B66: BN1200_PR24 | C66: Treated water distribution - mains analysis - Total length of potable mains renewed | D66: km | E66: Price Review 2024 | F66: 18 | G66: 12.2 | H66: 8.3 | I66: 215.1 | J66: 215.8 | K66: 216.4 | L66: 217.1 | M66: 217.8
A67: YKY | B67: CW3_049TOT_PR24 | C67: Supply-demand balance - Leakage improvements delivering benefits in 2025-2030; SDB totex - Total | D67: £m | E67: Price Review 2024 | F67: 33.929 | G67: 35.45048419 | H67: 25.22533104 | I67: 3.7922448 | J67: 2.921 | K67: 2.865 | L67: 3.118 | M67: 2.977
A68: YKY | B68: BN2345A_PR24 | C68: Water balance - Company level - Total annual leakage | D68: Ml/d | E68: Price Review 2024 | F68: 282.78 | G68: 260.03 | H68: 260 | I68: 251.84 | J68: 243.39 | K68: 235.78 | L68: 229.09 | M68: 223.83
A69: YKY | B69: CW12_049TOT_PR24 | C69: Supply-demand balance - Leakage improvements delivering benefits in 2025-2030; SDB totex - Total | D69: £m | E69: Price Review 2024 | G69: 0 | H69: 0
A70: YKY | B70: CW17_049TOT_PR24 | C70: Supply-demand balance - Leakage improvements delivering benefits in 2025-2030; SDB totex - Total | D70: £m | E70: Price Review 2024 | G70: 0 | H70: 0 | I70: 0 | J70: 0 | K70: 0 | L70: 0 | M70: 0
A71: AFW | B71: BN1100_PR24 | C71: Treated water distribution - mains analysis - Total length of potable mains as at 31 March | D71: km | E71: Price Review 2024 | F71: 16969.2 | G71: 16989.044 | H71: 17049.3 | I71: 17091.3 | J71: 17135.3 | K71: 17184.3 | L71: 17235.7 | M71: 17290.7
A72: AFW | B72: BN1200_PR24 | C72: Treated water distribution - mains analysis - Total length of potable mains renewed | D72: km | E72: Price Review 2024 | F72: 11.2 | G72: 10.8 | H72: 3.6 | I72: 21.7 | J72: 46.7 | K72: 66.7 | L72: 66.7 | M72: 67
A73: AFW | B73: CW3_049TOT_PR24 | C73: Supply-demand balance - Leakage improvements delivering benefits in 2025-2030; SDB totex - Total | D73: £m | E73: Price Review 2024 | F73: 0 | G73: 0 | H73: 0 | I73: 4.571 | J73: 4.571 | K73: 4.571 | L73: 4.571 | M73: 4.571
A74: AFW | B74: BN2345A_PR24 | C74: Water balance - Company level - Total annual leakage | D74: Ml/d | E74: Price Review 2024 | F74: 150.6604661 | G74: 153.5046653 | H74: 144.9 | I74: 143.36 | J74: 135.36 | K74: 132.16 | L74: 129.06 | M74: 126.06
A75: AFW | B75: CW12_049TOT_PR24 | C75: Supply-demand balance - Leakage improvements delivering benefits in 2025-2030; SDB totex - Total | D75: £m | E75: Price Review 2024 | G75: 0 | H75: 0
A76: AFW | B76: CW17_049TOT_PR24 | C76: Supply-demand balance - Leakage improvements delivering benefits in 2025-2030; SDB totex - Total | D76: £m | E76: Price Review 2024 | G76: 0 | H76: 0 | I76: 0 | J76: 0 | K76: 0 | L76: 0 | M76: 0
A77: BRL | B77: BN1100_PR24 | C77: Treated water distribution - mains analysis - Total length of potable mains as at 31 March | D77: km | E77: Price Review 2024 | F77: 6955.9 | G77: 6973.2 | H77: 7010.21793 | I77: 7020.5 | J77: 7034.7 | K77: 7051.6 | L77: 7071.5 | M77: 7086.6
A78: BRL | B78: BN1200_PR24 | C78: Treated water distribution - mains analysis - Total length of potable mains renewed | D78: km | E78: Price Review 2024 | F78: 8.3 | G78: 7.8 | H78: 13 | I78: 19.74 | J78: 32.9 | K78: 37.2757 | L78: 37.29215 | M78: 37.29215
A79: BRL | B79: CW3_049TOT_PR24 | C79: Supply-demand balance - Leakage improvements delivering benefits in 2025-2030; SDB totex - Total | D79: £m | E79: Price Review 2024 | F79: 4.008978661 | G79: 7.235 | H79: 4.155806025 | I79: 6.757612 | J79: 6.757612 | K79: 6.757612 | L79: 6.758581 | M79: 6.758581
A80: BRL | B80: BN2345A_PR24 | C80: Water balance - Company level - Total annual leakage | D80: Ml/d | E80: Price Review 2024 | F80: 40.6 | G80: 38.27 | H80: 35.1 | I80: 31.72896997 | J80: 31.07549119 | K80: 30.4 | L80: 29.92 | M80: 29.47145294
A81: BRL | B81: CW12_049TOT_PR24 | C81: Supply-demand balance - Leakage improvements delivering benefits in 2025-2030; SDB totex - Total | D81: £m | E81: Price Review 2024 | G81: 0 | H81: 0
A82: BRL | B82: CW17_049TOT_PR24 | C82: Supply-demand balance - Leakage improvements delivering benefits in 2025-2030; SDB totex - Total | D82: £m | E82: Price Review 2024 | G82: 0 | H82: 0 | I82: 0 | J82: 0 | K82: 0 | L82: 0 | M82: 0
A83: PRT | B83: BN1100_PR24 | C83: Treated water distribution - mains analysis - Total length of potable mains as at 31 March | D83: km | E83: Price Review 2024 | F83: 3386.5 | G83: 3409 | H83: 3402.5 | I83: 3411.5 | J83: 3423.5 | K83: 3434.5 | L83: 3445.5 | M83: 3455.5
A84: PRT | B84: BN1200_PR24 | C84: Treated water distribution - mains analysis - Total length of potable mains renewed | D84: km | E84: Price Review 2024 | F84: 11.3 | G84: 10.7 | H84: 12.5 | I84: 8.2 | J84: 8.2 | K84: 8.2 | L84: 8.2 | M84: 8.2
A85: PRT | B85: CW3_049TOT_PR24 | C85: Supply-demand balance - Leakage improvements delivering benefits in 2025-2030; SDB totex - Total | D85: £m | E85: Price Review 2024 | F85: 0.301 | G85: 0 | H85: 0.667 | I85: 0.421615885 | J85: 0.421615885 | K85: 0.421615885 | L85: 0.421615885 | M85: 0.421615885
A86: PRT | B86: BN2345A_PR24 | C86: Water balance - Company level - Total annual leakage | D86: Ml/d | E86: Price Review 2024 | F86: 32.19 | G86: 28.19 | H86: 24 | I86: 22 | J86: 22.4 | K86: 22.04 | L86: 21 | M86: 20.25
A87: PRT | B87: CW12_049TOT_PR24 | C87: Supply-demand balance - Leakage improvements delivering benefits in 2025-2030; SDB totex - Total | D87: £m | E87: Price Review 2024 | G87: 0 | H87: 0
A88: PRT | B88: CW17_049TOT_PR24 | C88: Supply-demand balance - Leakage improvements delivering benefits in 2025-2030; SDB totex - Total | D88: £m | E88: Price Review 2024 | G88: 0 | H88: 0 | I88: 0 | J88: 0 | K88: 0 | L88: 0 | M88: 0
A89: SEW | B89: BN1100_PR24 | C89: Treated water distribution - mains analysis - Total length of potable mains as at 31 March | D89: km | E89: Price Review 2024 | F89: 15045.5 | G89: 15098.51888 | H89: 15161.62358 | I89: 15263.92968 | J89: 15368.28208 | K89: 15475.22545 | L89: 15593.37899 | M89: 15782.09652
A90: SEW | B90: BN1200_PR24 | C90: Treated water distribution - mains analysis - Total length of potable mains renewed | D90: km | E90: Price Review 2024 | F90: 14.1 | G90: 9 | H90: 4.38 | I90: 78.39 | J90: 78.5 | K90: 78.584 | L90: 78.669 | M90: 78.756
A91: SEW | B91: CW3_049TOT_PR24 | C91: Supply-demand balance - Leakage improvements delivering benefits in 2025-2030; SDB totex - Total | D91: £m | E91: Price Review 2024 | F91: 9.128 | G91: 12.78193404 | H91: 12.89312693 | I91: 17.022 | J91: 16.607 | K91: 16.806 | L91: 16.817 | M91: 16.848
A92: SEW | B92: BN2345A_PR24 | C92: Water balance - Company level - Total annual leakage | D92: Ml/d | E92: Price Review 2024 | F92: 102.0023922 | G92: 101.4003884 | H92: 80.999971 | I92: 79.261471 | J92: 76.125271 | K92: 74.236271 | L92: 72.360071 | M92: 70.495771
A93: SEW | B93: CW12_049TOT_PR24 | C93: Supply-demand balance - Leakage improvements delivering benefits in 2025-2030; SDB totex - Total | D93: £m | E93: Price Review 2024 | G93: 0 | H93: 0
A94: SEW | B94: CW17_049TOT_PR24 | C94: Supply-demand balance - Leakage improvements delivering benefits in 2025-2030; SDB totex - Total | D94: £m | E94: Price Review 2024 | G94: 0 | H94: 0 | I94: 0 | J94: 0 | K94: 0 | L94: 0 | M94: 0
A95: SSC | B95: BN1100_PR24 | C95: Treated water distribution - mains analysis - Total length of potable mains as at 31 March | D95: km | E95: Price Review 2024 | F95: 8702.245 | G95: 8745.345 | H95: 8788.445 | I95: 8831.545 | J95: 8874.645 | K95: 8917.745 | L95: 8960.845 | M95: 9003.945
A96: SSC | B96: BN1200_PR24 | C96: Treated water distribution - mains analysis - Total length of potable mains renewed | D96: km | E96: Price Review 2024 | F96: 21.19 | G96: 9 | H96: 19 | I96: 50 | J96: 50 | K96: 50 | L96: 50 | M96: 50
A97: SSC | B97: CW3_049TOT_PR24 | C97: Supply-demand balance - Leakage improvements delivering benefits in 2025-2030; SDB totex - Total | D97: £m | E97: Price Review 2024 | F97: 0 | G97: 0 | H97: 0 | I97: 1.78786311 | J97: 1.78786311 | K97: 1.78786311 | L97: 1.78786311 | M97: 1.78786311
A98: SSC | B98: BN2345A_PR24 | C98: Water balance - Company level - Total annual leakage | D98: Ml/d | E98: Price Review 2024 | F98: 78.73 | G98: 76.36 | H98: 74 | I98: 69.692 | J98: 67.404 | K98: 65.106 | L98: 62.818 | M98: 60.53
A99: SSC | B99: CW12_049TOT_PR24 | C99: Supply-demand balance - Leakage improvements delivering benefits in 2025-2030; SDB totex - Total | D99: £m | E99: Price Review 2024 | G99: 0 | H99: 0
A100: SSC | B100: CW17_049TOT_PR24 | C100: Supply-demand balance - Leakage improvements delivering benefits in 2025-2030; SDB totex - Total | D100: £m | E100: Price Review 2024 | G100: 0 | H100: 0 | I100: 0 | J100: 0 | K100: 0 | L100: 0 | M100: 0
A101: SES | B101: BN1100_PR24 | C101: Treated water distribution - mains analysis - Total length of potable mains as at 31 March | D101: km | E101: Price Review 2024 | F101: 3527.87 | G101: 3526.8 | H101: 3538.593281 | I101: 3543.979061 | J101: 3549.380998 | K101: 3554.799141 | L101: 3560.233538 | M101: 3565.684239
A102: SES | B102: BN1200_PR24 | C102: Treated water distribution - mains analysis - Total length of potable mains renewed | D102: km | E102: Price Review 2024 | F102: 16.25 | G102: 6.17 | H102: 10.59967083 | I102: 10.61577984 | J102: 10.63193718 | K102: 10.64814299 | L102: 10.66439742 | M102: 10.68070061
A103: SES | B103: CW3_049TOT_PR24 | C103: Supply-demand balance - Leakage improvements delivering benefits in 2025-2030; SDB totex - Total | D103: £m | E103: Price Review 2024 | F103: 4.344 | G103: 0 | H103: 1.90631924 | I103: 0.8109838 | J103: 0.83413385 | K103: 0.84637015 | L103: 0.86910175 | M103: 0.8252056
A104: SES | B104: BN2345A_PR24 | C104: Water balance - Company level - Total annual leakage | D104: Ml/d | E104: Price Review 2024 | F104: 22.82 | G104: 20.67 | H104: 21.3 | I104: 20.6 | J104: 19.9 | K104: 19.2 | L104: 18.5 | M104: 17.8
A105: SES | B105: CW12_049TOT_PR24 | C105: Supply-demand balance - Leakage improvements delivering benefits in 2025-2030; SDB totex - Total | D105: £m | E105: Price Review 2024 | G105: 0 | H105: 0
A106: SES | B106: CW17_049TOT_PR24 | C106: Supply-demand balance - Leakage improvements delivering benefits in 2025-2030; SDB totex - Total | D106: £m | E106: Price Review 2024 | G106: 0 | H106: 0 | I106: 0 | J106: 0 | K106: 0 | L106: 0 | M106: 0

Sheet F_Input_MeterPenetration
A1: =RIGHT(CELL("filename", $A$1), LEN(CELL("filename", $A$1)) - SEARCH("]", CELL("filename", $A$1))) -> 
C2: MeterPenetration | E2: Run on 05 Aug 2024 16:27
A4: Company Acronym | B4: Item Code | C4: Item Description | D4: Item Unit | E4: Item Table Suite | F4: Cyclical | G4: Cyclical | H4: Cyclical | I4: Cyclical | J4: Cyclical | K4: Cyclical | L4: Cyclical | M4: Cyclical
A5: Company Acronym | B5: Item Code | C5: Item Description | D5: Item Unit | E5: Item Table Suite | F5: Default for Cyclical base run | G5: Default for Cyclical base run | H5: Default for Cyclical base run | I5: Default for Cyclical base run | J5: Default for Cyclical base run | K5: Default for Cyclical base run | L5: Default for Cyclical base run | M5: Default for Cyclical base run
A6: Company Acronym | B6: Item Code | C6: Item Description | D6: Item Unit | E6: Item Table Suite | F6: Latest | G6: Latest | H6: Latest | I6: Latest | J6: Latest | K6: Latest | L6: Latest | M6: Latest
A7: Company Acronym | B7: Item Code | C7: Item Description | D7: Item Unit | E7: Item Table Suite | F7: 2017-18 | G7: 2018-19 | H7: 2019-20 | I7: 2020-21 | J7: 2021-22 | K7: 2022-23 | L7: 2023-24 | M7: 2024-25
A8: ANH | B8: BN00101_BM | C8: Metering activities - Residential properties - meter penetration - Basic meter | D8: % | E8: Cyclical Foundation | I8: 84.15 | J8: 60.4 | K8: 52.2 | L8: 45.2
A9: ANH | B9: BN00101_SM | C9: Metering activities - Residential properties - meter penetration - Smart meter | D9: % | E9: Cyclical Foundation | I9: 8.41
A10: ANH | B10: BN00101_AMR | C10: Metering activities - Residential properties - meter penetration - AMR meter | D10: % | E10: Cyclical Foundation | J10: 8.8 | K10: 8 | L10: 7.1
A11: ANH | B11: BN00101_AMI | C11: Metering activities - Residential properties - meter penetration - AMI meter | D11: % | E11: Cyclical Foundation | J11: 13.9 | K11: 23.6 | L11: 34.7
A12: WSH | B12: BN00101_BM | C12: Metering activities - Residential properties - meter penetration - Basic meter | D12: % | E12: Cyclical Foundation | I12: 45.4 | J12: 46.352 | K12: 47.446 | L12: 47.8
A13: WSH | B13: BN00101_SM | C13: Metering activities - Residential properties - meter penetration - Smart meter | D13: % | E13: Cyclical Foundation | I13: 0.6
A14: WSH | B14: BN00101_AMR | C14: Metering activities - Residential properties - meter penetration - AMR meter | D14: % | E14: Cyclical Foundation | J14: 0.124 | K14: 0.187 | L14: 1.3
A15: WSH | B15: BN00101_AMI | C15: Metering activities - Residential properties - meter penetration - AMI meter | D15: % | E15: Cyclical Foundation | J15: 0.681 | K15: 0.814 | L15: 1
A16: HDD | B16: BN00101_BM | C16: Metering activities - Residential properties - meter penetration - Basic meter | D16: % | E16: Cyclical Foundation | I16: 39.46 | J16: 36.8 | K16: 33.8 | L16: 31.6
A17: HDD | B17: BN00101_SM | C17: Metering activities - Residential properties - meter penetration - Smart meter | D17: % | E17: Cyclical Foundation | I17: 17.99
A18: HDD | B18: BN00101_AMR | C18: Metering activities - Residential properties - meter penetration - AMR meter | D18: % | E18: Cyclical Foundation | J18: 20.7 | K18: 24.3 | L18: 27.74
A19: HDD | B19: BN00101_AMI | C19: Metering activities - Residential properties - meter penetration - AMI meter | D19: % | E19: Cyclical Foundation | J19: 0 | K19: 0 | L19: 0.05
A20: NES | B20: BN00101_BM | C20: Metering activities - Residential properties - meter penetration - Basic meter | D20: % | E20: Cyclical Foundation | I20: 46.7 | J20: 46.4 | K20: 45.2 | L20: 43
A21: NES | B21: BN00101_SM | C21: Metering activities - Residential properties - meter penetration - Smart meter | D21: % | E21: Cyclical Foundation | I21: 4
A22: NES | B22: BN00101_AMR | C22: Metering activities - Residential properties - meter penetration - AMR meter | D22: % | E22: Cyclical Foundation | J22: 4.5 | K22: 4.5 | L22: 4.4
A23: NES | B23: BN00101_AMI | C23: Metering activities - Residential properties - meter penetration - AMI meter | D23: % | E23: Cyclical Foundation | J23: 1.6 | K23: 3.3 | L23: 6.9
A24: SVE | B24: BN00101_BM | C24: Metering activities - Residential properties - meter penetration - Basic meter | D24: % | E24: Cyclical Foundation | I24: 18.6 | J24: 16.3 | K24: 12.8 | L24: 9.74
A25: SVE | B25: BN00101_SM | C25: Metering activities - Residential properties - meter penetration - Smart meter | D25: % | E25: Cyclical Foundation | I25: 30.4
A26: SVE | B26: BN00101_AMR | C26: Metering activities - Residential properties - meter penetration - AMR meter | D26: % | E26: Cyclical Foundation | J26: 33.5 | K26: 37.1 | L26: 39.18
A27: SVE | B27: BN00101_AMI | C27: Metering activities - Residential properties - meter penetration - AMI meter | D27: % | E27: Cyclical Foundation | J27: 0.1 | K27: 1.5 | L27: 4.05
A28: SWB | B28: BN00101_BM | C28: Metering activities - Residential properties - meter penetration - Basic meter | D28: % | E28: Cyclical Foundation | I28: 65.14 | J28: 64.9 | K28: 0 | L28: 0.621
A29: SWB | B29: BN00101_SM | C29: Metering activities - Residential properties - meter penetration - Smart meter | D29: % | E29: Cyclical Foundation | I29: 16.47
A30: SWB | B30: BN00101_AMR | C30: Metering activities - Residential properties - meter penetration - AMR meter | D30: % | E30: Cyclical Foundation | J30: 17.5 | K30: 0 | L30: 0.187
A31: SWB | B31: BN00101_AMI | C31: Metering activities - Residential properties - meter penetration - AMI meter | D31: % | E31: Cyclical Foundation | J31: 0 | K31: 0 | L31: 0.029
A32: SRN | B32: BN00101_BM | C32: Metering activities - Residential properties - meter penetration - Basic meter | D32: % | E32: Cyclical Foundation | I32: 32.7 | J32: 32.41 | K32: 32.2 | L32: 31.6
A33: SRN | B33: BN00101_SM | C33: Metering activities - Residential properties - meter penetration - Smart meter | D33: % | E33: Cyclical Foundation | I33: 54.9
A34: SRN | B34: BN00101_AMR | C34: Metering activities - Residential properties - meter penetration - AMR meter | D34: % | E34: Cyclical Foundation | J34: 55.19 | K34: 55.4 | L34: 55.6
A35: SRN | B35: BN00101_AMI | C35: Metering activities - Residential properties - meter penetration - AMI meter | D35: % | E35: Cyclical Foundation | J35: 0 | K35: 0 | L35: 0
A36: TMS | B36: BN00101_BM | C36: Metering activities - Residential properties - meter penetration - Basic meter | D36: % | E36: Cyclical Foundation | I36: 36.6 | J36: 32.7 | K36: 32.5 | L36: 28
A37: TMS | B37: BN00101_SM | C37: Metering activities - Residential properties - meter penetration - Smart meter | D37: % | E37: Cyclical Foundation | I37: 10.9
A38: TMS | B38: BN00101_AMR | C38: Metering activities - Residential properties - meter penetration - AMR meter | D38: % | E38: Cyclical Foundation | J38: 5.6 | K38: 5.5 | L38: 9.6
A39: TMS | B39: BN00101_AMI | C39: Metering activities - Residential properties - meter penetration - AMI meter | D39: % | E39: Cyclical Foundation | J39: 13.3 | K39: 16.4 | L39: 20.5
A40: NWT | B40: BN00101_BM | C40: Metering activities - Residential properties - meter penetration - Basic meter | D40: % | E40: Cyclical Foundation | I40: 20.5 | J40: 20.1 | K40: 19.4 | L40: 18.9
A41: NWT | B41: BN00101_SM | C41: Metering activities - Residential properties - meter penetration - Smart meter | D41: % | E41: Cyclical Foundation | I41: 25.7
A42: NWT | B42: BN00101_AMR | C42: Metering activities - Residential properties - meter penetration - AMR meter | D42: % | E42: Cyclical Foundation | J42: 27.3 | K42: 28.9 | L42: 30.7
A43: NWT | B43: BN00101_AMI | C43: Metering activities - Residential properties - meter penetration - AMI meter | D43: % | E43: Cyclical Foundation | J43: 0 | K43: 0 | L43: 0
A44: WSX | B44: BN00101_BM | C44: Metering activities - Residential properties - meter penetration - Basic meter | D44: % | E44: Cyclical Foundation | I44: 67.2 | J44: 68.9 | K44: 70.7 | L44: 71.8
A45: WSX | B45: BN00101_SM | C45: Metering activities - Residential properties - meter penetration - Smart meter | D45: % | E45: Cyclical Foundation | I45: 0.7
A46: WSX | B46: BN00101_AMR | C46: Metering activities - Residential properties - meter penetration - AMR meter | D46: % | E46: Cyclical Foundation | J46: 0.7 | K46: 1.4 | L46: 1.6
A47: WSX | B47: BN00101_AMI | C47: Metering activities - Residential properties - meter penetration - AMI meter | D47: % | E47: Cyclical Foundation | J47: 0 | K47: 0 | L47: 0
A48: YKY | B48: BN00101_BM | C48: Metering activities - Residential properties - meter penetration - Basic meter | D48: % | E48: Cyclical Foundation | I48: 4.3 | J48: 0 | K48: 0 | L48: 0.077
A49: YKY | B49: BN00101_SM | C49: Metering activities - Residential properties - meter penetration - Smart meter | D49: % | E49: Cyclical Foundation | I49: 54
A50: YKY | B50: BN00101_AMR | C50: Metering activities - Residential properties - meter penetration - AMR meter | D50: % | E50: Cyclical Foundation | J50: 58.82357609 | K50: 0.6006007299 | L50: 0.512
A51: YKY | B51: BN00101_AMI | C51: Metering activities - Residential properties - meter penetration - AMI meter | D51: % | E51: Cyclical Foundation | J51: 0 | K51: 0 | L51: 0.022
A52: AFW | B52: BN00101_BM | C52: Metering activities - Residential properties - meter penetration - Basic meter | D52: % | E52: Cyclical Foundation | I52: 41.9 | J52: 41.2 | K52: 40.386 | L52: 39.78180044
A53: AFW | B53: BN00101_SM | C53: Metering activities - Residential properties - meter penetration - Smart meter | D53: % | E53: Cyclical Foundation | I53: 20.9
A54: AFW | B54: BN00101_AMR | C54: Metering activities - Residential properties - meter penetration - AMR meter | D54: % | E54: Cyclical Foundation | J54: 23.6 | K54: 27.277 | L54: 31.26672601
A55: AFW | B55: BN00101_AMI | C55: Metering activities - Residential properties - meter penetration - AMI meter | D55: % | E55: Cyclical Foundation | J55: 0 | K55: 0 | L55: 0
A56: BRL | B56: BN00101_BM | C56: Metering activities - Residential properties - meter penetration - Basic meter | D56: % | E56: Cyclical Foundation | I56: 54.6 | J56: 56.4 | K56: 58.5 | L56: 60.9
A57: BRL | B57: BN00101_SM | C57: Metering activities - Residential properties - meter penetration - Smart meter | D57: % | E57: Cyclical Foundation | I57: 5.7
A58: BRL | B58: BN00101_AMR | C58: Metering activities - Residential properties - meter penetration - AMR meter | D58: % | E58: Cyclical Foundation | J58: 6 | K58: 6.4 | L58: 6.5
A59: BRL | B59: BN00101_AMI | C59: Metering activities - Residential properties - meter penetration - AMI meter | D59: % | E59: Cyclical Foundation | J59: 0 | K59: 0 | L59: 0
A60: PRT | B60: BN00101_BM | C60: Metering activities - Residential properties - meter penetration - Basic meter | D60: % | E60: Cyclical Foundation | I60: 33.2 | J60: 0.3399162696 | K60: 35.3 | L60: 37.7
A61: PRT | B61: BN00101_SM | C61: Metering activities - Residential properties - meter penetration - Smart meter | D61: % | E61: Cyclical Foundation | I61: 0
A62: PRT | B62: BN00101_AMR | C62: Metering activities - Residential properties - meter penetration - AMR meter | D62: % | E62: Cyclical Foundation | J62: 0 | K62: 0 | L62: 0
A63: PRT | B63: BN00101_AMI | C63: Metering activities - Residential properties - meter penetration - AMI meter | D63: % | E63: Cyclical Foundation | J63: 0 | K63: 0 | L63: 0
A64: SEW | B64: BN00101_BM | C64: Metering activities - Residential properties - meter penetration - Basic meter | D64: % | E64: Cyclical Foundation | I64: 0.6956545756 | J64: 72.74357229 | K64: 76.5 | L64: 79.5
A65: SEW | B65: BN00101_SM | C65: Metering activities - Residential properties - meter penetration - Smart meter | D65: % | E65: Cyclical Foundation | I65: 0.2043601921
A66: SEW | B66: BN00101_AMR | C66: Metering activities - Residential properties - meter penetration - AMR meter | D66: % | E66: Cyclical Foundation | J66: 17.40511231 | K66: 13.8 | L66: 10.9
A67: SEW | B67: BN00101_AMI | C67: Metering activities - Residential properties - meter penetration - AMI meter | D67: % | E67: Cyclical Foundation | J67: 0 | K67: 0 | L67: 0
A68: SSC | B68: BN00101_BM | C68: Metering activities - Residential properties - meter penetration - Basic meter | D68: % | E68: Cyclical Foundation | I68: 16.2 | J68: 16.6 | K68: 31.3 | L68: 15.4
A69: SSC | B69: BN00101_SM | C69: Metering activities - Residential properties - meter penetration - Smart meter | D69: % | E69: Cyclical Foundation | I69: 32.2
A70: SSC | B70: BN00101_AMR | C70: Metering activities - Residential properties - meter penetration - AMR meter | D70: % | E70: Cyclical Foundation | J70: 32.8 | K70: 60.6 | L70: 29.6
A71: SSC | B71: BN00101_AMI | C71: Metering activities - Residential properties - meter penetration - AMI meter | D71: % | E71: Cyclical Foundation | J71: 0 | K71: 8 | L71: 6.6
A72: SES | B72: BN00101_BM | C72: Metering activities - Residential properties - meter penetration - Basic meter | D72: % | E72: Cyclical Foundation | I72: 61.8 | J72: 54.1 | K72: 0 | L72: 62.5
A73: SES | B73: BN00101_SM | C73: Metering activities - Residential properties - meter penetration - Smart meter | D73: % | E73: Cyclical Foundation | I73: 0
A74: SES | B74: BN00101_AMR | C74: Metering activities - Residential properties - meter penetration - AMR meter | D74: % | E74: Cyclical Foundation | J74: 13.5 | K74: 0 | L74: 13.4
A75: SES | B75: BN00101_AMI | C75: Metering activities - Residential properties - meter penetration - AMI meter | D75: % | E75: Cyclical Foundation | J75: 0 | K75: 0 | L75: 0.1

Sheet F_Input_Leakage&PMACoverage
A1: =RIGHT(CELL("filename", $A$1), LEN(CELL("filename", $A$1)) - SEARCH("]", CELL("filename", $A$1))) -> 
C2: leakage company scoring | E2: Run on 25 Nov 2024 22:30
A4: Company Acronym | B4: Item Code | C4: Item Description | D4: Item Unit | E4: Item Table Suite | F4: 2023-24
A5: ANH | B5: BN1000A_PR24 | C5: Water balance - Company level - Distribution input | D5: Ml/d | E5: Price Review 2024 | F5: 1151.755442
A6: ANH | B6: B0407HP_TOT_PR24 | C6: Household population data - Household population - Total - Water | D6: 000s | E6: Price Review 2024 | F6: 5153.602
A7: ANH | B7: BN1100_PR24 | C7: Treated water distribution - mains analysis - Total length of potable mains as at 31 March | D7: km | E7: Price Review 2024 | F7: 39397
A8: ANH | B8: BN2345A_PR24 | C8: Water balance - Company level - Total annual leakage | D8: Ml/d | E8: Price Review 2024 | F8: 182.0717436
A9: ANH | B9: BN16000_PR24 | C9: Prevent activities and attributes - company level - Number of properties covered by PMAs with fixed outlet pressure control - Total - 8 | D9: 000s | E9: Price Review 2024 | F9: 470.78
A10: ANH | B10: BN16010_PR24 | C10: Prevent activities and attributes - company level - Number of properties covered by PMAs with active pressure control - Total - 8 | D10: 000s | E10: Price Review 2024 | F10: 472.935
A11: ANH | B11: BN16020_PR24 | C11: Prevent activities and attributes - company level - Number of new PMAs - Total - 8 | D11: 000s | E11: Price Review 2024 | F11: 0.021
A12: ANH | B12: BN16030_PR24 | C12: Prevent activities and attributes - company level - Number of properties covered by new PMAs - Total - 8 | D12: 000s | E12: Price Review 2024 | F12: 40.66
A13: WSH | B13: BN1000A_PR24 | C13: Water balance - Company level - Distribution input | D13: Ml/d | E13: Price Review 2024 | F13: 880.47
A14: WSH | B14: B0407HP_TOT_PR24 | C14: Household population data - Household population - Total - Water | D14: 000s | E14: Price Review 2024 | F14: 2980.816324
A15: WSH | B15: BN1100_PR24 | C15: Treated water distribution - mains analysis - Total length of potable mains as at 31 March | D15: km | E15: Price Review 2024 | F15: 27910.2
A16: WSH | B16: BN2345A_PR24 | C16: Water balance - Company level - Total annual leakage | D16: Ml/d | E16: Price Review 2024 | F16: 261.61
A17: WSH | B17: BN16000_PR24 | C17: Prevent activities and attributes - company level - Number of properties covered by PMAs with fixed outlet pressure control - Total - 8 | D17: 000s | E17: Price Review 2024 | F17: 688.18
A18: WSH | B18: BN16010_PR24 | C18: Prevent activities and attributes - company level - Number of properties covered by PMAs with active pressure control - Total - 8 | D18: 000s | E18: Price Review 2024 | F18: 477.613
A19: WSH | B19: BN16020_PR24 | C19: Prevent activities and attributes - company level - Number of new PMAs - Total - 8 | D19: 000s | E19: Price Review 2024 | F19: 0
A20: WSH | B20: BN16030_PR24 | C20: Prevent activities and attributes - company level - Number of properties covered by new PMAs - Total - 8 | D20: 000s | E20: Price Review 2024 | F20: 0
A21: HDD | B21: BN1000A_PR24 | C21: Water balance - Company level - Distribution input | D21: Ml/d | E21: Price Review 2024 | F21: 58.99
A22: HDD | B22: B0407HP_TOT_PR24 | C22: Household population data - Household population - Total - Water | D22: 000s | E22: Price Review 2024 | F22: 216.13
A23: HDD | B23: BN1100_PR24 | C23: Treated water distribution - mains analysis - Total length of potable mains as at 31 March | D23: km | E23: Price Review 2024 | F23: 2633.1
A24: HDD | B24: BN2345A_PR24 | C24: Water balance - Company level - Total annual leakage | D24: Ml/d | E24: Price Review 2024 | F24: 15.66
A25: HDD | B25: BN16000_PR24 | C25: Prevent activities and attributes - company level - Number of properties covered by PMAs with fixed outlet pressure control - Total - 8 | D25: 000s | E25: Price Review 2024 | F25: 28.466
A26: HDD | B26: BN16010_PR24 | C26: Prevent activities and attributes - company level - Number of properties covered by PMAs with active pressure control - Total - 8 | D26: 000s | E26: Price Review 2024 | F26: 0.881
A27: HDD | B27: BN16020_PR24 | C27: Prevent activities and attributes - company level - Number of new PMAs - Total - 8 | D27: 000s | E27: Price Review 2024 | F27: 0.004
A28: HDD | B28: BN16030_PR24 | C28: Prevent activities and attributes - company level - Number of properties covered by new PMAs - Total - 8 | D28: 000s | E28: Price Review 2024 | F28: 0.881
A29: NES | B29: BN1000A_PR24 | C29: Water balance - Company level - Distribution input | D29: Ml/d | E29: Price Review 2024 | F29: 1146.85
A30: NES | B30: B0407HP_TOT_PR24 | C30: Household population data - Household population - Total - Water | D30: 000s | E30: Price Review 2024 | F30: 4775.474
A31: NES | B31: BN1100_PR24 | C31: Treated water distribution - mains analysis - Total length of potable mains as at 31 March | D31: km | E31: Price Review 2024 | F31: 26536.8
A32: NES | B32: BN2345A_PR24 | C32: Water balance - Company level - Total annual leakage | D32: Ml/d | E32: Price Review 2024 | F32: 170.79
A33: NES | B33: BN16000_PR24 | C33: Prevent activities and attributes - company level - Number of properties covered by PMAs with fixed outlet pressure control - Total - 8 | D33: 000s | E33: Price Review 2024 | F33: 433.345
A34: NES | B34: BN16010_PR24 | C34: Prevent activities and attributes - company level - Number of properties covered by PMAs with active pressure control - Total - 8 | D34: 000s | E34: Price Review 2024 | F34: 127.295
A35: NES | B35: BN16020_PR24 | C35: Prevent activities and attributes - company level - Number of new PMAs - Total - 8 | D35: 000s | E35: Price Review 2024 | F35: 0
A36: NES | B36: BN16030_PR24 | C36: Prevent activities and attributes - company level - Number of properties covered by new PMAs - Total - 8 | D36: 000s | E36: Price Review 2024 | F36: 0
A37: SWB | B37: BN1000A_PR24 | C37: Water balance - Company level - Distribution input | D37: Ml/d | E37: Price Review 2024 | F37: 637.212
A38: SWB | B38: B0407HP_TOT_PR24 | C38: Household population data - Household population - Total - Water | D38: 000s | E38: Price Review 2024 | F38: 2321.561
A39: SWB | B39: BN1100_PR24 | C39: Treated water distribution - mains analysis - Total length of potable mains as at 31 March | D39: km | E39: Price Review 2024 | F39: 18583.4
A40: SWB | B40: BN2345A_PR24 | C40: Water balance - Company level - Total annual leakage | D40: Ml/d | E40: Price Review 2024 | F40: 118.54
A41: SWB | B41: BN16000_PR24 | C41: Prevent activities and attributes - company level - Number of properties covered by PMAs with fixed outlet pressure control - Total - 8 | D41: 000s | E41: Price Review 2024 | F41: 223.036
A42: SWB | B42: BN16010_PR24 | C42: Prevent activities and attributes - company level - Number of properties covered by PMAs with active pressure control - Total - 8 | D42: 000s | E42: Price Review 2024 | F42: 222.201
A43: SWB | B43: BN16020_PR24 | C43: Prevent activities and attributes - company level - Number of new PMAs - Total - 8 | D43: 000s | E43: Price Review 2024 | F43: 0
A44: SWB | B44: BN16030_PR24 | C44: Prevent activities and attributes - company level - Number of properties covered by new PMAs - Total - 8 | D44: 000s | E44: Price Review 2024 | F44: 0
A45: SRN | B45: BN1000A_PR24 | C45: Water balance - Company level - Distribution input | D45: Ml/d | E45: Price Review 2024 | F45: 535.98
A46: SRN | B46: B0407HP_TOT_PR24 | C46: Household population data - Household population - Total - Water | D46: 000s | E46: Price Review 2024 | F46: 2676.56518
A47: SRN | B47: BN1100_PR24 | C47: Treated water distribution - mains analysis - Total length of potable mains as at 31 March | D47: km | E47: Price Review 2024 | F47: 13972.6
A48: SRN | B48: BN2345A_PR24 | C48: Water balance - Company level - Total annual leakage | D48: Ml/d | E48: Price Review 2024 | F48: 77.79
A49: SRN | B49: BN16000_PR24 | C49: Prevent activities and attributes - company level - Number of properties covered by PMAs with fixed outlet pressure control - Total - 8 | D49: 000s | E49: Price Review 2024 | F49: 178.004
A50: SRN | B50: BN16010_PR24 | C50: Prevent activities and attributes - company level - Number of properties covered by PMAs with active pressure control - Total - 8 | D50: 000s | E50: Price Review 2024 | F50: 402.036
A51: SRN | B51: BN16020_PR24 | C51: Prevent activities and attributes - company level - Number of new PMAs - Total - 8 | D51: 000s | E51: Price Review 2024 | F51: 0.06
A52: SRN | B52: BN16030_PR24 | C52: Prevent activities and attributes - company level - Number of properties covered by new PMAs - Total - 8 | D52: 000s | E52: Price Review 2024 | F52: 61.148
A53: TMS | B53: BN1000A_PR24 | C53: Water balance - Company level - Distribution input | D53: Ml/d | E53: Price Review 2024 | F53: 2524.25
A54: TMS | B54: B0407HP_TOT_PR24 | C54: Household population data - Household population - Total - Water | D54: 000s | E54: Price Review 2024 | F54: 10442.459
A55: TMS | B55: BN1100_PR24 | C55: Treated water distribution - mains analysis - Total length of potable mains as at 31 March | D55: km | E55: Price Review 2024 | F55: 32010.1
A56: TMS | B56: BN2345A_PR24 | C56: Water balance - Company level - Total annual leakage | D56: Ml/d | E56: Price Review 2024 | F56: 570.35
A57: TMS | B57: BN16000_PR24 | C57: Prevent activities and attributes - company level - Number of properties covered by PMAs with fixed outlet pressure control - Total - 8 | D57: 000s | E57: Price Review 2024 | F57: 236.786
A58: TMS | B58: BN16010_PR24 | C58: Prevent activities and attributes - company level - Number of properties covered by PMAs with active pressure control - Total - 8 | D58: 000s | E58: Price Review 2024 | F58: 1781.827
A59: TMS | B59: BN16020_PR24 | C59: Prevent activities and attributes - company level - Number of new PMAs - Total - 8 | D59: 000s | E59: Price Review 2024 | F59: 0.054
A60: TMS | B60: BN16030_PR24 | C60: Prevent activities and attributes - company level - Number of properties covered by new PMAs - Total - 8 | D60: 000s | E60: Price Review 2024 | F60: 112.39
A61: NWT | B61: BN1000A_PR24 | C61: Water balance - Company level - Distribution input | D61: Ml/d | E61: Price Review 2024 | F61: 1833.802785
A62: NWT | B62: B0407HP_TOT_PR24 | C62: Household population data - Household population - Total - Water | D62: 000s | E62: Price Review 2024 | F62: 7181.629635
A63: NWT | B63: BN1100_PR24 | C63: Treated water distribution - mains analysis - Total length of potable mains as at 31 March | D63: km | E63: Price Review 2024 | F63: 43032.3
A64: NWT | B64: BN2345A_PR24 | C64: Water balance - Company level - Total annual leakage | D64: Ml/d | E64: Price Review 2024 | F64: 408.6393637
A65: NWT | B65: BN16000_PR24 | C65: Prevent activities and attributes - company level - Number of properties covered by PMAs with fixed outlet pressure control - Total - 8 | D65: 000s | E65: Price Review 2024 | F65: 1126.086
A66: NWT | B66: BN16010_PR24 | C66: Prevent activities and attributes - company level - Number of properties covered by PMAs with active pressure control - Total - 8 | D66: 000s | E66: Price Review 2024 | F66: 1436.063
A67: NWT | B67: BN16020_PR24 | C67: Prevent activities and attributes - company level - Number of new PMAs - Total - 8 | D67: 000s | E67: Price Review 2024 | F67: 0.02
A68: NWT | B68: BN16030_PR24 | C68: Prevent activities and attributes - company level - Number of properties covered by new PMAs - Total - 8 | D68: 000s | E68: Price Review 2024 | F68: 5.709
A69: WSX | B69: BN1000A_PR24 | C69: Water balance - Company level - Distribution input | D69: Ml/d | E69: Price Review 2024 | F69: 333.87
A70: WSX | B70: B0407HP_TOT_PR24 | C70: Household population data - Household population - Total - Water | D70: 000s | E70: Price Review 2024 | F70: 1334.256572
A71: WSX | B71: BN1100_PR24 | C71: Treated water distribution - mains analysis - Total length of potable mains as at 31 March | D71: km | E71: Price Review 2024 | F71: 12148.9
A72: WSX | B72: BN2345A_PR24 | C72: Water balance - Company level - Total annual leakage | D72: Ml/d | E72: Price Review 2024 | F72: 69.7673523
A73: WSX | B73: BN16000_PR24 | C73: Prevent activities and attributes - company level - Number of properties covered by PMAs with fixed outlet pressure control - Total - 8 | D73: 000s | E73: Price Review 2024 | F73: 259.298
A74: WSX | B74: BN16010_PR24 | C74: Prevent activities and attributes - company level - Number of properties covered by PMAs with active pressure control - Total - 8 | D74: 000s | E74: Price Review 2024 | F74: 226.467
A75: WSX | B75: BN16020_PR24 | C75: Prevent activities and attributes - company level - Number of new PMAs - Total - 8 | D75: 000s | E75: Price Review 2024 | F75: 0.01
A76: WSX | B76: BN16030_PR24 | C76: Prevent activities and attributes - company level - Number of properties covered by new PMAs - Total - 8 | D76: 000s | E76: Price Review 2024 | F76: 2.8
A77: YKY | B77: BN1000A_PR24 | C77: Water balance - Company level - Distribution input | D77: Ml/d | E77: Price Review 2024 | F77: 1259.85
A78: YKY | B78: B0407HP_TOT_PR24 | C78: Household population data - Household population - Total - Water | D78: 000s | E78: Price Review 2024 | F78: 5463.046
A79: YKY | B79: BN1100_PR24 | C79: Treated water distribution - mains analysis - Total length of potable mains as at 31 March | D79: km | E79: Price Review 2024 | F79: 32375.6
A80: YKY | B80: BN2345A_PR24 | C80: Water balance - Company level - Total annual leakage | D80: Ml/d | E80: Price Review 2024 | F80: 260.03
A81: YKY | B81: BN16000_PR24 | C81: Prevent activities and attributes - company level - Number of properties covered by PMAs with fixed outlet pressure control - Total - 8 | D81: 000s | E81: Price Review 2024 | F81: 217.434
A82: YKY | B82: BN16010_PR24 | C82: Prevent activities and attributes - company level - Number of properties covered by PMAs with active pressure control - Total - 8 | D82: 000s | E82: Price Review 2024 | F82: 969.738
A83: YKY | B83: BN16020_PR24 | C83: Prevent activities and attributes - company level - Number of new PMAs - Total - 8 | D83: 000s | E83: Price Review 2024 | F83: 0.02
A84: YKY | B84: BN16030_PR24 | C84: Prevent activities and attributes - company level - Number of properties covered by new PMAs - Total - 8 | D84: 000s | E84: Price Review 2024 | F84: 10
A85: AFW | B85: BN1000A_PR24 | C85: Water balance - Company level - Distribution input | D85: Ml/d | E85: Price Review 2024 | F85: 937.3743659
A86: AFW | B86: B0407HP_TOT_PR24 | C86: Household population data - Household population - Total - Water | D86: 000s | E86: Price Review 2024 | F86: 3907.32
A87: AFW | B87: BN1100_PR24 | C87: Treated water distribution - mains analysis - Total length of potable mains as at 31 March | D87: km | E87: Price Review 2024 | F87: 16989.044
A88: AFW | B88: BN2345A_PR24 | C88: Water balance - Company level - Total annual leakage | D88: Ml/d | E88: Price Review 2024 | F88: 153.5046653
A89: AFW | B89: BN16000_PR24 | C89: Prevent activities and attributes - company level - Number of properties covered by PMAs with fixed outlet pressure control - Total - 8 | D89: 000s | E89: Price Review 2024 | F89: 563.715
A90: AFW | B90: BN16010_PR24 | C90: Prevent activities and attributes - company level - Number of properties covered by PMAs with active pressure control - Total - 8 | D90: 000s | E90: Price Review 2024 | F90: 376.497
A91: AFW | B91: BN16020_PR24 | C91: Prevent activities and attributes - company level - Number of new PMAs - Total - 8 | D91: 000s | E91: Price Review 2024 | F91: 0.029
A92: AFW | B92: BN16030_PR24 | C92: Prevent activities and attributes - company level - Number of properties covered by new PMAs - Total - 8 | D92: 000s | E92: Price Review 2024 | F92: 32.162
A93: BRL | B93: BN1000A_PR24 | C93: Water balance - Company level - Distribution input | D93: Ml/d | E93: Price Review 2024 | F93: 274.263
A94: BRL | B94: B0407HP_TOT_PR24 | C94: Household population data - Household population - Total - Water | D94: 000s | E94: Price Review 2024 | F94: 1214.809
A95: BRL | B95: BN1100_PR24 | C95: Treated water distribution - mains analysis - Total length of potable mains as at 31 March | D95: km | E95: Price Review 2024 | F95: 6973.2
A96: BRL | B96: BN2345A_PR24 | C96: Water balance - Company level - Total annual leakage | D96: Ml/d | E96: Price Review 2024 | F96: 38.27
A97: BRL | B97: BN16000_PR24 | C97: Prevent activities and attributes - company level - Number of properties covered by PMAs with fixed outlet pressure control - Total - 8 | D97: 000s | E97: Price Review 2024 | F97: 250.543
A98: BRL | B98: BN16010_PR24 | C98: Prevent activities and attributes - company level - Number of properties covered by PMAs with active pressure control - Total - 8 | D98: 000s | E98: Price Review 2024 | F98: 133.622
A99: BRL | B99: BN16020_PR24 | C99: Prevent activities and attributes - company level - Number of new PMAs - Total - 8 | D99: 000s | E99: Price Review 2024 | F99: 0
A100: BRL | B100: BN16030_PR24 | C100: Prevent activities and attributes - company level - Number of properties covered by new PMAs - Total - 8 | D100: 000s | E100: Price Review 2024 | F100: 0
A101: PRT | B101: BN1000A_PR24 | C101: Water balance - Company level - Distribution input | D101: Ml/d | E101: Price Review 2024 | F101: 177.9
A102: PRT | B102: B0407HP_TOT_PR24 | C102: Household population data - Household population - Total - Water | D102: 000s | E102: Price Review 2024 | F102: 739.63
A103: PRT | B103: BN1100_PR24 | C103: Treated water distribution - mains analysis - Total length of potable mains as at 31 March | D103: km | E103: Price Review 2024 | F103: 3409
A104: PRT | B104: BN2345A_PR24 | C104: Water balance - Company level - Total annual leakage | D104: Ml/d | E104: Price Review 2024 | F104: 28.19
A105: PRT | B105: BN16000_PR24 | C105: Prevent activities and attributes - company level - Number of properties covered by PMAs with fixed outlet pressure control - Total - 8 | D105: 000s | E105: Price Review 2024 | F105: 21.76
A106: PRT | B106: BN16010_PR24 | C106: Prevent activities and attributes - company level - Number of properties covered by PMAs with active pressure control - Total - 8 | D106: 000s | E106: Price Review 2024 | F106: 198.689
A107: PRT | B107: BN16020_PR24 | C107: Prevent activities and attributes - company level - Number of new PMAs - Total - 8 | D107: 000s | E107: Price Review 2024 | F107: 0.001
A108: PRT | B108: BN16030_PR24 | C108: Prevent activities and attributes - company level - Number of properties covered by new PMAs - Total - 8 | D108: 000s | E108: Price Review 2024 | F108: 0.26
A109: SEW | B109: BN1000A_PR24 | C109: Water balance - Company level - Distribution input | D109: Ml/d | E109: Price Review 2024 | F109: 544.2940637
A110: SEW | B110: B0407HP_TOT_PR24 | C110: Household population data - Household population - Total - Water | D110: 000s | E110: Price Review 2024 | F110: 2265.153
A111: SEW | B111: BN1100_PR24 | C111: Treated water distribution - mains analysis - Total length of potable mains as at 31 March | D111: km | E111: Price Review 2024 | F111: 15098.51888
A112: SEW | B112: BN2345A_PR24 | C112: Water balance - Company level - Total annual leakage | D112: Ml/d | E112: Price Review 2024 | F112: 101.4003884
A113: SEW | B113: BN16000_PR24 | C113: Prevent activities and attributes - company level - Number of properties covered by PMAs with fixed outlet pressure control - Total - 8 | D113: 000s | E113: Price Review 2024 | F113: 535.882
A114: SEW | B114: BN16010_PR24 | C114: Prevent activities and attributes - company level - Number of properties covered by PMAs with active pressure control - Total - 8 | D114: 000s | E114: Price Review 2024 | F114: 52.948
A115: SEW | B115: BN16020_PR24 | C115: Prevent activities and attributes - company level - Number of new PMAs - Total - 8 | D115: 000s | E115: Price Review 2024 | F115: 0
A116: SEW | B116: BN16030_PR24 | C116: Prevent activities and attributes - company level - Number of properties covered by new PMAs - Total - 8 | D116: 000s | E116: Price Review 2024 | F116: 0
A117: SES | B117: BN1000A_PR24 | C117: Water balance - Company level - Distribution input | D117: Ml/d | E117: Price Review 2024 | F117: 162.06
A118: SES | B118: B0407HP_TOT_PR24 | C118: Household population data - Household population - Total - Water | D118: 000s | E118: Price Review 2024 | F118: 743.503
A119: SES | B119: BN1100_PR24 | C119: Treated water distribution - mains analysis - Total length of potable mains as at 31 March | D119: km | E119: Price Review 2024 | F119: 3526.8
A120: SES | B120: BN2345A_PR24 | C120: Water balance - Company level - Total annual leakage | D120: Ml/d | E120: Price Review 2024 | F120: 20.67
A121: SES | B121: BN16000_PR24 | C121: Prevent activities and attributes - company level - Number of properties covered by PMAs with fixed outlet pressure control - Total - 8 | D121: 000s | E121: Price Review 2024 | F121: 214.8686179
A122: SES | B122: BN16010_PR24 | C122: Prevent activities and attributes - company level - Number of properties covered by PMAs with active pressure control - Total - 8 | D122: 000s | E122: Price Review 2024 | F122: 22.46246533
A123: SES | B123: BN16020_PR24 | C123: Prevent activities and attributes - company level - Number of new PMAs - Total - 8 | D123: 000s | E123: Price Review 2024 | F123: 0.01
A124: SES | B124: BN16030_PR24 | C124: Prevent activities and attributes - company level - Number of properties covered by new PMAs - Total - 8 | D124: 000s | E124: Price Review 2024 | F124: 5.741666667
A125: SVE | B125: BN1000A_PR24 | C125: Water balance - Company level - Distribution input | D125: Ml/d | E125: Price Review 2024 | F125: 1916.55
A126: SVE | B126: B0407HP_TOT_PR24 | C126: Household population data - Household population - Total - Water | D126: 000s | E126: Price Review 2024 | F126: 8827.577
A127: SVE | B127: BN1100_PR24 | C127: Treated water distribution - mains analysis - Total length of potable mains as at 31 March | D127: km | E127: Price Review 2024 | F127: 48042.06
A128: SVE | B128: BN2345A_PR24 | C128: Water balance - Company level - Total annual leakage | D128: Ml/d | E128: Price Review 2024 | F128: 379.48
A129: SVE | B129: BN16000_PR24 | C129: Prevent activities and attributes - company level - Number of properties covered by PMAs with fixed outlet pressure control - Total - 8 | D129: 000s | E129: Price Review 2024 | F129: 2261.73
A130: SVE | B130: BN16010_PR24 | C130: Prevent activities and attributes - company level - Number of properties covered by PMAs with active pressure control - Total - 8 | D130: 000s | E130: Price Review 2024 | F130: 333.98
A131: SVE | B131: BN16020_PR24 | C131: Prevent activities and attributes - company level - Number of new PMAs - Total - 8 | D131: 000s | E131: Price Review 2024 | F131: 0.063
A132: SVE | B132: BN16030_PR24 | C132: Prevent activities and attributes - company level - Number of properties covered by new PMAs - Total - 8 | D132: 000s | E132: Price Review 2024 | F132: 27.29
A133: SSC | B133: BN1000A_PR24 | C133: Water balance - Company level - Distribution input | D133: Ml/d | E133: Price Review 2024 | F133: 405.26
A134: SSC | B134: B0407HP_TOT_PR24 | C134: Household population data - Household population - Total - Water | D134: 000s | E134: Price Review 2024 | F134: 1738.954
A135: SSC | B135: BN1100_PR24 | C135: Treated water distribution - mains analysis - Total length of potable mains as at 31 March | D135: km | E135: Price Review 2024 | F135: 8745.345
A136: SSC | B136: BN2345A_PR24 | C136: Water balance - Company level - Total annual leakage | D136: Ml/d | E136: Price Review 2024 | F136: 76.36
A137: SSC | B137: BN16000_PR24 | C137: Prevent activities and attributes - company level - Number of properties covered by PMAs with fixed outlet pressure control - Total - 8 | D137: 000s | E137: Price Review 2024 | F137: 0.1784
A138: SSC | B138: BN16010_PR24 | C138: Prevent activities and attributes - company level - Number of properties covered by PMAs with active pressure control - Total - 8 | D138: 000s | E138: Price Review 2024 | F138: 0.083821
A139: SSC | B139: BN16020_PR24 | C139: Prevent activities and attributes - company level - Number of new PMAs - Total - 8 | D139: 000s | E139: Price Review 2024 | F139: 2
A140: SSC | B140: BN16030_PR24 | C140: Prevent activities and attributes - company level - Number of properties covered by new PMAs - Total - 8 | D140: 000s | E140: Price Review 2024 | F140: 0.003821

Sheet Reallocations
A1: =RIGHT(CELL("filename", $A$1), LEN(CELL("filename", $A$1)) - SEARCH("]", CELL("filename", $A$1))) -> 
A2: Source: | B2: Enhancement cost reallocator model
A3: Purpose | B3: This lists all reallocations relating to leakage. This data is looked up within the Allowances sheet to calculate a post reallocation totex value for line CW3.49
C6: REALLOCATE FROM | L6: REALLOCATION
A7: Company | B7: Cost category | C7: BON code | D7: 2025-26 | E7: 2026-27 | F7: 2027-28 | G7: 2028-29 | H7: 2029-30 | I7: TOTAL | K7: Reallocate to | L7: BON CODE | M7: 2025-26 | N7: 2026-27 | O7: 2027-28 | P7: 2028-29 | Q7: 2029-30 | R7: Total | S7: Explanation | T7: Direction | U7: Net
A8: SRN | B8: Other enhancement (Freeform lines - by exception) - Additional line 4; enhancement water capex - Total | C8: SRNCW3_136TOT_PR24 | D8: 3.941 | E8: 16.021 | F8: 25.32 | G8: 36.677 | H8: 41.229 | I8: 123.188 | K8: Supply-demand balance - Leakage improvements delivering benefits in 2025-2030; SDB totex - Total | L8: SRNCW3_049TOT_PR24 | M8: 3.941 | N8: 16.021 | O8: 25.32 | P8: 36.677 | Q8: 41.229 | R8: 123.188 | S8: Leakage driven mains replacement | T8: =IF(K8="Supply-demand balance - Leakage improvements delivering benefits in 2025-2030; SDB totex - Total","INCOMING","OUTGOING") -> INCOMING | U8: =IF(T8="INCOMING",R8,-R8) -> 123.188
A9: WSH | B9: Supply-demand balance - Leakage improvements delivering benefits in 2025-2030; SDB totex - Total | C9: WSHCW3_049TOT_PR24 | D9: 1.005 | E9: 0.989 | F9: 0.992 | G9: 1 | H9: 1.015 | I9: 5.001 | K9: Metering - New meters introduced by companies for existing customers; metering totex - Total | L9: WSHCW3_065TOT_PR24 | M9: 0.815631518 | N9: 0.9046095017 | O9: 0.669806489 | P9: 0.6253174971 | Q9: 1.250634994 | R9: 4.266 | S9: Reallocation of CSPL from metering programmes from leakage enhancement to companies compulsory metering programmes | T9: =IF(K9="Supply-demand balance - Leakage improvements delivering benefits in 2025-2030; SDB totex - Total","INCOMING","OUTGOING") -> OUTGOING | U9: =IF(T9="INCOMING",R9,-R9) -> -4.266
A10: SEW | B10: Water resilience and security - Resilience; enhancement water totex - Total | C10: SEWCW3_120TOT_PR24 | D10: 16.25171072 | E10: 38.17596345 | F10: 46.52084265 | G10: 61.61853722 | H10: 57.51865902 | I10: 220.0857131 | K10: Supply-demand balance - Leakage improvements delivering benefits in 2025-2030; SDB totex - Total | L10: SEWCW3_049TOT_PR24 | M10: 2.26 | N10: 2.26 | O10: 2.26 | P10: 2.26 | Q10: 2.26 | R10: 11.3 | S10: Reallocation of pressure sensors and acoustic leakage sensors from resilience to leakage. Flat profile used and by year profile not available | T10: INCOMING | U10: 11.3
A11: SES | B11: Other enhancement (Freeform lines - by exception) - Additional line 4; enhancement water capex - Total | C11: SESCW3_136TOT_PR24 | D11: 0.5 | E11: 0.5 | F11: 0.5 | G11: 0.5 | H11: 0.5 | I11: 2.5 | K11: Supply-demand balance - Leakage improvements delivering benefits in 2025-2030; SDB totex - Total | L11: SESCW3_049TOT_PR24 | M11: 0.5 | N11: 0.5 | O11: 0.5 | P11: 0.5 | Q11: 0.5 | R11: 2.5 | S11: Leakage – uFMZ' (upstream flow monitoring zones) (totex request £2.5m) (CAPEX) | T11: INCOMING | U11: 2.5
A12: SES | B12: Other enhancement (Freeform lines - by exception) - Additional line 4; enhancement water opex - Total | C12: SESCW3_137TOT_PR24 | D12: 0 | E12: 0 | F12: 0 | G12: 0 | H12: 0 | I12: 0 | K12: Supply-demand balance - Leakage improvements delivering benefits in 2025-2030; SDB totex - Total | L12: SESCW3_049TOT_PR24 | M12: 0 | N12: 0 | O12: 0 | P12: 0 | Q12: 0 | R12: 0 | S12: Leakage – uFMZ' (upstream flow monitoring zones) (totex request £2.5m) (OPEX) | T12: INCOMING | U12: 0
A13: SES | B13: Supply-demand balance - Supply demand balance improvements delivering benefits starting from 2031; SDB totex - Total | C13: SESCW3_055TOT_PR24 | D13: 1.25453201 | E13: 1.25453201 | F13: 1.25453201 | G13: 1.25453201 | H13: 1.25453201 | I13: 6.27266005 | K13: Supply-demand balance - Leakage improvements delivering benefits in 2025-2030; SDB totex - Total | L13: SESCW3_049TOT_PR24 | M13: 1.25453201 | N13: 1.25453201 | O13: 1.25453201 | P13: 1.25453201 | Q13: 1.25453201 | R13: 6.27266005 | S13: Leakage - DMA Asset Health and asset condition assessment (DMAAH) | T13: INCOMING | U13: 6.27266005
A14: ANH | B14: Supply-demand balance - Leakage improvements delivering benefits in 2025-2030; SDB totex - Total | C14: ANHCW3_049TOT_PR24 | D14: 5.363 | E14: 6.057 | F14: 7.234 | G14: 8.334 | H14: 7.896 | I14: 34.884 | K14: Metering - New meters introduced by companies for existing customers; metering totex - Total | L14: ANHCW3_065TOT_PR24 | M14: 0.356 | N14: 0.356 | O14: 0.356 | P14: 0.356 | Q14: 0.356 | R14: 1.78 | S14: Reallocation of CSPL from metering programmes from leakage enhancement to companies compulsory metering programmes | T14: OUTGOING | U14: -1.78

Sheet MainsR Costs
A1: =RIGHT(CELL("filename", $A$1), LEN(CELL("filename", $A$1)) - SEARCH("]", CELL("filename", $A$1))) -> 
A3: Source | B3: Mains renewal; cost adjustment model
A4: Purpose | B4: This is the unit for mains renewal activity. It is calculated as part of the base mains renewal activity and used to calculate cost where companies have included mains renewal for the purpose of leakage reduction.
B6: Updated in line with base 09/10/24
A8: Company | B8: Unit costs assumptions (£/m)
A9: AFW | B9: 300
A10: ANH | B10: 300
A11: BRL | B11: 300
A12: HDD | B12: 300
A13: NES | B13: 300
A14: NWT | B14: 300
A15: PRT | B15: 300
A16: SES | B16: 300
A17: SEW | B17: 300
A18: SRN | B18: 300
A19: SSC | B19: 300
A20: SVE | B20: 300
A21: SWB | B21: 300
A22: WSH | B22: 300
A23: WSX | B23: 300
A24: YKY | B24: 300
A25: TMS - Thames Valley | B25: 300
A26: TMS - London | B26: 1000

Sheet Base_Other_MainsR
A1: =RIGHT(CELL("filename", $A$1), LEN(CELL("filename", $A$1)) - SEARCH("]", CELL("filename", $A$1))) -> 
A3: Source | B3: Mains renewal; cost adjustment model
A4: Purpose | B4: Calculation of base renewal rate
A8: Company | B8: PR24 Adjusted Ofwat View | C8: AH/CAC uplift | D8: Total base renewal rate | E8: Requested base kms | F8: Enhancement water quality | G8: Comments/references
A9: AFW | B9: 0.003 | C9: 0 | D9: =B9+C9 -> 0.003 | G9: ANH_DD_010_Mains renewal CAC: ANH forecast to deliver a total rate of 0.54%, requesting an uplift of 0.34% p.a.
A10: ANH | B10: 0.003 | C10: 0.0024 | D10: =B10+C10 -> 0.0054 | E10: 0.0034
A11: BRL | B11: 0.003 | C11: 0.0013 | D11: 0.0043 | F11: 0.000973668614
A12: HDD | B12: 0.003851070776 | C12: 0 | D12: 0.003851070776
A13: NES | B13: 0.003 | C13: 0.0013 | D13: 0.0043 | E13: 0.002 | G13: NES35: Reallocated to base and assessed under mains renewals sector wide adjustment. NES forecast to deliver an additional 0.2% on top of its view of what base buys to improve asset health.
A14: PRT | B14: 0.003 | C14: 0 | D14: 0.003
A15: SES | B15: 0.003 | C15: 0 | D15: 0.003
A16: SEW | B16: 0.003 | C16: 0.0013 | D16: 0.0043
A17: SRN | B17: 0.003432948377 | C17: 0.0009 | D17: 0.004332948377
A18: SSC | B18: 0.005607060533 | C18: 0 | D18: 0.005607060533
A19: SVE | B19: 0.003820492241 | C19: 0 | D19: 0.003820492241
A20: SWB | B20: 0.003 | C20: 0 | D20: 0.003
A21: TMS | B21: 0.003 | C21: 0.0004 | D21: 0.0034 | G21: Requesting to deliver 0.34% from base.
A22: NWT | B22: 0.003 | C22: 0 | D22: 0.003 | F22: 0.0002944371602
A23: WSH | B23: 0.003 | C23: 0.00058 | D23: 0.00358
A24: WSX | B24: 0.003 | C24: 0.0013 | D24: 0.0043
A25: YKY | B25: 0.003879329894 | C25: 0.0027 | D25: 0.006579329894 | E25: 0.00455 | G25: Forecast to deliver 0.66% through base, with a CAC requesting an uplift for 0.46% p.a.

Sheet Query data >>

Sheet Addition Leakage Enh and Cap
A1: =RIGHT(CELL("filename", $A$1), LEN(CELL("filename", $A$1)) - SEARCH("]", CELL("filename", $A$1))) -> 
A2: Source | B2: Company queries listed below
A3: Purpose | B3: Inputs for where companies have included leakage reduction within base and also the cap based on the improvement to fund
A5: Source 2024-25 and 2029-30 Annual Average Total Leakage: | B5: Performance commitment level (PCL) model - Leakage
A7: Company | B7: Total Leakage 2024-25 Annual average (Ml/d) - PCL Value | C7: Total Leakage 2029-30 Annual average (Ml/d) - PCL Value | D7: PCL Reduction | E7: CW5.35 Forecast leakage reduction (2024/25- 2029/30) | F7: Enhancement Leakage Reduction (Ml/d) - Query Responses | G7: Enhancement Leakage Reduction from secondary benefits (Ml/d) | H7: Company leakage reduction in base (Ml/d) | I7: Ofwat determined Base catch-up (Ml/d) | J7: Total leakage reduction forecast (Ml/d) | K7: Query Reference for Leakage Reductions
A8: ANH | B8: 173.3 | C8: 168.2 | D8: =B8-C8 -> 5.1 | E8: =INDEX('F_Inputs BP'!$H$7:$H$108, MATCH('Addition Leakage Enh and Cap'!$A8&"BN2345A_PR24", 'F_Inputs BP'!$A$7:$A$108&'F_Inputs BP'!$B$7:$B$108,0)) - INDEX('F_Inputs BP'!$M$7:$M$108, MATCH('Addition Leakage Enh and Cap'!$A8&"BN2345A_PR24", 'F_Inputs BP'!$A$7:$A$108&'F_Inputs BP'!$B$7:$B$108,0)) -> 12.39 | F8: 6.14 | G8: 6.39 | H8: 0.4 | J8: =SUM(F8:H8) -> 12.93 | K8: OFW-REP-ANH-086
A9: WSH | B9: 228.5 | C9: 172.7 | D9: =B9-C9 -> 55.8 | E9: =INDEX('F_Inputs BP'!$H$7:$H$108, MATCH('Addition Leakage Enh and Cap'!$A9&"BN2345A_PR24", 'F_Inputs BP'!$A$7:$A$108&'F_Inputs BP'!$B$7:$B$108,0)) - INDEX('F_Inputs BP'!$M$7:$M$108, MATCH('Addition Leakage Enh and Cap'!$A9&"BN2345A_PR24", 'F_Inputs BP'!$A$7:$A$108&'F_Inputs BP'!$B$7:$B$108,0)) -> 55.7765779 | F9: 21.38 | G9: 0 | H9: 34.39 | I9: =B9-191.9 -> 36.6 | J9: 55.77 | K9: OFW-REP-WSH-077
A10: HDD | B10: 13.2 | C10: 12.8 | D10: 0.4 | E10: =INDEX('F_Inputs BP'!$H$7:$H$108, MATCH('Addition Leakage Enh and Cap'!$A10&"BN2345A_PR24", 'F_Inputs BP'!$A$7:$A$108&'F_Inputs BP'!$B$7:$B$108,0)) - INDEX('F_Inputs BP'!$M$7:$M$108, MATCH('Addition Leakage Enh and Cap'!$A10&"BN2345A_PR24", 'F_Inputs BP'!$A$7:$A$108&'F_Inputs BP'!$B$7:$B$108,0)) -> 0.45 | F10: 0 | G10: 0.45 | H10: 0 | J10: 0.45 | K10: OFW-REP-HDD-046
A11: NES | B11: 168.4 | C11: 156.3 | D11: 12.1 | E11: =INDEX('F_Inputs BP'!$H$7:$H$108, MATCH('Addition Leakage Enh and Cap'!$A11&"BN2345A_PR24", 'F_Inputs BP'!$A$7:$A$108&'F_Inputs BP'!$B$7:$B$108,0)) - INDEX('F_Inputs BP'!$M$7:$M$108, MATCH('Addition Leakage Enh and Cap'!$A11&"BN2345A_PR24", 'F_Inputs BP'!$A$7:$A$108&'F_Inputs BP'!$B$7:$B$108,0)) -> 12.07 | F11: 7.17 | H11: 4.9 | J11: 12.07 | K11: OFW-REP-NES-082
A12: SVE | B12: 345.8 | C12: 289.7 | D12: 56.1 | E12: =INDEX('F_Inputs BP'!$H$7:$H$108, MATCH('Addition Leakage Enh and Cap'!$A12&"BN2345A_PR24", 'F_Inputs BP'!$A$7:$A$108&'F_Inputs BP'!$B$7:$B$108,0)) - INDEX('F_Inputs BP'!$M$7:$M$108, MATCH('Addition Leakage Enh and Cap'!$A12&"BN2345A_PR24", 'F_Inputs BP'!$A$7:$A$108&'F_Inputs BP'!$B$7:$B$108,0)) -> 56.08623666 | F12: 25.4 | H12: 30.7 | J12: 56.1 | K12: OFW-REP-SVE-112
A13: SRN | B13: 100.7 | C13: 66.3 | D13: 34.4 | E13: =INDEX('F_Inputs BP'!$H$7:$H$108, MATCH('Addition Leakage Enh and Cap'!$A13&"BN2345A_PR24", 'F_Inputs BP'!$A$7:$A$108&'F_Inputs BP'!$B$7:$B$108,0)) - INDEX('F_Inputs BP'!$M$7:$M$108, MATCH('Addition Leakage Enh and Cap'!$A13&"BN2345A_PR24", 'F_Inputs BP'!$A$7:$A$108&'F_Inputs BP'!$B$7:$B$108,0)) -> 10.33 | F13: 10.33 | H13: 0 | J13: 10.33 | K13: OFW-REP-SRN-103
A14: TMS | B14: 521.8 | C14: 407.6 | D14: 114.2 | E14: =INDEX('F_Inputs BP'!$H$7:$H$108, MATCH('Addition Leakage Enh and Cap'!$A14&"BN2345A_PR24", 'F_Inputs BP'!$A$7:$A$108&'F_Inputs BP'!$B$7:$B$108,0)) - INDEX('F_Inputs BP'!$M$7:$M$108, MATCH('Addition Leakage Enh and Cap'!$A14&"BN2345A_PR24", 'F_Inputs BP'!$A$7:$A$108&'F_Inputs BP'!$B$7:$B$108,0)) -> 119.33 | F14: 119.13 | H14: 0 | J14: 119.13 | K14: OFW-TMS-092
A15: NWT | B15: 364.8 | C15: 330.6 | D15: 34.2 | E15: =INDEX('F_Inputs BP'!$H$7:$H$108, MATCH('Addition Leakage Enh and Cap'!$A15&"BN2345A_PR24", 'F_Inputs BP'!$A$7:$A$108&'F_Inputs BP'!$B$7:$B$108,0)) - INDEX('F_Inputs BP'!$M$7:$M$108, MATCH('Addition Leakage Enh and Cap'!$A15&"BN2345A_PR24", 'F_Inputs BP'!$A$7:$A$108&'F_Inputs BP'!$B$7:$B$108,0)) -> 25.46063626 | F15: 48.22 | H15: 1.78 | J15: 50 | K15: OFW-REP-UUW-081
A16: WSX | B16: 64.3 | C16: 57.9 | D16: 6.4 | E16: =INDEX('F_Inputs BP'!$H$7:$H$108, MATCH('Addition Leakage Enh and Cap'!$A16&"BN2345A_PR24", 'F_Inputs BP'!$A$7:$A$108&'F_Inputs BP'!$B$7:$B$108,0)) - INDEX('F_Inputs BP'!$M$7:$M$108, MATCH('Addition Leakage Enh and Cap'!$A16&"BN2345A_PR24", 'F_Inputs BP'!$A$7:$A$108&'F_Inputs BP'!$B$7:$B$108,0)) -> 6.44 | F16: 6.44 | H16: 0 | J16: 6.44 | K16: OFW-REP-WSX-083
A17: YKY | B17: 260 | C17: 223.8 | D17: 36.2 | E17: =INDEX('F_Inputs BP'!$H$7:$H$108, MATCH('Addition Leakage Enh and Cap'!$A17&"BN2345A_PR24", 'F_Inputs BP'!$A$7:$A$108&'F_Inputs BP'!$B$7:$B$108,0)) - INDEX('F_Inputs BP'!$M$7:$M$108, MATCH('Addition Leakage Enh and Cap'!$A17&"BN2345A_PR24", 'F_Inputs BP'!$A$7:$A$108&'F_Inputs BP'!$B$7:$B$108,0)) -> 36.17 | F17: 14.22 | G17: 7.72 | H17: 14.23 | J17: 36.17 | K17: OFW-REP-YKY-092
A18: AFW | B18: 144.9 | C18: 126.1 | D18: 18.8 | E18: =INDEX('F_Inputs BP'!$H$7:$H$108, MATCH('Addition Leakage Enh and Cap'!$A18&"BN2345A_PR24", 'F_Inputs BP'!$A$7:$A$108&'F_Inputs BP'!$B$7:$B$108,0)) - INDEX('F_Inputs BP'!$M$7:$M$108, MATCH('Addition Leakage Enh and Cap'!$A18&"BN2345A_PR24", 'F_Inputs BP'!$A$7:$A$108&'F_Inputs BP'!$B$7:$B$108,0)) -> 18.84 | F18: 18.84 | H18: 0 | J18: 18.84 | K18: OFW-REP-AFW-051
A19: PRT | B19: 24 | C19: 20.3 | D19: 3.7 | E19: =INDEX('F_Inputs BP'!$H$7:$H$108, MATCH('Addition Leakage Enh and Cap'!$A19&"BN2345A_PR24", 'F_Inputs BP'!$A$7:$A$108&'F_Inputs BP'!$B$7:$B$108,0)) - INDEX('F_Inputs BP'!$M$7:$M$108, MATCH('Addition Leakage Enh and Cap'!$A19&"BN2345A_PR24", 'F_Inputs BP'!$A$7:$A$108&'F_Inputs BP'!$B$7:$B$108,0)) -> 3.75 | F19: 0 | H19: 3.75 | J19: 3.75 | K19: OFW-REP-PRT-026
A20: SEW | B20: 81 | C20: 70.5 | D20: 10.5 | E20: =INDEX('F_Inputs BP'!$H$7:$H$108, MATCH('Addition Leakage Enh and Cap'!$A20&"BN2345A_PR24", 'F_Inputs BP'!$A$7:$A$108&'F_Inputs BP'!$B$7:$B$108,0)) - INDEX('F_Inputs BP'!$M$7:$M$108, MATCH('Addition Leakage Enh and Cap'!$A20&"BN2345A_PR24", 'F_Inputs BP'!$A$7:$A$108&'F_Inputs BP'!$B$7:$B$108,0)) -> 10.5042 | F20: 10.5 | H20: 0 | J20: 10.5 | K20: OFW-REP-SEW-057
A21: SSC | B21: 73.9 | C21: 61.3 | D21: 12.6 | E21: =INDEX('F_Inputs BP'!$H$7:$H$108, MATCH('Addition Leakage Enh and Cap'!$A21&"BN2345A_PR24", 'F_Inputs BP'!$A$7:$A$108&'F_Inputs BP'!$B$7:$B$108,0)) - INDEX('F_Inputs BP'!$M$7:$M$108, MATCH('Addition Leakage Enh and Cap'!$A21&"BN2345A_PR24", 'F_Inputs BP'!$A$7:$A$108&'F_Inputs BP'!$B$7:$B$108,0)) -> 13.47 | F21: 4.1 | H21: 7.3 | J21: 11.4 | K21: OFW-REP-SSC-024
A22: SES | B22: 21.3 | C22: 17.8 | D22: 3.5 | E22: =INDEX('F_Inputs BP'!$H$7:$H$108, MATCH('Addition Leakage Enh and Cap'!$A22&"BN2345A_PR24", 'F_Inputs BP'!$A$7:$A$108&'F_Inputs BP'!$B$7:$B$108,0)) - INDEX('F_Inputs BP'!$M$7:$M$108, MATCH('Addition Leakage Enh and Cap'!$A22&"BN2345A_PR24", 'F_Inputs BP'!$A$7:$A$108&'F_Inputs BP'!$B$7:$B$108,0)) -> 3.5 | F22: 3 | H22: 0.5 | J22: 3.5 | K22: OFW-OBQ-SES-057
A23: SWB | B23: 99 | C23: 82.3 | D23: 16.7 | E23: =INDEX('F_Inputs BP'!$H$7:$H$108, MATCH('Addition Leakage Enh and Cap'!$A23&"BN2345A_PR24", 'F_Inputs BP'!$A$7:$A$108&'F_Inputs BP'!$B$7:$B$108,0)) - INDEX('F_Inputs BP'!$M$7:$M$108, MATCH('Addition Leakage Enh and Cap'!$A23&"BN2345A_PR24", 'F_Inputs BP'!$A$7:$A$108&'F_Inputs BP'!$B$7:$B$108,0)) -> 3.7 | F23: 16.7 | G23: 3.65 | H23: 0 | J23: 20.35 | K23: OFW-REP-SBB-090
A24: BRL | B24: 35.1 | C24: 29.5 | D24: 5.6 | E24: =INDEX('F_Inputs BP'!$H$7:$H$108, MATCH('Addition Leakage Enh and Cap'!$A24&"BN2345A_PR24", 'F_Inputs BP'!$A$7:$A$108&'F_Inputs BP'!$B$7:$B$108,0)) - INDEX('F_Inputs BP'!$M$7:$M$108, MATCH('Addition Leakage Enh and Cap'!$A24&"BN2345A_PR24", 'F_Inputs BP'!$A$7:$A$108&'F_Inputs BP'!$B$7:$B$108,0)) -> 5.628547061 | F24: 1.37 | G24: 0.9 | H24: 1.01 | J24: 3.28 | K24: OFW-REP-SBB-090
D25: =SUM(D8:D24) -> 426.3 | E25: =SUM(E8:E24) -> 393.8961979 | F25: =SUM(F8:F24) -> 312.94

Sheet Leakage Activity Query_FD
A1: =RIGHT(CELL("filename", $A$1), LEN(CELL("filename", $A$1)) - SEARCH("]", CELL("filename", $A$1))) -> 
A3: Source | B3: Company queries, listed from cell M6 | E3: Data from companies to explain leakage activity being undertaken and how it is funded
A4: Purpose | B4: This is data requested form companies where they were asked to provide a breakdown of leakage activities that reduce leakage, the associated benefit, totex and if it was included within CW3.49. This is then used for multiple purposes. It is used to reallocate CSL, assessment of mains renewal activity to fund for the purpose of leakage reduction and funding of leakage reduction that companies have included within base.
A6: Company | B6: Column1 | C6: Activity | D6: Unit | E6: Included in CW3.49 | F6: Quantity | G6: Benefit (Ml/d) to 2 dp | H6: Totex cost (m) to 3 dps | I6: Ml/d/km | K6: Company | L6: Query Reference for Used Values | M6: Query Reference for Used Values
A7: ANH | B7: MR | C7: Mains replacement | D7: Km | E7: Y | F7: 44.615 | G7: 1.66 | H7: 25.036 | I7: =IFERROR(IF(C7 = "Mains replacement", G7/F7, ""), "") -> 0.0372072173 | K7: ANH | L7: OFW-OBQ-ANH-072
A8: ANH | B8: MR | C8: Mains replacement - Base CAC | D8: Km | E8: N | G8: 0.4 | K8: WSH | L8: OFW-OBQ-WSH-052
A9: ANH | B9: Other | C9: Active leakage control | D9: Number (Leaks located and fixed) | E9: Y | G9: 4.47 | K9: HDD | L9: OFW-OBQ-HDD-044
A10: ANH | B10: CSL | C10: Secondary benefit - metering | D10: Number | E10: N | G10: 6.38552 | H10: 0 | K10: NES | L10: OFW-OBQ-NES-067
A11: WSH | B11: MR | C11: Mains replacement | D11: Km | E11: Y | F11: 0 | G11: 0 | H11: 0 | K11: SVE | L11: OFW-OBQ-SVE-080 | M11: OFW-REP-SVE-132
A12: WSH | B12: Comms | C12: Comms pipes | D12: Number | E12: N | G12: 0 | H12: 0 | K12: SRN | L12: OFW-OBQ-SRN-102 | M12: OFW-REP-SRN-118
A13: WSH | B13: CSL | C13: Supply pipes | D13: Number | E13: N | G13: 17.261 | H13: 4.266 | K13: TMS | L13: OFW-OBQ-TMS-089 | M13: OFW-REP-TMS-106
A14: WSH | B14: PM | C14: Pressure Management Schemes | D14: Number | E14: Y | G14: 0 | H14: 0 | K14: NWT | L14: OFW-OBQ-UUW-058
A15: WSH | B15: F&F | C15: Find and fix | D15: Number (Leaks located and fixed) | E15: Y | G15: =19.7675+18.748 -> 38.5155 | H15: 0 | K15: WSX | L15: OFW-OBQ-WSX-075
A16: HDD | B16: CSL | C16: Smart meter programme - net zero, leakage and water efficiency drivers | D16: Number | E16: N | G16: 0.45 | K16: YKY | L16: OFW-OBQ-YKY-066 | M16: OFW-REP-YKY-109
A17: HDD | B17: MR | C17: Mains replacement - Base | D17: Km | E17: N | G17: 0.17 | K17: AFW | L17: OFW-OBQ-AFW-061
A18: HDD | B18: PM | C18: Pressure Management Schemes - Base | D18: Number | E18: N | G18: 0.04 | K18: PRT | L18: OFW-OBQ-PRT-038
A19: HDD | B19: Other | C19: Active leakage control | D19: Number (Leaks located and fixed) | E19: Y | G19: 0.67 | K19: SEW | L19: OFW-OBQ-SEW-053
A20: HDD | B20: Other | C20: Supply interruptions - Base CAC | E20: N | G20: 0.04 | K20: SSC | L20: OFW-OBQ-SSC-036
A21: NES | B21: MR | C21: Mains replacement | D21: Km | E21: Y | F21: 65.85 | G21: 0.15 | H21: 12.674 | I21: 0.002277904328 | K21: SES | L21: OFW-OBQ-SES-057
A22: NES | B22: Comms | C22: Comms pipes | D22: Number | E22: N | G22: 4.3 | H22: 0 | K22: SWB | L22: OFW_OBQ_SBB_103 BRL
A23: NES | B23: CSL | C23: Supply pipes | D23: Number | E23: N | G23: 0 | H23: 0 | K23: BRL | L23: OFW_OBQ_SBB-103 SWB
A24: NES | B24: PM | C24: Pressure Management Schemes | D24: Number | E24: Y | G24: 0 | H24: 0
A25: NES | B25: F&F | C25: Find and fix | D25: Number (Leaks located and fixed) | E25: Y | G25: =3.8+3.82 -> 7.62 | H25: 12.396
A26: SVE | B26: MR | C26: Mains replacement | D26: Km | E26: Y | F26: 465 | G26: 14.11 | H26: 125.992 | I26: 0.03034408602
A27: SVE | B27: CSL | C27: Supply pipes | D27: Number | E27: N | G27: 13.38
A28: SVE | B28: PM | C28: Pressure Management Schemes | D28: Number | E28: N | G28: 7.233
A29: SVE | B29: F&F | C29: Find and fix | D29: Number (Leaks located and fixed) | E29: N | G29: 19.119
A30: SVE | B30: Other | C30: Calm Networks | D30: - | E30: N | G30: 0.088
A31: SVE | B31: Other | C31: Other Leakage reduction activity | E31: N | G31: 2.804
A32: SRN | B32: MR | C32: Mains replacement | D32: Km | E32: Y | F32: 300 | G32: 4.3 | H32: 124.8 | I32: 0.01433333333
A33: SRN | B33: Comms | C33: Comms pipes | D33: Number | E33: N | G33: 0.86 | H33: 13.59
A34: SRN | B34: PM | C34: Pressure Management Schemes | D34: Number | E34: Y | G34: 0.86 | H34: 1.83
A35: SRN | B35: F&F | C35: Find and fix | D35: Number (Leaks located and fixed) | E35: Y | G35: 2.71 | H35: 9.77
A36: SRN | B36: Other | C36: Calm Networks | D36: - | E36: Y | G36: 0.42
A37: SRN | B37: Other | C37: Other Leakage reduction activity | D37: Number of meters installed | E37: Y | G37: 3.32 | H37: 175.01
A38: TMS | B38: MR | C38: Mains replacement | D38: Km | E38: N | F38: 0 | G38: 0 | H38: 0
A39: TMS | B39: Comms | C39: Comms pipes | D39: Number | E39: N | G39: 52.79 | I39: =IFERROR(IF(C39 = "Mains replacement", G39/F39, ""), "") -> 
A40: TMS | B40: PM | C40: Pressure Management Schemes | D40: Number | E40: Y | G40: 17.35
A41: TMS | B41: Other | C41: Other | E41: Y | G41: 12.31
A42: TMS | B42: Other | C42: Calm Networks | D42: - | E42: Y | G42: 30
A43: NWT | B43: MR | C43: Mains replacement | D43: Km | E43: Y | F43: 641.19 | G43: 31.74 | H43: 139.59 | I43: 0.04950170776
A44: NWT | B44: PM | C44: Pressure Management Schemes | D44: Number (PMVs) | E44: Y | G44: 0.1 | H44: 1.441
A45: NWT | B45: F&F | C45: Find and fix | D45: Number (Leaks located and fixed) | E45: Y | G45: 6.55
A46: NWT | B46: Other | C46: Other | E46: Y | G46: 11.63
A47: WSX | B47: MR | C47: Mains replacement | D47: Km | E47: Y | F47: 0 | G47: 0 | H47: 0
A48: WSX | B48: CSL | C48: Supply pipes | D48: Number | E48: Y | G48: 2.444114567 | H48: 0
A49: WSX | B49: PM | C49: Pressure Management Schemes | D49: Number | E49: Y | G49: 0.7345807002 | H49: 2.646
A50: WSX | B50: F&F | C50: Find and fix | D50: Number (Leaks located and fixed) | E50: Y | G50: 3.029 | H50: 19.599
A51: WSX | B51: Other | C51: Calm Networks | E51: Y | G51: 0.2324128692
A52: YKY | B52: MR | C52: Mains replacement - Base CAC | D52: Km | E52: N | F52: 1082.2 | G52: 10.52 | H52: 363.619
A53: YKY | B53: Comms | C53: Comms pipes | D53: Number | E53: N | G53: 0 | H53: 0
A54: YKY | B54: CSL | C54: Supply pipes | D54: Number | E54: N | G54: 7.73 | H54: 1.03
A55: YKY | B55: PM | C55: Pressure Management Schemes | D55: Number | E55: Y | G55: 7.64 | H55: 6.44
A56: YKY | B56: F&F | C56: Find and fix | D56: Number (Leaks located and fixed) | E56: Y | G56: 6.57 | H56: 9.24
A57: YKY | B57: Other | C57: Other | E57: Y | G57: 3.71 | H57: 0 | I57: =IFERROR(IF(C57 = "Mains replacement", G57/F57, ""), "") -> 
A58: AFW | B58: MR | C58: Mains replacement | D58: Km | E58: Y | F58: 0 | G58: 0
A59: AFW | B59: CSL | C59: Supply pipes | E59: N | G59: 4.65
A60: AFW | B60: PM | C60: Pressure Management Schemes | E60: Y | G60: 5.29
A61: AFW | B61: Other | C61: Calm Networks | E61: Y | G61: 3.4
A62: AFW | B62: F&F | C62: Find and fix | E62: Y | G62: 5.5
A63: PRT | B63: MR | C63: Mains replacement - Base | D63: Km | E63: N | F63: 41 | G63: 0.8
A64: PRT | B64: Other | C64: Calm Networks | E64: Y | G64: 0.12
A65: PRT | B65: F&F | C65: Find and fix | E65: Y | G65: 2.83
A66: SEW | B66: MR | C66: Mains replacement | D66: Km | E66: Y | F66: 149.86 | G66: 2.364 | H66: 41.04812842 | I66: 0.01577472307
A67: SEW | B67: F&F | C67: Find and fix | E67: Y | G67: 8.141
A68: SES | B68: MR | C68: Mains replacement | D68: Km | E68: Y | F68: 0 | G68: 0
A69: SES | B69: CSL | C69: Supply pipes | E69: Y | G69: 0.25
A70: SES | B70: PM | C70: Pressure Management Schemes | E70: Y | G70: 1.5
A71: SES | B71: Other | C71: Calm Networks | E71: Y | G71: 0.5
A72: SES | B72: F&F | C72: Find and fix | E72: Y | G72: 1
A73: SES | B73: Other | C73: Other | E73: Y | G73: 0.25
A74: SSC | B74: MR | C74: Mains replacement | D74: Km | E74: Y | F74: 0 | G74: 0
A75: SSC | B75: CSL | C75: Supply pipes | D75: Number | E75: Y | G75: 1.303
A76: SSC | B76: PM | C76: Pressure Management Schemes | D76: Number | E76: Y | G76: 3.031
A77: SSC | B77: F&F | C77: Find and fix | D77: Number (Leaks located and fixed) | E77: Y | G77: 7.139
A78: SWB | B78: Comms | C78: Comms pipes | D78: Km | E78: N | F78: 0 | G78: 1.231969487 | H78: 0
A79: SWB | B79: PM | C79: Pressure Management Schemes | D79: Number | E79: Y | G79: 3.668432089 | H79: 0.695
A80: SWB | B80: CSL | C80: Secondary benefit - metering | G80: 3.65
A81: SWB | B81: F&F | C81: Find and fix | D81: Number (Leaks located and fixed) | E81: Y | G81: 11.8 | H81: 3.273
A82: BRL | B82: MR | C82: Mains replacement | D82: Km | E82: Y | F82: 42.31 | G82: 1.066 | H82: 20.667 | I82: 0.02519498936
A83: BRL | B83: PM | C83: Pressure Management Schemes | D83: Number | E83: Y | G83: 0.3475365252 | H83: 0.19
A84: BRL | B84: CSL | C84: Secondary benefit - metering | G84: 0.9
A85: BRL | B85: F&F | C85: Find and fix | D85: Number (Leaks located and fixed) | E85: Y | G85: 0.96 | H85: 0.038

Sheet Override
A1: =RIGHT(CELL("filename", $A$1), LEN(CELL("filename", $A$1)) - SEARCH("]", CELL("filename", $A$1))) -> 
A3: Purpose | B3: Data overrides typically as a result of queries
C6: Company | D6: Sheet Used | E6: Cell Referemce | F6: Override Required? | G6: AMP8 totex (£m, 2025-30) | H6: Reason for override | I6: Source
C7: ANH | F7: N
C8: HDD | F8: N
C9: NES | F9: N
C10: NWT | F10: N
C11: SRN | F11: N
C12: SVE | F12: N
C13: SWB | F13: N
C14: TMS | F14: N
C15: WSH | F15: N
C16: WSX | F16: N
C17: YKY | D17: Other Leakage Enhancement | E17: D18 | F17: Y | G17: 15.174 | H17: Update to other leakage expenditure due to company changes post query | I17: F_Inputs BP CW3_049TOT_PR24
C18: AFW | F18: N
C19: BRL | F19: N
C20: PRT | F20: N
C21: SES | D21: Other Leakage Enhancement | E21: D22 | F21: Y | G21: 9.958456 | H21: Change to requested totex for CW3.49 post query from 10.959 to 10.459. Once CSL allowance is reallocated this is reduced to 9.958 | I21: F_Inputs BP CW3_049TOT_PR24
C22: SEW | F22: N
C23: SSC | F23: N

Sheet Consolidated inputs >>

Sheet APR_Combined_Inputs
A1: =RIGHT(CELL("filename", $A$1), LEN(CELL("filename", $A$1)) - SEARCH("]", CELL("filename", $A$1))) -> 
A3: Purpose | B3: APR reported leakage data to be used in calculation of "other" leakage unit rate
E5: COST | H5: DRIVER
D6: Reference index-match for NES + SSC + NWT: | E6: BN15500_TOT_A | F6: BN15500_RL_A | G6: BN15500_ML_A
E7: BN15500_TOT_B | F7: BN15500_RL_B | G7: BN15500_ML_B | H7: BN2345A
D8: C_CD0014_PR19WW1 | E8: BN15500_TOT | F8: BN15500_RL | G8: BN15500_ML | H8: BN2345
A9: codecombine | B9: companycode | C9: financialyear | D9: cpih | E9: leakage_totex | F9: reduce_totex | G9: maintain_totex | H9: total_leakage
A10: Code | B10: Company | C10: Financial year | D10: CPIH | E10: Total leakage expenditure /£m | F10: Reduce expenditure - Total /£m | G10: Maintain expenditure - Total /£m | H10: Water delivered: total leakage /Ml/d
A11: =(B11&RIGHT(C11,2)) -> ANH17 | B11: ANH | C11: 2016-17 | D11: =INDEX(F_Input_CPIH!$F$9:$M$9, MATCH(APR_Combined_Inputs!$C11, F_Input_CPIH!$F$5:$M$5, 0)) -> 1.211735741 | E11: =INDEX(F_Input_APR1!$A$5:$M$654, MATCH($B11&E$8, F_Input_APR1!$A$5:$A$654&F_Input_APR1!$B$5:$B$654, 0), MATCH($C11,F_Input_APR1!$A$5:$M$5, 0)) ->  | F11: =INDEX(F_Input_APR1!$A$5:$M$654, MATCH($B11&F$8, F_Input_APR1!$A$5:$A$654&F_Input_APR1!$B$5:$B$654, 0), MATCH($C11,F_Input_APR1!$A$5:$M$5, 0)) ->  | G11: =INDEX(F_Input_APR1!$A$5:$M$654, MATCH($B11&G$8, F_Input_APR1!$A$5:$A$654&F_Input_APR1!$B$5:$B$654, 0), MATCH($C11,F_Input_APR1!$A$5:$M$5, 0)) ->  | H11: =INDEX(F_Input_APR1!$A$5:$M$654, MATCH($B11&H$8, F_Input_APR1!$A$5:$A$654&F_Input_APR1!$B$5:$B$654, 0), MATCH($C11,F_Input_APR1!$A$5:$M$5, 0)) -> 184.7161233
A12: ANH18 | B12: ANH | C12: 2017-18 | D12: =INDEX(F_Input_CPIH!$F$9:$M$9, MATCH(APR_Combined_Inputs!$C12, F_Input_CPIH!$F$5:$M$5, 0)) -> 1.180633296 | E12: =INDEX(F_Input_APR1!$A$5:$M$654, MATCH($B12&E$8, F_Input_APR1!$A$5:$A$654&F_Input_APR1!$B$5:$B$654, 0), MATCH($C12,F_Input_APR1!$A$5:$M$5, 0)) -> 59.92 | F12: =INDEX(F_Input_APR1!$A$5:$M$654, MATCH($B12&F$8, F_Input_APR1!$A$5:$A$654&F_Input_APR1!$B$5:$B$654, 0), MATCH($C12,F_Input_APR1!$A$5:$M$5, 0)) -> 10.536 | G12: =INDEX(F_Input_APR1!$A$5:$M$654, MATCH($B12&G$8, F_Input_APR1!$A$5:$A$654&F_Input_APR1!$B$5:$B$654, 0), MATCH($C12,F_Input_APR1!$A$5:$M$5, 0)) -> 49.384 | H12: =INDEX(F_Input_APR1!$A$5:$M$654, MATCH($B12&H$8, F_Input_APR1!$A$5:$A$654&F_Input_APR1!$B$5:$B$654, 0), MATCH($C12,F_Input_APR1!$A$5:$M$5, 0)) -> 182.66
A13: ANH19 | B13: ANH | C13: 2018-19 | D13: =INDEX(F_Input_CPIH!$F$9:$M$9, MATCH(APR_Combined_Inputs!$C13, F_Input_CPIH!$F$5:$M$5, 0)) -> 1.156044472 | E13: =INDEX(F_Input_APR1!$A$5:$M$654, MATCH($B13&E$8, F_Input_APR1!$A$5:$A$654&F_Input_APR1!$B$5:$B$654, 0), MATCH($C13,F_Input_APR1!$A$5:$M$5, 0)) -> 75.272 | F13: =INDEX(F_Input_APR1!$A$5:$M$654, MATCH($B13&F$8, F_Input_APR1!$A$5:$A$654&F_Input_APR1!$B$5:$B$654, 0), MATCH($C13,F_Input_APR1!$A$5:$M$5, 0)) -> 10.625 | G13: =INDEX(F_Input_APR1!$A$5:$M$654, MATCH($B13&G$8, F_Input_APR1!$A$5:$A$654&F_Input_APR1!$B$5:$B$654, 0), MATCH($C13,F_Input_APR1!$A$5:$M$5, 0)) -> 64.647 | H13: =INDEX(F_Input_APR1!$A$5:$M$654, MATCH($B13&H$8, F_Input_APR1!$A$5:$A$654&F_Input_APR1!$B$5:$B$654, 0), MATCH($C13,F_Input_APR1!$A$5:$M$5, 0)) -> 191.2400728
A14: ANH20 | B14: ANH | C14: 2019-20 | D14: =INDEX(F_Input_CPIH!$F$9:$M$9, MATCH(APR_Combined_Inputs!$C14, F_Input_CPIH!$F$5:$M$5, 0)) -> 1.13673108 | E14: =INDEX(F_Input_APR1!$A$5:$M$654, MATCH($B14&E$8, F_Input_APR1!$A$5:$A$654&F_Input_APR1!$B$5:$B$654, 0), MATCH($C14,F_Input_APR1!$A$5:$M$5, 0)) -> 81.62 | F14: =INDEX(F_Input_APR1!$A$5:$M$654, MATCH($B14&F$8, F_Input_APR1!$A$5:$A$654&F_Input_APR1!$B$5:$B$654, 0), MATCH($C14,F_Input_APR1!$A$5:$M$5, 0)) -> 8.077 | G14: =INDEX(F_Input_APR1!$A$5:$M$654, MATCH($B14&G$8, F_Input_APR1!$A$5:$A$654&F_Input_APR1!$B$5:$B$654, 0), MATCH($C14,F_Input_APR1!$A$5:$M$5, 0)) -> 73.543 | H14: =INDEX(F_Input_APR1!$A$5:$M$654, MATCH($B14&H$8, F_Input_APR1!$A$5:$A$654&F_Input_APR1!$B$5:$B$654, 0), MATCH($C14,F_Input_APR1!$A$5:$M$5, 0)) -> 182.39
A15: ANH21 | B15: ANH | C15: 2020-21 | D15: =INDEX(F_Input_CPIH!$F$9:$M$9, MATCH(APR_Combined_Inputs!$C15, F_Input_CPIH!$F$5:$M$5, 0)) -> 1.127701825 | E15: =INDEX(F_Input_APR1!$A$5:$M$654, MATCH($B15&E$8, F_Input_APR1!$A$5:$A$654&F_Input_APR1!$B$5:$B$654, 0), MATCH($C15,F_Input_APR1!$A$5:$M$5, 0)) -> 78.812 | F15: =INDEX(F_Input_APR1!$A$5:$M$654, MATCH($B15&F$8, F_Input_APR1!$A$5:$A$654&F_Input_APR1!$B$5:$B$654, 0), MATCH($C15,F_Input_APR1!$A$5:$M$5, 0)) -> 12.626 | G15: =INDEX(F_Input_APR1!$A$5:$M$654, MATCH($B15&G$8, F_Input_APR1!$A$5:$A$654&F_Input_APR1!$B$5:$B$654, 0), MATCH($C15,F_Input_APR1!$A$5:$M$5, 0)) -> 66.186 | H15: =INDEX(F_Input_APR1!$A$5:$M$654, MATCH($B15&H$8, F_Input_APR1!$A$5:$A$654&F_Input_APR1!$B$5:$B$654, 0), MATCH($C15,F_Input_APR1!$A$5:$M$5, 0)) -> 182.38
A16: ANH22 | B16: ANH | C16: 2021-22 | D16: =INDEX(F_Input_CPIH!$F$9:$M$9, MATCH(APR_Combined_Inputs!$C16, F_Input_CPIH!$F$5:$M$5, 0)) -> 1.08774127 | E16: =INDEX(F_Input_APR1!$A$5:$M$654, MATCH($B16&E$8, F_Input_APR1!$A$5:$A$654&F_Input_APR1!$B$5:$B$654, 0), MATCH($C16,F_Input_APR1!$A$5:$M$5, 0)) -> 95.436 | F16: =INDEX(F_Input_APR1!$A$5:$M$654, MATCH($B16&F$8, F_Input_APR1!$A$5:$A$654&F_Input_APR1!$B$5:$B$654, 0), MATCH($C16,F_Input_APR1!$A$5:$M$5, 0)) -> 31.836 | G16: =INDEX(F_Input_APR1!$A$5:$M$654, MATCH($B16&G$8, F_Input_APR1!$A$5:$A$654&F_Input_APR1!$B$5:$B$654, 0), MATCH($C16,F_Input_APR1!$A$5:$M$5, 0)) -> 63.6 | H16: =INDEX(F_Input_APR1!$A$5:$M$654, MATCH($B16&H$8, F_Input_APR1!$A$5:$A$654&F_Input_APR1!$B$5:$B$654, 0), MATCH($C16,F_Input_APR1!$A$5:$M$5, 0)) -> 173.41
A17: ANH23 | B17: ANH | C17: 2022-23 | D17: =INDEX(F_Input_CPIH!$F$9:$M$9, MATCH(APR_Combined_Inputs!$C17, F_Input_CPIH!$F$5:$M$5, 0)) -> 1 | E17: =INDEX(F_Input_APR1!$A$5:$M$654, MATCH($B17&E$8, F_Input_APR1!$A$5:$A$654&F_Input_APR1!$B$5:$B$654, 0), MATCH($C17,F_Input_APR1!$A$5:$M$5, 0)) -> 110.094 | F17: =INDEX(F_Input_APR1!$A$5:$M$654, MATCH($B17&F$8, F_Input_APR1!$A$5:$A$654&F_Input_APR1!$B$5:$B$654, 0), MATCH($C17,F_Input_APR1!$A$5:$M$5, 0)) -> 24.103 | G17: =INDEX(F_Input_APR1!$A$5:$M$654, MATCH($B17&G$8, F_Input_APR1!$A$5:$A$654&F_Input_APR1!$B$5:$B$654, 0), MATCH($C17,F_Input_APR1!$A$5:$M$5, 0)) -> 85.991 | H17: =INDEX(F_Input_APR1!$A$5:$M$654, MATCH($B17&H$8, F_Input_APR1!$A$5:$A$654&F_Input_APR1!$B$5:$B$654, 0), MATCH($C17,F_Input_APR1!$A$5:$M$5, 0)) -> 156.29
A18: ANH24 | B18: ANH | C18: 2023-24 | D18: =INDEX(F_Input_CPIH!$F$9:$M$9, MATCH(APR_Combined_Inputs!$C18, F_Input_CPIH!$F$5:$M$5, 0)) -> 0.9474460986 | E18: =INDEX(F_Input_APR1!$A$5:$M$654, MATCH($B18&E$8, F_Input_APR1!$A$5:$A$654&F_Input_APR1!$B$5:$B$654, 0), MATCH($C18,F_Input_APR1!$A$5:$M$5, 0)) -> 106.0880745 | F18: =INDEX(F_Input_APR1!$A$5:$M$654, MATCH($B18&F$8, F_Input_APR1!$A$5:$A$654&F_Input_APR1!$B$5:$B$654, 0), MATCH($C18,F_Input_APR1!$A$5:$M$5, 0)) -> 26.05933986 | G18: =INDEX(F_Input_APR1!$A$5:$M$654, MATCH($B18&G$8, F_Input_APR1!$A$5:$A$654&F_Input_APR1!$B$5:$B$654, 0), MATCH($C18,F_Input_APR1!$A$5:$M$5, 0)) -> 80.0287346 | H18: =INDEX(F_Input_APR1!$A$5:$M$654, MATCH($B18&H$8, F_Input_APR1!$A$5:$A$654&F_Input_APR1!$B$5:$B$654, 0), MATCH($C18,F_Input_APR1!$A$5:$M$5, 0)) -> 149.15
A19: HDD17 | B19: HDD | C19: 2016-17 | D19: =INDEX(F_Input_CPIH!$F$9:$M$9, MATCH(APR_Combined_Inputs!$C19, F_Input_CPIH!$F$5:$M$5, 0)) -> 1.211735741 | E19: =INDEX(F_Input_APR1!$A$5:$M$654, MATCH($B19&E$8, F_Input_APR1!$A$5:$A$654&F_Input_APR1!$B$5:$B$654, 0), MATCH($C19,F_Input_APR1!$A$5:$M$5, 0)) ->  | F19: =INDEX(F_Input_APR1!$A$5:$M$654, MATCH($B19&F$8, F_Input_APR1!$A$5:$A$654&F_Input_APR1!$B$5:$B$654, 0), MATCH($C19,F_Input_APR1!$A$5:$M$5, 0)) ->  | G19: =INDEX(F_Input_APR1!$A$5:$M$654, MATCH($B19&G$8, F_Input_APR1!$A$5:$A$654&F_Input_APR1!$B$5:$B$654, 0), MATCH($C19,F_Input_APR1!$A$5:$M$5, 0)) ->  | H19: =INDEX(F_Input_APR1!$A$5:$M$654, MATCH($B19&H$8, F_Input_APR1!$A$5:$A$654&F_Input_APR1!$B$5:$B$654, 0), MATCH($C19,F_Input_APR1!$A$5:$M$5, 0)) -> 
A20: HDD18 | B20: HDD | C20: 2017-18 | D20: =INDEX(F_Input_CPIH!$F$9:$M$9, MATCH(APR_Combined_Inputs!$C20, F_Input_CPIH!$F$5:$M$5, 0)) -> 1.180633296 | E20: =INDEX(F_Input_APR1!$A$5:$M$654, MATCH($B20&E$8, F_Input_APR1!$A$5:$A$654&F_Input_APR1!$B$5:$B$654, 0), MATCH($C20,F_Input_APR1!$A$5:$M$5, 0)) -> 2.943 | F20: =INDEX(F_Input_APR1!$A$5:$M$654, MATCH($B20&F$8, F_Input_APR1!$A$5:$A$654&F_Input_APR1!$B$5:$B$654, 0), MATCH($C20,F_Input_APR1!$A$5:$M$5, 0)) -> 0 | G20: =INDEX(F_Input_APR1!$A$5:$M$654, MATCH($B20&G$8, F_Input_APR1!$A$5:$A$654&F_Input_APR1!$B$5:$B$654, 0), MATCH($C20,F_Input_APR1!$A$5:$M$5, 0)) -> 2.943 | H20: =INDEX(F_Input_APR1!$A$5:$M$654, MATCH($B20&H$8, F_Input_APR1!$A$5:$A$654&F_Input_APR1!$B$5:$B$654, 0), MATCH($C20,F_Input_APR1!$A$5:$M$5, 0)) -> 14.61986166
A21: HDD19 | B21: HDD | C21: 2018-19 | D21: =INDEX(F_Input_CPIH!$F$9:$M$9, MATCH(APR_Combined_Inputs!$C21, F_Input_CPIH!$F$5:$M$5, 0)) -> 1.156044472 | E21: =INDEX(F_Input_APR1!$A$5:$M$654, MATCH($B21&E$8, F_Input_APR1!$A$5:$A$654&F_Input_APR1!$B$5:$B$654, 0), MATCH($C21,F_Input_APR1!$A$5:$M$5, 0)) -> 3.097 | F21: =INDEX(F_Input_APR1!$A$5:$M$654, MATCH($B21&F$8, F_Input_APR1!$A$5:$A$654&F_Input_APR1!$B$5:$B$654, 0), MATCH($C21,F_Input_APR1!$A$5:$M$5, 0)) -> 0.214 | G21: =INDEX(F_Input_APR1!$A$5:$M$654, MATCH($B21&G$8, F_Input_APR1!$A$5:$A$654&F_Input_APR1!$B$5:$B$654, 0), MATCH($C21,F_Input_APR1!$A$5:$M$5, 0)) -> 2.883 | H21: =INDEX(F_Input_APR1!$A$5:$M$654, MATCH($B21&H$8, F_Input_APR1!$A$5:$A$654&F_Input_APR1!$B$5:$B$654, 0), MATCH($C21,F_Input_APR1!$A$5:$M$5, 0)) -> 15.27154778
A22: HDD20 | B22: HDD | C22: 2019-20 | D22: =INDEX(F_Input_CPIH!$F$9:$M$9, MATCH(APR_Combined_Inputs!$C22, F_Input_CPIH!$F$5:$M$5, 0)) -> 1.13673108 | E22: =INDEX(F_Input_APR1!$A$5:$M$654, MATCH($B22&E$8, F_Input_APR1!$A$5:$A$654&F_Input_APR1!$B$5:$B$654, 0), MATCH($C22,F_Input_APR1!$A$5:$M$5, 0)) -> 3.177 | F22: =INDEX(F_Input_APR1!$A$5:$M$654, MATCH($B22&F$8, F_Input_APR1!$A$5:$A$654&F_Input_APR1!$B$5:$B$654, 0), MATCH($C22,F_Input_APR1!$A$5:$M$5, 0)) -> 0 | G22: =INDEX(F_Input_APR1!$A$5:$M$654, MATCH($B22&G$8, F_Input_APR1!$A$5:$A$654&F_Input_APR1!$B$5:$B$654, 0), MATCH($C22,F_Input_APR1!$A$5:$M$5, 0)) -> 3.177 | H22: =INDEX(F_Input_APR1!$A$5:$M$654, MATCH($B22&H$8, F_Input_APR1!$A$5:$A$654&F_Input_APR1!$B$5:$B$654, 0), MATCH($C22,F_Input_APR1!$A$5:$M$5, 0)) -> 12.75841411
A23: HDD21 | B23: HDD | C23: 2020-21 | D23: =INDEX(F_Input_CPIH!$F$9:$M$9, MATCH(APR_Combined_Inputs!$C23, F_Input_CPIH!$F$5:$M$5, 0)) -> 1.127701825 | E23: =INDEX(F_Input_APR1!$A$5:$M$654, MATCH($B23&E$8, F_Input_APR1!$A$5:$A$654&F_Input_APR1!$B$5:$B$654, 0), MATCH($C23,F_Input_APR1!$A$5:$M$5, 0)) -> 2.762 | F23: =INDEX(F_Input_APR1!$A$5:$M$654, MATCH($B23&F$8, F_Input_APR1!$A$5:$A$654&F_Input_APR1!$B$5:$B$654, 0), MATCH($C23,F_Input_APR1!$A$5:$M$5, 0)) -> 0.238 | G23: =INDEX(F_Input_APR1!$A$5:$M$654, MATCH($B23&G$8, F_Input_APR1!$A$5:$A$654&F_Input_APR1!$B$5:$B$654, 0), MATCH($C23,F_Input_APR1!$A$5:$M$5, 0)) -> 2.524 | H23: =INDEX(F_Input_APR1!$A$5:$M$654, MATCH($B23&H$8, F_Input_APR1!$A$5:$A$654&F_Input_APR1!$B$5:$B$654, 0), MATCH($C23,F_Input_APR1!$A$5:$M$5, 0)) -> 14.69
A24: HDD22 | B24: HDD | C24: 2021-22 | D24: =INDEX(F_Input_CPIH!$F$9:$M$9, MATCH(APR_Combined_Inputs!$C24, F_Input_CPIH!$F$5:$M$5, 0)) -> 1.08774127 | E24: =INDEX(F_Input_APR1!$A$5:$M$654, MATCH($B24&E$8, F_Input_APR1!$A$5:$A$654&F_Input_APR1!$B$5:$B$654, 0), MATCH($C24,F_Input_APR1!$A$5:$M$5, 0)) -> 2.734 | F24: =INDEX(F_Input_APR1!$A$5:$M$654, MATCH($B24&F$8, F_Input_APR1!$A$5:$A$654&F_Input_APR1!$B$5:$B$654, 0), MATCH($C24,F_Input_APR1!$A$5:$M$5, 0)) -> 0.083 | G24: =INDEX(F_Input_APR1!$A$5:$M$654, MATCH($B24&G$8, F_Input_APR1!$A$5:$A$654&F_Input_APR1!$B$5:$B$654, 0), MATCH($C24,F_Input_APR1!$A$5:$M$5, 0)) -> 2.651 | H24: =INDEX(F_Input_APR1!$A$5:$M$654, MATCH($B24&H$8, F_Input_APR1!$A$5:$A$654&F_Input_APR1!$B$5:$B$654, 0), MATCH($C24,F_Input_APR1!$A$5:$M$5, 0)) -> 13.90576
A25: HDD23 | B25: HDD | C25: 2022-23 | D25: =INDEX(F_Input_CPIH!$F$9:$M$9, MATCH(APR_Combined_Inputs!$C25, F_Input_CPIH!$F$5:$M$5, 0)) -> 1 | E25: =INDEX(F_Input_APR1!$A$5:$M$654, MATCH($B25&E$8, F_Input_APR1!$A$5:$A$654&F_Input_APR1!$B$5:$B$654, 0), MATCH($C25,F_Input_APR1!$A$5:$M$5, 0)) -> 3.254 | F25: =INDEX(F_Input_APR1!$A$5:$M$654, MATCH($B25&F$8, F_Input_APR1!$A$5:$A$654&F_Input_APR1!$B$5:$B$654, 0), MATCH($C25,F_Input_APR1!$A$5:$M$5, 0)) -> 0.255 | G25: =INDEX(F_Input_APR1!$A$5:$M$654, MATCH($B25&G$8, F_Input_APR1!$A$5:$A$654&F_Input_APR1!$B$5:$B$654, 0), MATCH($C25,F_Input_APR1!$A$5:$M$5, 0)) -> 2.999 | H25: =INDEX(F_Input_APR1!$A$5:$M$654, MATCH($B25&H$8, F_Input_APR1!$A$5:$A$654&F_Input_APR1!$B$5:$B$654, 0), MATCH($C25,F_Input_APR1!$A$5:$M$5, 0)) -> 13.20542046
A26: HDD24 | B26: HDD | C26: 2023-24 | D26: =INDEX(F_Input_CPIH!$F$9:$M$9, MATCH(APR_Combined_Inputs!$C26, F_Input_CPIH!$F$5:$M$5, 0)) -> 0.9474460986 | E26: =INDEX(F_Input_APR1!$A$5:$M$654, MATCH($B26&E$8, F_Input_APR1!$A$5:$A$654&F_Input_APR1!$B$5:$B$654, 0), MATCH($C26,F_Input_APR1!$A$5:$M$5, 0)) -> 3.14 | F26: =INDEX(F_Input_APR1!$A$5:$M$654, MATCH($B26&F$8, F_Input_APR1!$A$5:$A$654&F_Input_APR1!$B$5:$B$654, 0), MATCH($C26,F_Input_APR1!$A$5:$M$5, 0)) -> 0.161 | G26: =INDEX(F_Input_APR1!$A$5:$M$654, MATCH($B26&G$8, F_Input_APR1!$A$5:$A$654&F_Input_APR1!$B$5:$B$654, 0), MATCH($C26,F_Input_APR1!$A$5:$M$5, 0)) -> 2.979 | H26: =INDEX(F_Input_APR1!$A$5:$M$654, MATCH($B26&H$8, F_Input_APR1!$A$5:$A$654&F_Input_APR1!$B$5:$B$654, 0), MATCH($C26,F_Input_APR1!$A$5:$M$5, 0)) -> 12.77007693
A27: NES17 | B27: NES | C27: 2016-17 | D27: =INDEX(F_Input_CPIH!$F$9:$M$9, MATCH(APR_Combined_Inputs!$C27, F_Input_CPIH!$F$5:$M$5, 0)) -> 1.211735741 | E27: =INDEX(F_Input_APR1!$A$5:$M$654, MATCH($B27&E$8, F_Input_APR1!$A$5:$A$654&F_Input_APR1!$B$5:$B$654, 0), MATCH($C27,F_Input_APR1!$A$5:$M$5, 0)) ->  | F27: =INDEX(F_Input_APR1!$A$5:$M$654, MATCH($B27&F$8, F_Input_APR1!$A$5:$A$654&F_Input_APR1!$B$5:$B$654, 0), MATCH($C27,F_Input_APR1!$A$5:$M$5, 0)) ->  | G27: =INDEX(F_Input_APR1!$A$5:$M$654, MATCH($B27&G$8, F_Input_APR1!$A$5:$A$654&F_Input_APR1!$B$5:$B$654, 0), MATCH($C27,F_Input_APR1!$A$5:$M$5, 0)) ->  | H27: =INDEX(F_Input_APR1!$A$5:$M$654, MATCH($B27&H$8, F_Input_APR1!$A$5:$A$654&F_Input_APR1!$B$5:$B$654, 0), MATCH($C27,F_Input_APR1!$A$5:$M$5, 0)) -> 201.9
A28: NES18 | B28: NES | C28: 2017-18 | D28: =INDEX(F_Input_CPIH!$F$9:$M$9, MATCH(APR_Combined_Inputs!$C28, F_Input_CPIH!$F$5:$M$5, 0)) -> 1.180633296 | E28: =INDEX(F_Input_APR1!$A$5:$M$654, MATCH($B28&E$8, F_Input_APR1!$A$5:$A$654&F_Input_APR1!$B$5:$B$654, 0), MATCH($C28,F_Input_APR1!$A$5:$M$5, 0)) -> 38.345 | F28: =INDEX(F_Input_APR1!$A$5:$M$654, MATCH($B28&F$8, F_Input_APR1!$A$5:$A$654&F_Input_APR1!$B$5:$B$654, 0), MATCH($C28,F_Input_APR1!$A$5:$M$5, 0)) -> 0 | G28: =INDEX(F_Input_APR1!$A$5:$M$654, MATCH($B28&G$8, F_Input_APR1!$A$5:$A$654&F_Input_APR1!$B$5:$B$654, 0), MATCH($C28,F_Input_APR1!$A$5:$M$5, 0)) -> 38.345 | H28: =INDEX(F_Input_APR1!$A$5:$M$654, MATCH($B28&H$8, F_Input_APR1!$A$5:$A$654&F_Input_APR1!$B$5:$B$654, 0), MATCH($C28,F_Input_APR1!$A$5:$M$5, 0)) -> 203.21
A29: NES19 | B29: NES | C29: 2018-19 | D29: =INDEX(F_Input_CPIH!$F$9:$M$9, MATCH(APR_Combined_Inputs!$C29, F_Input_CPIH!$F$5:$M$5, 0)) -> 1.156044472 | E29: =INDEX(F_Input_APR1!$A$5:$M$654, MATCH($B29&E$8, F_Input_APR1!$A$5:$A$654&F_Input_APR1!$B$5:$B$654, 0), MATCH($C29,F_Input_APR1!$A$5:$M$5, 0)) -> 53.198 | F29: =INDEX(F_Input_APR1!$A$5:$M$654, MATCH($B29&F$8, F_Input_APR1!$A$5:$A$654&F_Input_APR1!$B$5:$B$654, 0), MATCH($C29,F_Input_APR1!$A$5:$M$5, 0)) -> 0 | G29: =INDEX(F_Input_APR1!$A$5:$M$654, MATCH($B29&G$8, F_Input_APR1!$A$5:$A$654&F_Input_APR1!$B$5:$B$654, 0), MATCH($C29,F_Input_APR1!$A$5:$M$5, 0)) -> 53.198 | H29: =INDEX(F_Input_APR1!$A$5:$M$654, MATCH($B29&H$8, F_Input_APR1!$A$5:$A$654&F_Input_APR1!$B$5:$B$654, 0), MATCH($C29,F_Input_APR1!$A$5:$M$5, 0)) -> 200.44
A30: NES20 | B30: NES | C30: 2019-20 | D30: =INDEX(F_Input_CPIH!$F$9:$M$9, MATCH(APR_Combined_Inputs!$C30, F_Input_CPIH!$F$5:$M$5, 0)) -> 1.13673108 | E30: =INDEX(F_Input_APR1!$A$5:$M$654, MATCH($B30&E$8, F_Input_APR1!$A$5:$A$654&F_Input_APR1!$B$5:$B$654, 0), MATCH($C30,F_Input_APR1!$A$5:$M$5, 0)) -> 46.812 | F30: =INDEX(F_Input_APR1!$A$5:$M$654, MATCH($B30&F$8, F_Input_APR1!$A$5:$A$654&F_Input_APR1!$B$5:$B$654, 0), MATCH($C30,F_Input_APR1!$A$5:$M$5, 0)) -> 0 | G30: =INDEX(F_Input_APR1!$A$5:$M$654, MATCH($B30&G$8, F_Input_APR1!$A$5:$A$654&F_Input_APR1!$B$5:$B$654, 0), MATCH($C30,F_Input_APR1!$A$5:$M$5, 0)) -> 46.812 | H30: =INDEX(F_Input_APR1!$A$5:$M$654, MATCH($B30&H$8, F_Input_APR1!$A$5:$A$654&F_Input_APR1!$B$5:$B$654, 0), MATCH($C30,F_Input_APR1!$A$5:$M$5, 0)) -> 198.05
A31: NES21 | B31: NES | C31: 2020-21 | D31: =INDEX(F_Input_CPIH!$F$9:$M$9, MATCH(APR_Combined_Inputs!$C31, F_Input_CPIH!$F$5:$M$5, 0)) -> 1.127701825 | E31: =INDEX(F_Input_APR1!$A$5:$M$654, MATCH($B31&E$8, F_Input_APR1!$A$5:$A$654&F_Input_APR1!$B$5:$B$654, 0), MATCH($C31,F_Input_APR1!$A$5:$M$5, 0)) -> 38.108 | F31: =INDEX(F_Input_APR1!$A$5:$M$654, MATCH($B31&F$8, F_Input_APR1!$A$5:$A$654&F_Input_APR1!$B$5:$B$654, 0), MATCH($C31,F_Input_APR1!$A$5:$M$5, 0)) -> 0 | G31: =INDEX(F_Input_APR1!$A$5:$M$654, MATCH($B31&G$8, F_Input_APR1!$A$5:$A$654&F_Input_APR1!$B$5:$B$654, 0), MATCH($C31,F_Input_APR1!$A$5:$M$5, 0)) -> 38.108 | H31: =INDEX(F_Input_APR1!$A$5:$M$654, MATCH($B31&H$8, F_Input_APR1!$A$5:$A$654&F_Input_APR1!$B$5:$B$654, 0), MATCH($C31,F_Input_APR1!$A$5:$M$5, 0)) -> 206.02
A32: NES22 | B32: NES | C32: 2021-22 | D32: =INDEX(F_Input_CPIH!$F$9:$M$9, MATCH(APR_Combined_Inputs!$C32, F_Input_CPIH!$F$5:$M$5, 0)) -> 1.08774127 | E32: =INDEX(F_Input_APR1!$A$5:$M$654, MATCH($B32&E$8, F_Input_APR1!$A$5:$A$654&F_Input_APR1!$B$5:$B$654, 0), MATCH($C32,F_Input_APR1!$A$5:$M$5, 0)) -> 46.283 | F32: =INDEX(F_Input_APR1!$A$5:$M$654, MATCH($B32&F$8, F_Input_APR1!$A$5:$A$654&F_Input_APR1!$B$5:$B$654, 0), MATCH($C32,F_Input_APR1!$A$5:$M$5, 0)) -> 4.427 | G32: =INDEX(F_Input_APR1!$A$5:$M$654, MATCH($B32&G$8, F_Input_APR1!$A$5:$A$654&F_Input_APR1!$B$5:$B$654, 0), MATCH($C32,F_Input_APR1!$A$5:$M$5, 0)) -> 41.856 | H32: =INDEX(F_Input_APR1!$A$5:$M$654, MATCH($B32&H$8, F_Input_APR1!$A$5:$A$654&F_Input_APR1!$B$5:$B$654, 0), MATCH($C32,F_Input_APR1!$A$5:$M$5, 0)) -> 189.76
A33: NES23 | B33: NES | C33: 2022-23 | D33: =INDEX(F_Input_CPIH!$F$9:$M$9, MATCH(APR_Combined_Inputs!$C33, F_Input_CPIH!$F$5:$M$5, 0)) -> 1 | E33: =INDEX(F_Input_APR1!$A$5:$M$654, MATCH($B33&E$8, F_Input_APR1!$A$5:$A$654&F_Input_APR1!$B$5:$B$654, 0), MATCH($C33,F_Input_APR1!$A$5:$M$5, 0)) -> 49.99520074 | F33: =INDEX(F_Input_APR1!$A$5:$M$654, MATCH($B33&F$8, F_Input_APR1!$A$5:$A$654&F_Input_APR1!$B$5:$B$654, 0), MATCH($C33,F_Input_APR1!$A$5:$M$5, 0)) -> 2.872600022 | G33: =INDEX(F_Input_APR1!$A$5:$M$654, MATCH($B33&G$8, F_Input_APR1!$A$5:$A$654&F_Input_APR1!$B$5:$B$654, 0), MATCH($C33,F_Input_APR1!$A$5:$M$5, 0)) -> 47.12260072 | H33: =INDEX(F_Input_APR1!$A$5:$M$654, MATCH($B33&H$8, F_Input_APR1!$A$5:$A$654&F_Input_APR1!$B$5:$B$654, 0), MATCH($C33,F_Input_APR1!$A$5:$M$5, 0)) -> 182.07
A34: NES24 | B34: NES | C34: 2023-24 | D34: =INDEX(F_Input_CPIH!$F$9:$M$9, MATCH(APR_Combined_Inputs!$C34, F_Input_CPIH!$F$5:$M$5, 0)) -> 0.9474460986 | E34: =INDEX(F_Input_APR1!$A$5:$M$654, MATCH($B34&E$8, F_Input_APR1!$A$5:$A$654&F_Input_APR1!$B$5:$B$654, 0), MATCH($C34,F_Input_APR1!$A$5:$M$5, 0)) -> 44.48183823 | F34: =INDEX(F_Input_APR1!$A$5:$M$654, MATCH($B34&F$8, F_Input_APR1!$A$5:$A$654&F_Input_APR1!$B$5:$B$654, 0), MATCH($C34,F_Input_APR1!$A$5:$M$5, 0)) -> 2.273871909 | G34: =INDEX(F_Input_APR1!$A$5:$M$654, MATCH($B34&G$8, F_Input_APR1!$A$5:$A$654&F_Input_APR1!$B$5:$B$654, 0), MATCH($C34,F_Input_APR1!$A$5:$M$5, 0)) -> 42.20796632 | H34: =INDEX(F_Input_APR1!$A$5:$M$654, MATCH($B34&H$8, F_Input_APR1!$A$5:$A$654&F_Input_APR1!$B$5:$B$654, 0), MATCH($C34,F_Input_APR1!$A$5:$M$5, 0)) -> 175.72
A35: NWT17 | B35: NWT | C35: 2016-17 | D35: =INDEX(F_Input_CPIH!$F$9:$M$9, MATCH(APR_Combined_Inputs!$C35, F_Input_CPIH!$F$5:$M$5, 0)) -> 1.211735741 | E35: =INDEX(F_Input_APR1!$A$5:$M$654, MATCH($B35&E$8, F_Input_APR1!$A$5:$A$654&F_Input_APR1!$B$5:$B$654, 0), MATCH($C35,F_Input_APR1!$A$5:$M$5, 0)) ->  | F35: =INDEX(F_Input_APR1!$A$5:$M$654, MATCH($B35&F$8, F_Input_APR1!$A$5:$A$654&F_Input_APR1!$B$5:$B$654, 0), MATCH($C35,F_Input_APR1!$A$5:$M$5, 0)) ->  | G35: =INDEX(F_Input_APR1!$A$5:$M$654, MATCH($B35&G$8, F_Input_APR1!$A$5:$A$654&F_Input_APR1!$B$5:$B$654, 0), MATCH($C35,F_Input_APR1!$A$5:$M$5, 0)) ->  | H35: =INDEX(F_Input_APR1!$A$5:$M$654, MATCH($B35&H$8, F_Input_APR1!$A$5:$A$654&F_Input_APR1!$B$5:$B$654, 0), MATCH($C35,F_Input_APR1!$A$5:$M$5, 0)) -> 439.2201975
A36: NWT18 | B36: NWT | C36: 2017-18 | D36: =INDEX(F_Input_CPIH!$F$9:$M$9, MATCH(APR_Combined_Inputs!$C36, F_Input_CPIH!$F$5:$M$5, 0)) -> 1.180633296 | E36: =INDEX(F_Input_APR1!$A$5:$M$654, MATCH($B36&E$8, F_Input_APR1!$A$5:$A$654&F_Input_APR1!$B$5:$B$654, 0), MATCH($C36,F_Input_APR1!$A$5:$M$5, 0)) -> 69.57000332 | F36: =INDEX(F_Input_APR1!$A$5:$M$654, MATCH($B36&F$8, F_Input_APR1!$A$5:$A$654&F_Input_APR1!$B$5:$B$654, 0), MATCH($C36,F_Input_APR1!$A$5:$M$5, 0)) -> 1.15132056 | G36: =INDEX(F_Input_APR1!$A$5:$M$654, MATCH($B36&G$8, F_Input_APR1!$A$5:$A$654&F_Input_APR1!$B$5:$B$654, 0), MATCH($C36,F_Input_APR1!$A$5:$M$5, 0)) -> 68.41868276 | H36: =INDEX(F_Input_APR1!$A$5:$M$654, MATCH($B36&H$8, F_Input_APR1!$A$5:$A$654&F_Input_APR1!$B$5:$B$654, 0), MATCH($C36,F_Input_APR1!$A$5:$M$5, 0)) -> 453.52
A37: NWT19 | B37: NWT | C37: 2018-19 | D37: =INDEX(F_Input_CPIH!$F$9:$M$9, MATCH(APR_Combined_Inputs!$C37, F_Input_CPIH!$F$5:$M$5, 0)) -> 1.156044472 | E37: =INDEX(F_Input_APR1!$A$5:$M$654, MATCH($B37&E$8, F_Input_APR1!$A$5:$A$654&F_Input_APR1!$B$5:$B$654, 0), MATCH($C37,F_Input_APR1!$A$5:$M$5, 0)) -> 86.65177511 | F37: =INDEX(F_Input_APR1!$A$5:$M$654, MATCH($B37&F$8, F_Input_APR1!$A$5:$A$654&F_Input_APR1!$B$5:$B$654, 0), MATCH($C37,F_Input_APR1!$A$5:$M$5, 0)) -> 2.11212916 | G37: =INDEX(F_Input_APR1!$A$5:$M$654, MATCH($B37&G$8, F_Input_APR1!$A$5:$A$654&F_Input_APR1!$B$5:$B$654, 0), MATCH($C37,F_Input_APR1!$A$5:$M$5, 0)) -> 84.53964595 | H37: =INDEX(F_Input_APR1!$A$5:$M$654, MATCH($B37&H$8, F_Input_APR1!$A$5:$A$654&F_Input_APR1!$B$5:$B$654, 0), MATCH($C37,F_Input_APR1!$A$5:$M$5, 0)) -> 455.9742911
A38: NWT20 | B38: NWT | C38: 2019-20 | D38: =INDEX(F_Input_CPIH!$F$9:$M$9, MATCH(APR_Combined_Inputs!$C38, F_Input_CPIH!$F$5:$M$5, 0)) -> 1.13673108 | E38: =INDEX(F_Input_APR1!$A$5:$M$654, MATCH($B38&E$8, F_Input_APR1!$A$5:$A$654&F_Input_APR1!$B$5:$B$654, 0), MATCH($C38,F_Input_APR1!$A$5:$M$5, 0)) -> 106.0833249 | F38: =INDEX(F_Input_APR1!$A$5:$M$654, MATCH($B38&F$8, F_Input_APR1!$A$5:$A$654&F_Input_APR1!$B$5:$B$654, 0), MATCH($C38,F_Input_APR1!$A$5:$M$5, 0)) -> 22.70516317 | G38: =INDEX(F_Input_APR1!$A$5:$M$654, MATCH($B38&G$8, F_Input_APR1!$A$5:$A$654&F_Input_APR1!$B$5:$B$654, 0), MATCH($C38,F_Input_APR1!$A$5:$M$5, 0)) -> 83.3781617 | H38: =INDEX(F_Input_APR1!$A$5:$M$654, MATCH($B38&H$8, F_Input_APR1!$A$5:$A$654&F_Input_APR1!$B$5:$B$654, 0), MATCH($C38,F_Input_APR1!$A$5:$M$5, 0)) -> 446.1043784
A39: NWT21 | B39: NWT | C39: 2020-21 | D39: =INDEX(F_Input_CPIH!$F$9:$M$9, MATCH(APR_Combined_Inputs!$C39, F_Input_CPIH!$F$5:$M$5, 0)) -> 1.127701825 | E39: =INDEX(F_Input_APR1!$A$5:$M$654, MATCH($B39&E$8, F_Input_APR1!$A$5:$A$654&F_Input_APR1!$B$5:$B$654, 0), MATCH($C39,F_Input_APR1!$A$5:$M$5, 0)) -> 93.72575002 | F39: =INDEX(F_Input_APR1!$A$5:$M$654, MATCH($B39&F$8, F_Input_APR1!$A$5:$A$654&F_Input_APR1!$B$5:$B$654, 0), MATCH($C39,F_Input_APR1!$A$5:$M$5, 0)) -> 12.34581553 | G39: =INDEX(F_Input_APR1!$A$5:$M$654, MATCH($B39&G$8, F_Input_APR1!$A$5:$A$654&F_Input_APR1!$B$5:$B$654, 0), MATCH($C39,F_Input_APR1!$A$5:$M$5, 0)) -> 81.3799345 | H39: =INDEX(F_Input_APR1!$A$5:$M$654, MATCH($B39&H$8, F_Input_APR1!$A$5:$A$654&F_Input_APR1!$B$5:$B$654, 0), MATCH($C39,F_Input_APR1!$A$5:$M$5, 0)) -> 424.6895008
A40: NWT22 | B40: NWT | C40: 2021-22 | D40: =INDEX(F_Input_CPIH!$F$9:$M$9, MATCH(APR_Combined_Inputs!$C40, F_Input_CPIH!$F$5:$M$5, 0)) -> 1.08774127 | E40: =INDEX(F_Input_APR1!$A$5:$M$654, MATCH($B40&E$8, F_Input_APR1!$A$5:$A$654&F_Input_APR1!$B$5:$B$654, 0), MATCH($C40,F_Input_APR1!$A$5:$M$5, 0)) -> 94.52939359 | F40: =INDEX(F_Input_APR1!$A$5:$M$654, MATCH($B40&F$8, F_Input_APR1!$A$5:$A$654&F_Input_APR1!$B$5:$B$654, 0), MATCH($C40,F_Input_APR1!$A$5:$M$5, 0)) -> 14.85401627 | G40: =INDEX(F_Input_APR1!$A$5:$M$654, MATCH($B40&G$8, F_Input_APR1!$A$5:$A$654&F_Input_APR1!$B$5:$B$654, 0), MATCH($C40,F_Input_APR1!$A$5:$M$5, 0)) -> 79.67537732 | H40: =INDEX(F_Input_APR1!$A$5:$M$654, MATCH($B40&H$8, F_Input_APR1!$A$5:$A$654&F_Input_APR1!$B$5:$B$654, 0), MATCH($C40,F_Input_APR1!$A$5:$M$5, 0)) -> 413.8898524
A41: NWT23 | B41: NWT | C41: 2022-23 | D41: =INDEX(F_Input_CPIH!$F$9:$M$9, MATCH(APR_Combined_Inputs!$C41, F_Input_CPIH!$F$5:$M$5, 0)) -> 1 | E41: =INDEX(F_Input_APR1!$A$5:$M$654, MATCH($B41&E$8, F_Input_APR1!$A$5:$A$654&F_Input_APR1!$B$5:$B$654, 0), MATCH($C41,F_Input_APR1!$A$5:$M$5, 0)) -> 109.3031666 | F41: =INDEX(F_Input_APR1!$A$5:$M$654, MATCH($B41&F$8, F_Input_APR1!$A$5:$A$654&F_Input_APR1!$B$5:$B$654, 0), MATCH($C41,F_Input_APR1!$A$5:$M$5, 0)) -> 9.39796118 | G41: =INDEX(F_Input_APR1!$A$5:$M$654, MATCH($B41&G$8, F_Input_APR1!$A$5:$A$654&F_Input_APR1!$B$5:$B$654, 0), MATCH($C41,F_Input_APR1!$A$5:$M$5, 0)) -> 99.90520542 | H41: =INDEX(F_Input_APR1!$A$5:$M$654, MATCH($B41&H$8, F_Input_APR1!$A$5:$A$654&F_Input_APR1!$B$5:$B$654, 0), MATCH($C41,F_Input_APR1!$A$5:$M$5, 0)) -> 430.3
A42: NWT24 | B42: NWT | C42: 2023-24 | D42: =INDEX(F_Input_CPIH!$F$9:$M$9, MATCH(APR_Combined_Inputs!$C42, F_Input_CPIH!$F$5:$M$5, 0)) -> 0.9474460986 | E42: =INDEX(F_Input_APR1!$A$5:$M$654, MATCH($B42&E$8, F_Input_APR1!$A$5:$A$654&F_Input_APR1!$B$5:$B$654, 0), MATCH($C42,F_Input_APR1!$A$5:$M$5, 0)) -> 96.02512897 | F42: =INDEX(F_Input_APR1!$A$5:$M$654, MATCH($B42&F$8, F_Input_APR1!$A$5:$A$654&F_Input_APR1!$B$5:$B$654, 0), MATCH($C42,F_Input_APR1!$A$5:$M$5, 0)) -> 6.850332643 | G42: =INDEX(F_Input_APR1!$A$5:$M$654, MATCH($B42&G$8, F_Input_APR1!$A$5:$A$654&F_Input_APR1!$B$5:$B$654, 0), MATCH($C42,F_Input_APR1!$A$5:$M$5, 0)) -> 89.17479632 | H42: =INDEX(F_Input_APR1!$A$5:$M$654, MATCH($B42&H$8, F_Input_APR1!$A$5:$A$654&F_Input_APR1!$B$5:$B$654, 0), MATCH($C42,F_Input_APR1!$A$5:$M$5, 0)) -> 416.85
A43: SRN17 | B43: SRN | C43: 2016-17 | D43: =INDEX(F_Input_CPIH!$F$9:$M$9, MATCH(APR_Combined_Inputs!$C43, F_Input_CPIH!$F$5:$M$5, 0)) -> 1.211735741 | E43: =INDEX(F_Input_APR1!$A$5:$M$654, MATCH($B43&E$8, F_Input_APR1!$A$5:$A$654&F_Input_APR1!$B$5:$B$654, 0), MATCH($C43,F_Input_APR1!$A$5:$M$5, 0)) ->  | F43: =INDEX(F_Input_APR1!$A$5:$M$654, MATCH($B43&F$8, F_Input_APR1!$A$5:$A$654&F_Input_APR1!$B$5:$B$654, 0), MATCH($C43,F_Input_APR1!$A$5:$M$5, 0)) ->  | G43: =INDEX(F_Input_APR1!$A$5:$M$654, MATCH($B43&G$8, F_Input_APR1!$A$5:$A$654&F_Input_APR1!$B$5:$B$654, 0), MATCH($C43,F_Input_APR1!$A$5:$M$5, 0)) ->  | H43: =INDEX(F_Input_APR1!$A$5:$M$654, MATCH($B43&H$8, F_Input_APR1!$A$5:$A$654&F_Input_APR1!$B$5:$B$654, 0), MATCH($C43,F_Input_APR1!$A$5:$M$5, 0)) -> 88.11015664
A44: SRN18 | B44: SRN | C44: 2017-18 | D44: =INDEX(F_Input_CPIH!$F$9:$M$9, MATCH(APR_Combined_Inputs!$C44, F_Input_CPIH!$F$5:$M$5, 0)) -> 1.180633296 | E44: =INDEX(F_Input_APR1!$A$5:$M$654, MATCH($B44&E$8, F_Input_APR1!$A$5:$A$654&F_Input_APR1!$B$5:$B$654, 0), MATCH($C44,F_Input_APR1!$A$5:$M$5, 0)) -> 16.706 | F44: =INDEX(F_Input_APR1!$A$5:$M$654, MATCH($B44&F$8, F_Input_APR1!$A$5:$A$654&F_Input_APR1!$B$5:$B$654, 0), MATCH($C44,F_Input_APR1!$A$5:$M$5, 0)) -> 1.67 | G44: =INDEX(F_Input_APR1!$A$5:$M$654, MATCH($B44&G$8, F_Input_APR1!$A$5:$A$654&F_Input_APR1!$B$5:$B$654, 0), MATCH($C44,F_Input_APR1!$A$5:$M$5, 0)) -> 15.036 | H44: =INDEX(F_Input_APR1!$A$5:$M$654, MATCH($B44&H$8, F_Input_APR1!$A$5:$A$654&F_Input_APR1!$B$5:$B$654, 0), MATCH($C44,F_Input_APR1!$A$5:$M$5, 0)) -> 102.64
A45: SRN19 | B45: SRN | C45: 2018-19 | D45: =INDEX(F_Input_CPIH!$F$9:$M$9, MATCH(APR_Combined_Inputs!$C45, F_Input_CPIH!$F$5:$M$5, 0)) -> 1.156044472 | E45: =INDEX(F_Input_APR1!$A$5:$M$654, MATCH($B45&E$8, F_Input_APR1!$A$5:$A$654&F_Input_APR1!$B$5:$B$654, 0), MATCH($C45,F_Input_APR1!$A$5:$M$5, 0)) -> 20.505 | F45: =INDEX(F_Input_APR1!$A$5:$M$654, MATCH($B45&F$8, F_Input_APR1!$A$5:$A$654&F_Input_APR1!$B$5:$B$654, 0), MATCH($C45,F_Input_APR1!$A$5:$M$5, 0)) -> 2.05 | G45: =INDEX(F_Input_APR1!$A$5:$M$654, MATCH($B45&G$8, F_Input_APR1!$A$5:$A$654&F_Input_APR1!$B$5:$B$654, 0), MATCH($C45,F_Input_APR1!$A$5:$M$5, 0)) -> 18.455 | H45: =INDEX(F_Input_APR1!$A$5:$M$654, MATCH($B45&H$8, F_Input_APR1!$A$5:$A$654&F_Input_APR1!$B$5:$B$654, 0), MATCH($C45,F_Input_APR1!$A$5:$M$5, 0)) -> 101.83
A46: SRN20 | B46: SRN | C46: 2019-20 | D46: =INDEX(F_Input_CPIH!$F$9:$M$9, MATCH(APR_Combined_Inputs!$C46, F_Input_CPIH!$F$5:$M$5, 0)) -> 1.13673108 | E46: =INDEX(F_Input_APR1!$A$5:$M$654, MATCH($B46&E$8, F_Input_APR1!$A$5:$A$654&F_Input_APR1!$B$5:$B$654, 0), MATCH($C46,F_Input_APR1!$A$5:$M$5, 0)) -> 24.19 | F46: =INDEX(F_Input_APR1!$A$5:$M$654, MATCH($B46&F$8, F_Input_APR1!$A$5:$A$654&F_Input_APR1!$B$5:$B$654, 0), MATCH($C46,F_Input_APR1!$A$5:$M$5, 0)) -> 2.419 | G46: =INDEX(F_Input_APR1!$A$5:$M$654, MATCH($B46&G$8, F_Input_APR1!$A$5:$A$654&F_Input_APR1!$B$5:$B$654, 0), MATCH($C46,F_Input_APR1!$A$5:$M$5, 0)) -> 21.771 | H46: =INDEX(F_Input_APR1!$A$5:$M$654, MATCH($B46&H$8, F_Input_APR1!$A$5:$A$654&F_Input_APR1!$B$5:$B$654, 0), MATCH($C46,F_Input_APR1!$A$5:$M$5, 0)) -> 94.04
A47: SRN21 | B47: SRN | C47: 2020-21 | D47: =INDEX(F_Input_CPIH!$F$9:$M$9, MATCH(APR_Combined_Inputs!$C47, F_Input_CPIH!$F$5:$M$5, 0)) -> 1.127701825 | E47: =INDEX(F_Input_APR1!$A$5:$M$654, MATCH($B47&E$8, F_Input_APR1!$A$5:$A$654&F_Input_APR1!$B$5:$B$654, 0), MATCH($C47,F_Input_APR1!$A$5:$M$5, 0)) -> 18.708 | F47: =INDEX(F_Input_APR1!$A$5:$M$654, MATCH($B47&F$8, F_Input_APR1!$A$5:$A$654&F_Input_APR1!$B$5:$B$654, 0), MATCH($C47,F_Input_APR1!$A$5:$M$5, 0)) -> 1.87 | G47: =INDEX(F_Input_APR1!$A$5:$M$654, MATCH($B47&G$8, F_Input_APR1!$A$5:$A$654&F_Input_APR1!$B$5:$B$654, 0), MATCH($C47,F_Input_APR1!$A$5:$M$5, 0)) -> 16.838 | H47: =INDEX(F_Input_APR1!$A$5:$M$654, MATCH($B47&H$8, F_Input_APR1!$A$5:$A$654&F_Input_APR1!$B$5:$B$654, 0), MATCH($C47,F_Input_APR1!$A$5:$M$5, 0)) -> 98.42
A48: SRN22 | B48: SRN | C48: 2021-22 | D48: =INDEX(F_Input_CPIH!$F$9:$M$9, MATCH(APR_Combined_Inputs!$C48, F_Input_CPIH!$F$5:$M$5, 0)) -> 1.08774127 | E48: =INDEX(F_Input_APR1!$A$5:$M$654, MATCH($B48&E$8, F_Input_APR1!$A$5:$A$654&F_Input_APR1!$B$5:$B$654, 0), MATCH($C48,F_Input_APR1!$A$5:$M$5, 0)) -> 20.121 | F48: =INDEX(F_Input_APR1!$A$5:$M$654, MATCH($B48&F$8, F_Input_APR1!$A$5:$A$654&F_Input_APR1!$B$5:$B$654, 0), MATCH($C48,F_Input_APR1!$A$5:$M$5, 0)) -> 2.012 | G48: =INDEX(F_Input_APR1!$A$5:$M$654, MATCH($B48&G$8, F_Input_APR1!$A$5:$A$654&F_Input_APR1!$B$5:$B$654, 0), MATCH($C48,F_Input_APR1!$A$5:$M$5, 0)) -> 18.109 | H48: =INDEX(F_Input_APR1!$A$5:$M$654, MATCH($B48&H$8, F_Input_APR1!$A$5:$A$654&F_Input_APR1!$B$5:$B$654, 0), MATCH($C48,F_Input_APR1!$A$5:$M$5, 0)) -> 96.818
A49: SRN23 | B49: SRN | C49: 2022-23 | D49: =INDEX(F_Input_CPIH!$F$9:$M$9, MATCH(APR_Combined_Inputs!$C49, F_Input_CPIH!$F$5:$M$5, 0)) -> 1 | E49: =INDEX(F_Input_APR1!$A$5:$M$654, MATCH($B49&E$8, F_Input_APR1!$A$5:$A$654&F_Input_APR1!$B$5:$B$654, 0), MATCH($C49,F_Input_APR1!$A$5:$M$5, 0)) -> 21.443 | F49: =INDEX(F_Input_APR1!$A$5:$M$654, MATCH($B49&F$8, F_Input_APR1!$A$5:$A$654&F_Input_APR1!$B$5:$B$654, 0), MATCH($C49,F_Input_APR1!$A$5:$M$5, 0)) -> 2.144 | G49: =INDEX(F_Input_APR1!$A$5:$M$654, MATCH($B49&G$8, F_Input_APR1!$A$5:$A$654&F_Input_APR1!$B$5:$B$654, 0), MATCH($C49,F_Input_APR1!$A$5:$M$5, 0)) -> 19.299 | H49: =INDEX(F_Input_APR1!$A$5:$M$654, MATCH($B49&H$8, F_Input_APR1!$A$5:$A$654&F_Input_APR1!$B$5:$B$654, 0), MATCH($C49,F_Input_APR1!$A$5:$M$5, 0)) -> 95.9
A50: SRN24 | B50: SRN | C50: 2023-24 | D50: =INDEX(F_Input_CPIH!$F$9:$M$9, MATCH(APR_Combined_Inputs!$C50, F_Input_CPIH!$F$5:$M$5, 0)) -> 0.9474460986 | E50: =INDEX(F_Input_APR1!$A$5:$M$654, MATCH($B50&E$8, F_Input_APR1!$A$5:$A$654&F_Input_APR1!$B$5:$B$654, 0), MATCH($C50,F_Input_APR1!$A$5:$M$5, 0)) -> 25.44 | F50: =INDEX(F_Input_APR1!$A$5:$M$654, MATCH($B50&F$8, F_Input_APR1!$A$5:$A$654&F_Input_APR1!$B$5:$B$654, 0), MATCH($C50,F_Input_APR1!$A$5:$M$5, 0)) -> 2.544 | G50: =INDEX(F_Input_APR1!$A$5:$M$654, MATCH($B50&G$8, F_Input_APR1!$A$5:$A$654&F_Input_APR1!$B$5:$B$654, 0), MATCH($C50,F_Input_APR1!$A$5:$M$5, 0)) -> 22.896 | H50: =INDEX(F_Input_APR1!$A$5:$M$654, MATCH($B50&H$8, F_Input_APR1!$A$5:$A$654&F_Input_APR1!$B$5:$B$654, 0), MATCH($C50,F_Input_APR1!$A$5:$M$5, 0)) -> 92.7
A51: SVE17 | B51: SVE | C51: 2016-17 | D51: =INDEX(F_Input_CPIH!$F$9:$M$9, MATCH(APR_Combined_Inputs!$C51, F_Input_CPIH!$F$5:$M$5, 0)) -> 1.211735741 | E51: =INDEX(F_Input_APR1!$A$5:$M$654, MATCH($B51&E$8, F_Input_APR1!$A$5:$A$654&F_Input_APR1!$B$5:$B$654, 0), MATCH($C51,F_Input_APR1!$A$5:$M$5, 0)) ->  | F51: =INDEX(F_Input_APR1!$A$5:$M$654, MATCH($B51&F$8, F_Input_APR1!$A$5:$A$654&F_Input_APR1!$B$5:$B$654, 0), MATCH($C51,F_Input_APR1!$A$5:$M$5, 0)) ->  | G51: =INDEX(F_Input_APR1!$A$5:$M$654, MATCH($B51&G$8, F_Input_APR1!$A$5:$A$654&F_Input_APR1!$B$5:$B$654, 0), MATCH($C51,F_Input_APR1!$A$5:$M$5, 0)) ->  | H51: =INDEX(F_Input_APR1!$A$5:$M$654, MATCH($B51&H$8, F_Input_APR1!$A$5:$A$654&F_Input_APR1!$B$5:$B$654, 0), MATCH($C51,F_Input_APR1!$A$5:$M$5, 0)) -> 
A52: SVE18 | B52: SVE | C52: 2017-18 | D52: =INDEX(F_Input_CPIH!$F$9:$M$9, MATCH(APR_Combined_Inputs!$C52, F_Input_CPIH!$F$5:$M$5, 0)) -> 1.180633296 | E52: =INDEX(F_Input_APR1!$A$5:$M$654, MATCH($B52&E$8, F_Input_APR1!$A$5:$A$654&F_Input_APR1!$B$5:$B$654, 0), MATCH($C52,F_Input_APR1!$A$5:$M$5, 0)) -> 126.686 | F52: =INDEX(F_Input_APR1!$A$5:$M$654, MATCH($B52&F$8, F_Input_APR1!$A$5:$A$654&F_Input_APR1!$B$5:$B$654, 0), MATCH($C52,F_Input_APR1!$A$5:$M$5, 0)) -> 0 | G52: =INDEX(F_Input_APR1!$A$5:$M$654, MATCH($B52&G$8, F_Input_APR1!$A$5:$A$654&F_Input_APR1!$B$5:$B$654, 0), MATCH($C52,F_Input_APR1!$A$5:$M$5, 0)) -> 126.686 | H52: =INDEX(F_Input_APR1!$A$5:$M$654, MATCH($B52&H$8, F_Input_APR1!$A$5:$A$654&F_Input_APR1!$B$5:$B$654, 0), MATCH($C52,F_Input_APR1!$A$5:$M$5, 0)) -> 439.22
A53: SVE19 | B53: SVE | C53: 2018-19 | D53: =INDEX(F_Input_CPIH!$F$9:$M$9, MATCH(APR_Combined_Inputs!$C53, F_Input_CPIH!$F$5:$M$5, 0)) -> 1.156044472 | E53: =INDEX(F_Input_APR1!$A$5:$M$654, MATCH($B53&E$8, F_Input_APR1!$A$5:$A$654&F_Input_APR1!$B$5:$B$654, 0), MATCH($C53,F_Input_APR1!$A$5:$M$5, 0)) -> 173.981 | F53: =INDEX(F_Input_APR1!$A$5:$M$654, MATCH($B53&F$8, F_Input_APR1!$A$5:$A$654&F_Input_APR1!$B$5:$B$654, 0), MATCH($C53,F_Input_APR1!$A$5:$M$5, 0)) -> 0 | G53: =INDEX(F_Input_APR1!$A$5:$M$654, MATCH($B53&G$8, F_Input_APR1!$A$5:$A$654&F_Input_APR1!$B$5:$B$654, 0), MATCH($C53,F_Input_APR1!$A$5:$M$5, 0)) -> 173.981 | H53: =INDEX(F_Input_APR1!$A$5:$M$654, MATCH($B53&H$8, F_Input_APR1!$A$5:$A$654&F_Input_APR1!$B$5:$B$654, 0), MATCH($C53,F_Input_APR1!$A$5:$M$5, 0)) -> 424.3665249
A54: SVE20 | B54: SVE | C54: 2019-20 | D54: =INDEX(F_Input_CPIH!$F$9:$M$9, MATCH(APR_Combined_Inputs!$C54, F_Input_CPIH!$F$5:$M$5, 0)) -> 1.13673108 | E54: =INDEX(F_Input_APR1!$A$5:$M$654, MATCH($B54&E$8, F_Input_APR1!$A$5:$A$654&F_Input_APR1!$B$5:$B$654, 0), MATCH($C54,F_Input_APR1!$A$5:$M$5, 0)) -> 184.746 | F54: =INDEX(F_Input_APR1!$A$5:$M$654, MATCH($B54&F$8, F_Input_APR1!$A$5:$A$654&F_Input_APR1!$B$5:$B$654, 0), MATCH($C54,F_Input_APR1!$A$5:$M$5, 0)) -> 17.721 | G54: =INDEX(F_Input_APR1!$A$5:$M$654, MATCH($B54&G$8, F_Input_APR1!$A$5:$A$654&F_Input_APR1!$B$5:$B$654, 0), MATCH($C54,F_Input_APR1!$A$5:$M$5, 0)) -> 167.025 | H54: =INDEX(F_Input_APR1!$A$5:$M$654, MATCH($B54&H$8, F_Input_APR1!$A$5:$A$654&F_Input_APR1!$B$5:$B$654, 0), MATCH($C54,F_Input_APR1!$A$5:$M$5, 0)) -> 404.534219
A55: SVE21 | B55: SVE | C55: 2020-21 | D55: =INDEX(F_Input_CPIH!$F$9:$M$9, MATCH(APR_Combined_Inputs!$C55, F_Input_CPIH!$F$5:$M$5, 0)) -> 1.127701825 | E55: =INDEX(F_Input_APR1!$A$5:$M$654, MATCH($B55&E$8, F_Input_APR1!$A$5:$A$654&F_Input_APR1!$B$5:$B$654, 0), MATCH($C55,F_Input_APR1!$A$5:$M$5, 0)) -> 138.245 | F55: =INDEX(F_Input_APR1!$A$5:$M$654, MATCH($B55&F$8, F_Input_APR1!$A$5:$A$654&F_Input_APR1!$B$5:$B$654, 0), MATCH($C55,F_Input_APR1!$A$5:$M$5, 0)) -> 17.474 | G55: =INDEX(F_Input_APR1!$A$5:$M$654, MATCH($B55&G$8, F_Input_APR1!$A$5:$A$654&F_Input_APR1!$B$5:$B$654, 0), MATCH($C55,F_Input_APR1!$A$5:$M$5, 0)) -> 120.771 | H55: =INDEX(F_Input_APR1!$A$5:$M$654, MATCH($B55&H$8, F_Input_APR1!$A$5:$A$654&F_Input_APR1!$B$5:$B$654, 0), MATCH($C55,F_Input_APR1!$A$5:$M$5, 0)) -> 411.46
A56: SVE22 | B56: SVE | C56: 2021-22 | D56: =INDEX(F_Input_CPIH!$F$9:$M$9, MATCH(APR_Combined_Inputs!$C56, F_Input_CPIH!$F$5:$M$5, 0)) -> 1.08774127 | E56: =INDEX(F_Input_APR1!$A$5:$M$654, MATCH($B56&E$8, F_Input_APR1!$A$5:$A$654&F_Input_APR1!$B$5:$B$654, 0), MATCH($C56,F_Input_APR1!$A$5:$M$5, 0)) -> 149.946 | F56: =INDEX(F_Input_APR1!$A$5:$M$654, MATCH($B56&F$8, F_Input_APR1!$A$5:$A$654&F_Input_APR1!$B$5:$B$654, 0), MATCH($C56,F_Input_APR1!$A$5:$M$5, 0)) -> 4.166 | G56: =INDEX(F_Input_APR1!$A$5:$M$654, MATCH($B56&G$8, F_Input_APR1!$A$5:$A$654&F_Input_APR1!$B$5:$B$654, 0), MATCH($C56,F_Input_APR1!$A$5:$M$5, 0)) -> 145.78 | H56: =INDEX(F_Input_APR1!$A$5:$M$654, MATCH($B56&H$8, F_Input_APR1!$A$5:$A$654&F_Input_APR1!$B$5:$B$654, 0), MATCH($C56,F_Input_APR1!$A$5:$M$5, 0)) -> 441.444
A57: SVE23 | B57: SVE | C57: 2022-23 | D57: =INDEX(F_Input_CPIH!$F$9:$M$9, MATCH(APR_Combined_Inputs!$C57, F_Input_CPIH!$F$5:$M$5, 0)) -> 1 | E57: =INDEX(F_Input_APR1!$A$5:$M$654, MATCH($B57&E$8, F_Input_APR1!$A$5:$A$654&F_Input_APR1!$B$5:$B$654, 0), MATCH($C57,F_Input_APR1!$A$5:$M$5, 0)) -> 128.941 | F57: =INDEX(F_Input_APR1!$A$5:$M$654, MATCH($B57&F$8, F_Input_APR1!$A$5:$A$654&F_Input_APR1!$B$5:$B$654, 0), MATCH($C57,F_Input_APR1!$A$5:$M$5, 0)) -> 10.325 | G57: =INDEX(F_Input_APR1!$A$5:$M$654, MATCH($B57&G$8, F_Input_APR1!$A$5:$A$654&F_Input_APR1!$B$5:$B$654, 0), MATCH($C57,F_Input_APR1!$A$5:$M$5, 0)) -> 118.616 | H57: =INDEX(F_Input_APR1!$A$5:$M$654, MATCH($B57&H$8, F_Input_APR1!$A$5:$A$654&F_Input_APR1!$B$5:$B$654, 0), MATCH($C57,F_Input_APR1!$A$5:$M$5, 0)) -> 384.8469231
A58: SVE24 | B58: SVE | C58: 2023-24 | D58: =INDEX(F_Input_CPIH!$F$9:$M$9, MATCH(APR_Combined_Inputs!$C58, F_Input_CPIH!$F$5:$M$5, 0)) -> 0.9474460986 | E58: =INDEX(F_Input_APR1!$A$5:$M$654, MATCH($B58&E$8, F_Input_APR1!$A$5:$A$654&F_Input_APR1!$B$5:$B$654, 0), MATCH($C58,F_Input_APR1!$A$5:$M$5, 0)) -> 128.438 | F58: =INDEX(F_Input_APR1!$A$5:$M$654, MATCH($B58&F$8, F_Input_APR1!$A$5:$A$654&F_Input_APR1!$B$5:$B$654, 0), MATCH($C58,F_Input_APR1!$A$5:$M$5, 0)) -> 3.844 | G58: =INDEX(F_Input_APR1!$A$5:$M$654, MATCH($B58&G$8, F_Input_APR1!$A$5:$A$654&F_Input_APR1!$B$5:$B$654, 0), MATCH($C58,F_Input_APR1!$A$5:$M$5, 0)) -> 124.594 | H58: =INDEX(F_Input_APR1!$A$5:$M$654, MATCH($B58&H$8, F_Input_APR1!$A$5:$A$654&F_Input_APR1!$B$5:$B$654, 0), MATCH($C58,F_Input_APR1!$A$5:$M$5, 0)) -> 359.9764899
A59: SWB17 | B59: SWB | C59: 2016-17 | D59: =INDEX(F_Input_CPIH!$F$9:$M$9, MATCH(APR_Combined_Inputs!$C59, F_Input_CPIH!$F$5:$M$5, 0)) -> 1.211735741 | E59: =INDEX(F_Input_APR1!$A$5:$M$654, MATCH($B59&E$8, F_Input_APR1!$A$5:$A$654&F_Input_APR1!$B$5:$B$654, 0), MATCH($C59,F_Input_APR1!$A$5:$M$5, 0)) ->  | F59: =INDEX(F_Input_APR1!$A$5:$M$654, MATCH($B59&F$8, F_Input_APR1!$A$5:$A$654&F_Input_APR1!$B$5:$B$654, 0), MATCH($C59,F_Input_APR1!$A$5:$M$5, 0)) ->  | G59: =INDEX(F_Input_APR1!$A$5:$M$654, MATCH($B59&G$8, F_Input_APR1!$A$5:$A$654&F_Input_APR1!$B$5:$B$654, 0), MATCH($C59,F_Input_APR1!$A$5:$M$5, 0)) ->  | H59: =INDEX(F_Input_APR1!$A$5:$M$654, MATCH($B59&H$8, F_Input_APR1!$A$5:$A$654&F_Input_APR1!$B$5:$B$654, 0), MATCH($C59,F_Input_APR1!$A$5:$M$5, 0)) -> 103.51
A60: SWB18 | B60: SWB | C60: 2017-18 | D60: =INDEX(F_Input_CPIH!$F$9:$M$9, MATCH(APR_Combined_Inputs!$C60, F_Input_CPIH!$F$5:$M$5, 0)) -> 1.180633296 | E60: =INDEX(F_Input_APR1!$A$5:$M$654, MATCH($B60&E$8, F_Input_APR1!$A$5:$A$654&F_Input_APR1!$B$5:$B$654, 0), MATCH($C60,F_Input_APR1!$A$5:$M$5, 0)) -> 13.215 | F60: =INDEX(F_Input_APR1!$A$5:$M$654, MATCH($B60&F$8, F_Input_APR1!$A$5:$A$654&F_Input_APR1!$B$5:$B$654, 0), MATCH($C60,F_Input_APR1!$A$5:$M$5, 0)) -> 5.566 | G60: =INDEX(F_Input_APR1!$A$5:$M$654, MATCH($B60&G$8, F_Input_APR1!$A$5:$A$654&F_Input_APR1!$B$5:$B$654, 0), MATCH($C60,F_Input_APR1!$A$5:$M$5, 0)) -> 7.649 | H60: =INDEX(F_Input_APR1!$A$5:$M$654, MATCH($B60&H$8, F_Input_APR1!$A$5:$A$654&F_Input_APR1!$B$5:$B$654, 0), MATCH($C60,F_Input_APR1!$A$5:$M$5, 0)) -> 102.46
A61: SWB19 | B61: SWB | C61: 2018-19 | D61: =INDEX(F_Input_CPIH!$F$9:$M$9, MATCH(APR_Combined_Inputs!$C61, F_Input_CPIH!$F$5:$M$5, 0)) -> 1.156044472 | E61: =INDEX(F_Input_APR1!$A$5:$M$654, MATCH($B61&E$8, F_Input_APR1!$A$5:$A$654&F_Input_APR1!$B$5:$B$654, 0), MATCH($C61,F_Input_APR1!$A$5:$M$5, 0)) -> 15.683 | F61: =INDEX(F_Input_APR1!$A$5:$M$654, MATCH($B61&F$8, F_Input_APR1!$A$5:$A$654&F_Input_APR1!$B$5:$B$654, 0), MATCH($C61,F_Input_APR1!$A$5:$M$5, 0)) -> 6.476 | G61: =INDEX(F_Input_APR1!$A$5:$M$654, MATCH($B61&G$8, F_Input_APR1!$A$5:$A$654&F_Input_APR1!$B$5:$B$654, 0), MATCH($C61,F_Input_APR1!$A$5:$M$5, 0)) -> 9.207 | H61: =INDEX(F_Input_APR1!$A$5:$M$654, MATCH($B61&H$8, F_Input_APR1!$A$5:$A$654&F_Input_APR1!$B$5:$B$654, 0), MATCH($C61,F_Input_APR1!$A$5:$M$5, 0)) -> 103.6389185
A62: SWB20 | B62: SWB | C62: 2019-20 | D62: =INDEX(F_Input_CPIH!$F$9:$M$9, MATCH(APR_Combined_Inputs!$C62, F_Input_CPIH!$F$5:$M$5, 0)) -> 1.13673108 | E62: =INDEX(F_Input_APR1!$A$5:$M$654, MATCH($B62&E$8, F_Input_APR1!$A$5:$A$654&F_Input_APR1!$B$5:$B$654, 0), MATCH($C62,F_Input_APR1!$A$5:$M$5, 0)) -> 17.105 | F62: =INDEX(F_Input_APR1!$A$5:$M$654, MATCH($B62&F$8, F_Input_APR1!$A$5:$A$654&F_Input_APR1!$B$5:$B$654, 0), MATCH($C62,F_Input_APR1!$A$5:$M$5, 0)) -> 3.693 | G62: =INDEX(F_Input_APR1!$A$5:$M$654, MATCH($B62&G$8, F_Input_APR1!$A$5:$A$654&F_Input_APR1!$B$5:$B$654, 0), MATCH($C62,F_Input_APR1!$A$5:$M$5, 0)) -> 13.412 | H62: =INDEX(F_Input_APR1!$A$5:$M$654, MATCH($B62&H$8, F_Input_APR1!$A$5:$A$654&F_Input_APR1!$B$5:$B$654, 0), MATCH($C62,F_Input_APR1!$A$5:$M$5, 0)) -> 106.32
A63: SWB21 | B63: SWB | C63: 2020-21 | D63: =INDEX(F_Input_CPIH!$F$9:$M$9, MATCH(APR_Combined_Inputs!$C63, F_Input_CPIH!$F$5:$M$5, 0)) -> 1.127701825 | E63: =INDEX(F_Input_APR1!$A$5:$M$654, MATCH($B63&E$8, F_Input_APR1!$A$5:$A$654&F_Input_APR1!$B$5:$B$654, 0), MATCH($C63,F_Input_APR1!$A$5:$M$5, 0)) -> 22.218 | F63: =INDEX(F_Input_APR1!$A$5:$M$654, MATCH($B63&F$8, F_Input_APR1!$A$5:$A$654&F_Input_APR1!$B$5:$B$654, 0), MATCH($C63,F_Input_APR1!$A$5:$M$5, 0)) -> 7.27 | G63: =INDEX(F_Input_APR1!$A$5:$M$654, MATCH($B63&G$8, F_Input_APR1!$A$5:$A$654&F_Input_APR1!$B$5:$B$654, 0), MATCH($C63,F_Input_APR1!$A$5:$M$5, 0)) -> 14.948 | H63: =INDEX(F_Input_APR1!$A$5:$M$654, MATCH($B63&H$8, F_Input_APR1!$A$5:$A$654&F_Input_APR1!$B$5:$B$654, 0), MATCH($C63,F_Input_APR1!$A$5:$M$5, 0)) -> 135.99
A64: SWB22 | B64: SWB | C64: 2021-22 | D64: =INDEX(F_Input_CPIH!$F$9:$M$9, MATCH(APR_Combined_Inputs!$C64, F_Input_CPIH!$F$5:$M$5, 0)) -> 1.08774127 | E64: =INDEX(F_Input_APR1!$A$5:$M$654, MATCH($B64&E$8, F_Input_APR1!$A$5:$A$654&F_Input_APR1!$B$5:$B$654, 0), MATCH($C64,F_Input_APR1!$A$5:$M$5, 0)) -> 27.284 | F64: =INDEX(F_Input_APR1!$A$5:$M$654, MATCH($B64&F$8, F_Input_APR1!$A$5:$A$654&F_Input_APR1!$B$5:$B$654, 0), MATCH($C64,F_Input_APR1!$A$5:$M$5, 0)) -> 9.38 | G64: =INDEX(F_Input_APR1!$A$5:$M$654, MATCH($B64&G$8, F_Input_APR1!$A$5:$A$654&F_Input_APR1!$B$5:$B$654, 0), MATCH($C64,F_Input_APR1!$A$5:$M$5, 0)) -> 17.904 | H64: =INDEX(F_Input_APR1!$A$5:$M$654, MATCH($B64&H$8, F_Input_APR1!$A$5:$A$654&F_Input_APR1!$B$5:$B$654, 0), MATCH($C64,F_Input_APR1!$A$5:$M$5, 0)) -> 90.56
A65: SWB23 | B65: SWB | C65: 2022-23 | D65: =INDEX(F_Input_CPIH!$F$9:$M$9, MATCH(APR_Combined_Inputs!$C65, F_Input_CPIH!$F$5:$M$5, 0)) -> 1 | E65: =INDEX(F_Input_APR1!$A$5:$M$654, MATCH($B65&E$8, F_Input_APR1!$A$5:$A$654&F_Input_APR1!$B$5:$B$654, 0), MATCH($C65,F_Input_APR1!$A$5:$M$5, 0)) -> 27.47494857 | F65: =INDEX(F_Input_APR1!$A$5:$M$654, MATCH($B65&F$8, F_Input_APR1!$A$5:$A$654&F_Input_APR1!$B$5:$B$654, 0), MATCH($C65,F_Input_APR1!$A$5:$M$5, 0)) -> 0 | G65: =INDEX(F_Input_APR1!$A$5:$M$654, MATCH($B65&G$8, F_Input_APR1!$A$5:$A$654&F_Input_APR1!$B$5:$B$654, 0), MATCH($C65,F_Input_APR1!$A$5:$M$5, 0)) -> 27.47494857 | H65: =INDEX(F_Input_APR1!$A$5:$M$654, MATCH($B65&H$8, F_Input_APR1!$A$5:$A$654&F_Input_APR1!$B$5:$B$654, 0), MATCH($C65,F_Input_APR1!$A$5:$M$5, 0)) -> 107.23
A66: SWB24 | B66: SWB | C66: 2023-24 | D66: =INDEX(F_Input_CPIH!$F$9:$M$9, MATCH(APR_Combined_Inputs!$C66, F_Input_CPIH!$F$5:$M$5, 0)) -> 0.9474460986 | E66: =INDEX(F_Input_APR1!$A$5:$M$654, MATCH($B66&E$8, F_Input_APR1!$A$5:$A$654&F_Input_APR1!$B$5:$B$654, 0), MATCH($C66,F_Input_APR1!$A$5:$M$5, 0)) -> 29.32230451 | F66: =INDEX(F_Input_APR1!$A$5:$M$654, MATCH($B66&F$8, F_Input_APR1!$A$5:$A$654&F_Input_APR1!$B$5:$B$654, 0), MATCH($C66,F_Input_APR1!$A$5:$M$5, 0)) -> 0 | G66: =INDEX(F_Input_APR1!$A$5:$M$654, MATCH($B66&G$8, F_Input_APR1!$A$5:$A$654&F_Input_APR1!$B$5:$B$654, 0), MATCH($C66,F_Input_APR1!$A$5:$M$5, 0)) -> 29.32230451 | H66: =INDEX(F_Input_APR1!$A$5:$M$654, MATCH($B66&H$8, F_Input_APR1!$A$5:$A$654&F_Input_APR1!$B$5:$B$654, 0), MATCH($C66,F_Input_APR1!$A$5:$M$5, 0)) -> 103.7
A67: TMS17 | B67: TMS | C67: 2016-17 | D67: =INDEX(F_Input_CPIH!$F$9:$M$9, MATCH(APR_Combined_Inputs!$C67, F_Input_CPIH!$F$5:$M$5, 0)) -> 1.211735741 | E67: =INDEX(F_Input_APR1!$A$5:$M$654, MATCH($B67&E$8, F_Input_APR1!$A$5:$A$654&F_Input_APR1!$B$5:$B$654, 0), MATCH($C67,F_Input_APR1!$A$5:$M$5, 0)) ->  | F67: =INDEX(F_Input_APR1!$A$5:$M$654, MATCH($B67&F$8, F_Input_APR1!$A$5:$A$654&F_Input_APR1!$B$5:$B$654, 0), MATCH($C67,F_Input_APR1!$A$5:$M$5, 0)) ->  | G67: =INDEX(F_Input_APR1!$A$5:$M$654, MATCH($B67&G$8, F_Input_APR1!$A$5:$A$654&F_Input_APR1!$B$5:$B$654, 0), MATCH($C67,F_Input_APR1!$A$5:$M$5, 0)) ->  | H67: =INDEX(F_Input_APR1!$A$5:$M$654, MATCH($B67&H$8, F_Input_APR1!$A$5:$A$654&F_Input_APR1!$B$5:$B$654, 0), MATCH($C67,F_Input_APR1!$A$5:$M$5, 0)) -> 677.1522739
A68: TMS18 | B68: TMS | C68: 2017-18 | D68: =INDEX(F_Input_CPIH!$F$9:$M$9, MATCH(APR_Combined_Inputs!$C68, F_Input_CPIH!$F$5:$M$5, 0)) -> 1.180633296 | E68: =INDEX(F_Input_APR1!$A$5:$M$654, MATCH($B68&E$8, F_Input_APR1!$A$5:$A$654&F_Input_APR1!$B$5:$B$654, 0), MATCH($C68,F_Input_APR1!$A$5:$M$5, 0)) -> 207.616 | F68: =INDEX(F_Input_APR1!$A$5:$M$654, MATCH($B68&F$8, F_Input_APR1!$A$5:$A$654&F_Input_APR1!$B$5:$B$654, 0), MATCH($C68,F_Input_APR1!$A$5:$M$5, 0)) -> 20.409 | G68: =INDEX(F_Input_APR1!$A$5:$M$654, MATCH($B68&G$8, F_Input_APR1!$A$5:$A$654&F_Input_APR1!$B$5:$B$654, 0), MATCH($C68,F_Input_APR1!$A$5:$M$5, 0)) -> 187.207 | H68: =INDEX(F_Input_APR1!$A$5:$M$654, MATCH($B68&H$8, F_Input_APR1!$A$5:$A$654&F_Input_APR1!$B$5:$B$654, 0), MATCH($C68,F_Input_APR1!$A$5:$M$5, 0)) -> 694.65
A69: TMS19 | B69: TMS | C69: 2018-19 | D69: =INDEX(F_Input_CPIH!$F$9:$M$9, MATCH(APR_Combined_Inputs!$C69, F_Input_CPIH!$F$5:$M$5, 0)) -> 1.156044472 | E69: =INDEX(F_Input_APR1!$A$5:$M$654, MATCH($B69&E$8, F_Input_APR1!$A$5:$A$654&F_Input_APR1!$B$5:$B$654, 0), MATCH($C69,F_Input_APR1!$A$5:$M$5, 0)) -> 251.934 | F69: =INDEX(F_Input_APR1!$A$5:$M$654, MATCH($B69&F$8, F_Input_APR1!$A$5:$A$654&F_Input_APR1!$B$5:$B$654, 0), MATCH($C69,F_Input_APR1!$A$5:$M$5, 0)) -> 49.719 | G69: =INDEX(F_Input_APR1!$A$5:$M$654, MATCH($B69&G$8, F_Input_APR1!$A$5:$A$654&F_Input_APR1!$B$5:$B$654, 0), MATCH($C69,F_Input_APR1!$A$5:$M$5, 0)) -> 202.215 | H69: =INDEX(F_Input_APR1!$A$5:$M$654, MATCH($B69&H$8, F_Input_APR1!$A$5:$A$654&F_Input_APR1!$B$5:$B$654, 0), MATCH($C69,F_Input_APR1!$A$5:$M$5, 0)) -> 690.39
A70: TMS20 | B70: TMS | C70: 2019-20 | D70: =INDEX(F_Input_CPIH!$F$9:$M$9, MATCH(APR_Combined_Inputs!$C70, F_Input_CPIH!$F$5:$M$5, 0)) -> 1.13673108 | E70: =INDEX(F_Input_APR1!$A$5:$M$654, MATCH($B70&E$8, F_Input_APR1!$A$5:$A$654&F_Input_APR1!$B$5:$B$654, 0), MATCH($C70,F_Input_APR1!$A$5:$M$5, 0)) -> 286.882 | F70: =INDEX(F_Input_APR1!$A$5:$M$654, MATCH($B70&F$8, F_Input_APR1!$A$5:$A$654&F_Input_APR1!$B$5:$B$654, 0), MATCH($C70,F_Input_APR1!$A$5:$M$5, 0)) -> 70.419 | G70: =INDEX(F_Input_APR1!$A$5:$M$654, MATCH($B70&G$8, F_Input_APR1!$A$5:$A$654&F_Input_APR1!$B$5:$B$654, 0), MATCH($C70,F_Input_APR1!$A$5:$M$5, 0)) -> 216.463 | H70: =INDEX(F_Input_APR1!$A$5:$M$654, MATCH($B70&H$8, F_Input_APR1!$A$5:$A$654&F_Input_APR1!$B$5:$B$654, 0), MATCH($C70,F_Input_APR1!$A$5:$M$5, 0)) -> 594.83
A71: TMS21 | B71: TMS | C71: 2020-21 | D71: =INDEX(F_Input_CPIH!$F$9:$M$9, MATCH(APR_Combined_Inputs!$C71, F_Input_CPIH!$F$5:$M$5, 0)) -> 1.127701825 | E71: =INDEX(F_Input_APR1!$A$5:$M$654, MATCH($B71&E$8, F_Input_APR1!$A$5:$A$654&F_Input_APR1!$B$5:$B$654, 0), MATCH($C71,F_Input_APR1!$A$5:$M$5, 0)) -> 244.462 | F71: =INDEX(F_Input_APR1!$A$5:$M$654, MATCH($B71&F$8, F_Input_APR1!$A$5:$A$654&F_Input_APR1!$B$5:$B$654, 0), MATCH($C71,F_Input_APR1!$A$5:$M$5, 0)) -> 35.121 | G71: =INDEX(F_Input_APR1!$A$5:$M$654, MATCH($B71&G$8, F_Input_APR1!$A$5:$A$654&F_Input_APR1!$B$5:$B$654, 0), MATCH($C71,F_Input_APR1!$A$5:$M$5, 0)) -> 209.341 | H71: =INDEX(F_Input_APR1!$A$5:$M$654, MATCH($B71&H$8, F_Input_APR1!$A$5:$A$654&F_Input_APR1!$B$5:$B$654, 0), MATCH($C71,F_Input_APR1!$A$5:$M$5, 0)) -> 589.6
A72: TMS22 | B72: TMS | C72: 2021-22 | D72: =INDEX(F_Input_CPIH!$F$9:$M$9, MATCH(APR_Combined_Inputs!$C72, F_Input_CPIH!$F$5:$M$5, 0)) -> 1.08774127 | E72: =INDEX(F_Input_APR1!$A$5:$M$654, MATCH($B72&E$8, F_Input_APR1!$A$5:$A$654&F_Input_APR1!$B$5:$B$654, 0), MATCH($C72,F_Input_APR1!$A$5:$M$5, 0)) -> 273.113 | F72: =INDEX(F_Input_APR1!$A$5:$M$654, MATCH($B72&F$8, F_Input_APR1!$A$5:$A$654&F_Input_APR1!$B$5:$B$654, 0), MATCH($C72,F_Input_APR1!$A$5:$M$5, 0)) -> 66.471 | G72: =INDEX(F_Input_APR1!$A$5:$M$654, MATCH($B72&G$8, F_Input_APR1!$A$5:$A$654&F_Input_APR1!$B$5:$B$654, 0), MATCH($C72,F_Input_APR1!$A$5:$M$5, 0)) -> 206.642 | H72: =INDEX(F_Input_APR1!$A$5:$M$654, MATCH($B72&H$8, F_Input_APR1!$A$5:$A$654&F_Input_APR1!$B$5:$B$654, 0), MATCH($C72,F_Input_APR1!$A$5:$M$5, 0)) -> 593.83
A73: TMS23 | B73: TMS | C73: 2022-23 | D73: =INDEX(F_Input_CPIH!$F$9:$M$9, MATCH(APR_Combined_Inputs!$C73, F_Input_CPIH!$F$5:$M$5, 0)) -> 1 | E73: =INDEX(F_Input_APR1!$A$5:$M$654, MATCH($B73&E$8, F_Input_APR1!$A$5:$A$654&F_Input_APR1!$B$5:$B$654, 0), MATCH($C73,F_Input_APR1!$A$5:$M$5, 0)) -> 357.76 | F73: =INDEX(F_Input_APR1!$A$5:$M$654, MATCH($B73&F$8, F_Input_APR1!$A$5:$A$654&F_Input_APR1!$B$5:$B$654, 0), MATCH($C73,F_Input_APR1!$A$5:$M$5, 0)) -> 63.148 | G73: =INDEX(F_Input_APR1!$A$5:$M$654, MATCH($B73&G$8, F_Input_APR1!$A$5:$A$654&F_Input_APR1!$B$5:$B$654, 0), MATCH($C73,F_Input_APR1!$A$5:$M$5, 0)) -> 294.612 | H73: =INDEX(F_Input_APR1!$A$5:$M$654, MATCH($B73&H$8, F_Input_APR1!$A$5:$A$654&F_Input_APR1!$B$5:$B$654, 0), MATCH($C73,F_Input_APR1!$A$5:$M$5, 0)) -> 580.855307
A74: TMS24 | B74: TMS | C74: 2023-24 | D74: =INDEX(F_Input_CPIH!$F$9:$M$9, MATCH(APR_Combined_Inputs!$C74, F_Input_CPIH!$F$5:$M$5, 0)) -> 0.9474460986 | E74: =INDEX(F_Input_APR1!$A$5:$M$654, MATCH($B74&E$8, F_Input_APR1!$A$5:$A$654&F_Input_APR1!$B$5:$B$654, 0), MATCH($C74,F_Input_APR1!$A$5:$M$5, 0)) -> 351.208 | F74: =INDEX(F_Input_APR1!$A$5:$M$654, MATCH($B74&F$8, F_Input_APR1!$A$5:$A$654&F_Input_APR1!$B$5:$B$654, 0), MATCH($C74,F_Input_APR1!$A$5:$M$5, 0)) -> 66.672 | G74: =INDEX(F_Input_APR1!$A$5:$M$654, MATCH($B74&G$8, F_Input_APR1!$A$5:$A$654&F_Input_APR1!$B$5:$B$654, 0), MATCH($C74,F_Input_APR1!$A$5:$M$5, 0)) -> 284.536 | H74: =INDEX(F_Input_APR1!$A$5:$M$654, MATCH($B74&H$8, F_Input_APR1!$A$5:$A$654&F_Input_APR1!$B$5:$B$654, 0), MATCH($C74,F_Input_APR1!$A$5:$M$5, 0)) -> 558.215307
A75: WSH17 | B75: WSH | C75: 2016-17 | D75: =INDEX(F_Input_CPIH!$F$9:$M$9, MATCH(APR_Combined_Inputs!$C75, F_Input_CPIH!$F$5:$M$5, 0)) -> 1.211735741 | E75: =INDEX(F_Input_APR1!$A$5:$M$654, MATCH($B75&E$8, F_Input_APR1!$A$5:$A$654&F_Input_APR1!$B$5:$B$654, 0), MATCH($C75,F_Input_APR1!$A$5:$M$5, 0)) ->  | F75: =INDEX(F_Input_APR1!$A$5:$M$654, MATCH($B75&F$8, F_Input_APR1!$A$5:$A$654&F_Input_APR1!$B$5:$B$654, 0), MATCH($C75,F_Input_APR1!$A$5:$M$5, 0)) ->  | G75: =INDEX(F_Input_APR1!$A$5:$M$654, MATCH($B75&G$8, F_Input_APR1!$A$5:$A$654&F_Input_APR1!$B$5:$B$654, 0), MATCH($C75,F_Input_APR1!$A$5:$M$5, 0)) ->  | H75: =INDEX(F_Input_APR1!$A$5:$M$654, MATCH($B75&H$8, F_Input_APR1!$A$5:$A$654&F_Input_APR1!$B$5:$B$654, 0), MATCH($C75,F_Input_APR1!$A$5:$M$5, 0)) -> 175.43
A76: WSH18 | B76: WSH | C76: 2017-18 | D76: =INDEX(F_Input_CPIH!$F$9:$M$9, MATCH(APR_Combined_Inputs!$C76, F_Input_CPIH!$F$5:$M$5, 0)) -> 1.180633296 | E76: =INDEX(F_Input_APR1!$A$5:$M$654, MATCH($B76&E$8, F_Input_APR1!$A$5:$A$654&F_Input_APR1!$B$5:$B$654, 0), MATCH($C76,F_Input_APR1!$A$5:$M$5, 0)) -> 27.659 | F76: =INDEX(F_Input_APR1!$A$5:$M$654, MATCH($B76&F$8, F_Input_APR1!$A$5:$A$654&F_Input_APR1!$B$5:$B$654, 0), MATCH($C76,F_Input_APR1!$A$5:$M$5, 0)) -> 1.661 | G76: =INDEX(F_Input_APR1!$A$5:$M$654, MATCH($B76&G$8, F_Input_APR1!$A$5:$A$654&F_Input_APR1!$B$5:$B$654, 0), MATCH($C76,F_Input_APR1!$A$5:$M$5, 0)) -> 25.998 | H76: =INDEX(F_Input_APR1!$A$5:$M$654, MATCH($B76&H$8, F_Input_APR1!$A$5:$A$654&F_Input_APR1!$B$5:$B$654, 0), MATCH($C76,F_Input_APR1!$A$5:$M$5, 0)) -> 172.85
A77: WSH19 | B77: WSH | C77: 2018-19 | D77: =INDEX(F_Input_CPIH!$F$9:$M$9, MATCH(APR_Combined_Inputs!$C77, F_Input_CPIH!$F$5:$M$5, 0)) -> 1.156044472 | E77: =INDEX(F_Input_APR1!$A$5:$M$654, MATCH($B77&E$8, F_Input_APR1!$A$5:$A$654&F_Input_APR1!$B$5:$B$654, 0), MATCH($C77,F_Input_APR1!$A$5:$M$5, 0)) -> 37.904 | F77: =INDEX(F_Input_APR1!$A$5:$M$654, MATCH($B77&F$8, F_Input_APR1!$A$5:$A$654&F_Input_APR1!$B$5:$B$654, 0), MATCH($C77,F_Input_APR1!$A$5:$M$5, 0)) -> 2.516 | G77: =INDEX(F_Input_APR1!$A$5:$M$654, MATCH($B77&G$8, F_Input_APR1!$A$5:$A$654&F_Input_APR1!$B$5:$B$654, 0), MATCH($C77,F_Input_APR1!$A$5:$M$5, 0)) -> 35.388 | H77: =INDEX(F_Input_APR1!$A$5:$M$654, MATCH($B77&H$8, F_Input_APR1!$A$5:$A$654&F_Input_APR1!$B$5:$B$654, 0), MATCH($C77,F_Input_APR1!$A$5:$M$5, 0)) -> 169.54
A78: WSH20 | B78: WSH | C78: 2019-20 | D78: =INDEX(F_Input_CPIH!$F$9:$M$9, MATCH(APR_Combined_Inputs!$C78, F_Input_CPIH!$F$5:$M$5, 0)) -> 1.13673108 | E78: =INDEX(F_Input_APR1!$A$5:$M$654, MATCH($B78&E$8, F_Input_APR1!$A$5:$A$654&F_Input_APR1!$B$5:$B$654, 0), MATCH($C78,F_Input_APR1!$A$5:$M$5, 0)) -> 35.098 | F78: =INDEX(F_Input_APR1!$A$5:$M$654, MATCH($B78&F$8, F_Input_APR1!$A$5:$A$654&F_Input_APR1!$B$5:$B$654, 0), MATCH($C78,F_Input_APR1!$A$5:$M$5, 0)) -> 2.468 | G78: =INDEX(F_Input_APR1!$A$5:$M$654, MATCH($B78&G$8, F_Input_APR1!$A$5:$A$654&F_Input_APR1!$B$5:$B$654, 0), MATCH($C78,F_Input_APR1!$A$5:$M$5, 0)) -> 32.63 | H78: =INDEX(F_Input_APR1!$A$5:$M$654, MATCH($B78&H$8, F_Input_APR1!$A$5:$A$654&F_Input_APR1!$B$5:$B$654, 0), MATCH($C78,F_Input_APR1!$A$5:$M$5, 0)) -> 167.95
A79: WSH21 | B79: WSH | C79: 2020-21 | D79: =INDEX(F_Input_CPIH!$F$9:$M$9, MATCH(APR_Combined_Inputs!$C79, F_Input_CPIH!$F$5:$M$5, 0)) -> 1.127701825 | E79: =INDEX(F_Input_APR1!$A$5:$M$654, MATCH($B79&E$8, F_Input_APR1!$A$5:$A$654&F_Input_APR1!$B$5:$B$654, 0), MATCH($C79,F_Input_APR1!$A$5:$M$5, 0)) -> 34.1137 | F79: =INDEX(F_Input_APR1!$A$5:$M$654, MATCH($B79&F$8, F_Input_APR1!$A$5:$A$654&F_Input_APR1!$B$5:$B$654, 0), MATCH($C79,F_Input_APR1!$A$5:$M$5, 0)) -> 2.9667 | G79: =INDEX(F_Input_APR1!$A$5:$M$654, MATCH($B79&G$8, F_Input_APR1!$A$5:$A$654&F_Input_APR1!$B$5:$B$654, 0), MATCH($C79,F_Input_APR1!$A$5:$M$5, 0)) -> 31.147 | H79: =INDEX(F_Input_APR1!$A$5:$M$654, MATCH($B79&H$8, F_Input_APR1!$A$5:$A$654&F_Input_APR1!$B$5:$B$654, 0), MATCH($C79,F_Input_APR1!$A$5:$M$5, 0)) -> 163.62
A80: WSH22 | B80: WSH | C80: 2021-22 | D80: =INDEX(F_Input_CPIH!$F$9:$M$9, MATCH(APR_Combined_Inputs!$C80, F_Input_CPIH!$F$5:$M$5, 0)) -> 1.08774127 | E80: =INDEX(F_Input_APR1!$A$5:$M$654, MATCH($B80&E$8, F_Input_APR1!$A$5:$A$654&F_Input_APR1!$B$5:$B$654, 0), MATCH($C80,F_Input_APR1!$A$5:$M$5, 0)) -> 35.953 | F80: =INDEX(F_Input_APR1!$A$5:$M$654, MATCH($B80&F$8, F_Input_APR1!$A$5:$A$654&F_Input_APR1!$B$5:$B$654, 0), MATCH($C80,F_Input_APR1!$A$5:$M$5, 0)) -> 3.125 | G80: =INDEX(F_Input_APR1!$A$5:$M$654, MATCH($B80&G$8, F_Input_APR1!$A$5:$A$654&F_Input_APR1!$B$5:$B$654, 0), MATCH($C80,F_Input_APR1!$A$5:$M$5, 0)) -> 32.828 | H80: =INDEX(F_Input_APR1!$A$5:$M$654, MATCH($B80&H$8, F_Input_APR1!$A$5:$A$654&F_Input_APR1!$B$5:$B$654, 0), MATCH($C80,F_Input_APR1!$A$5:$M$5, 0)) -> 157.4128085
A81: WSH23 | B81: WSH | C81: 2022-23 | D81: =INDEX(F_Input_CPIH!$F$9:$M$9, MATCH(APR_Combined_Inputs!$C81, F_Input_CPIH!$F$5:$M$5, 0)) -> 1 | E81: =INDEX(F_Input_APR1!$A$5:$M$654, MATCH($B81&E$8, F_Input_APR1!$A$5:$A$654&F_Input_APR1!$B$5:$B$654, 0), MATCH($C81,F_Input_APR1!$A$5:$M$5, 0)) -> 42.43145927 | F81: =INDEX(F_Input_APR1!$A$5:$M$654, MATCH($B81&F$8, F_Input_APR1!$A$5:$A$654&F_Input_APR1!$B$5:$B$654, 0), MATCH($C81,F_Input_APR1!$A$5:$M$5, 0)) -> 1.55390842 | G81: =INDEX(F_Input_APR1!$A$5:$M$654, MATCH($B81&G$8, F_Input_APR1!$A$5:$A$654&F_Input_APR1!$B$5:$B$654, 0), MATCH($C81,F_Input_APR1!$A$5:$M$5, 0)) -> 40.87755085 | H81: =INDEX(F_Input_APR1!$A$5:$M$654, MATCH($B81&H$8, F_Input_APR1!$A$5:$A$654&F_Input_APR1!$B$5:$B$654, 0), MATCH($C81,F_Input_APR1!$A$5:$M$5, 0)) -> 153.4
A82: WSH24 | B82: WSH | C82: 2023-24 | D82: =INDEX(F_Input_CPIH!$F$9:$M$9, MATCH(APR_Combined_Inputs!$C82, F_Input_CPIH!$F$5:$M$5, 0)) -> 0.9474460986 | E82: =INDEX(F_Input_APR1!$A$5:$M$654, MATCH($B82&E$8, F_Input_APR1!$A$5:$A$654&F_Input_APR1!$B$5:$B$654, 0), MATCH($C82,F_Input_APR1!$A$5:$M$5, 0)) -> 55.668 | F82: =INDEX(F_Input_APR1!$A$5:$M$654, MATCH($B82&F$8, F_Input_APR1!$A$5:$A$654&F_Input_APR1!$B$5:$B$654, 0), MATCH($C82,F_Input_APR1!$A$5:$M$5, 0)) -> 7.429 | G82: =INDEX(F_Input_APR1!$A$5:$M$654, MATCH($B82&G$8, F_Input_APR1!$A$5:$A$654&F_Input_APR1!$B$5:$B$654, 0), MATCH($C82,F_Input_APR1!$A$5:$M$5, 0)) -> 48.239 | H82: =INDEX(F_Input_APR1!$A$5:$M$654, MATCH($B82&H$8, F_Input_APR1!$A$5:$A$654&F_Input_APR1!$B$5:$B$654, 0), MATCH($C82,F_Input_APR1!$A$5:$M$5, 0)) -> 148.2
A83: WSX17 | B83: WSX | C83: 2016-17 | D83: =INDEX(F_Input_CPIH!$F$9:$M$9, MATCH(APR_Combined_Inputs!$C83, F_Input_CPIH!$F$5:$M$5, 0)) -> 1.211735741 | E83: =INDEX(F_Input_APR1!$A$5:$M$654, MATCH($B83&E$8, F_Input_APR1!$A$5:$A$654&F_Input_APR1!$B$5:$B$654, 0), MATCH($C83,F_Input_APR1!$A$5:$M$5, 0)) ->  | F83: =INDEX(F_Input_APR1!$A$5:$M$654, MATCH($B83&F$8, F_Input_APR1!$A$5:$A$654&F_Input_APR1!$B$5:$B$654, 0), MATCH($C83,F_Input_APR1!$A$5:$M$5, 0)) ->  | G83: =INDEX(F_Input_APR1!$A$5:$M$654, MATCH($B83&G$8, F_Input_APR1!$A$5:$A$654&F_Input_APR1!$B$5:$B$654, 0), MATCH($C83,F_Input_APR1!$A$5:$M$5, 0)) ->  | H83: =INDEX(F_Input_APR1!$A$5:$M$654, MATCH($B83&H$8, F_Input_APR1!$A$5:$A$654&F_Input_APR1!$B$5:$B$654, 0), MATCH($C83,F_Input_APR1!$A$5:$M$5, 0)) -> 68.35
A84: =(B84&RIGHT(C84,2)) -> WSX18 | B84: WSX | C84: 2017-18 | D84: =INDEX(F_Input_CPIH!$F$9:$M$9, MATCH(APR_Combined_Inputs!$C84, F_Input_CPIH!$F$5:$M$5, 0)) -> 1.180633296 | E84: =INDEX(F_Input_APR1!$A$5:$M$654, MATCH($B84&E$8, F_Input_APR1!$A$5:$A$654&F_Input_APR1!$B$5:$B$654, 0), MATCH($C84,F_Input_APR1!$A$5:$M$5, 0)) -> 34.529 | F84: =INDEX(F_Input_APR1!$A$5:$M$654, MATCH($B84&F$8, F_Input_APR1!$A$5:$A$654&F_Input_APR1!$B$5:$B$654, 0), MATCH($C84,F_Input_APR1!$A$5:$M$5, 0)) -> 12.76 | G84: =INDEX(F_Input_APR1!$A$5:$M$654, MATCH($B84&G$8, F_Input_APR1!$A$5:$A$654&F_Input_APR1!$B$5:$B$654, 0), MATCH($C84,F_Input_APR1!$A$5:$M$5, 0)) -> 21.769 | H84: =INDEX(F_Input_APR1!$A$5:$M$654, MATCH($B84&H$8, F_Input_APR1!$A$5:$A$654&F_Input_APR1!$B$5:$B$654, 0), MATCH($C84,F_Input_APR1!$A$5:$M$5, 0)) -> 79.66
A85: WSX19 | B85: WSX | C85: 2018-19 | D85: =INDEX(F_Input_CPIH!$F$9:$M$9, MATCH(APR_Combined_Inputs!$C85, F_Input_CPIH!$F$5:$M$5, 0)) -> 1.156044472 | E85: =INDEX(F_Input_APR1!$A$5:$M$654, MATCH($B85&E$8, F_Input_APR1!$A$5:$A$654&F_Input_APR1!$B$5:$B$654, 0), MATCH($C85,F_Input_APR1!$A$5:$M$5, 0)) -> 39.226 | F85: =INDEX(F_Input_APR1!$A$5:$M$654, MATCH($B85&F$8, F_Input_APR1!$A$5:$A$654&F_Input_APR1!$B$5:$B$654, 0), MATCH($C85,F_Input_APR1!$A$5:$M$5, 0)) -> 16.514 | G85: =INDEX(F_Input_APR1!$A$5:$M$654, MATCH($B85&G$8, F_Input_APR1!$A$5:$A$654&F_Input_APR1!$B$5:$B$654, 0), MATCH($C85,F_Input_APR1!$A$5:$M$5, 0)) -> 22.712 | H85: =INDEX(F_Input_APR1!$A$5:$M$654, MATCH($B85&H$8, F_Input_APR1!$A$5:$A$654&F_Input_APR1!$B$5:$B$654, 0), MATCH($C85,F_Input_APR1!$A$5:$M$5, 0)) -> 66.39
A86: WSX20 | B86: WSX | C86: 2019-20 | D86: =INDEX(F_Input_CPIH!$F$9:$M$9, MATCH(APR_Combined_Inputs!$C86, F_Input_CPIH!$F$5:$M$5, 0)) -> 1.13673108 | E86: =INDEX(F_Input_APR1!$A$5:$M$654, MATCH($B86&E$8, F_Input_APR1!$A$5:$A$654&F_Input_APR1!$B$5:$B$654, 0), MATCH($C86,F_Input_APR1!$A$5:$M$5, 0)) -> 35.433 | F86: =INDEX(F_Input_APR1!$A$5:$M$654, MATCH($B86&F$8, F_Input_APR1!$A$5:$A$654&F_Input_APR1!$B$5:$B$654, 0), MATCH($C86,F_Input_APR1!$A$5:$M$5, 0)) -> 12.535 | G86: =INDEX(F_Input_APR1!$A$5:$M$654, MATCH($B86&G$8, F_Input_APR1!$A$5:$A$654&F_Input_APR1!$B$5:$B$654, 0), MATCH($C86,F_Input_APR1!$A$5:$M$5, 0)) -> 22.898 | H86: =INDEX(F_Input_APR1!$A$5:$M$654, MATCH($B86&H$8, F_Input_APR1!$A$5:$A$654&F_Input_APR1!$B$5:$B$654, 0), MATCH($C86,F_Input_APR1!$A$5:$M$5, 0)) -> 61.35
A87: WSX21 | B87: WSX | C87: 2020-21 | D87: =INDEX(F_Input_CPIH!$F$9:$M$9, MATCH(APR_Combined_Inputs!$C87, F_Input_CPIH!$F$5:$M$5, 0)) -> 1.127701825 | E87: =INDEX(F_Input_APR1!$A$5:$M$654, MATCH($B87&E$8, F_Input_APR1!$A$5:$A$654&F_Input_APR1!$B$5:$B$654, 0), MATCH($C87,F_Input_APR1!$A$5:$M$5, 0)) -> 36.01 | F87: =INDEX(F_Input_APR1!$A$5:$M$654, MATCH($B87&F$8, F_Input_APR1!$A$5:$A$654&F_Input_APR1!$B$5:$B$654, 0), MATCH($C87,F_Input_APR1!$A$5:$M$5, 0)) -> 11.926 | G87: =INDEX(F_Input_APR1!$A$5:$M$654, MATCH($B87&G$8, F_Input_APR1!$A$5:$A$654&F_Input_APR1!$B$5:$B$654, 0), MATCH($C87,F_Input_APR1!$A$5:$M$5, 0)) -> 24.084 | H87: =INDEX(F_Input_APR1!$A$5:$M$654, MATCH($B87&H$8, F_Input_APR1!$A$5:$A$654&F_Input_APR1!$B$5:$B$654, 0), MATCH($C87,F_Input_APR1!$A$5:$M$5, 0)) -> 65.05
A88: WSX22 | B88: WSX | C88: 2021-22 | D88: =INDEX(F_Input_CPIH!$F$9:$M$9, MATCH(APR_Combined_Inputs!$C88, F_Input_CPIH!$F$5:$M$5, 0)) -> 1.08774127 | E88: =INDEX(F_Input_APR1!$A$5:$M$654, MATCH($B88&E$8, F_Input_APR1!$A$5:$A$654&F_Input_APR1!$B$5:$B$654, 0), MATCH($C88,F_Input_APR1!$A$5:$M$5, 0)) -> 34.542 | F88: =INDEX(F_Input_APR1!$A$5:$M$654, MATCH($B88&F$8, F_Input_APR1!$A$5:$A$654&F_Input_APR1!$B$5:$B$654, 0), MATCH($C88,F_Input_APR1!$A$5:$M$5, 0)) -> 10.739 | G88: =INDEX(F_Input_APR1!$A$5:$M$654, MATCH($B88&G$8, F_Input_APR1!$A$5:$A$654&F_Input_APR1!$B$5:$B$654, 0), MATCH($C88,F_Input_APR1!$A$5:$M$5, 0)) -> 23.803 | H88: =INDEX(F_Input_APR1!$A$5:$M$654, MATCH($B88&H$8, F_Input_APR1!$A$5:$A$654&F_Input_APR1!$B$5:$B$654, 0), MATCH($C88,F_Input_APR1!$A$5:$M$5, 0)) -> 63.31388688
A89: WSX23 | B89: WSX | C89: 2022-23 | D89: =INDEX(F_Input_CPIH!$F$9:$M$9, MATCH(APR_Combined_Inputs!$C89, F_Input_CPIH!$F$5:$M$5, 0)) -> 1 | E89: =INDEX(F_Input_APR1!$A$5:$M$654, MATCH($B89&E$8, F_Input_APR1!$A$5:$A$654&F_Input_APR1!$B$5:$B$654, 0), MATCH($C89,F_Input_APR1!$A$5:$M$5, 0)) -> 36.54410005 | F89: =INDEX(F_Input_APR1!$A$5:$M$654, MATCH($B89&F$8, F_Input_APR1!$A$5:$A$654&F_Input_APR1!$B$5:$B$654, 0), MATCH($C89,F_Input_APR1!$A$5:$M$5, 0)) -> 1.556156775 | G89: =INDEX(F_Input_APR1!$A$5:$M$654, MATCH($B89&G$8, F_Input_APR1!$A$5:$A$654&F_Input_APR1!$B$5:$B$654, 0), MATCH($C89,F_Input_APR1!$A$5:$M$5, 0)) -> 34.98794328 | H89: =INDEX(F_Input_APR1!$A$5:$M$654, MATCH($B89&H$8, F_Input_APR1!$A$5:$A$654&F_Input_APR1!$B$5:$B$654, 0), MATCH($C89,F_Input_APR1!$A$5:$M$5, 0)) -> 71.123507
A90: WSX24 | B90: WSX | C90: 2023-24 | D90: =INDEX(F_Input_CPIH!$F$9:$M$9, MATCH(APR_Combined_Inputs!$C90, F_Input_CPIH!$F$5:$M$5, 0)) -> 0.9474460986 | E90: =INDEX(F_Input_APR1!$A$5:$M$654, MATCH($B90&E$8, F_Input_APR1!$A$5:$A$654&F_Input_APR1!$B$5:$B$654, 0), MATCH($C90,F_Input_APR1!$A$5:$M$5, 0)) -> 43.268 | F90: =INDEX(F_Input_APR1!$A$5:$M$654, MATCH($B90&F$8, F_Input_APR1!$A$5:$A$654&F_Input_APR1!$B$5:$B$654, 0), MATCH($C90,F_Input_APR1!$A$5:$M$5, 0)) -> 3.798 | G90: =INDEX(F_Input_APR1!$A$5:$M$654, MATCH($B90&G$8, F_Input_APR1!$A$5:$A$654&F_Input_APR1!$B$5:$B$654, 0), MATCH($C90,F_Input_APR1!$A$5:$M$5, 0)) -> 39.47 | H90: =INDEX(F_Input_APR1!$A$5:$M$654, MATCH($B90&H$8, F_Input_APR1!$A$5:$A$654&F_Input_APR1!$B$5:$B$654, 0), MATCH($C90,F_Input_APR1!$A$5:$M$5, 0)) -> 68.778776
A91: YKY17 | B91: YKY | C91: 2016-17 | D91: =INDEX(F_Input_CPIH!$F$9:$M$9, MATCH(APR_Combined_Inputs!$C91, F_Input_CPIH!$F$5:$M$5, 0)) -> 1.211735741 | E91: =INDEX(F_Input_APR1!$A$5:$M$654, MATCH($B91&E$8, F_Input_APR1!$A$5:$A$654&F_Input_APR1!$B$5:$B$654, 0), MATCH($C91,F_Input_APR1!$A$5:$M$5, 0)) ->  | F91: =INDEX(F_Input_APR1!$A$5:$M$654, MATCH($B91&F$8, F_Input_APR1!$A$5:$A$654&F_Input_APR1!$B$5:$B$654, 0), MATCH($C91,F_Input_APR1!$A$5:$M$5, 0)) ->  | G91: =INDEX(F_Input_APR1!$A$5:$M$654, MATCH($B91&G$8, F_Input_APR1!$A$5:$A$654&F_Input_APR1!$B$5:$B$654, 0), MATCH($C91,F_Input_APR1!$A$5:$M$5, 0)) ->  | H91: =INDEX(F_Input_APR1!$A$5:$M$654, MATCH($B91&H$8, F_Input_APR1!$A$5:$A$654&F_Input_APR1!$B$5:$B$654, 0), MATCH($C91,F_Input_APR1!$A$5:$M$5, 0)) -> 295.16
A92: YKY18 | B92: YKY | C92: 2017-18 | D92: =INDEX(F_Input_CPIH!$F$9:$M$9, MATCH(APR_Combined_Inputs!$C92, F_Input_CPIH!$F$5:$M$5, 0)) -> 1.180633296 | E92: =INDEX(F_Input_APR1!$A$5:$M$654, MATCH($B92&E$8, F_Input_APR1!$A$5:$A$654&F_Input_APR1!$B$5:$B$654, 0), MATCH($C92,F_Input_APR1!$A$5:$M$5, 0)) -> 86.21676456 | F92: =INDEX(F_Input_APR1!$A$5:$M$654, MATCH($B92&F$8, F_Input_APR1!$A$5:$A$654&F_Input_APR1!$B$5:$B$654, 0), MATCH($C92,F_Input_APR1!$A$5:$M$5, 0)) -> 4.423368497 | G92: =INDEX(F_Input_APR1!$A$5:$M$654, MATCH($B92&G$8, F_Input_APR1!$A$5:$A$654&F_Input_APR1!$B$5:$B$654, 0), MATCH($C92,F_Input_APR1!$A$5:$M$5, 0)) -> 81.79339606 | H92: =INDEX(F_Input_APR1!$A$5:$M$654, MATCH($B92&H$8, F_Input_APR1!$A$5:$A$654&F_Input_APR1!$B$5:$B$654, 0), MATCH($C92,F_Input_APR1!$A$5:$M$5, 0)) -> 300.28
A93: YKY19 | B93: YKY | C93: 2018-19 | D93: =INDEX(F_Input_CPIH!$F$9:$M$9, MATCH(APR_Combined_Inputs!$C93, F_Input_CPIH!$F$5:$M$5, 0)) -> 1.156044472 | E93: =INDEX(F_Input_APR1!$A$5:$M$654, MATCH($B93&E$8, F_Input_APR1!$A$5:$A$654&F_Input_APR1!$B$5:$B$654, 0), MATCH($C93,F_Input_APR1!$A$5:$M$5, 0)) -> 124.2262666 | F93: =INDEX(F_Input_APR1!$A$5:$M$654, MATCH($B93&F$8, F_Input_APR1!$A$5:$A$654&F_Input_APR1!$B$5:$B$654, 0), MATCH($C93,F_Input_APR1!$A$5:$M$5, 0)) -> 20.08094018 | G93: =INDEX(F_Input_APR1!$A$5:$M$654, MATCH($B93&G$8, F_Input_APR1!$A$5:$A$654&F_Input_APR1!$B$5:$B$654, 0), MATCH($C93,F_Input_APR1!$A$5:$M$5, 0)) -> 104.1453264 | H93: =INDEX(F_Input_APR1!$A$5:$M$654, MATCH($B93&H$8, F_Input_APR1!$A$5:$A$654&F_Input_APR1!$B$5:$B$654, 0), MATCH($C93,F_Input_APR1!$A$5:$M$5, 0)) -> 289.77
A94: YKY20 | B94: YKY | C94: 2019-20 | D94: =INDEX(F_Input_CPIH!$F$9:$M$9, MATCH(APR_Combined_Inputs!$C94, F_Input_CPIH!$F$5:$M$5, 0)) -> 1.13673108 | E94: =INDEX(F_Input_APR1!$A$5:$M$654, MATCH($B94&E$8, F_Input_APR1!$A$5:$A$654&F_Input_APR1!$B$5:$B$654, 0), MATCH($C94,F_Input_APR1!$A$5:$M$5, 0)) -> 137.8914935 | F94: =INDEX(F_Input_APR1!$A$5:$M$654, MATCH($B94&F$8, F_Input_APR1!$A$5:$A$654&F_Input_APR1!$B$5:$B$654, 0), MATCH($C94,F_Input_APR1!$A$5:$M$5, 0)) -> 47.49061473 | G94: =INDEX(F_Input_APR1!$A$5:$M$654, MATCH($B94&G$8, F_Input_APR1!$A$5:$A$654&F_Input_APR1!$B$5:$B$654, 0), MATCH($C94,F_Input_APR1!$A$5:$M$5, 0)) -> 90.40087876 | H94: =INDEX(F_Input_APR1!$A$5:$M$654, MATCH($B94&H$8, F_Input_APR1!$A$5:$A$654&F_Input_APR1!$B$5:$B$654, 0), MATCH($C94,F_Input_APR1!$A$5:$M$5, 0)) -> 270.75
A95: YKY21 | B95: YKY | C95: 2020-21 | D95: =INDEX(F_Input_CPIH!$F$9:$M$9, MATCH(APR_Combined_Inputs!$C95, F_Input_CPIH!$F$5:$M$5, 0)) -> 1.127701825 | E95: =INDEX(F_Input_APR1!$A$5:$M$654, MATCH($B95&E$8, F_Input_APR1!$A$5:$A$654&F_Input_APR1!$B$5:$B$654, 0), MATCH($C95,F_Input_APR1!$A$5:$M$5, 0)) -> 102.3948011 | F95: =INDEX(F_Input_APR1!$A$5:$M$654, MATCH($B95&F$8, F_Input_APR1!$A$5:$A$654&F_Input_APR1!$B$5:$B$654, 0), MATCH($C95,F_Input_APR1!$A$5:$M$5, 0)) -> 5.394754546 | G95: =INDEX(F_Input_APR1!$A$5:$M$654, MATCH($B95&G$8, F_Input_APR1!$A$5:$A$654&F_Input_APR1!$B$5:$B$654, 0), MATCH($C95,F_Input_APR1!$A$5:$M$5, 0)) -> 97.00004651 | H95: =INDEX(F_Input_APR1!$A$5:$M$654, MATCH($B95&H$8, F_Input_APR1!$A$5:$A$654&F_Input_APR1!$B$5:$B$654, 0), MATCH($C95,F_Input_APR1!$A$5:$M$5, 0)) -> 289.8
A96: YKY22 | B96: YKY | C96: 2021-22 | D96: =INDEX(F_Input_CPIH!$F$9:$M$9, MATCH(APR_Combined_Inputs!$C96, F_Input_CPIH!$F$5:$M$5, 0)) -> 1.08774127 | E96: =INDEX(F_Input_APR1!$A$5:$M$654, MATCH($B96&E$8, F_Input_APR1!$A$5:$A$654&F_Input_APR1!$B$5:$B$654, 0), MATCH($C96,F_Input_APR1!$A$5:$M$5, 0)) -> 114.9920792 | F96: =INDEX(F_Input_APR1!$A$5:$M$654, MATCH($B96&F$8, F_Input_APR1!$A$5:$A$654&F_Input_APR1!$B$5:$B$654, 0), MATCH($C96,F_Input_APR1!$A$5:$M$5, 0)) -> 9.33783178 | G96: =INDEX(F_Input_APR1!$A$5:$M$654, MATCH($B96&G$8, F_Input_APR1!$A$5:$A$654&F_Input_APR1!$B$5:$B$654, 0), MATCH($C96,F_Input_APR1!$A$5:$M$5, 0)) -> 105.6542474 | H96: =INDEX(F_Input_APR1!$A$5:$M$654, MATCH($B96&H$8, F_Input_APR1!$A$5:$A$654&F_Input_APR1!$B$5:$B$654, 0), MATCH($C96,F_Input_APR1!$A$5:$M$5, 0)) -> 283.08
A97: YKY23 | B97: YKY | C97: 2022-23 | D97: =INDEX(F_Input_CPIH!$F$9:$M$9, MATCH(APR_Combined_Inputs!$C97, F_Input_CPIH!$F$5:$M$5, 0)) -> 1 | E97: =INDEX(F_Input_APR1!$A$5:$M$654, MATCH($B97&E$8, F_Input_APR1!$A$5:$A$654&F_Input_APR1!$B$5:$B$654, 0), MATCH($C97,F_Input_APR1!$A$5:$M$5, 0)) -> 42.467 | F97: =INDEX(F_Input_APR1!$A$5:$M$654, MATCH($B97&F$8, F_Input_APR1!$A$5:$A$654&F_Input_APR1!$B$5:$B$654, 0), MATCH($C97,F_Input_APR1!$A$5:$M$5, 0)) -> 8.982 | G97: =INDEX(F_Input_APR1!$A$5:$M$654, MATCH($B97&G$8, F_Input_APR1!$A$5:$A$654&F_Input_APR1!$B$5:$B$654, 0), MATCH($C97,F_Input_APR1!$A$5:$M$5, 0)) -> 33.485 | H97: =INDEX(F_Input_APR1!$A$5:$M$654, MATCH($B97&H$8, F_Input_APR1!$A$5:$A$654&F_Input_APR1!$B$5:$B$654, 0), MATCH($C97,F_Input_APR1!$A$5:$M$5, 0)) -> 228.65
A98: YKY24 | B98: YKY | C98: 2023-24 | D98: =INDEX(F_Input_CPIH!$F$9:$M$9, MATCH(APR_Combined_Inputs!$C98, F_Input_CPIH!$F$5:$M$5, 0)) -> 0.9474460986 | E98: =INDEX(F_Input_APR1!$A$5:$M$654, MATCH($B98&E$8, F_Input_APR1!$A$5:$A$654&F_Input_APR1!$B$5:$B$654, 0), MATCH($C98,F_Input_APR1!$A$5:$M$5, 0)) -> 60.426 | F98: =INDEX(F_Input_APR1!$A$5:$M$654, MATCH($B98&F$8, F_Input_APR1!$A$5:$A$654&F_Input_APR1!$B$5:$B$654, 0), MATCH($C98,F_Input_APR1!$A$5:$M$5, 0)) -> 9.317 | G98: =INDEX(F_Input_APR1!$A$5:$M$654, MATCH($B98&G$8, F_Input_APR1!$A$5:$A$654&F_Input_APR1!$B$5:$B$654, 0), MATCH($C98,F_Input_APR1!$A$5:$M$5, 0)) -> 51.109 | H98: =INDEX(F_Input_APR1!$A$5:$M$654, MATCH($B98&H$8, F_Input_APR1!$A$5:$A$654&F_Input_APR1!$B$5:$B$654, 0), MATCH($C98,F_Input_APR1!$A$5:$M$5, 0)) -> 215.2
A99: AFW17 | B99: AFW | C99: 2016-17 | D99: =INDEX(F_Input_CPIH!$F$9:$M$9, MATCH(APR_Combined_Inputs!$C99, F_Input_CPIH!$F$5:$M$5, 0)) -> 1.211735741 | E99: =INDEX(F_Input_APR1!$A$5:$M$654, MATCH($B99&E$8, F_Input_APR1!$A$5:$A$654&F_Input_APR1!$B$5:$B$654, 0), MATCH($C99,F_Input_APR1!$A$5:$M$5, 0)) ->  | F99: =INDEX(F_Input_APR1!$A$5:$M$654, MATCH($B99&F$8, F_Input_APR1!$A$5:$A$654&F_Input_APR1!$B$5:$B$654, 0), MATCH($C99,F_Input_APR1!$A$5:$M$5, 0)) ->  | G99: =INDEX(F_Input_APR1!$A$5:$M$654, MATCH($B99&G$8, F_Input_APR1!$A$5:$A$654&F_Input_APR1!$B$5:$B$654, 0), MATCH($C99,F_Input_APR1!$A$5:$M$5, 0)) ->  | H99: =INDEX(F_Input_APR1!$A$5:$M$654, MATCH($B99&H$8, F_Input_APR1!$A$5:$A$654&F_Input_APR1!$B$5:$B$654, 0), MATCH($C99,F_Input_APR1!$A$5:$M$5, 0)) -> 172.9868702
A100: AFW18 | B100: AFW | C100: 2017-18 | D100: =INDEX(F_Input_CPIH!$F$9:$M$9, MATCH(APR_Combined_Inputs!$C100, F_Input_CPIH!$F$5:$M$5, 0)) -> 1.180633296 | E100: =INDEX(F_Input_APR1!$A$5:$M$654, MATCH($B100&E$8, F_Input_APR1!$A$5:$A$654&F_Input_APR1!$B$5:$B$654, 0), MATCH($C100,F_Input_APR1!$A$5:$M$5, 0)) -> 31.27076235 | F100: =INDEX(F_Input_APR1!$A$5:$M$654, MATCH($B100&F$8, F_Input_APR1!$A$5:$A$654&F_Input_APR1!$B$5:$B$654, 0), MATCH($C100,F_Input_APR1!$A$5:$M$5, 0)) -> 0 | G100: =INDEX(F_Input_APR1!$A$5:$M$654, MATCH($B100&G$8, F_Input_APR1!$A$5:$A$654&F_Input_APR1!$B$5:$B$654, 0), MATCH($C100,F_Input_APR1!$A$5:$M$5, 0)) -> 31.27076235 | H100: =INDEX(F_Input_APR1!$A$5:$M$654, MATCH($B100&H$8, F_Input_APR1!$A$5:$A$654&F_Input_APR1!$B$5:$B$654, 0), MATCH($C100,F_Input_APR1!$A$5:$M$5, 0)) -> 172.67
A101: AFW19 | B101: AFW | C101: 2018-19 | D101: =INDEX(F_Input_CPIH!$F$9:$M$9, MATCH(APR_Combined_Inputs!$C101, F_Input_CPIH!$F$5:$M$5, 0)) -> 1.156044472 | E101: =INDEX(F_Input_APR1!$A$5:$M$654, MATCH($B101&E$8, F_Input_APR1!$A$5:$A$654&F_Input_APR1!$B$5:$B$654, 0), MATCH($C101,F_Input_APR1!$A$5:$M$5, 0)) -> 44.94476004 | F101: =INDEX(F_Input_APR1!$A$5:$M$654, MATCH($B101&F$8, F_Input_APR1!$A$5:$A$654&F_Input_APR1!$B$5:$B$654, 0), MATCH($C101,F_Input_APR1!$A$5:$M$5, 0)) -> 3.257280765 | G101: =INDEX(F_Input_APR1!$A$5:$M$654, MATCH($B101&G$8, F_Input_APR1!$A$5:$A$654&F_Input_APR1!$B$5:$B$654, 0), MATCH($C101,F_Input_APR1!$A$5:$M$5, 0)) -> 41.68747927 | H101: =INDEX(F_Input_APR1!$A$5:$M$654, MATCH($B101&H$8, F_Input_APR1!$A$5:$A$654&F_Input_APR1!$B$5:$B$654, 0), MATCH($C101,F_Input_APR1!$A$5:$M$5, 0)) -> 196.0764097
A102: AFW20 | B102: AFW | C102: 2019-20 | D102: =INDEX(F_Input_CPIH!$F$9:$M$9, MATCH(APR_Combined_Inputs!$C102, F_Input_CPIH!$F$5:$M$5, 0)) -> 1.13673108 | E102: =INDEX(F_Input_APR1!$A$5:$M$654, MATCH($B102&E$8, F_Input_APR1!$A$5:$A$654&F_Input_APR1!$B$5:$B$654, 0), MATCH($C102,F_Input_APR1!$A$5:$M$5, 0)) -> 43.7318842 | F102: =INDEX(F_Input_APR1!$A$5:$M$654, MATCH($B102&F$8, F_Input_APR1!$A$5:$A$654&F_Input_APR1!$B$5:$B$654, 0), MATCH($C102,F_Input_APR1!$A$5:$M$5, 0)) -> 21.3834362 | G102: =INDEX(F_Input_APR1!$A$5:$M$654, MATCH($B102&G$8, F_Input_APR1!$A$5:$A$654&F_Input_APR1!$B$5:$B$654, 0), MATCH($C102,F_Input_APR1!$A$5:$M$5, 0)) -> 22.348448 | H102: =INDEX(F_Input_APR1!$A$5:$M$654, MATCH($B102&H$8, F_Input_APR1!$A$5:$A$654&F_Input_APR1!$B$5:$B$654, 0), MATCH($C102,F_Input_APR1!$A$5:$M$5, 0)) -> 162.1215017
A103: AFW21 | B103: AFW | C103: 2020-21 | D103: =INDEX(F_Input_CPIH!$F$9:$M$9, MATCH(APR_Combined_Inputs!$C103, F_Input_CPIH!$F$5:$M$5, 0)) -> 1.127701825 | E103: =INDEX(F_Input_APR1!$A$5:$M$654, MATCH($B103&E$8, F_Input_APR1!$A$5:$A$654&F_Input_APR1!$B$5:$B$654, 0), MATCH($C103,F_Input_APR1!$A$5:$M$5, 0)) -> 43.2955504 | F103: =INDEX(F_Input_APR1!$A$5:$M$654, MATCH($B103&F$8, F_Input_APR1!$A$5:$A$654&F_Input_APR1!$B$5:$B$654, 0), MATCH($C103,F_Input_APR1!$A$5:$M$5, 0)) -> 17.28970106 | G103: =INDEX(F_Input_APR1!$A$5:$M$654, MATCH($B103&G$8, F_Input_APR1!$A$5:$A$654&F_Input_APR1!$B$5:$B$654, 0), MATCH($C103,F_Input_APR1!$A$5:$M$5, 0)) -> 26.00584933 | H103: =INDEX(F_Input_APR1!$A$5:$M$654, MATCH($B103&H$8, F_Input_APR1!$A$5:$A$654&F_Input_APR1!$B$5:$B$654, 0), MATCH($C103,F_Input_APR1!$A$5:$M$5, 0)) -> 171.44
A104: AFW22 | B104: AFW | C104: 2021-22 | D104: =INDEX(F_Input_CPIH!$F$9:$M$9, MATCH(APR_Combined_Inputs!$C104, F_Input_CPIH!$F$5:$M$5, 0)) -> 1.08774127 | E104: =INDEX(F_Input_APR1!$A$5:$M$654, MATCH($B104&E$8, F_Input_APR1!$A$5:$A$654&F_Input_APR1!$B$5:$B$654, 0), MATCH($C104,F_Input_APR1!$A$5:$M$5, 0)) -> 58.11719971 | F104: =INDEX(F_Input_APR1!$A$5:$M$654, MATCH($B104&F$8, F_Input_APR1!$A$5:$A$654&F_Input_APR1!$B$5:$B$654, 0), MATCH($C104,F_Input_APR1!$A$5:$M$5, 0)) -> 31.36018034 | G104: =INDEX(F_Input_APR1!$A$5:$M$654, MATCH($B104&G$8, F_Input_APR1!$A$5:$A$654&F_Input_APR1!$B$5:$B$654, 0), MATCH($C104,F_Input_APR1!$A$5:$M$5, 0)) -> 26.75701937 | H104: =INDEX(F_Input_APR1!$A$5:$M$654, MATCH($B104&H$8, F_Input_APR1!$A$5:$A$654&F_Input_APR1!$B$5:$B$654, 0), MATCH($C104,F_Input_APR1!$A$5:$M$5, 0)) -> 154.25
A105: AFW23 | B105: AFW | C105: 2022-23 | D105: =INDEX(F_Input_CPIH!$F$9:$M$9, MATCH(APR_Combined_Inputs!$C105, F_Input_CPIH!$F$5:$M$5, 0)) -> 1 | E105: =INDEX(F_Input_APR1!$A$5:$M$654, MATCH($B105&E$8, F_Input_APR1!$A$5:$A$654&F_Input_APR1!$B$5:$B$654, 0), MATCH($C105,F_Input_APR1!$A$5:$M$5, 0)) -> 53.689 | F105: =INDEX(F_Input_APR1!$A$5:$M$654, MATCH($B105&F$8, F_Input_APR1!$A$5:$A$654&F_Input_APR1!$B$5:$B$654, 0), MATCH($C105,F_Input_APR1!$A$5:$M$5, 0)) -> 11.016 | G105: =INDEX(F_Input_APR1!$A$5:$M$654, MATCH($B105&G$8, F_Input_APR1!$A$5:$A$654&F_Input_APR1!$B$5:$B$654, 0), MATCH($C105,F_Input_APR1!$A$5:$M$5, 0)) -> 42.673 | H105: =INDEX(F_Input_APR1!$A$5:$M$654, MATCH($B105&H$8, F_Input_APR1!$A$5:$A$654&F_Input_APR1!$B$5:$B$654, 0), MATCH($C105,F_Input_APR1!$A$5:$M$5, 0)) -> 141.89
A106: AFW24 | B106: AFW | C106: 2023-24 | D106: =INDEX(F_Input_CPIH!$F$9:$M$9, MATCH(APR_Combined_Inputs!$C106, F_Input_CPIH!$F$5:$M$5, 0)) -> 0.9474460986 | E106: =INDEX(F_Input_APR1!$A$5:$M$654, MATCH($B106&E$8, F_Input_APR1!$A$5:$A$654&F_Input_APR1!$B$5:$B$654, 0), MATCH($C106,F_Input_APR1!$A$5:$M$5, 0)) -> 51.096 | F106: =INDEX(F_Input_APR1!$A$5:$M$654, MATCH($B106&F$8, F_Input_APR1!$A$5:$A$654&F_Input_APR1!$B$5:$B$654, 0), MATCH($C106,F_Input_APR1!$A$5:$M$5, 0)) -> 0 | G106: =INDEX(F_Input_APR1!$A$5:$M$654, MATCH($B106&G$8, F_Input_APR1!$A$5:$A$654&F_Input_APR1!$B$5:$B$654, 0), MATCH($C106,F_Input_APR1!$A$5:$M$5, 0)) -> 51.096 | H106: =INDEX(F_Input_APR1!$A$5:$M$654, MATCH($B106&H$8, F_Input_APR1!$A$5:$A$654&F_Input_APR1!$B$5:$B$654, 0), MATCH($C106,F_Input_APR1!$A$5:$M$5, 0)) -> 135.38
A107: BRL17 | B107: BRL | C107: 2016-17 | D107: =INDEX(F_Input_CPIH!$F$9:$M$9, MATCH(APR_Combined_Inputs!$C107, F_Input_CPIH!$F$5:$M$5, 0)) -> 1.211735741 | E107: =INDEX(F_Input_APR1!$A$5:$M$654, MATCH($B107&E$8, F_Input_APR1!$A$5:$A$654&F_Input_APR1!$B$5:$B$654, 0), MATCH($C107,F_Input_APR1!$A$5:$M$5, 0)) ->  | F107: =INDEX(F_Input_APR1!$A$5:$M$654, MATCH($B107&F$8, F_Input_APR1!$A$5:$A$654&F_Input_APR1!$B$5:$B$654, 0), MATCH($C107,F_Input_APR1!$A$5:$M$5, 0)) ->  | G107: =INDEX(F_Input_APR1!$A$5:$M$654, MATCH($B107&G$8, F_Input_APR1!$A$5:$A$654&F_Input_APR1!$B$5:$B$654, 0), MATCH($C107,F_Input_APR1!$A$5:$M$5, 0)) ->  | H107: =INDEX(F_Input_APR1!$A$5:$M$654, MATCH($B107&H$8, F_Input_APR1!$A$5:$A$654&F_Input_APR1!$B$5:$B$654, 0), MATCH($C107,F_Input_APR1!$A$5:$M$5, 0)) -> 46.42
A108: BRL18 | B108: BRL | C108: 2017-18 | D108: =INDEX(F_Input_CPIH!$F$9:$M$9, MATCH(APR_Combined_Inputs!$C108, F_Input_CPIH!$F$5:$M$5, 0)) -> 1.180633296 | E108: =INDEX(F_Input_APR1!$A$5:$M$654, MATCH($B108&E$8, F_Input_APR1!$A$5:$A$654&F_Input_APR1!$B$5:$B$654, 0), MATCH($C108,F_Input_APR1!$A$5:$M$5, 0)) -> 3.03 | F108: =INDEX(F_Input_APR1!$A$5:$M$654, MATCH($B108&F$8, F_Input_APR1!$A$5:$A$654&F_Input_APR1!$B$5:$B$654, 0), MATCH($C108,F_Input_APR1!$A$5:$M$5, 0)) -> 0.344 | G108: =INDEX(F_Input_APR1!$A$5:$M$654, MATCH($B108&G$8, F_Input_APR1!$A$5:$A$654&F_Input_APR1!$B$5:$B$654, 0), MATCH($C108,F_Input_APR1!$A$5:$M$5, 0)) -> 2.686 | H108: =INDEX(F_Input_APR1!$A$5:$M$654, MATCH($B108&H$8, F_Input_APR1!$A$5:$A$654&F_Input_APR1!$B$5:$B$654, 0), MATCH($C108,F_Input_APR1!$A$5:$M$5, 0)) -> 46.64
A109: BRL19 | B109: BRL | C109: 2018-19 | D109: =INDEX(F_Input_CPIH!$F$9:$M$9, MATCH(APR_Combined_Inputs!$C109, F_Input_CPIH!$F$5:$M$5, 0)) -> 1.156044472 | E109: =INDEX(F_Input_APR1!$A$5:$M$654, MATCH($B109&E$8, F_Input_APR1!$A$5:$A$654&F_Input_APR1!$B$5:$B$654, 0), MATCH($C109,F_Input_APR1!$A$5:$M$5, 0)) -> 4.971 | F109: =INDEX(F_Input_APR1!$A$5:$M$654, MATCH($B109&F$8, F_Input_APR1!$A$5:$A$654&F_Input_APR1!$B$5:$B$654, 0), MATCH($C109,F_Input_APR1!$A$5:$M$5, 0)) -> 1.605 | G109: =INDEX(F_Input_APR1!$A$5:$M$654, MATCH($B109&G$8, F_Input_APR1!$A$5:$A$654&F_Input_APR1!$B$5:$B$654, 0), MATCH($C109,F_Input_APR1!$A$5:$M$5, 0)) -> 3.366 | H109: =INDEX(F_Input_APR1!$A$5:$M$654, MATCH($B109&H$8, F_Input_APR1!$A$5:$A$654&F_Input_APR1!$B$5:$B$654, 0), MATCH($C109,F_Input_APR1!$A$5:$M$5, 0)) -> 41.71
A110: BRL20 | B110: BRL | C110: 2019-20 | D110: =INDEX(F_Input_CPIH!$F$9:$M$9, MATCH(APR_Combined_Inputs!$C110, F_Input_CPIH!$F$5:$M$5, 0)) -> 1.13673108 | E110: =INDEX(F_Input_APR1!$A$5:$M$654, MATCH($B110&E$8, F_Input_APR1!$A$5:$A$654&F_Input_APR1!$B$5:$B$654, 0), MATCH($C110,F_Input_APR1!$A$5:$M$5, 0)) -> 8.511 | F110: =INDEX(F_Input_APR1!$A$5:$M$654, MATCH($B110&F$8, F_Input_APR1!$A$5:$A$654&F_Input_APR1!$B$5:$B$654, 0), MATCH($C110,F_Input_APR1!$A$5:$M$5, 0)) -> 1.634 | G110: =INDEX(F_Input_APR1!$A$5:$M$654, MATCH($B110&G$8, F_Input_APR1!$A$5:$A$654&F_Input_APR1!$B$5:$B$654, 0), MATCH($C110,F_Input_APR1!$A$5:$M$5, 0)) -> 6.877 | H110: =INDEX(F_Input_APR1!$A$5:$M$654, MATCH($B110&H$8, F_Input_APR1!$A$5:$A$654&F_Input_APR1!$B$5:$B$654, 0), MATCH($C110,F_Input_APR1!$A$5:$M$5, 0)) -> 37.21
A111: BRL21 | B111: BRL | C111: 2020-21 | D111: =INDEX(F_Input_CPIH!$F$9:$M$9, MATCH(APR_Combined_Inputs!$C111, F_Input_CPIH!$F$5:$M$5, 0)) -> 1.127701825 | E111: =INDEX(F_Input_APR1!$A$5:$M$654, MATCH($B111&E$8, F_Input_APR1!$A$5:$A$654&F_Input_APR1!$B$5:$B$654, 0), MATCH($C111,F_Input_APR1!$A$5:$M$5, 0)) -> 9.169 | F111: =INDEX(F_Input_APR1!$A$5:$M$654, MATCH($B111&F$8, F_Input_APR1!$A$5:$A$654&F_Input_APR1!$B$5:$B$654, 0), MATCH($C111,F_Input_APR1!$A$5:$M$5, 0)) -> 1.261 | G111: =INDEX(F_Input_APR1!$A$5:$M$654, MATCH($B111&G$8, F_Input_APR1!$A$5:$A$654&F_Input_APR1!$B$5:$B$654, 0), MATCH($C111,F_Input_APR1!$A$5:$M$5, 0)) -> 7.908 | H111: =INDEX(F_Input_APR1!$A$5:$M$654, MATCH($B111&H$8, F_Input_APR1!$A$5:$A$654&F_Input_APR1!$B$5:$B$654, 0), MATCH($C111,F_Input_APR1!$A$5:$M$5, 0)) -> 35.53
A112: BRL22 | B112: BRL | C112: 2021-22 | D112: =INDEX(F_Input_CPIH!$F$9:$M$9, MATCH(APR_Combined_Inputs!$C112, F_Input_CPIH!$F$5:$M$5, 0)) -> 1.08774127 | E112: =INDEX(F_Input_APR1!$A$5:$M$654, MATCH($B112&E$8, F_Input_APR1!$A$5:$A$654&F_Input_APR1!$B$5:$B$654, 0), MATCH($C112,F_Input_APR1!$A$5:$M$5, 0)) -> 8.47399437 | F112: =INDEX(F_Input_APR1!$A$5:$M$654, MATCH($B112&F$8, F_Input_APR1!$A$5:$A$654&F_Input_APR1!$B$5:$B$654, 0), MATCH($C112,F_Input_APR1!$A$5:$M$5, 0)) -> 1.78374578 | G112: =INDEX(F_Input_APR1!$A$5:$M$654, MATCH($B112&G$8, F_Input_APR1!$A$5:$A$654&F_Input_APR1!$B$5:$B$654, 0), MATCH($C112,F_Input_APR1!$A$5:$M$5, 0)) -> 6.69024859 | H112: =INDEX(F_Input_APR1!$A$5:$M$654, MATCH($B112&H$8, F_Input_APR1!$A$5:$A$654&F_Input_APR1!$B$5:$B$654, 0), MATCH($C112,F_Input_APR1!$A$5:$M$5, 0)) -> 35.65
A113: BRL23 | B113: BRL | C113: 2022-23 | D113: =INDEX(F_Input_CPIH!$F$9:$M$9, MATCH(APR_Combined_Inputs!$C113, F_Input_CPIH!$F$5:$M$5, 0)) -> 1 | E113: =INDEX(F_Input_APR1!$A$5:$M$654, MATCH($B113&E$8, F_Input_APR1!$A$5:$A$654&F_Input_APR1!$B$5:$B$654, 0), MATCH($C113,F_Input_APR1!$A$5:$M$5, 0)) -> 12.386 | F113: =INDEX(F_Input_APR1!$A$5:$M$654, MATCH($B113&F$8, F_Input_APR1!$A$5:$A$654&F_Input_APR1!$B$5:$B$654, 0), MATCH($C113,F_Input_APR1!$A$5:$M$5, 0)) -> 0 | G113: =INDEX(F_Input_APR1!$A$5:$M$654, MATCH($B113&G$8, F_Input_APR1!$A$5:$A$654&F_Input_APR1!$B$5:$B$654, 0), MATCH($C113,F_Input_APR1!$A$5:$M$5, 0)) -> 12.386 | H113: =INDEX(F_Input_APR1!$A$5:$M$654, MATCH($B113&H$8, F_Input_APR1!$A$5:$A$654&F_Input_APR1!$B$5:$B$654, 0), MATCH($C113,F_Input_APR1!$A$5:$M$5, 0)) -> 39.5
A114: BRL24 | B114: BRL | C114: 2023-24 | D114: =INDEX(F_Input_CPIH!$F$9:$M$9, MATCH(APR_Combined_Inputs!$C114, F_Input_CPIH!$F$5:$M$5, 0)) -> 0.9474460986 | E114: =INDEX(F_Input_APR1!$A$5:$M$654, MATCH($B114&E$8, F_Input_APR1!$A$5:$A$654&F_Input_APR1!$B$5:$B$654, 0), MATCH($C114,F_Input_APR1!$A$5:$M$5, 0)) -> 11.447 | F114: =INDEX(F_Input_APR1!$A$5:$M$654, MATCH($B114&F$8, F_Input_APR1!$A$5:$A$654&F_Input_APR1!$B$5:$B$654, 0), MATCH($C114,F_Input_APR1!$A$5:$M$5, 0)) -> 0 | G114: =INDEX(F_Input_APR1!$A$5:$M$654, MATCH($B114&G$8, F_Input_APR1!$A$5:$A$654&F_Input_APR1!$B$5:$B$654, 0), MATCH($C114,F_Input_APR1!$A$5:$M$5, 0)) -> 11.447 | H114: =INDEX(F_Input_APR1!$A$5:$M$654, MATCH($B114&H$8, F_Input_APR1!$A$5:$A$654&F_Input_APR1!$B$5:$B$654, 0), MATCH($C114,F_Input_APR1!$A$5:$M$5, 0)) -> 38
A115: PRT17 | B115: PRT | C115: 2016-17 | D115: =INDEX(F_Input_CPIH!$F$9:$M$9, MATCH(APR_Combined_Inputs!$C115, F_Input_CPIH!$F$5:$M$5, 0)) -> 1.211735741 | E115: =INDEX(F_Input_APR1!$A$5:$M$654, MATCH($B115&E$8, F_Input_APR1!$A$5:$A$654&F_Input_APR1!$B$5:$B$654, 0), MATCH($C115,F_Input_APR1!$A$5:$M$5, 0)) ->  | F115: =INDEX(F_Input_APR1!$A$5:$M$654, MATCH($B115&F$8, F_Input_APR1!$A$5:$A$654&F_Input_APR1!$B$5:$B$654, 0), MATCH($C115,F_Input_APR1!$A$5:$M$5, 0)) ->  | G115: =INDEX(F_Input_APR1!$A$5:$M$654, MATCH($B115&G$8, F_Input_APR1!$A$5:$A$654&F_Input_APR1!$B$5:$B$654, 0), MATCH($C115,F_Input_APR1!$A$5:$M$5, 0)) ->  | H115: =INDEX(F_Input_APR1!$A$5:$M$654, MATCH($B115&H$8, F_Input_APR1!$A$5:$A$654&F_Input_APR1!$B$5:$B$654, 0), MATCH($C115,F_Input_APR1!$A$5:$M$5, 0)) -> 30.37
A116: PRT18 | B116: PRT | C116: 2017-18 | D116: =INDEX(F_Input_CPIH!$F$9:$M$9, MATCH(APR_Combined_Inputs!$C116, F_Input_CPIH!$F$5:$M$5, 0)) -> 1.180633296 | E116: =INDEX(F_Input_APR1!$A$5:$M$654, MATCH($B116&E$8, F_Input_APR1!$A$5:$A$654&F_Input_APR1!$B$5:$B$654, 0), MATCH($C116,F_Input_APR1!$A$5:$M$5, 0)) -> 1.085 | F116: =INDEX(F_Input_APR1!$A$5:$M$654, MATCH($B116&F$8, F_Input_APR1!$A$5:$A$654&F_Input_APR1!$B$5:$B$654, 0), MATCH($C116,F_Input_APR1!$A$5:$M$5, 0)) -> 0.188 | G116: =INDEX(F_Input_APR1!$A$5:$M$654, MATCH($B116&G$8, F_Input_APR1!$A$5:$A$654&F_Input_APR1!$B$5:$B$654, 0), MATCH($C116,F_Input_APR1!$A$5:$M$5, 0)) -> 0.897 | H116: =INDEX(F_Input_APR1!$A$5:$M$654, MATCH($B116&H$8, F_Input_APR1!$A$5:$A$654&F_Input_APR1!$B$5:$B$654, 0), MATCH($C116,F_Input_APR1!$A$5:$M$5, 0)) -> 37
A117: PRT19 | B117: PRT | C117: 2018-19 | D117: =INDEX(F_Input_CPIH!$F$9:$M$9, MATCH(APR_Combined_Inputs!$C117, F_Input_CPIH!$F$5:$M$5, 0)) -> 1.156044472 | E117: =INDEX(F_Input_APR1!$A$5:$M$654, MATCH($B117&E$8, F_Input_APR1!$A$5:$A$654&F_Input_APR1!$B$5:$B$654, 0), MATCH($C117,F_Input_APR1!$A$5:$M$5, 0)) -> 3.944 | F117: =INDEX(F_Input_APR1!$A$5:$M$654, MATCH($B117&F$8, F_Input_APR1!$A$5:$A$654&F_Input_APR1!$B$5:$B$654, 0), MATCH($C117,F_Input_APR1!$A$5:$M$5, 0)) -> 2.281 | G117: =INDEX(F_Input_APR1!$A$5:$M$654, MATCH($B117&G$8, F_Input_APR1!$A$5:$A$654&F_Input_APR1!$B$5:$B$654, 0), MATCH($C117,F_Input_APR1!$A$5:$M$5, 0)) -> 1.663 | H117: =INDEX(F_Input_APR1!$A$5:$M$654, MATCH($B117&H$8, F_Input_APR1!$A$5:$A$654&F_Input_APR1!$B$5:$B$654, 0), MATCH($C117,F_Input_APR1!$A$5:$M$5, 0)) -> 28.12
A118: PRT20 | B118: PRT | C118: 2019-20 | D118: =INDEX(F_Input_CPIH!$F$9:$M$9, MATCH(APR_Combined_Inputs!$C118, F_Input_CPIH!$F$5:$M$5, 0)) -> 1.13673108 | E118: =INDEX(F_Input_APR1!$A$5:$M$654, MATCH($B118&E$8, F_Input_APR1!$A$5:$A$654&F_Input_APR1!$B$5:$B$654, 0), MATCH($C118,F_Input_APR1!$A$5:$M$5, 0)) -> 3.7 | F118: =INDEX(F_Input_APR1!$A$5:$M$654, MATCH($B118&F$8, F_Input_APR1!$A$5:$A$654&F_Input_APR1!$B$5:$B$654, 0), MATCH($C118,F_Input_APR1!$A$5:$M$5, 0)) -> 0.803 | G118: =INDEX(F_Input_APR1!$A$5:$M$654, MATCH($B118&G$8, F_Input_APR1!$A$5:$A$654&F_Input_APR1!$B$5:$B$654, 0), MATCH($C118,F_Input_APR1!$A$5:$M$5, 0)) -> 2.897 | H118: =INDEX(F_Input_APR1!$A$5:$M$654, MATCH($B118&H$8, F_Input_APR1!$A$5:$A$654&F_Input_APR1!$B$5:$B$654, 0), MATCH($C118,F_Input_APR1!$A$5:$M$5, 0)) -> 23.58
A119: PRT21 | B119: PRT | C119: 2020-21 | D119: =INDEX(F_Input_CPIH!$F$9:$M$9, MATCH(APR_Combined_Inputs!$C119, F_Input_CPIH!$F$5:$M$5, 0)) -> 1.127701825 | E119: =INDEX(F_Input_APR1!$A$5:$M$654, MATCH($B119&E$8, F_Input_APR1!$A$5:$A$654&F_Input_APR1!$B$5:$B$654, 0), MATCH($C119,F_Input_APR1!$A$5:$M$5, 0)) -> 2.884 | F119: =INDEX(F_Input_APR1!$A$5:$M$654, MATCH($B119&F$8, F_Input_APR1!$A$5:$A$654&F_Input_APR1!$B$5:$B$654, 0), MATCH($C119,F_Input_APR1!$A$5:$M$5, 0)) -> 0.826 | G119: =INDEX(F_Input_APR1!$A$5:$M$654, MATCH($B119&G$8, F_Input_APR1!$A$5:$A$654&F_Input_APR1!$B$5:$B$654, 0), MATCH($C119,F_Input_APR1!$A$5:$M$5, 0)) -> 2.058 | H119: =INDEX(F_Input_APR1!$A$5:$M$654, MATCH($B119&H$8, F_Input_APR1!$A$5:$A$654&F_Input_APR1!$B$5:$B$654, 0), MATCH($C119,F_Input_APR1!$A$5:$M$5, 0)) -> 23.55
A120: PRT22 | B120: PRT | C120: 2021-22 | D120: =INDEX(F_Input_CPIH!$F$9:$M$9, MATCH(APR_Combined_Inputs!$C120, F_Input_CPIH!$F$5:$M$5, 0)) -> 1.08774127 | E120: =INDEX(F_Input_APR1!$A$5:$M$654, MATCH($B120&E$8, F_Input_APR1!$A$5:$A$654&F_Input_APR1!$B$5:$B$654, 0), MATCH($C120,F_Input_APR1!$A$5:$M$5, 0)) -> 3.375 | F120: =INDEX(F_Input_APR1!$A$5:$M$654, MATCH($B120&F$8, F_Input_APR1!$A$5:$A$654&F_Input_APR1!$B$5:$B$654, 0), MATCH($C120,F_Input_APR1!$A$5:$M$5, 0)) -> 0.709 | G120: =INDEX(F_Input_APR1!$A$5:$M$654, MATCH($B120&G$8, F_Input_APR1!$A$5:$A$654&F_Input_APR1!$B$5:$B$654, 0), MATCH($C120,F_Input_APR1!$A$5:$M$5, 0)) -> 2.666 | H120: =INDEX(F_Input_APR1!$A$5:$M$654, MATCH($B120&H$8, F_Input_APR1!$A$5:$A$654&F_Input_APR1!$B$5:$B$654, 0), MATCH($C120,F_Input_APR1!$A$5:$M$5, 0)) -> 26.93
A121: PRT23 | B121: PRT | C121: 2022-23 | D121: =INDEX(F_Input_CPIH!$F$9:$M$9, MATCH(APR_Combined_Inputs!$C121, F_Input_CPIH!$F$5:$M$5, 0)) -> 1 | E121: =INDEX(F_Input_APR1!$A$5:$M$654, MATCH($B121&E$8, F_Input_APR1!$A$5:$A$654&F_Input_APR1!$B$5:$B$654, 0), MATCH($C121,F_Input_APR1!$A$5:$M$5, 0)) -> 4.114 | F121: =INDEX(F_Input_APR1!$A$5:$M$654, MATCH($B121&F$8, F_Input_APR1!$A$5:$A$654&F_Input_APR1!$B$5:$B$654, 0), MATCH($C121,F_Input_APR1!$A$5:$M$5, 0)) -> 0.301 | G121: =INDEX(F_Input_APR1!$A$5:$M$654, MATCH($B121&G$8, F_Input_APR1!$A$5:$A$654&F_Input_APR1!$B$5:$B$654, 0), MATCH($C121,F_Input_APR1!$A$5:$M$5, 0)) -> 3.813 | H121: =INDEX(F_Input_APR1!$A$5:$M$654, MATCH($B121&H$8, F_Input_APR1!$A$5:$A$654&F_Input_APR1!$B$5:$B$654, 0), MATCH($C121,F_Input_APR1!$A$5:$M$5, 0)) -> 31.64
A122: PRT24 | B122: PRT | C122: 2023-24 | D122: =INDEX(F_Input_CPIH!$F$9:$M$9, MATCH(APR_Combined_Inputs!$C122, F_Input_CPIH!$F$5:$M$5, 0)) -> 0.9474460986 | E122: =INDEX(F_Input_APR1!$A$5:$M$654, MATCH($B122&E$8, F_Input_APR1!$A$5:$A$654&F_Input_APR1!$B$5:$B$654, 0), MATCH($C122,F_Input_APR1!$A$5:$M$5, 0)) -> 5.555 | F122: =INDEX(F_Input_APR1!$A$5:$M$654, MATCH($B122&F$8, F_Input_APR1!$A$5:$A$654&F_Input_APR1!$B$5:$B$654, 0), MATCH($C122,F_Input_APR1!$A$5:$M$5, 0)) -> 0.272 | G122: =INDEX(F_Input_APR1!$A$5:$M$654, MATCH($B122&G$8, F_Input_APR1!$A$5:$A$654&F_Input_APR1!$B$5:$B$654, 0), MATCH($C122,F_Input_APR1!$A$5:$M$5, 0)) -> 5.283 | H122: =INDEX(F_Input_APR1!$A$5:$M$654, MATCH($B122&H$8, F_Input_APR1!$A$5:$A$654&F_Input_APR1!$B$5:$B$654, 0), MATCH($C122,F_Input_APR1!$A$5:$M$5, 0)) -> 30.6
A123: SES17 | B123: SES | C123: 2016-17 | D123: =INDEX(F_Input_CPIH!$F$9:$M$9, MATCH(APR_Combined_Inputs!$C123, F_Input_CPIH!$F$5:$M$5, 0)) -> 1.211735741 | E123: =INDEX(F_Input_APR1!$A$5:$M$654, MATCH($B123&E$8, F_Input_APR1!$A$5:$A$654&F_Input_APR1!$B$5:$B$654, 0), MATCH($C123,F_Input_APR1!$A$5:$M$5, 0)) ->  | F123: =INDEX(F_Input_APR1!$A$5:$M$654, MATCH($B123&F$8, F_Input_APR1!$A$5:$A$654&F_Input_APR1!$B$5:$B$654, 0), MATCH($C123,F_Input_APR1!$A$5:$M$5, 0)) ->  | G123: =INDEX(F_Input_APR1!$A$5:$M$654, MATCH($B123&G$8, F_Input_APR1!$A$5:$A$654&F_Input_APR1!$B$5:$B$654, 0), MATCH($C123,F_Input_APR1!$A$5:$M$5, 0)) ->  | H123: =INDEX(F_Input_APR1!$A$5:$M$654, MATCH($B123&H$8, F_Input_APR1!$A$5:$A$654&F_Input_APR1!$B$5:$B$654, 0), MATCH($C123,F_Input_APR1!$A$5:$M$5, 0)) -> 24.34
A124: SES18 | B124: SES | C124: 2017-18 | D124: =INDEX(F_Input_CPIH!$F$9:$M$9, MATCH(APR_Combined_Inputs!$C124, F_Input_CPIH!$F$5:$M$5, 0)) -> 1.180633296 | E124: =INDEX(F_Input_APR1!$A$5:$M$654, MATCH($B124&E$8, F_Input_APR1!$A$5:$A$654&F_Input_APR1!$B$5:$B$654, 0), MATCH($C124,F_Input_APR1!$A$5:$M$5, 0)) -> 0 | F124: =INDEX(F_Input_APR1!$A$5:$M$654, MATCH($B124&F$8, F_Input_APR1!$A$5:$A$654&F_Input_APR1!$B$5:$B$654, 0), MATCH($C124,F_Input_APR1!$A$5:$M$5, 0)) -> 0 | G124: =INDEX(F_Input_APR1!$A$5:$M$654, MATCH($B124&G$8, F_Input_APR1!$A$5:$A$654&F_Input_APR1!$B$5:$B$654, 0), MATCH($C124,F_Input_APR1!$A$5:$M$5, 0)) -> 0 | H124: =INDEX(F_Input_APR1!$A$5:$M$654, MATCH($B124&H$8, F_Input_APR1!$A$5:$A$654&F_Input_APR1!$B$5:$B$654, 0), MATCH($C124,F_Input_APR1!$A$5:$M$5, 0)) -> 24.16
A125: SES19 | B125: SES | C125: 2018-19 | D125: =INDEX(F_Input_CPIH!$F$9:$M$9, MATCH(APR_Combined_Inputs!$C125, F_Input_CPIH!$F$5:$M$5, 0)) -> 1.156044472 | E125: =INDEX(F_Input_APR1!$A$5:$M$654, MATCH($B125&E$8, F_Input_APR1!$A$5:$A$654&F_Input_APR1!$B$5:$B$654, 0), MATCH($C125,F_Input_APR1!$A$5:$M$5, 0)) -> 0 | F125: =INDEX(F_Input_APR1!$A$5:$M$654, MATCH($B125&F$8, F_Input_APR1!$A$5:$A$654&F_Input_APR1!$B$5:$B$654, 0), MATCH($C125,F_Input_APR1!$A$5:$M$5, 0)) -> 0 | G125: =INDEX(F_Input_APR1!$A$5:$M$654, MATCH($B125&G$8, F_Input_APR1!$A$5:$A$654&F_Input_APR1!$B$5:$B$654, 0), MATCH($C125,F_Input_APR1!$A$5:$M$5, 0)) -> 0 | H125: =INDEX(F_Input_APR1!$A$5:$M$654, MATCH($B125&H$8, F_Input_APR1!$A$5:$A$654&F_Input_APR1!$B$5:$B$654, 0), MATCH($C125,F_Input_APR1!$A$5:$M$5, 0)) -> 24.15
A126: SES20 | B126: SES | C126: 2019-20 | D126: =INDEX(F_Input_CPIH!$F$9:$M$9, MATCH(APR_Combined_Inputs!$C126, F_Input_CPIH!$F$5:$M$5, 0)) -> 1.13673108 | E126: =INDEX(F_Input_APR1!$A$5:$M$654, MATCH($B126&E$8, F_Input_APR1!$A$5:$A$654&F_Input_APR1!$B$5:$B$654, 0), MATCH($C126,F_Input_APR1!$A$5:$M$5, 0)) -> 0 | F126: =INDEX(F_Input_APR1!$A$5:$M$654, MATCH($B126&F$8, F_Input_APR1!$A$5:$A$654&F_Input_APR1!$B$5:$B$654, 0), MATCH($C126,F_Input_APR1!$A$5:$M$5, 0)) -> 0 | G126: =INDEX(F_Input_APR1!$A$5:$M$654, MATCH($B126&G$8, F_Input_APR1!$A$5:$A$654&F_Input_APR1!$B$5:$B$654, 0), MATCH($C126,F_Input_APR1!$A$5:$M$5, 0)) -> 0 | H126: =INDEX(F_Input_APR1!$A$5:$M$654, MATCH($B126&H$8, F_Input_APR1!$A$5:$A$654&F_Input_APR1!$B$5:$B$654, 0), MATCH($C126,F_Input_APR1!$A$5:$M$5, 0)) -> 23.95
A127: SES21 | B127: SES | C127: 2020-21 | D127: =INDEX(F_Input_CPIH!$F$9:$M$9, MATCH(APR_Combined_Inputs!$C127, F_Input_CPIH!$F$5:$M$5, 0)) -> 1.127701825 | E127: =INDEX(F_Input_APR1!$A$5:$M$654, MATCH($B127&E$8, F_Input_APR1!$A$5:$A$654&F_Input_APR1!$B$5:$B$654, 0), MATCH($C127,F_Input_APR1!$A$5:$M$5, 0)) -> 8.469083487 | F127: =INDEX(F_Input_APR1!$A$5:$M$654, MATCH($B127&F$8, F_Input_APR1!$A$5:$A$654&F_Input_APR1!$B$5:$B$654, 0), MATCH($C127,F_Input_APR1!$A$5:$M$5, 0)) -> 4.533480549 | G127: =INDEX(F_Input_APR1!$A$5:$M$654, MATCH($B127&G$8, F_Input_APR1!$A$5:$A$654&F_Input_APR1!$B$5:$B$654, 0), MATCH($C127,F_Input_APR1!$A$5:$M$5, 0)) -> 3.935602938 | H127: =INDEX(F_Input_APR1!$A$5:$M$654, MATCH($B127&H$8, F_Input_APR1!$A$5:$A$654&F_Input_APR1!$B$5:$B$654, 0), MATCH($C127,F_Input_APR1!$A$5:$M$5, 0)) -> 25.01
A128: SES22 | B128: SES | C128: 2021-22 | D128: =INDEX(F_Input_CPIH!$F$9:$M$9, MATCH(APR_Combined_Inputs!$C128, F_Input_CPIH!$F$5:$M$5, 0)) -> 1.08774127 | E128: =INDEX(F_Input_APR1!$A$5:$M$654, MATCH($B128&E$8, F_Input_APR1!$A$5:$A$654&F_Input_APR1!$B$5:$B$654, 0), MATCH($C128,F_Input_APR1!$A$5:$M$5, 0)) -> 7.62894769 | F128: =INDEX(F_Input_APR1!$A$5:$M$654, MATCH($B128&F$8, F_Input_APR1!$A$5:$A$654&F_Input_APR1!$B$5:$B$654, 0), MATCH($C128,F_Input_APR1!$A$5:$M$5, 0)) -> 3.701926493 | G128: =INDEX(F_Input_APR1!$A$5:$M$654, MATCH($B128&G$8, F_Input_APR1!$A$5:$A$654&F_Input_APR1!$B$5:$B$654, 0), MATCH($C128,F_Input_APR1!$A$5:$M$5, 0)) -> 3.927021197 | H128: =INDEX(F_Input_APR1!$A$5:$M$654, MATCH($B128&H$8, F_Input_APR1!$A$5:$A$654&F_Input_APR1!$B$5:$B$654, 0), MATCH($C128,F_Input_APR1!$A$5:$M$5, 0)) -> 21.14
A129: SES23 | B129: SES | C129: 2022-23 | D129: =INDEX(F_Input_CPIH!$F$9:$M$9, MATCH(APR_Combined_Inputs!$C129, F_Input_CPIH!$F$5:$M$5, 0)) -> 1 | E129: =INDEX(F_Input_APR1!$A$5:$M$654, MATCH($B129&E$8, F_Input_APR1!$A$5:$A$654&F_Input_APR1!$B$5:$B$654, 0), MATCH($C129,F_Input_APR1!$A$5:$M$5, 0)) -> 8.65993467 | F129: =INDEX(F_Input_APR1!$A$5:$M$654, MATCH($B129&F$8, F_Input_APR1!$A$5:$A$654&F_Input_APR1!$B$5:$B$654, 0), MATCH($C129,F_Input_APR1!$A$5:$M$5, 0)) -> 4.344096569 | G129: =INDEX(F_Input_APR1!$A$5:$M$654, MATCH($B129&G$8, F_Input_APR1!$A$5:$A$654&F_Input_APR1!$B$5:$B$654, 0), MATCH($C129,F_Input_APR1!$A$5:$M$5, 0)) -> 4.3158381 | H129: =INDEX(F_Input_APR1!$A$5:$M$654, MATCH($B129&H$8, F_Input_APR1!$A$5:$A$654&F_Input_APR1!$B$5:$B$654, 0), MATCH($C129,F_Input_APR1!$A$5:$M$5, 0)) -> 21.8
A130: SES24 | B130: SES | C130: 2023-24 | D130: =INDEX(F_Input_CPIH!$F$9:$M$9, MATCH(APR_Combined_Inputs!$C130, F_Input_CPIH!$F$5:$M$5, 0)) -> 0.9474460986 | E130: =INDEX(F_Input_APR1!$A$5:$M$654, MATCH($B130&E$8, F_Input_APR1!$A$5:$A$654&F_Input_APR1!$B$5:$B$654, 0), MATCH($C130,F_Input_APR1!$A$5:$M$5, 0)) -> 7.784906967 | F130: =INDEX(F_Input_APR1!$A$5:$M$654, MATCH($B130&F$8, F_Input_APR1!$A$5:$A$654&F_Input_APR1!$B$5:$B$654, 0), MATCH($C130,F_Input_APR1!$A$5:$M$5, 0)) -> 3.436553076 | G130: =INDEX(F_Input_APR1!$A$5:$M$654, MATCH($B130&G$8, F_Input_APR1!$A$5:$A$654&F_Input_APR1!$B$5:$B$654, 0), MATCH($C130,F_Input_APR1!$A$5:$M$5, 0)) -> 4.348353892 | H130: =INDEX(F_Input_APR1!$A$5:$M$654, MATCH($B130&H$8, F_Input_APR1!$A$5:$A$654&F_Input_APR1!$B$5:$B$654, 0), MATCH($C130,F_Input_APR1!$A$5:$M$5, 0)) -> 21.1
A131: SEW17 | B131: SEW | C131: 2016-17 | D131: =INDEX(F_Input_CPIH!$F$9:$M$9, MATCH(APR_Combined_Inputs!$C131, F_Input_CPIH!$F$5:$M$5, 0)) -> 1.211735741 | E131: =INDEX(F_Input_APR1!$A$5:$M$654, MATCH($B131&E$8, F_Input_APR1!$A$5:$A$654&F_Input_APR1!$B$5:$B$654, 0), MATCH($C131,F_Input_APR1!$A$5:$M$5, 0)) ->  | F131: =INDEX(F_Input_APR1!$A$5:$M$654, MATCH($B131&F$8, F_Input_APR1!$A$5:$A$654&F_Input_APR1!$B$5:$B$654, 0), MATCH($C131,F_Input_APR1!$A$5:$M$5, 0)) ->  | G131: =INDEX(F_Input_APR1!$A$5:$M$654, MATCH($B131&G$8, F_Input_APR1!$A$5:$A$654&F_Input_APR1!$B$5:$B$654, 0), MATCH($C131,F_Input_APR1!$A$5:$M$5, 0)) ->  | H131: =INDEX(F_Input_APR1!$A$5:$M$654, MATCH($B131&H$8, F_Input_APR1!$A$5:$A$654&F_Input_APR1!$B$5:$B$654, 0), MATCH($C131,F_Input_APR1!$A$5:$M$5, 0)) -> 88.62518652
A132: SEW18 | B132: SEW | C132: 2017-18 | D132: =INDEX(F_Input_CPIH!$F$9:$M$9, MATCH(APR_Combined_Inputs!$C132, F_Input_CPIH!$F$5:$M$5, 0)) -> 1.180633296 | E132: =INDEX(F_Input_APR1!$A$5:$M$654, MATCH($B132&E$8, F_Input_APR1!$A$5:$A$654&F_Input_APR1!$B$5:$B$654, 0), MATCH($C132,F_Input_APR1!$A$5:$M$5, 0)) -> 13.41883695 | F132: =INDEX(F_Input_APR1!$A$5:$M$654, MATCH($B132&F$8, F_Input_APR1!$A$5:$A$654&F_Input_APR1!$B$5:$B$654, 0), MATCH($C132,F_Input_APR1!$A$5:$M$5, 0)) -> 1.7340162 | G132: =INDEX(F_Input_APR1!$A$5:$M$654, MATCH($B132&G$8, F_Input_APR1!$A$5:$A$654&F_Input_APR1!$B$5:$B$654, 0), MATCH($C132,F_Input_APR1!$A$5:$M$5, 0)) -> 11.68482075 | H132: =INDEX(F_Input_APR1!$A$5:$M$654, MATCH($B132&H$8, F_Input_APR1!$A$5:$A$654&F_Input_APR1!$B$5:$B$654, 0), MATCH($C132,F_Input_APR1!$A$5:$M$5, 0)) -> 87.69219215
A133: SEW19 | B133: SEW | C133: 2018-19 | D133: =INDEX(F_Input_CPIH!$F$9:$M$9, MATCH(APR_Combined_Inputs!$C133, F_Input_CPIH!$F$5:$M$5, 0)) -> 1.156044472 | E133: =INDEX(F_Input_APR1!$A$5:$M$654, MATCH($B133&E$8, F_Input_APR1!$A$5:$A$654&F_Input_APR1!$B$5:$B$654, 0), MATCH($C133,F_Input_APR1!$A$5:$M$5, 0)) -> 11.70736589 | F133: =INDEX(F_Input_APR1!$A$5:$M$654, MATCH($B133&F$8, F_Input_APR1!$A$5:$A$654&F_Input_APR1!$B$5:$B$654, 0), MATCH($C133,F_Input_APR1!$A$5:$M$5, 0)) -> 1.22827671 | G133: =INDEX(F_Input_APR1!$A$5:$M$654, MATCH($B133&G$8, F_Input_APR1!$A$5:$A$654&F_Input_APR1!$B$5:$B$654, 0), MATCH($C133,F_Input_APR1!$A$5:$M$5, 0)) -> 10.47908918 | H133: =INDEX(F_Input_APR1!$A$5:$M$654, MATCH($B133&H$8, F_Input_APR1!$A$5:$A$654&F_Input_APR1!$B$5:$B$654, 0), MATCH($C133,F_Input_APR1!$A$5:$M$5, 0)) -> 86.88
A134: SEW20 | B134: SEW | C134: 2019-20 | D134: =INDEX(F_Input_CPIH!$F$9:$M$9, MATCH(APR_Combined_Inputs!$C134, F_Input_CPIH!$F$5:$M$5, 0)) -> 1.13673108 | E134: =INDEX(F_Input_APR1!$A$5:$M$654, MATCH($B134&E$8, F_Input_APR1!$A$5:$A$654&F_Input_APR1!$B$5:$B$654, 0), MATCH($C134,F_Input_APR1!$A$5:$M$5, 0)) -> 12.06876652 | F134: =INDEX(F_Input_APR1!$A$5:$M$654, MATCH($B134&F$8, F_Input_APR1!$A$5:$A$654&F_Input_APR1!$B$5:$B$654, 0), MATCH($C134,F_Input_APR1!$A$5:$M$5, 0)) -> 0.55065109 | G134: =INDEX(F_Input_APR1!$A$5:$M$654, MATCH($B134&G$8, F_Input_APR1!$A$5:$A$654&F_Input_APR1!$B$5:$B$654, 0), MATCH($C134,F_Input_APR1!$A$5:$M$5, 0)) -> 11.51811543 | H134: =INDEX(F_Input_APR1!$A$5:$M$654, MATCH($B134&H$8, F_Input_APR1!$A$5:$A$654&F_Input_APR1!$B$5:$B$654, 0), MATCH($C134,F_Input_APR1!$A$5:$M$5, 0)) -> 86.40039777
A135: SEW21 | B135: SEW | C135: 2020-21 | D135: =INDEX(F_Input_CPIH!$F$9:$M$9, MATCH(APR_Combined_Inputs!$C135, F_Input_CPIH!$F$5:$M$5, 0)) -> 1.127701825 | E135: =INDEX(F_Input_APR1!$A$5:$M$654, MATCH($B135&E$8, F_Input_APR1!$A$5:$A$654&F_Input_APR1!$B$5:$B$654, 0), MATCH($C135,F_Input_APR1!$A$5:$M$5, 0)) -> 14.57567358 | F135: =INDEX(F_Input_APR1!$A$5:$M$654, MATCH($B135&F$8, F_Input_APR1!$A$5:$A$654&F_Input_APR1!$B$5:$B$654, 0), MATCH($C135,F_Input_APR1!$A$5:$M$5, 0)) -> 2.679991662 | G135: =INDEX(F_Input_APR1!$A$5:$M$654, MATCH($B135&G$8, F_Input_APR1!$A$5:$A$654&F_Input_APR1!$B$5:$B$654, 0), MATCH($C135,F_Input_APR1!$A$5:$M$5, 0)) -> 11.89568192 | H135: =INDEX(F_Input_APR1!$A$5:$M$654, MATCH($B135&H$8, F_Input_APR1!$A$5:$A$654&F_Input_APR1!$B$5:$B$654, 0), MATCH($C135,F_Input_APR1!$A$5:$M$5, 0)) -> 92.67340898
A136: SEW22 | B136: SEW | C136: 2021-22 | D136: =INDEX(F_Input_CPIH!$F$9:$M$9, MATCH(APR_Combined_Inputs!$C136, F_Input_CPIH!$F$5:$M$5, 0)) -> 1.08774127 | E136: =INDEX(F_Input_APR1!$A$5:$M$654, MATCH($B136&E$8, F_Input_APR1!$A$5:$A$654&F_Input_APR1!$B$5:$B$654, 0), MATCH($C136,F_Input_APR1!$A$5:$M$5, 0)) -> 14.8017462 | F136: =INDEX(F_Input_APR1!$A$5:$M$654, MATCH($B136&F$8, F_Input_APR1!$A$5:$A$654&F_Input_APR1!$B$5:$B$654, 0), MATCH($C136,F_Input_APR1!$A$5:$M$5, 0)) -> 2.395523999 | G136: =INDEX(F_Input_APR1!$A$5:$M$654, MATCH($B136&G$8, F_Input_APR1!$A$5:$A$654&F_Input_APR1!$B$5:$B$654, 0), MATCH($C136,F_Input_APR1!$A$5:$M$5, 0)) -> 12.4062222 | H136: =INDEX(F_Input_APR1!$A$5:$M$654, MATCH($B136&H$8, F_Input_APR1!$A$5:$A$654&F_Input_APR1!$B$5:$B$654, 0), MATCH($C136,F_Input_APR1!$A$5:$M$5, 0)) -> 88.65214881
A137: SEW23 | B137: SEW | C137: 2022-23 | D137: =INDEX(F_Input_CPIH!$F$9:$M$9, MATCH(APR_Combined_Inputs!$C137, F_Input_CPIH!$F$5:$M$5, 0)) -> 1 | E137: =INDEX(F_Input_APR1!$A$5:$M$654, MATCH($B137&E$8, F_Input_APR1!$A$5:$A$654&F_Input_APR1!$B$5:$B$654, 0), MATCH($C137,F_Input_APR1!$A$5:$M$5, 0)) -> 23.88879465 | F137: =INDEX(F_Input_APR1!$A$5:$M$654, MATCH($B137&F$8, F_Input_APR1!$A$5:$A$654&F_Input_APR1!$B$5:$B$654, 0), MATCH($C137,F_Input_APR1!$A$5:$M$5, 0)) -> 9.127951511 | G137: =INDEX(F_Input_APR1!$A$5:$M$654, MATCH($B137&G$8, F_Input_APR1!$A$5:$A$654&F_Input_APR1!$B$5:$B$654, 0), MATCH($C137,F_Input_APR1!$A$5:$M$5, 0)) -> 14.76084314 | H137: =INDEX(F_Input_APR1!$A$5:$M$654, MATCH($B137&H$8, F_Input_APR1!$A$5:$A$654&F_Input_APR1!$B$5:$B$654, 0), MATCH($C137,F_Input_APR1!$A$5:$M$5, 0)) -> 83.20120477
A138: SEW24 | B138: SEW | C138: 2023-24 | D138: =INDEX(F_Input_CPIH!$F$9:$M$9, MATCH(APR_Combined_Inputs!$C138, F_Input_CPIH!$F$5:$M$5, 0)) -> 0.9474460986 | E138: =INDEX(F_Input_APR1!$A$5:$M$654, MATCH($B138&E$8, F_Input_APR1!$A$5:$A$654&F_Input_APR1!$B$5:$B$654, 0), MATCH($C138,F_Input_APR1!$A$5:$M$5, 0)) -> 26.45385775 | F138: =INDEX(F_Input_APR1!$A$5:$M$654, MATCH($B138&F$8, F_Input_APR1!$A$5:$A$654&F_Input_APR1!$B$5:$B$654, 0), MATCH($C138,F_Input_APR1!$A$5:$M$5, 0)) -> 9.692452911 | G138: =INDEX(F_Input_APR1!$A$5:$M$654, MATCH($B138&G$8, F_Input_APR1!$A$5:$A$654&F_Input_APR1!$B$5:$B$654, 0), MATCH($C138,F_Input_APR1!$A$5:$M$5, 0)) -> 16.76140484 | H138: =INDEX(F_Input_APR1!$A$5:$M$654, MATCH($B138&H$8, F_Input_APR1!$A$5:$A$654&F_Input_APR1!$B$5:$B$654, 0), MATCH($C138,F_Input_APR1!$A$5:$M$5, 0)) -> 79.08216816
A139: SSC17 | B139: SSC | C139: 2016-17 | D139: =INDEX(F_Input_CPIH!$F$9:$M$9, MATCH(APR_Combined_Inputs!$C139, F_Input_CPIH!$F$5:$M$5, 0)) -> 1.211735741 | E139: =INDEX(F_Input_APR1!$A$5:$M$654, MATCH($B139&E$8, F_Input_APR1!$A$5:$A$654&F_Input_APR1!$B$5:$B$654, 0), MATCH($C139,F_Input_APR1!$A$5:$M$5, 0)) ->  | F139: =INDEX(F_Input_APR1!$A$5:$M$654, MATCH($B139&F$8, F_Input_APR1!$A$5:$A$654&F_Input_APR1!$B$5:$B$654, 0), MATCH($C139,F_Input_APR1!$A$5:$M$5, 0)) ->  | G139: =INDEX(F_Input_APR1!$A$5:$M$654, MATCH($B139&G$8, F_Input_APR1!$A$5:$A$654&F_Input_APR1!$B$5:$B$654, 0), MATCH($C139,F_Input_APR1!$A$5:$M$5, 0)) ->  | H139: =INDEX(F_Input_APR1!$A$5:$M$654, MATCH($B139&H$8, F_Input_APR1!$A$5:$A$654&F_Input_APR1!$B$5:$B$654, 0), MATCH($C139,F_Input_APR1!$A$5:$M$5, 0)) -> 84.17
A140: SSC18 | B140: SSC | C140: 2017-18 | D140: =INDEX(F_Input_CPIH!$F$9:$M$9, MATCH(APR_Combined_Inputs!$C140, F_Input_CPIH!$F$5:$M$5, 0)) -> 1.180633296 | E140: =INDEX(F_Input_APR1!$A$5:$M$654, MATCH($B140&E$8, F_Input_APR1!$A$5:$A$654&F_Input_APR1!$B$5:$B$654, 0), MATCH($C140,F_Input_APR1!$A$5:$M$5, 0)) -> 8.113 | F140: =INDEX(F_Input_APR1!$A$5:$M$654, MATCH($B140&F$8, F_Input_APR1!$A$5:$A$654&F_Input_APR1!$B$5:$B$654, 0), MATCH($C140,F_Input_APR1!$A$5:$M$5, 0)) -> 0.133 | G140: =INDEX(F_Input_APR1!$A$5:$M$654, MATCH($B140&G$8, F_Input_APR1!$A$5:$A$654&F_Input_APR1!$B$5:$B$654, 0), MATCH($C140,F_Input_APR1!$A$5:$M$5, 0)) -> 7.98 | H140: =INDEX(F_Input_APR1!$A$5:$M$654, MATCH($B140&H$8, F_Input_APR1!$A$5:$A$654&F_Input_APR1!$B$5:$B$654, 0), MATCH($C140,F_Input_APR1!$A$5:$M$5, 0)) -> 86.8
A141: SSC19 | B141: SSC | C141: 2018-19 | D141: =INDEX(F_Input_CPIH!$F$9:$M$9, MATCH(APR_Combined_Inputs!$C141, F_Input_CPIH!$F$5:$M$5, 0)) -> 1.156044472 | E141: =INDEX(F_Input_APR1!$A$5:$M$654, MATCH($B141&E$8, F_Input_APR1!$A$5:$A$654&F_Input_APR1!$B$5:$B$654, 0), MATCH($C141,F_Input_APR1!$A$5:$M$5, 0)) -> 9.336 | F141: =INDEX(F_Input_APR1!$A$5:$M$654, MATCH($B141&F$8, F_Input_APR1!$A$5:$A$654&F_Input_APR1!$B$5:$B$654, 0), MATCH($C141,F_Input_APR1!$A$5:$M$5, 0)) -> 0.412 | G141: =INDEX(F_Input_APR1!$A$5:$M$654, MATCH($B141&G$8, F_Input_APR1!$A$5:$A$654&F_Input_APR1!$B$5:$B$654, 0), MATCH($C141,F_Input_APR1!$A$5:$M$5, 0)) -> 8.924 | H141: =INDEX(F_Input_APR1!$A$5:$M$654, MATCH($B141&H$8, F_Input_APR1!$A$5:$A$654&F_Input_APR1!$B$5:$B$654, 0), MATCH($C141,F_Input_APR1!$A$5:$M$5, 0)) -> 83.74
A142: SSC20 | B142: SSC | C142: 2019-20 | D142: =INDEX(F_Input_CPIH!$F$9:$M$9, MATCH(APR_Combined_Inputs!$C142, F_Input_CPIH!$F$5:$M$5, 0)) -> 1.13673108 | E142: =INDEX(F_Input_APR1!$A$5:$M$654, MATCH($B142&E$8, F_Input_APR1!$A$5:$A$654&F_Input_APR1!$B$5:$B$654, 0), MATCH($C142,F_Input_APR1!$A$5:$M$5, 0)) -> 8.925 | F142: =INDEX(F_Input_APR1!$A$5:$M$654, MATCH($B142&F$8, F_Input_APR1!$A$5:$A$654&F_Input_APR1!$B$5:$B$654, 0), MATCH($C142,F_Input_APR1!$A$5:$M$5, 0)) -> 0.965 | G142: =INDEX(F_Input_APR1!$A$5:$M$654, MATCH($B142&G$8, F_Input_APR1!$A$5:$A$654&F_Input_APR1!$B$5:$B$654, 0), MATCH($C142,F_Input_APR1!$A$5:$M$5, 0)) -> 7.96 | H142: =INDEX(F_Input_APR1!$A$5:$M$654, MATCH($B142&H$8, F_Input_APR1!$A$5:$A$654&F_Input_APR1!$B$5:$B$654, 0), MATCH($C142,F_Input_APR1!$A$5:$M$5, 0)) -> 81.69
A143: SSC21 | B143: SSC | C143: 2020-21 | D143: =INDEX(F_Input_CPIH!$F$9:$M$9, MATCH(APR_Combined_Inputs!$C143, F_Input_CPIH!$F$5:$M$5, 0)) -> 1.127701825 | E143: =INDEX(F_Input_APR1!$A$5:$M$654, MATCH($B143&E$8, F_Input_APR1!$A$5:$A$654&F_Input_APR1!$B$5:$B$654, 0), MATCH($C143,F_Input_APR1!$A$5:$M$5, 0)) -> 9.429 | F143: =INDEX(F_Input_APR1!$A$5:$M$654, MATCH($B143&F$8, F_Input_APR1!$A$5:$A$654&F_Input_APR1!$B$5:$B$654, 0), MATCH($C143,F_Input_APR1!$A$5:$M$5, 0)) -> 1.539 | G143: =INDEX(F_Input_APR1!$A$5:$M$654, MATCH($B143&G$8, F_Input_APR1!$A$5:$A$654&F_Input_APR1!$B$5:$B$654, 0), MATCH($C143,F_Input_APR1!$A$5:$M$5, 0)) -> 7.89 | H143: =INDEX(F_Input_APR1!$A$5:$M$654, MATCH($B143&H$8, F_Input_APR1!$A$5:$A$654&F_Input_APR1!$B$5:$B$654, 0), MATCH($C143,F_Input_APR1!$A$5:$M$5, 0)) -> 77.97
A144: SSC22 | B144: SSC | C144: 2021-22 | D144: =INDEX(F_Input_CPIH!$F$9:$M$9, MATCH(APR_Combined_Inputs!$C144, F_Input_CPIH!$F$5:$M$5, 0)) -> 1.08774127 | E144: =INDEX(F_Input_APR1!$A$5:$M$654, MATCH($B144&E$8, F_Input_APR1!$A$5:$A$654&F_Input_APR1!$B$5:$B$654, 0), MATCH($C144,F_Input_APR1!$A$5:$M$5, 0)) -> 10.906 | F144: =INDEX(F_Input_APR1!$A$5:$M$654, MATCH($B144&F$8, F_Input_APR1!$A$5:$A$654&F_Input_APR1!$B$5:$B$654, 0), MATCH($C144,F_Input_APR1!$A$5:$M$5, 0)) -> 3.64 | G144: =INDEX(F_Input_APR1!$A$5:$M$654, MATCH($B144&G$8, F_Input_APR1!$A$5:$A$654&F_Input_APR1!$B$5:$B$654, 0), MATCH($C144,F_Input_APR1!$A$5:$M$5, 0)) -> 7.266 | H144: =INDEX(F_Input_APR1!$A$5:$M$654, MATCH($B144&H$8, F_Input_APR1!$A$5:$A$654&F_Input_APR1!$B$5:$B$654, 0), MATCH($C144,F_Input_APR1!$A$5:$M$5, 0)) -> 79.95
A145: SSC23 | B145: SSC | C145: 2022-23 | D145: =INDEX(F_Input_CPIH!$F$9:$M$9, MATCH(APR_Combined_Inputs!$C145, F_Input_CPIH!$F$5:$M$5, 0)) -> 1 | E145: =INDEX(F_Input_APR1!$A$5:$M$654, MATCH($B145&E$8, F_Input_APR1!$A$5:$A$654&F_Input_APR1!$B$5:$B$654, 0), MATCH($C145,F_Input_APR1!$A$5:$M$5, 0)) -> 22.76750757 | F145: =INDEX(F_Input_APR1!$A$5:$M$654, MATCH($B145&F$8, F_Input_APR1!$A$5:$A$654&F_Input_APR1!$B$5:$B$654, 0), MATCH($C145,F_Input_APR1!$A$5:$M$5, 0)) -> 0.9640755536 | G145: =INDEX(F_Input_APR1!$A$5:$M$654, MATCH($B145&G$8, F_Input_APR1!$A$5:$A$654&F_Input_APR1!$B$5:$B$654, 0), MATCH($C145,F_Input_APR1!$A$5:$M$5, 0)) -> 21.80343202 | H145: =INDEX(F_Input_APR1!$A$5:$M$654, MATCH($B145&H$8, F_Input_APR1!$A$5:$A$654&F_Input_APR1!$B$5:$B$654, 0), MATCH($C145,F_Input_APR1!$A$5:$M$5, 0)) -> 72.3
A146: SSC24 | B146: SSC | C146: 2023-24 | D146: =INDEX(F_Input_CPIH!$F$9:$M$9, MATCH(APR_Combined_Inputs!$C146, F_Input_CPIH!$F$5:$M$5, 0)) -> 0.9474460986 | E146: =INDEX(F_Input_APR1!$A$5:$M$654, MATCH($B146&E$8, F_Input_APR1!$A$5:$A$654&F_Input_APR1!$B$5:$B$654, 0), MATCH($C146,F_Input_APR1!$A$5:$M$5, 0)) -> 24.73213634 | F146: =INDEX(F_Input_APR1!$A$5:$M$654, MATCH($B146&F$8, F_Input_APR1!$A$5:$A$654&F_Input_APR1!$B$5:$B$654, 0), MATCH($C146,F_Input_APR1!$A$5:$M$5, 0)) -> 1.041922566 | G146: =INDEX(F_Input_APR1!$A$5:$M$654, MATCH($B146&G$8, F_Input_APR1!$A$5:$A$654&F_Input_APR1!$B$5:$B$654, 0), MATCH($C146,F_Input_APR1!$A$5:$M$5, 0)) -> 23.69021378 | H146: =INDEX(F_Input_APR1!$A$5:$M$654, MATCH($B146&H$8, F_Input_APR1!$A$5:$A$654&F_Input_APR1!$B$5:$B$654, 0), MATCH($C146,F_Input_APR1!$A$5:$M$5, 0)) -> 68.4
D147: Median Company: | E147: =MEDIAN(E11:E146) -> 34.529 | F147: =MEDIAN(F11:F146) -> 2.679991662 | G147: 24.084 | H147: 103.6694593

Sheet APR_Combined_Inputs_Real
A1: =RIGHT(CELL("filename", $A$1), LEN(CELL("filename", $A$1)) - SEARCH("]", CELL("filename", $A$1))) -> 
A3: Purpose | B3: CPIH adjusted APR reported data
F5: COST | I5: DRIVER
E6: Reference index-match for NES + SSC + NWT: | F6: BN15500_TOT_A | G6: BN15500_RL_A | H6: BN15500_ML_A
F7: BN15500_TOT_B | G7: BN15500_RL_B | H7: BN15500_ML_B
E8: C_CD0014_PR19WW1 | F8: BN15500_TOT | G8: BN15500_RL | H8: BN15500_ML | I8: BN2345
A9: codecombine | B9: companycode | C9: financialyear | D9: year | E9: cpih | F9: leakage_totex | G9: reduce_totex | H9: maintain_totex | I9: total_leakage
A10: Code | B10: Company | C10: Financial year | D10: Year | E10: CPIH | F10: Total leakage expenditure /£m | G10: Reduce expenditure - Total /£m | H10: Maintain expenditure - Total /£m | I10: Water delivered: total leakage /Ml/d
A11: =(B11&RIGHT(C11,2)) -> ANH17 | B11: ANH | C11: 2016-17 | D11: 0 | E11: =INDEX(F_Input_CPIH!$F$9:$M$9, MATCH($C11, F_Input_CPIH!$F$5:$M$5, 0)) -> 1.211735741 | F11: =IF(APR_Combined_Inputs!E11="","",(APR_Combined_Inputs!E11)*($E11)) ->  | G11: =IF(APR_Combined_Inputs!F11="","",(APR_Combined_Inputs!F11)*($E11)) ->  | H11: =IF(APR_Combined_Inputs!G11="","",(APR_Combined_Inputs!G11)*($E11)) ->  | I11: =APR_Combined_Inputs!H11 -> 184.7161233
A12: ANH18 | B12: ANH | C12: 2017-18 | D12: 1 | E12: =INDEX(F_Input_CPIH!$F$9:$M$9, MATCH($C12, F_Input_CPIH!$F$5:$M$5, 0)) -> 1.180633296 | F12: =IF(APR_Combined_Inputs!E12="","",(APR_Combined_Inputs!E12)*($E12)) -> 70.7435471 | G12: =IF(APR_Combined_Inputs!F12="","",(APR_Combined_Inputs!F12)*($E12)) -> 12.43915241 | H12: =IF(APR_Combined_Inputs!G12="","",(APR_Combined_Inputs!G12)*($E12)) -> 58.30439469 | I12: =APR_Combined_Inputs!H12 -> 182.66
A13: ANH19 | B13: ANH | C13: 2018-19 | D13: 2 | E13: =INDEX(F_Input_CPIH!$F$9:$M$9, MATCH($C13, F_Input_CPIH!$F$5:$M$5, 0)) -> 1.156044472 | F13: =IF(APR_Combined_Inputs!E13="","",(APR_Combined_Inputs!E13)*($E13)) -> 87.01777952 | G13: =IF(APR_Combined_Inputs!F13="","",(APR_Combined_Inputs!F13)*($E13)) -> 12.28297252 | H13: =IF(APR_Combined_Inputs!G13="","",(APR_Combined_Inputs!G13)*($E13)) -> 74.734807 | I13: =APR_Combined_Inputs!H13 -> 191.2400728
A14: ANH20 | B14: ANH | C14: 2019-20 | D14: 3 | E14: =INDEX(F_Input_CPIH!$F$9:$M$9, MATCH($C14, F_Input_CPIH!$F$5:$M$5, 0)) -> 1.13673108 | F14: =IF(APR_Combined_Inputs!E14="","",(APR_Combined_Inputs!E14)*($E14)) -> 92.77999076 | G14: =IF(APR_Combined_Inputs!F14="","",(APR_Combined_Inputs!F14)*($E14)) -> 9.181376934 | H14: =IF(APR_Combined_Inputs!G14="","",(APR_Combined_Inputs!G14)*($E14)) -> 83.59861383 | I14: =APR_Combined_Inputs!H14 -> 182.39
A15: ANH21 | B15: ANH | C15: 2020-21 | D15: 4 | E15: =INDEX(F_Input_CPIH!$F$9:$M$9, MATCH($C15, F_Input_CPIH!$F$5:$M$5, 0)) -> 1.127701825 | F15: =IF(APR_Combined_Inputs!E15="","",(APR_Combined_Inputs!E15)*($E15)) -> 88.87643626 | G15: =IF(APR_Combined_Inputs!F15="","",(APR_Combined_Inputs!F15)*($E15)) -> 14.23836325 | H15: =IF(APR_Combined_Inputs!G15="","",(APR_Combined_Inputs!G15)*($E15)) -> 74.63807302 | I15: =APR_Combined_Inputs!H15 -> 182.38
A16: ANH22 | B16: ANH | C16: 2021-22 | D16: 5 | E16: =INDEX(F_Input_CPIH!$F$9:$M$9, MATCH($C16, F_Input_CPIH!$F$5:$M$5, 0)) -> 1.08774127 | F16: =IF(APR_Combined_Inputs!E16="","",(APR_Combined_Inputs!E16)*($E16)) -> 103.8096759 | G16: =IF(APR_Combined_Inputs!F16="","",(APR_Combined_Inputs!F16)*($E16)) -> 34.62933107 | H16: =IF(APR_Combined_Inputs!G16="","",(APR_Combined_Inputs!G16)*($E16)) -> 69.18034478 | I16: =APR_Combined_Inputs!H16 -> 173.41
A17: ANH23 | B17: ANH | C17: 2022-23 | D17: 6 | E17: =INDEX(F_Input_CPIH!$F$9:$M$9, MATCH($C17, F_Input_CPIH!$F$5:$M$5, 0)) -> 1 | F17: =IF(APR_Combined_Inputs!E17="","",(APR_Combined_Inputs!E17)*($E17)) -> 110.094 | G17: =IF(APR_Combined_Inputs!F17="","",(APR_Combined_Inputs!F17)*($E17)) -> 24.103 | H17: =IF(APR_Combined_Inputs!G17="","",(APR_Combined_Inputs!G17)*($E17)) -> 85.991 | I17: =APR_Combined_Inputs!H17 -> 156.29
A18: ANH24 | B18: ANH | C18: 2023-24 | D18: 7 | E18: =INDEX(F_Input_CPIH!$F$9:$M$9, MATCH($C18, F_Input_CPIH!$F$5:$M$5, 0)) -> 0.9474460986 | F18: =IF(APR_Combined_Inputs!E18="","",(APR_Combined_Inputs!E18)*($E18)) -> 100.5127323 | G18: =IF(APR_Combined_Inputs!F18="","",(APR_Combined_Inputs!F18)*($E18)) -> 24.68981988 | H18: =IF(APR_Combined_Inputs!G18="","",(APR_Combined_Inputs!G18)*($E18)) -> 75.82291237 | I18: =APR_Combined_Inputs!H18 -> 149.15
A19: HDD17 | B19: HDD | C19: 2016-17 | D19: 0 | E19: =INDEX(F_Input_CPIH!$F$9:$M$9, MATCH($C19, F_Input_CPIH!$F$5:$M$5, 0)) -> 1.211735741 | F19: =IF(APR_Combined_Inputs!E19="","",(APR_Combined_Inputs!E19)*($E19)) ->  | G19: =IF(APR_Combined_Inputs!F19="","",(APR_Combined_Inputs!F19)*($E19)) ->  | H19: =IF(APR_Combined_Inputs!G19="","",(APR_Combined_Inputs!G19)*($E19)) ->  | I19: =APR_Combined_Inputs!H19 -> 
A20: HDD18 | B20: HDD | C20: 2017-18 | D20: 1 | E20: =INDEX(F_Input_CPIH!$F$9:$M$9, MATCH($C20, F_Input_CPIH!$F$5:$M$5, 0)) -> 1.180633296 | F20: =IF(APR_Combined_Inputs!E20="","",(APR_Combined_Inputs!E20)*($E20)) -> 3.47460379 | G20: =IF(APR_Combined_Inputs!F20="","",(APR_Combined_Inputs!F20)*($E20)) -> 0 | H20: =IF(APR_Combined_Inputs!G20="","",(APR_Combined_Inputs!G20)*($E20)) -> 3.47460379 | I20: =APR_Combined_Inputs!H20 -> 14.61986166
A21: HDD19 | B21: HDD | C21: 2018-19 | D21: 2 | E21: =INDEX(F_Input_CPIH!$F$9:$M$9, MATCH($C21, F_Input_CPIH!$F$5:$M$5, 0)) -> 1.156044472 | F21: =IF(APR_Combined_Inputs!E21="","",(APR_Combined_Inputs!E21)*($E21)) -> 3.580269731 | G21: =IF(APR_Combined_Inputs!F21="","",(APR_Combined_Inputs!F21)*($E21)) -> 0.2473935171 | H21: =IF(APR_Combined_Inputs!G21="","",(APR_Combined_Inputs!G21)*($E21)) -> 3.332876214 | I21: =APR_Combined_Inputs!H21 -> 15.27154778
A22: HDD20 | B22: HDD | C22: 2019-20 | D22: 3 | E22: =INDEX(F_Input_CPIH!$F$9:$M$9, MATCH($C22, F_Input_CPIH!$F$5:$M$5, 0)) -> 1.13673108 | F22: =IF(APR_Combined_Inputs!E22="","",(APR_Combined_Inputs!E22)*($E22)) -> 3.611394642 | G22: =IF(APR_Combined_Inputs!F22="","",(APR_Combined_Inputs!F22)*($E22)) -> 0 | H22: =IF(APR_Combined_Inputs!G22="","",(APR_Combined_Inputs!G22)*($E22)) -> 3.611394642 | I22: =APR_Combined_Inputs!H22 -> 12.75841411
A23: HDD21 | B23: HDD | C23: 2020-21 | D23: 4 | E23: =INDEX(F_Input_CPIH!$F$9:$M$9, MATCH($C23, F_Input_CPIH!$F$5:$M$5, 0)) -> 1.127701825 | F23: =IF(APR_Combined_Inputs!E23="","",(APR_Combined_Inputs!E23)*($E23)) -> 3.114712442 | G23: =IF(APR_Combined_Inputs!F23="","",(APR_Combined_Inputs!F23)*($E23)) -> 0.2683930344 | H23: =IF(APR_Combined_Inputs!G23="","",(APR_Combined_Inputs!G23)*($E23)) -> 2.846319407 | I23: =APR_Combined_Inputs!H23 -> 14.69
A24: HDD22 | B24: HDD | C24: 2021-22 | D24: 5 | E24: =INDEX(F_Input_CPIH!$F$9:$M$9, MATCH($C24, F_Input_CPIH!$F$5:$M$5, 0)) -> 1.08774127 | F24: =IF(APR_Combined_Inputs!E24="","",(APR_Combined_Inputs!E24)*($E24)) -> 2.973884632 | G24: =IF(APR_Combined_Inputs!F24="","",(APR_Combined_Inputs!F24)*($E24)) -> 0.09028252542 | H24: =IF(APR_Combined_Inputs!G24="","",(APR_Combined_Inputs!G24)*($E24)) -> 2.883602107 | I24: =APR_Combined_Inputs!H24 -> 13.90576
A25: HDD23 | B25: HDD | C25: 2022-23 | D25: 6 | E25: =INDEX(F_Input_CPIH!$F$9:$M$9, MATCH($C25, F_Input_CPIH!$F$5:$M$5, 0)) -> 1 | F25: =IF(APR_Combined_Inputs!E25="","",(APR_Combined_Inputs!E25)*($E25)) -> 3.254 | G25: =IF(APR_Combined_Inputs!F25="","",(APR_Combined_Inputs!F25)*($E25)) -> 0.255 | H25: =IF(APR_Combined_Inputs!G25="","",(APR_Combined_Inputs!G25)*($E25)) -> 2.999 | I25: =APR_Combined_Inputs!H25 -> 13.20542046
A26: HDD24 | B26: HDD | C26: 2023-24 | D26: 7 | E26: =INDEX(F_Input_CPIH!$F$9:$M$9, MATCH($C26, F_Input_CPIH!$F$5:$M$5, 0)) -> 0.9474460986 | F26: =IF(APR_Combined_Inputs!E26="","",(APR_Combined_Inputs!E26)*($E26)) -> 2.974980749 | G26: =IF(APR_Combined_Inputs!F26="","",(APR_Combined_Inputs!F26)*($E26)) -> 0.1525388219 | H26: =IF(APR_Combined_Inputs!G26="","",(APR_Combined_Inputs!G26)*($E26)) -> 2.822441928 | I26: =APR_Combined_Inputs!H26 -> 12.77007693
A27: NES17 | B27: NES | C27: 2016-17 | D27: 0 | E27: =INDEX(F_Input_CPIH!$F$9:$M$9, MATCH($C27, F_Input_CPIH!$F$5:$M$5, 0)) -> 1.211735741 | F27: =IF(APR_Combined_Inputs!E27="","",(APR_Combined_Inputs!E27)*($E27)) ->  | G27: =IF(APR_Combined_Inputs!F27="","",(APR_Combined_Inputs!F27)*($E27)) ->  | H27: =IF(APR_Combined_Inputs!G27="","",(APR_Combined_Inputs!G27)*($E27)) ->  | I27: =APR_Combined_Inputs!H27 -> 201.9
A28: NES18 | B28: NES | C28: 2017-18 | D28: 1 | E28: =INDEX(F_Input_CPIH!$F$9:$M$9, MATCH($C28, F_Input_CPIH!$F$5:$M$5, 0)) -> 1.180633296 | F28: =IF(APR_Combined_Inputs!E28="","",(APR_Combined_Inputs!E28)*($E28)) -> 45.27138374 | G28: =IF(APR_Combined_Inputs!F28="","",(APR_Combined_Inputs!F28)*($E28)) -> 0 | H28: =IF(APR_Combined_Inputs!G28="","",(APR_Combined_Inputs!G28)*($E28)) -> 45.27138374 | I28: =APR_Combined_Inputs!H28 -> 203.21
A29: NES19 | B29: NES | C29: 2018-19 | D29: 2 | E29: =INDEX(F_Input_CPIH!$F$9:$M$9, MATCH($C29, F_Input_CPIH!$F$5:$M$5, 0)) -> 1.156044472 | F29: =IF(APR_Combined_Inputs!E29="","",(APR_Combined_Inputs!E29)*($E29)) -> 61.49925384 | G29: =IF(APR_Combined_Inputs!F29="","",(APR_Combined_Inputs!F29)*($E29)) -> 0 | H29: =IF(APR_Combined_Inputs!G29="","",(APR_Combined_Inputs!G29)*($E29)) -> 61.49925384 | I29: =APR_Combined_Inputs!H29 -> 200.44
A30: NES20 | B30: NES | C30: 2019-20 | D30: 3 | E30: =INDEX(F_Input_CPIH!$F$9:$M$9, MATCH($C30, F_Input_CPIH!$F$5:$M$5, 0)) -> 1.13673108 | F30: =IF(APR_Combined_Inputs!E30="","",(APR_Combined_Inputs!E30)*($E30)) -> 53.21265532 | G30: =IF(APR_Combined_Inputs!F30="","",(APR_Combined_Inputs!F30)*($E30)) -> 0 | H30: =IF(APR_Combined_Inputs!G30="","",(APR_Combined_Inputs!G30)*($E30)) -> 53.21265532 | I30: =APR_Combined_Inputs!H30 -> 198.05
A31: NES21 | B31: NES | C31: 2020-21 | D31: 4 | E31: =INDEX(F_Input_CPIH!$F$9:$M$9, MATCH($C31, F_Input_CPIH!$F$5:$M$5, 0)) -> 1.127701825 | F31: =IF(APR_Combined_Inputs!E31="","",(APR_Combined_Inputs!E31)*($E31)) -> 42.97446116 | G31: =IF(APR_Combined_Inputs!F31="","",(APR_Combined_Inputs!F31)*($E31)) -> 0 | H31: =IF(APR_Combined_Inputs!G31="","",(APR_Combined_Inputs!G31)*($E31)) -> 42.97446116 | I31: =APR_Combined_Inputs!H31 -> 206.02
A32: NES22 | B32: NES | C32: 2021-22 | D32: 5 | E32: =INDEX(F_Input_CPIH!$F$9:$M$9, MATCH($C32, F_Input_CPIH!$F$5:$M$5, 0)) -> 1.08774127 | F32: =IF(APR_Combined_Inputs!E32="","",(APR_Combined_Inputs!E32)*($E32)) -> 50.3439292 | G32: =IF(APR_Combined_Inputs!F32="","",(APR_Combined_Inputs!F32)*($E32)) -> 4.815430603 | H32: =IF(APR_Combined_Inputs!G32="","",(APR_Combined_Inputs!G32)*($E32)) -> 45.5284986 | I32: =APR_Combined_Inputs!H32 -> 189.76
A33: NES23 | B33: NES | C33: 2022-23 | D33: 6 | E33: =INDEX(F_Input_CPIH!$F$9:$M$9, MATCH($C33, F_Input_CPIH!$F$5:$M$5, 0)) -> 1 | F33: =IF(APR_Combined_Inputs!E33="","",(APR_Combined_Inputs!E33)*($E33)) -> 49.99520074 | G33: =IF(APR_Combined_Inputs!F33="","",(APR_Combined_Inputs!F33)*($E33)) -> 2.872600022 | H33: =IF(APR_Combined_Inputs!G33="","",(APR_Combined_Inputs!G33)*($E33)) -> 47.12260072 | I33: =APR_Combined_Inputs!H33 -> 182.07
A34: =(B34&RIGHT(C34,2)) -> NES24 | B34: NES | C34: 2023-24 | D34: 7 | E34: =INDEX(F_Input_CPIH!$F$9:$M$9, MATCH($C34, F_Input_CPIH!$F$5:$M$5, 0)) -> 0.9474460986 | F34: =IF(APR_Combined_Inputs!E34="","",(APR_Combined_Inputs!E34)*($E34)) -> 42.14414408 | G34: =IF(APR_Combined_Inputs!F34="","",(APR_Combined_Inputs!F34)*($E34)) -> 2.154371069 | H34: =IF(APR_Combined_Inputs!G34="","",(APR_Combined_Inputs!G34)*($E34)) -> 39.98977301 | I34: =APR_Combined_Inputs!H34 -> 175.72
A35: NWT17 | B35: NWT | C35: 2016-17 | D35: 0 | E35: =INDEX(F_Input_CPIH!$F$9:$M$9, MATCH($C35, F_Input_CPIH!$F$5:$M$5, 0)) -> 1.211735741 | F35: =IF(APR_Combined_Inputs!E35="","",(APR_Combined_Inputs!E35)*($E35)) ->  | G35: =IF(APR_Combined_Inputs!F35="","",(APR_Combined_Inputs!F35)*($E35)) ->  | H35: =IF(APR_Combined_Inputs!G35="","",(APR_Combined_Inputs!G35)*($E35)) ->  | I35: =APR_Combined_Inputs!H35 -> 439.2201975
A36: NWT18 | B36: NWT | C36: 2017-18 | D36: 1 | E36: =INDEX(F_Input_CPIH!$F$9:$M$9, MATCH($C36, F_Input_CPIH!$F$5:$M$5, 0)) -> 1.180633296 | F36: =IF(APR_Combined_Inputs!E36="","",(APR_Combined_Inputs!E36)*($E36)) -> 82.13666232 | G36: =IF(APR_Combined_Inputs!F36="","",(APR_Combined_Inputs!F36)*($E36)) -> 1.359287388 | H36: =IF(APR_Combined_Inputs!G36="","",(APR_Combined_Inputs!G36)*($E36)) -> 80.77737493 | I36: =APR_Combined_Inputs!H36 -> 453.52
A37: NWT19 | B37: NWT | C37: 2018-19 | D37: 2 | E37: =INDEX(F_Input_CPIH!$F$9:$M$9, MATCH($C37, F_Input_CPIH!$F$5:$M$5, 0)) -> 1.156044472 | F37: =IF(APR_Combined_Inputs!E37="","",(APR_Combined_Inputs!E37)*($E37)) -> 100.1733056 | G37: =IF(APR_Combined_Inputs!F37="","",(APR_Combined_Inputs!F37)*($E37)) -> 2.44171524 | H37: =IF(APR_Combined_Inputs!G37="","",(APR_Combined_Inputs!G37)*($E37)) -> 97.73159039 | I37: =APR_Combined_Inputs!H37 -> 455.9742911
A38: NWT20 | B38: NWT | C38: 2019-20 | D38: 3 | E38: =INDEX(F_Input_CPIH!$F$9:$M$9, MATCH($C38, F_Input_CPIH!$F$5:$M$5, 0)) -> 1.13673108 | F38: =IF(APR_Combined_Inputs!E38="","",(APR_Combined_Inputs!E38)*($E38)) -> 120.5882125 | G38: =IF(APR_Combined_Inputs!F38="","",(APR_Combined_Inputs!F38)*($E38)) -> 25.80966466 | H38: =IF(APR_Combined_Inputs!G38="","",(APR_Combined_Inputs!G38)*($E38)) -> 94.7785478 | I38: =APR_Combined_Inputs!H38 -> 446.1043784
A39: NWT21 | B39: NWT | C39: 2020-21 | D39: 4 | E39: =INDEX(F_Input_CPIH!$F$9:$M$9, MATCH($C39, F_Input_CPIH!$F$5:$M$5, 0)) -> 1.127701825 | F39: =IF(APR_Combined_Inputs!E39="","",(APR_Combined_Inputs!E39)*($E39)) -> 105.6946994 | G39: =IF(APR_Combined_Inputs!F39="","",(APR_Combined_Inputs!F39)*($E39)) -> 13.9223987 | H39: =IF(APR_Combined_Inputs!G39="","",(APR_Combined_Inputs!G39)*($E39)) -> 91.77230068 | I39: =APR_Combined_Inputs!H39 -> 424.6895008
A40: NWT22 | B40: NWT | C40: 2021-22 | D40: 5 | E40: =INDEX(F_Input_CPIH!$F$9:$M$9, MATCH($C40, F_Input_CPIH!$F$5:$M$5, 0)) -> 1.08774127 | F40: =IF(APR_Combined_Inputs!E40="","",(APR_Combined_Inputs!E40)*($E40)) -> 102.8235226 | G40: =IF(APR_Combined_Inputs!F40="","",(APR_Combined_Inputs!F40)*($E40)) -> 16.15732652 | H40: =IF(APR_Combined_Inputs!G40="","",(APR_Combined_Inputs!G40)*($E40)) -> 86.66619612 | I40: =APR_Combined_Inputs!H40 -> 413.8898524
A41: NWT23 | B41: NWT | C41: 2022-23 | D41: 6 | E41: =INDEX(F_Input_CPIH!$F$9:$M$9, MATCH($C41, F_Input_CPIH!$F$5:$M$5, 0)) -> 1 | F41: =IF(APR_Combined_Inputs!E41="","",(APR_Combined_Inputs!E41)*($E41)) -> 109.3031666 | G41: =IF(APR_Combined_Inputs!F41="","",(APR_Combined_Inputs!F41)*($E41)) -> 9.39796118 | H41: =IF(APR_Combined_Inputs!G41="","",(APR_Combined_Inputs!G41)*($E41)) -> 99.90520542 | I41: =APR_Combined_Inputs!H41 -> 430.3
A42: =(B42&RIGHT(C42,2)) -> NWT24 | B42: NWT | C42: 2023-24 | D42: 7 | E42: =INDEX(F_Input_CPIH!$F$9:$M$9, MATCH($C42, F_Input_CPIH!$F$5:$M$5, 0)) -> 0.9474460986 | F42: =IF(APR_Combined_Inputs!E42="","",(APR_Combined_Inputs!E42)*($E42)) -> 90.9786338 | G42: =IF(APR_Combined_Inputs!F42="","",(APR_Combined_Inputs!F42)*($E42)) -> 6.490320936 | H42: =IF(APR_Combined_Inputs!G42="","",(APR_Combined_Inputs!G42)*($E42)) -> 84.48831287 | I42: =APR_Combined_Inputs!H42 -> 416.85
